Workbook

Sheet Cover

Sheet Contents
A1: Contents
A4: Tab | B4: Description
A5: Cover
A7: One-pager
A9: Guide & Drivers
A11: RAG and Ranking
A13: Chapter 2 - Outputs and Incentives
A14: Incentive Payments | B14: Summary table of 2024-25 incentive payments including: IIS, TTC, CSS, CM, DSO, MCI and CVI
A16: Connections | B16: Connection incentives including: Time to Connect Incentive, Connections on Guaranteed Standards of Performance and Major Connections Incentive
A18: Customer Satisfaction | B18: Customer Satisfaction and Vulnerability incentives including: Customer Satisfaction Survey, Complaints Metric and Consumer Vulnerability Incentive
A20: Reliability | B20: Reliability and Availability incentive measures including: IIS, GSoP, WSC and Network resilience
A22: Distribution System Operator | B22: Performance on the two components of the DSO incentive as well as the overall reward and penalty
A24: Network Asset Risk Metric | B24: Performance against the NARM methodology including risk reduction delivery and percentage of target delivered
A26: Environment | B26: Environment incentives including: Distribution losses, Business Carbon Footprint, limiting emissions of Sulphur Hexafluoride (SF6), Fluid filled cable leakage, Visual impact allowance for undergrounding overhead lines in Areas of Outstanding Natural Beauty (AONB) & National Parks, Electric vehicles connected to the secondary network and Noise pollution
A28: Chapter 3 - Innovation
A29: Innovation | B29: Innovation data including: Network Innovation Allowance and Strategic Innovation Fund
A31: Chapter 4 - Expenditure Drivers
A32: Expenditure Drivers | B32: Expenditure driver's data including: Expenditure drivers of allowances and expenditures of each cost category, distribution of overall allowances and expenditures and allowances & actual expenditure by cost category
A34: Expenditure Drivers 2 | B34: Overall outline of allowances of each cost category, areas of underspend and areas of overspend

Sheet One-pager
A1: One-Pager
A2: SP ENW
A3: One-Pager - key data points of each DNO (Dropdown Menu above)
A4: Cover, Guide and Drivers
B5: 2024/25 | C5: 10 year trend
A6: Customer numbers | B6: =TEXT(Calculations!M7,"#,##0") -> 2,430,262
A7: Network length | B7: =TEXT(Calculations!M8,"#,##0.00")&"km" -> 59,736.44km
A8: Total units distributed | B8: =TEXT(Calculations!M9,"#,##0.00")&" GWh" -> 19,547.10 GWh
A9: Network-wide peak load | B9: =TEXT(Calculations!M10,"#,##0")&" MVA" -> 4,019 MVA
A11: Incentive Payments
B12: 2024/25
A13: Total Incentive Payments | B13: ="£"&TEXT(Calculations!E14,"#,##0.00")&"m" -> £8.56m
A15: Reliability
B16: 2024/25 | C16: RAG rating
A17: CI Performance | B17: =Calculations!E19 -> 26.06998752 | C17: =Calculations!D20 -> Green
A18: CML Performance | B18: =Calculations!E21 -> 27.08858695 | C18: =Calculations!D22 -> Amber
A19: IIS Total Reward/Penalty | B19: ="£"&TEXT(Calculations!E23,"#,##0.00")&"m" -> £0.43m
A20: GSOP mandatory payments vs valid payments owed | B20: =Calculations!E30 -> 1
A21: WSC Expenditure | B21: ="£"&TEXT(Calculations!E32,"#,##0.00")&"m" -> £0.62m
A22: Total Resilience Expenditure | B22: ="£"&TEXT(Calculations!E35,"#,##0.00")&"m" -> £9.66m
A24: Connections
B25: 2024/25 | C25: RAG rating | D25: Ranking
A26: TTC Reward | B26: ="£"&TEXT(Calculations!D39,"#,##0.00")&"m" -> £1.01m | C26: =Calculations!D40 -> Green | D26: =Calculations!D41 -> 2
A27: Penalties paid against Connection GSOPs | B27: ="£"&TEXT(Calculations!D49,"#,##0") -> £3,720 | C27: =Calculations!D50 -> Green | D27: =Calculations!D51 -> 6
A28: MCI Penalty | B28: ="£"&TEXT(Calculations!D44,"#,##0.00")&"m" -> £0.00m
A30: Environment
B31: 2024/25 | C31: Ranking
A32: Distribution Losses | B32: =Calculations!D56 -> 0.08114530986
A33: BCF (as % of network length and customer numbers) | B33: =Calculations!D59 -> 0.0826999104 | C33: =Calculations!D60 -> 5
A34: SF6 emissions (as % of SF6 bank) | B34: =Calculations!D63 -> 0.003798691372 | C34: =Calculations!D64 -> 7
A35: Top up of fluid-filled cables (as % of oil in service) | B35: =Calculations!D67 -> 0.01614152048 | C35: =Calculations!D68 -> 6
A36: Undergrounding expenditure | B36: ="£"&TEXT(Calculations!D71,"#,##0.00")&"m" -> £0.26m
A37: Slow charge EVs connected to the distribution network | B37: =TEXT(Calculations!D74,"#,##0.0000")&" MW" -> 0.0037 MW
A38: Fast charge EVs connected to the distribution network | B38: =TEXT(Calculations!D75,"#,##0.00")&" MW" -> 76.65 MW
A39: Noise complaints | B39: =Calculations!D78 -> 17
A42: Customer Satisfaction
B43: 2024/25 | C43: RAG rating | D43: Ranking
A44: Overall CSS Score | B44: =TEXT(Calculations!D83,"#,##0.00") -> 9.30 | C44: =Calculations!D84 -> Green | D44: =Calculations!D85 -> 4
A45: Complaint Metric Score | B45: =TEXT(Calculations!D92,"#,##0.00") -> 1.97 | C45: =Calculations!D93 -> Green | D45: =Calculations!D94 -> 8
A46: CSS Reward/Penalty | B46: ="£"&TEXT(Calculations!D102,"#,##0.00")&"m" -> £1.86m
A47: Complaints Metric Penalty | B47: ="£"&TEXT(Calculations!D103,"#,##0.00")&"m" -> £0.00m
A48: Consumer Vulnerability Reward/Penalty | B48: ="£"&TEXT(Calculations!D104,"#,##0.00")&"m" -> £3.13m
A51: Expenditure Drivers (Over-spend/under-spend %)
B52: 2024/25 Difference | C52: 2024/25 Difference %
A53: Cumulative Totex | B53: =TEXT(Calculations!$H$115,"+£0.00;-£0.00")&"m" -> -£61.37m | C53: =IFERROR(TEXT(Calculations!H116,"+0.00%;-0.00%"),"") -> -8.98%
A54: Load Related Capex | B54: =TEXT(Calculations!D155,"+£0.00;-£0.00")&"m" -> +£6.48m | C54: =IFERROR(TEXT(Calculations!D156,"+0.00%;-0.00%"),"") -> +16.51%
A55: Non-Load Related Capex | B55: =TEXT(Calculations!D159,"+£0.00;-£0.00")&"m" -> -£4.60m | C55: =IFERROR(TEXT(Calculations!D160,"+0.00%;-0.00%"),"") -> -4.30%
A56: Non-Op Capex | B56: =TEXT(Calculations!D163,"+£0.00;-£0.00")&"m" -> -£2.34m | C56: =IFERROR(TEXT(Calculations!D164,"+0.00%;-0.00%"),"") -> -13.84%
A57: High Value Projects | B57: =TEXT(Calculations!D167,"+£0.00;-£0.00")&"m" -> +£0.11m | C57: =IFERROR(TEXT(Calculations!D168,"+0.00%;-0.00%"),"") -> +2854.12%
A58: Network Operating Costs | B58: =TEXT(Calculations!D171,"+£0.00;-£0.00")&"m" -> +£5.19m | C58: =IFERROR(TEXT(Calculations!D172,"+0.00%;-0.00%"),"") -> +9.09%
A59: Closely Associated Indirects | B59: =TEXT(Calculations!D175,"+£0.00;-£0.00")&"m" -> -£4.28m | C59: =IFERROR(TEXT(Calculations!D176,"+0.00%;-0.00%"),"") -> -6.29%
A60: Business Support Costs | B60: =TEXT(Calculations!D179,"+£0.00;-£0.00")&"m" -> +£7.84m | C60: =IFERROR(TEXT(Calculations!D180,"+0.00%;-0.00%"),"") -> +19.54%
A61: All Other Costs | B61: =TEXT(Calculations!D183,"+£0.00;-£0.00")&"m" -> -£11.85m | C61: =IFERROR(TEXT(Calculations!D184,"+0.00%;-0.00%"),"") -> -44.10%

Sheet Guide & drivers
A1: Guide and Drivers
A2: This workbook provides data that is reported in the Annual Report and more detailed data for those who want to undertake further analysis.
A4: Key
B5: Future year input (graphs will be manually pointed to the relevant years' data)
B6: Actual expenditure or performance
B7: Forecast / target expenditure or performance
B8: Baseline allowances
B9: Forecast/Adjusted allowances
B10: Adjustment factor / Difference
B11: Ranking
A13: Price base: | B13: 2020/21
A15: Input Terms
B17: RPI Index
C18: Financial Year Average RPI | D18: Conversion from 20/21 to nominal prices | I18: Index adjustment 2020/21 base year
B19: 2009/10 | C19: 215.767 | D19: =C19/$C$30 -> 0.7334847213 | I19: 2009/10 | J19: =$C$30/C19 -> 1.363354915
B20: 2010/11 | C20: 226.475 | D20: =C20/$C$30 -> 0.7698858132 | I20: 2010/11 | J20: =$C$30/C20 -> 1.298893918
B21: 2011/12 | C21: 237.342 | D21: =C21/$C$30 -> 0.8068274144 | I21: 2011/12 | J21: =$C$30/C21 -> 1.239422437
B22: 2012/13 | C22: 244.675 | D22: 0.8317554314 | I22: 2012/13 | J22: 1.202276489
B23: 2013/14 | C23: 251.733 | D23: 0.8557486054 | I23: 2013/14 | J23: 1.16856749
B24: 2014/15 | C24: 256.667 | D24: 0.8725213909 | I24: 2014/15 | J24: 1.146103706
B25: 2015/16 | C25: 259.433 | D25: 0.8819242131 | I25: 2015/16 | J25: 1.133884278
B26: 2016/17 | C26: 264.992 | D26: 0.9008216421 | I26: 2016/17 | J26: 1.110097663
B27: 2017/18 | C27: 274.908 | D27: 0.9345303858 | I27: 2017/18 | J27: =$C$30/C27 -> 1.070056164
B28: 2018/19 | C28: 283.308 | D28: 0.9630855942 | I28: 2018/19 | J28: 1.038329309
B29: 2019/20 | C29: 290.642 | D29: 0.9880170107 | I29: 2019/20 | J29: 1.012128323
B30: 2020/21 | C30: 294.167 | D30: 1 | I30: 2020/21 | J30: 1
B31: 2021/22 | C31: 311.158 | D31: 1.057759708 | I31: 2021/22 | J31: 0.9453943013
B32: 2022/23 | C32: 351.217 | D32: 1.193937457 | I32: 2022/23 | J32: 0.8375648104
B33: 2023/24 | C33: 377.4833333 | D33: 1.283228008 | I33: 2023/24 | J33: =$C$30/C33 -> 0.7792847366
B34: 2024/25 | C34: 389.95 | D34: =C34/$C$30 -> 1.325607563 | I34: 2024/25 | J34: =$C$30/C34 -> 0.7543710732
B37: Convert 2020/21 prices to 2024/25 | C37: =C34/C30 -> 1.325607563
B38: Convert 2024/24 prices to 2020/21 | C38: =C30/C34 -> 0.7543710732
A40: Drivers
B41: Customer numbers
C42: DPCR5 | H42: RIIO ED1 | P42: RIIO ED2
B43: Column1 | C43: 2011 | D43: 2012 | E43: 2013 | F43: 2014 | G43: 2015 | H43: 2016 | I43: 2017 | J43: 2018 | K43: 2019 | L43: 2020 | M43: 2021 | N43: 2022 | O43: 2023 | P43: 2024 | Q43: 2025 | R43: 2026 | S43: 2027 | T43: 2028
B44: SP ENW | C44: 2359391 | D44: 2364446 | E44: 2368572 | F44: 2371790 | G44: 2375305 | H44: 2381080 | I44: 2383214 | J44: 2383887 | K44: 2393226 | L44: 2399715 | M44: 2405770 | N44: 2412196 | O44: 2424364 | P44: 2430849 | Q44: 2430262
B45: NPgN | C45: 1575686 | D45: 1581420 | E45: 1583627 | F45: 1586437 | G45: 1590615 | H45: 1596374 | I45: 1600885 | J45: 1602128 | K45: 1606300 | L45: 1610820 | M45: 1614053 | N45: 1616140 | O45: 1616824 | P45: 1619235 | Q45: 1617948
B46: NPgY | C46: 2258404 | D46: 2266464 | E46: 2272386 | F46: 2277373 | G46: 2284044 | H46: 2291522 | I46: 2298672 | J46: 2298786 | K46: 2306293 | L46: 2312147 | M46: 2318718 | N46: 2322737 | O46: 2326611 | P46: 2331947 | Q46: 2331593
B47: WMID | C47: 2446951 | D47: 2462123 | E47: 2469953 | F47: 2448930 | G47: 2455914 | H47: 2463217 | I47: 2470151 | J47: 2481944 | K47: 2491212 | L47: 2498337 | M47: 2505140 | N47: 2515482 | O47: 2522965 | P47: 2523467 | Q47: 2526904
B48: EMID | C48: 2614165 | D48: 2623103 | E48: 2619183 | F48: 2604846 | G48: 2613507 | H48: 2622449 | I48: 2631017 | J48: 2647059 | K48: 2658397 | L48: 2665558 | M48: 2674911 | N48: 2686722 | O48: 2696717 | P48: 2699235 | Q48: 2705005
B49: SWALES | C49: 1099333 | D49: 1103465 | E49: 1108168 | F49: 1113015 | G49: 1117685 | H49: 1122920 | I49: 1128284 | J49: 1133101 | K49: 1137812 | L49: 1142731 | M49: 1147345 | N49: 1151120 | O49: 1155365 | P49: 1159228 | Q49: 1161671
B50: SWEST | C50: 1541188 | D50: 1551046 | E50: 1561137 | F50: 1570645 | G50: 1579687 | H50: 1590050 | I50: 1600520 | J50: 1613218 | K50: 1624131 | L50: 1628987 | M50: 1636981 | N50: 1646359 | O50: 1653816 | P50: 1657791 | Q50: 1662078
B51: LPN | C51: 2251892 | D51: 2267440 | E51: 2279053 | F51: 2286322 | G51: 2298560 | H51: 2311906 | I51: 2330356 | J51: 2345807 | K51: 2357951 | L51: 2369157 | M51: 2375701 | N51: 2384532 | O51: 2409279 | P51: 2415875 | Q51: 2420495
B52: SPN | C52: 2233288 | D52: 2247823 | E52: 2257968 | F52: 2262882 | G52: 2271189 | H52: 2281009 | I52: 2288599 | J52: 2296864 | K52: 2304887 | L52: 2311511 | M52: 2319494 | N52: 2327062 | O52: 2343845 | P52: 2351552 | Q52: 2358803
B53: EPN | C53: 3516859 | D53: 3537357 | E53: 3556281 | F53: 3565115 | G53: 3581606 | H53: 3599594 | I53: 3614431 | J53: 3627858 | K53: 3638189 | L53: 3653242 | M53: 3664189 | N53: 3678637 | O53: 3698654 | P53: 3707444 | Q53: 3712071
B54: SPD | C54: 1992998 | D54: 1994241 | E54: 1996169 | F54: 1996758 | G54: 1998881 | H54: 2002257 | I54: 2004462 | J54: 2007341 | K54: 2002889 | L54: 2008433 | M54: 2010896 | N54: 2016358 | O54: 2018597 | P54: 2020040 | Q54: 2017857
B55: SPMW | C55: 1485153 | D55: 1487412 | E55: 1490883 | F55: 1494271 | G55: 1499500 | H55: 1503914 | I55: 1508672 | J55: 1512961 | K55: 1512275 | L55: 1519557 | M55: 1523255 | N55: 1527950 | O55: 1531042 | P55: 1533364 | Q55: 1532350
B56: SSEH | C56: 740768 | D56: 745907 | E56: 750446 | F56: 754258 | G56: 757906 | H56: 758000 | I56: 767082 | J56: 772984 | K56: 778304 | L56: 782536 | M56: 785183 | N56: 788261 | O56: 792497 | P56: 795437 | Q56: 797655
B57: SSES | C57: 3026488 | D57: 3040102 | E57: 3054120 | F57: 3067274 | G57: 3082913 | H57: 3098577 | I57: 3032766 | J57: 3049924 | K57: 3067988 | L57: 3092275 | M57: 3110203 | N57: 3127424 | O57: 3138114 | P57: 3148028 | Q57: 3150112
B58: Total | C58: =SUM(C44:C57) -> 29142564 | D58: =SUM(D44:D57) -> 29272349 | E58: 29367946 | F58: 29399916 | G58: 29507312 | H58: 29622869 | I58: 29659111 | J58: 29773862 | K58: 29879854 | L58: 29995006 | M58: 30091839 | N58: =SUM(N44:N57) -> 30200980 | O58: 30328690 | P58: 30393492 | Q58: 30424804
B60: Network length (km)
C61: DPCR5 | H61: RIIO ED1 | P61: RIIO ED2
C62: 2011 | D62: 2012 | E62: 2013 | F62: 2014 | G62: 2015 | H62: 2016 | I62: 2017 | J62: 2018 | K62: 2019 | L62: 2020 | M62: 2021 | N62: 2022 | O62: 2023 | P62: 2024 | Q62: 2025 | R62: 2026 | S62: 2027 | T62: 2028
B63: SP ENW | C63: 56952.2565 | D63: 57115.77162 | E63: 57296.44743 | F63: 57547.74498 | G63: 57722.14882 | H63: 57946.36778 | I63: 57090.45584 | J63: 57324.15031 | K63: 57348.87727 | L63: 57432.08682 | M63: 57415.28103 | N63: 57694.51428 | O63: 60022.72532 | P63: 60848.16603 | Q63: 59736.44439
B64: NPgN | C64: 40159.667 | D64: 40351.759 | E64: 40668.071 | F64: 40787.16 | G64: 41012.91718 | H64: 41243.50856 | I64: 41503.33523 | J64: 41704.94 | K64: 41839.146 | L64: 41922.93155 | M64: 42001.7035 | N64: 42100.80948 | O64: 42435.88776 | P64: 42907.75593 | Q64: 42988.89254
B65: NPgY | C65: 52782.96193 | D65: 52946.18823 | E65: 53163.7354 | F65: 53299.51433 | G65: 53567.08269 | H65: 53873.2104 | I65: 54094.26509 | J65: 54318.59584 | K65: 54653.81543 | L65: 54890.93543 | M65: 55119.95643 | N65: 55092.42136 | O65: 55262.51996 | P65: 55686.12571 | Q65: 55757.039
B66: WMID | C66: 63459.141 | D66: 64111.49284 | E66: 64147.94284 | F66: 64280.34684 | G66: 64590.59284 | H66: 64268.96386 | I66: 64575.20252 | J66: 64878.78841 | K66: 65153.4721 | L66: 65363.5972 | M66: 65570.05074 | N66: 65765.19243 | O66: 66058.60854 | P66: 66254.72493 | Q66: 66469.55438
B67: EMID | C67: 71700.13171 | D67: 71919.771 | E67: 72058.561 | F67: 72381.282 | G67: 72761.459 | H67: 72976.36896 | I67: 73379.48656 | J67: 73745.45616 | K67: 74111.28595 | L67: 74399.80883 | M67: 74750.61973 | N67: 75070.71224 | O67: 75454.66648 | P67: 75752.74241 | Q67: 76047.38029
B68: SWALES | C68: 35162.26796 | D68: 35298.91919 | E68: 35362.00919 | F68: 35458.70019 | G68: 35632.41818 | H68: 35612.30017 | I68: 35789.68791 | J68: 35678.69651 | K68: 35758.72217 | L68: 35832.16687 | M68: 35927.35557 | N68: 36052.24805 | O68: 36193.12924 | P68: 36298.94131 | Q68: 36390.99026
B69: SWEST | C69: 50183.208 | D69: 50440.85943 | E69: 50584.05944 | F69: 50761.22542 | G69: 51050.23841 | H69: 50247.79193 | I69: 50450.12055 | J69: 50609.99914 | K69: 50798.96036 | L69: 50935.80437 | M69: 51090.62407 | N69: 51234.26161 | O69: 51443.53881 | P69: 51568.60296 | Q69: 51720.62525
B70: LPN | C70: 36627.93 | D70: 36703.93 | E70: 36732.21 | F70: 36822.66089 | G70: 36845.69054 | H70: 36932.86279 | I70: 37041.84541 | J70: 37159.64167 | K70: 37270.9533 | L70: 37456.53582 | M70: 37511.14746 | N70: 37580.33428 | O70: 37685.25862 | P70: 37522.50601 | Q70: 37602.34766
B71: SPN | C71: 52200 | D71: 52315.75334 | E71: 52449.36234 | F71: 52686.69774 | G71: 52805.84673 | H71: 52841.05469 | I71: 52924.03279 | J71: 53014.55406 | K71: 53134.23316 | L71: 53252.59718 | M71: 53396.96876 | N71: 53449.03517 | O71: 53573.06378 | P71: 53745.76408 | Q71: 53884.87994
B72: EPN | C72: 96266 | D72: 96408.8 | E72: 96541.527 | F72: 96767.73147 | G72: 96913.08314 | H72: 97261.38548 | I72: 97631.96554 | J72: 97817.45905 | K72: 98070.96429 | L72: 98393.93852 | M72: 98594.66181 | N72: 98792.58876 | O72: 99079.71756 | P72: 100255.0641 | Q72: 100551.7207
B73: SPD | C73: 63848.4556 | D73: 63943.0006 | E73: 57811.99774 | F73: 57324 | G73: 57628.9 | H73: 57984.4 | I73: 58303.9 | J73: 58515.3 | K73: 58578.6 | L73: 58696.8 | M73: 58816.8 | N73: 58997.3 | O73: 59239.5 | P73: 59536.4 | Q73: 59725.9
B74: SPMW | C74: 49669.0976 | D74: 49619.0976 | E74: 48454.39517 | F74: 46437.905 | G74: 46589.90371 | H74: 46844.00973 | I74: 46947 | J74: 47051.39112 | K74: 47151 | L74: 47253.2 | M74: 47374.3 | N74: 47500.9 | O74: 47687.3 | P74: 47884.1 | Q74: 48017
B75: SSEH | C75: 47024.21947 | D75: 47477.55799 | E75: 47676.3229 | F75: 48053.1727 | G75: 48407.80773 | H75: 48346.868 | I75: 49041.43246 | J75: 49168.90214 | K75: 49371.64014 | L75: 49405.11014 | M75: 49348.79714 | N75: 49471.43214 | O75: 49762.72314 | P75: 49727.00514 | Q75: 49821.23214
B76: SSES | C76: 76219.64 | D76: 76727.2343 | E76: 76965.98655 | F76: 76667.08495 | G76: 77077.0711 | H76: 77958.94515 | I76: 77378.52982 | J76: 77486.93267 | K76: 77710.01067 | L76: 77998.02367 | M76: 78149.13667 | N76: 78702.57567 | O76: 79063.70667 | P76: 79131.26664 | Q76: 79171.86464
B77: Total | C77: =SUM(C63:C76) -> 792254.9768 | D77: 795380.1351 | E77: 789912.628 | F77: 789275.2265 | G77: 792605.1601 | H77: 794338.0375 | I77: 796151.2597 | J77: 798474.8071 | K77: 800951.6808 | L77: =SUM(L63:L76) -> 803233.5364 | M77: =SUM(M63:M76) -> 805067.4029 | N77: =SUM(N63:N76) -> 807504.3255 | O77: 812962.3459 | P77: 817119.1653 | Q77: 817885.8712
B79: Total units distributed (GWh)
C80: DPCR5 | H80: RIIO ED1 | P80: RIIO ED2
C81: 2011 | D81: 2012 | E81: 2013 | F81: 2014 | G81: 2015 | H81: 2016 | I81: 2017 | J81: 2018 | K81: 2019 | L81: 2020 | M81: 2021 | N81: 2022 | O81: 2023 | P81: 2024 | Q81: 2025 | R81: 2026 | S81: 2027 | T81: 2028
B82: SP ENW | C82: 23835.24 | D82: 23367.42 | E82: 23484.00688 | F82: 22820 | G82: 22393 | H82: 22223.98232 | I82: 22059.6 | J82: 21855.5 | K82: 21712.4 | L82: 21372.05355 | M82: 20115 | N82: 20962.45289 | O82: 19661.1 | P82: 19532.4 | Q82: 19547.1
B83: NPgN | C83: 15795.56804 | D83: 15271.77665 | E83: 15489.97147 | F83: 15131.45655 | G83: 14984.01833 | H83: 14861.88999 | I83: 14494.54801 | J83: 14414.14121 | K83: 14092.21149 | L83: 13849.77093 | M83: 13156.82279 | N83: 13524.24992 | O83: 12809.47536 | P83: 12662.69097 | Q83: 12766.47964
B84: NPgY | C84: 23063.32753 | D84: 22570.84487 | E84: 22692.94041 | F84: 22438.35129 | G84: 22263.32887 | H84: 22012.43424 | I84: 21674.854 | J84: 21614.84335 | K84: 21387.84575 | L84: 21059.51281 | M84: 19987.06933 | N84: 20458.41375 | O84: 19450.49236 | P84: 18963.88521 | Q84: 19184.75659
B85: WMID | C85: 24932.16037 | D85: 24247.72246 | E85: 24682.02266 | F85: 24427.3279 | G85: 24212.92271 | H85: 23941.29 | I85: 23896.44 | J85: 23772.67 | K85: 23198.03 | L85: 22877.71 | M85: 21450.19 | N85: 21911.37 | O85: 20805.22 | P85: 20536.38 | Q85: 20755.04
B86: EMID | C86: 27882.57017 | D86: 27073.80591 | E86: 27598.0905 | F86: 26795.42345 | G86: 26627.16446 | H86: 26424.31 | I86: 26354.81 | J86: 26186.52 | K86: 25589.97 | L86: 25289.71 | M86: 24075.09 | N86: 24795.85 | O86: 23534.71 | P86: 23223.72 | Q86: 23596.53
B87: SWALES | C87: 12110.70383 | D87: 11776.00643 | E87: 11769.62784 | F87: 11640.55919 | G87: 11490.95206 | H87: 11333.01 | I87: 11194.51 | J87: 11103.43 | K87: 10939.62 | L87: 10740.55 | M87: 9988.44 | N87: 10378.86 | O87: 9691.97 | P87: 9494.1 | Q87: 9515.72
B88: SWEST | C88: 14625.00699 | D88: 14078.27414 | E88: 14412.45131 | F88: 13932.80799 | G88: 13767.54807 | H88: 13561.19 | I88: 13531.84 | J88: 13508.36 | K88: 13190.18 | L88: 13024.17 | M88: 12409.9 | N88: 12707.66 | O88: 12007.7 | P88: 11893.39 | Q88: 12006.22
B89: LPN | C89: 29355 | D89: 28492.36302 | E89: 28722.3 | F89: 28006 | G89: 27632 | H89: 27442.4 | I89: 27266 | J89: 27012 | K89: 26864 | L89: 25779 | M89: 22309.19072 | N89: 23801.83947 | O89: 23828.43024 | P89: 23655.53589 | Q89: 23611.13317
B90: SPN | C90: 21694 | D90: 20813 | E90: 20994 | F90: 20508.408 | G90: 19713 | H90: 19413.4 | I90: 19468 | J90: 19373 | K90: 19379 | L90: 18763 | M90: 17921.516 | N90: 18377.68234 | O90: 17499.96501 | P90: 17238.04785 | Q90: 17450.97972
B91: EPN | C91: 34525 | D91: 34093 | E91: 35108 | F91: 33794 | G91: 32882 | H91: 32721 | I91: 33295 | J91: 33106 | K91: 32994 | L91: 31973 | M91: 30657.3915 | N91: 31566.64774 | O91: 30130.35201 | P91: 29842.89467 | Q91: 30078.70912
B92: SPD | C92: 20023 | D92: 19341 | E92: 19537 | F92: 18943 | G92: 18589 | H92: 18348 | I92: 17961 | J92: 17833 | K92: 17266 | L92: 16920.72771 | M92: 15782.06644 | N92: 16169.72888 | O92: 15470.16933 | P92: 15345.08304 | Q92: 15271.48688
B93: SPMW | C93: 16195 | D93: 15787 | E93: 16065 | F93: 15997 | G93: 15742 | H93: 15449 | I93: 15211 | J93: 15118 | K93: 14655 | L93: 14377.93888 | M93: 13476.78862 | N93: 13607.93521 | O93: 13020.98836 | P93: 12898.90527 | Q93: 12848.22008
B94: SSEH | C94: 8521 | D94: 8117.4 | E94: 8333.8 | F94: 8075.6 | G94: 7818.5 | H94: 7859.7 | I94: 7427.8 | J94: 7662.7 | K94: 7461.9 | L94: 6996.683915 | M94: 6868.6 | N94: 7178.2 | O94: 6747.2 | P94: 6756.6 | Q94: 6783
B95: SSES | C95: 33646.1 | D95: 32536.8 | E95: 33207.3 | F95: 32359.1 | G95: 31840.1 | H95: 31425.5 | I95: 30984.1 | J95: 31527.7 | K95: 30870.8 | L95: 30641.73411 | M95: 29279.9 | N95: 30452.3 | O95: 29341.2 | P95: 30204.3 | Q95: 30739
B96: Total | C96: =SUM(C82:C95) -> 306203.6769 | D96: =SUM(D82:D95) -> 297566.4135 | E96: 302096.5111 | F96: 294869.0344 | G96: 289955.5345 | H96: 287017.1065 | I96: 284819.502 | J96: 284087.8646 | K96: 279600.9572 | L96: 273665.5619 | M96: 257477.9654 | N96: =SUM(N82:N95) -> 265893.1902 | O96: 253998.9727 | P96: 252247.9329 | Q96: 254154.3752
B98: Network-wide Peak load (MVA)
C99: DPCR5 | H99: RIIO ED1 | P99: RIIO ED2
C100: 2011 | D100: 2012 | E100: 2013 | F100: 2014 | G100: 2015 | H100: 2016 | I100: 2017 | J100: 2018 | K100: 2019 | L100: 2020 | M100: 2021 | N100: 2022 | O100: 2023 | P100: 2024 | Q100: 2025 | R100: 2026 | S100: 2027 | T100: 2028
B101: SP ENW | C101: 4388.66 | D101: 4280.41 | E101: 4250.4 | F101: 4062.350515 | G101: 4267 | H101: 4233 | I101: 4262 | J101: 4305 | K101: 4160 | L101: 4140 | M101: 4049 | N101: 4223 | O101: 4107 | P101: 3960 | Q101: 4019
B102: NPgN | C102: 2997 | D102: 2852 | E102: 2777 | F102: 2604 | G102: 2593 | H102: 2719 | I102: 2781.3392 | J102: 2723.672 | K102: 2459.074 | L102: 2410.7036 | M102: 2531.7 | N102: 2305.6896 | O102: 2421.243 | P102: 2432.792198 | Q102: 2579.18
B103: NPgY | C103: 4285 | D103: 4195 | E103: 4041 | F103: 4086 | G103: 3763 | H103: 4050 | I103: 3961.26 | J103: 3786.452 | K103: 3994.02 | L103: 3696.7076 | M103: 3474.7 | N103: 3704.448 | O103: 3708.0456 | P103: 3740.269393 | Q103: 3825.8
B104: WMID | C104: 4662.231544 | D104: 4792.138457 | E104: 4782.4592 | F104: 4492 | G104: 4597.6 | H104: 4487.2 | I104: 4469.6 | J104: 4440 | K104: 4323.8 | L104: 4251 | M104: 4162 | N104: 4220.2 | O104: 3934.2 | P104: 4030.2 | Q104: 4070
B105: EMID | C105: 5042.450848 | D105: 5292.3975 | E105: 5293.0718 | F105: 5056 | G105: 5012.2 | H105: 4968.4 | I105: 4961.6 | J105: 4801.8 | K105: 4769 | L105: 4699 | M105: 4692.4 | N105: 4769.2 | O105: 4481.8 | P105: 4621.8 | Q105: 4508.2
B106: SWALES | C106: 2152.652603 | D106: 2117.6 | E106: 1999.5122 | F106: 1992 | G106: 2012 | H106: 1970.4 | I106: 1946.4 | J106: 1914 | K106: 1897.6 | L106: 1824.2 | M106: 1761.4 | N106: 1801.4 | O106: 1747.2 | P106: 1763.6 | Q106: 1725.2
B107: SWEST | C107: 2903.634729 | D107: 2854.9 | E107: 2754.5462 | F107: 2594 | G107: 2583.8 | H107: 2536.8 | I107: 2590.8 | J107: 2565.8 | K107: 2486.8 | L107: 2462.6 | M107: 2446.4 | N107: 2459.8 | O107: 2374.8 | P107: 2399 | Q107: 2425.2
B108: LPN | C108: 5203 | D108: 5125 | E108: 5167 | F108: 4820 | G108: 4952 | H108: 4833 | I108: 4915 | J108: 5189 | K108: 4780 | L108: 4389 | M108: 4448 | N108: 4313 | O108: 4455.6 | P108: 4342.7 | Q108: 4360.14
B109: SPN | C109: 3976 | D109: 4108 | E109: 4107 | F109: 3672 | G109: 3795 | H109: 3809 | I109: 3923 | J109: 4022 | K109: 3672 | L109: 3526 | M109: 3592 | N109: 3567 | O109: 3371.9 | P109: 3175.6 | Q109: 3683.61
B110: EPN | C110: 6966 | D110: 6407 | E110: 6408 | F110: 6096 | G110: 6267 | H110: 6236 | I110: 6441 | J110: 6573 | K110: 5926 | L110: 5401 | M110: 6129 | N110: 5270 | O110: 5638.2 | P110: 5452.2 | Q110: 5602
B111: SPD | C111: 4024 | D111: 3611 | E111: 3673 | F111: 3426 | G111: 3414 | H111: 3626 | I111: 3563 | J111: 3575 | K111: 3437 | L111: 3384 | M111: 3132 | N111: 3203 | O111: 3250 | P111: 3122.6 | Q111: 3138
B112: SPMW | C112: 3320 | D112: 3197 | E112: 3245 | F112: 3023 | G112: 3127 | H112: 3014 | I112: 3022 | J112: 3039 | K112: 2967 | L112: 2929 | M112: 2674 | N112: 2690 | O112: 2739 | P112: 2639 | Q112: 2694
B113: SSEH | C113: 1633 | D113: 1559 | E113: 1518 | F113: 1518 | G113: 1514 | H113: 1417 | I113: 1497.2 | J113: 1564.5 | K113: 1429.5 | L113: 1416.0002 | M113: 1400 | N113: 1377.1 | O113: 1346.6 | P113: 1366.8 | Q113: 1352
B114: SSES | C114: 6692.8 | D114: 6395.7 | E114: 6387.1 | F114: 5916.3 | G114: 6005.4 | H114: 5971.2 | I114: 6079.3 | J114: 6293 | K114: 5883.7 | L114: 5584.9832 | M114: 5699 | N114: 5709.5 | O114: 5624 | P114: 5691 | Q114: 5625
B115: Total | C115: =SUM(C101:C114) -> 58246.42972 | D115: =SUM(D101:D114) -> 56787.14596 | E115: 56403.0894 | F115: 53357.65052 | G115: 53903 | H115: 53871 | I115: 54413.4992 | J115: 54792.224 | K115: 52185.494 | L115: 50114.1946 | M115: 50191.6 | N115: =SUM(N101:N114) -> 49613.3376 | O115: 49199.5886 | P115: =SUM(P101:P114) -> 48737.56159 | Q115: 49607.33

Sheet RAG and Ranking
A1: Outputs overview
C3: Reliability & Availability | F3: Environment | J3: Connections | Q3: Customer satisfaction | V3: Consumer Vulnerability | X3: Distribution System Operator
C4: Number of interruption (CIs) RAG | D4: Number of minutes lost (CMLs) RAG | F4: BCF (excl. losses) ranking | G4: SF6 ranking | H4: Fluid filled cable leakage ranking | J4: Time to Quote and Time to Connect RAG | K4: Time to Quote and Time to Connect ranking | L4: Connection GSoPs RAG | M4: Connection GSoPs ranking | N4: Major Connections RAG | O4: Major Connections ranking | Q4: Complaints RAG | R4: Complaints ranking | S4: Customer Satisfaction RAG | T4: Customer Satisfaction ranking | V4: Consumer Vulnerability RAG | X4: DNO Group | Y4: DNO Ranking | Z4: DSO RAG
A5: SP ENW | C5: 1 | D5: 0.5 | F5: ='Ch2 outputs - environment'!O56 -> 5 | G5: ='Ch2 outputs - environment'!O96 -> 7 | H5: ='Ch2 outputs - environment'!O135 -> 6 | J5: 1 | K5: ='Ch2 outputs - connections'!AE39 -> 2 | L5: 1 | M5: ='Ch2 outputs - connections'!Q81 -> 6 | N5: 1 | O5: ='Ch2 outputs - connections'!N104 -> 8 | Q5: 1 | R5: ='Ch2 outputs - cust sat'!R62 -> 8 | S5: 1 | T5: ='Ch2 outputs - cust sat'!P23 -> 4 | V5: 1 | X5: SP ENW | Y5: ='Ch2 outputs - DSO '!Q14 -> 4 | Z5: 0.5
A6: NPgN | C6: 0 | D6: 0 | F6: ='Ch2 outputs - environment'!O57 -> 2 | G6: ='Ch2 outputs - environment'!O97 -> 2 | H6: ='Ch2 outputs - environment'!O136 -> 4 | J6: 0.5 | K6: ='Ch2 outputs - connections'!AE40 -> 14 | L6: 1 | M6: ='Ch2 outputs - connections'!Q82 -> 13 | N6: 1 | O6: ='Ch2 outputs - connections'!N105 -> 13 | Q6: 0 | R6: ='Ch2 outputs - cust sat'!R63 -> 13 | S6: 0.5 | T6: ='Ch2 outputs - cust sat'!P24 -> 10 | V6: 1 | X6: NPG | Y6: ='Ch2 outputs - DSO '!Q15 -> 5 | Z6: 0.5
A7: NPgY | C7: 0 | D7: 0 | F7: ='Ch2 outputs - environment'!O58 -> 3 | G7: ='Ch2 outputs - environment'!O98 -> 13 | H7: ='Ch2 outputs - environment'!O137 -> 11 | J7: 0.5 | K7: ='Ch2 outputs - connections'!AE41 -> 13 | L7: 1 | M7: ='Ch2 outputs - connections'!Q83 -> 12 | N7: 1 | O7: ='Ch2 outputs - connections'!N106 -> 12 | Q7: 0 | R7: ='Ch2 outputs - cust sat'!R64 -> 12 | S7: 0.5 | T7: ='Ch2 outputs - cust sat'!P25 -> 9 | V7: 0.5
A8: WMID | C8: 1 | D8: 0 | F8: ='Ch2 outputs - environment'!O59 -> 9 | G8: ='Ch2 outputs - environment'!O99 -> 8 | H8: ='Ch2 outputs - environment'!O138 -> 13 | J8: 1 | K8: ='Ch2 outputs - connections'!AE42 -> 9 | L8: 1 | M8: ='Ch2 outputs - connections'!Q84 -> 5 | N8: 1 | O8: ='Ch2 outputs - connections'!N107 -> 10 | Q8: 1 | R8: ='Ch2 outputs - cust sat'!R65 -> 10 | S8: 0.5 | T8: ='Ch2 outputs - cust sat'!P26 -> 12 | V8: 0.5 | X8: NGED | Y8: ='Ch2 outputs - DSO '!Q16 -> 2 | Z8: 1
A9: EMID | C9: 1 | D9: 0 | F9: ='Ch2 outputs - environment'!O60 -> 6 | G9: ='Ch2 outputs - environment'!O100 -> 6 | H9: ='Ch2 outputs - environment'!O139 -> 7 | J9: 1 | K9: ='Ch2 outputs - connections'!AE43 -> 8 | L9: 1 | M9: ='Ch2 outputs - connections'!Q85 -> 4 | N9: 1 | O9: ='Ch2 outputs - connections'!N108 -> 9 | Q9: 1 | R9: ='Ch2 outputs - cust sat'!R66 -> 5 | S9: 0.5 | T9: ='Ch2 outputs - cust sat'!P27 -> 11 | V9: 0.5
A10: SWALES | C10: 1 | D10: 0 | F10: ='Ch2 outputs - environment'!O61 -> 14 | G10: ='Ch2 outputs - environment'!O101 -> 12 | H10: ='Ch2 outputs - environment'!O140 -> 1 | J10: 1 | K10: ='Ch2 outputs - connections'!AE44 -> 5 | L10: 1 | M10: ='Ch2 outputs - connections'!Q86 -> 7 | N10: 1 | O10: ='Ch2 outputs - connections'!N109 -> 5 | Q10: 1 | R10: ='Ch2 outputs - cust sat'!R67 -> 11 | S10: 1 | T10: ='Ch2 outputs - cust sat'!P28 -> 8 | V10: 0.5
A11: SWEST | C11: 0 | D11: 0 | F11: ='Ch2 outputs - environment'!O62 -> 12 | G11: ='Ch2 outputs - environment'!O102 -> 10 | H11: ='Ch2 outputs - environment'!O141 -> 3 | J11: 1 | K11: ='Ch2 outputs - connections'!AE45 -> 11 | L11: 1 | M11: ='Ch2 outputs - connections'!Q87 -> 11 | N11: 1 | O11: ='Ch2 outputs - connections'!N110 -> 11 | Q11: 0 | R11: ='Ch2 outputs - cust sat'!R68 -> 14 | S11: 0 | T11: ='Ch2 outputs - cust sat'!P29 -> 13 | V11: 1
A12: LPN | C12: 1 | D12: 1 | F12: ='Ch2 outputs - environment'!O63 -> 11 | G12: ='Ch2 outputs - environment'!O103 -> 4 | H12: ='Ch2 outputs - environment'!O142 -> 9 | J12: 1 | K12: ='Ch2 outputs - connections'!AE46 -> 2 | L12: 1 | M12: ='Ch2 outputs - connections'!Q88 -> 1 | N12: 1 | O12: ='Ch2 outputs - connections'!N111 -> 1 | Q12: 1 | R12: ='Ch2 outputs - cust sat'!R69 -> 1 | S12: 1 | T12: ='Ch2 outputs - cust sat'!P30 -> 2 | V12: 0.5 | X12: UKPN | Y12: ='Ch2 outputs - DSO '!Q17 -> 1 | Z12: 1
A13: SPN | C13: 1 | D13: 1 | F13: ='Ch2 outputs - environment'!O64 -> 7 | G13: ='Ch2 outputs - environment'!O104 -> 3 | H13: ='Ch2 outputs - environment'!O143 -> 8 | J13: 1 | K13: ='Ch2 outputs - connections'!AE47 -> 7 | L13: 1 | M13: ='Ch2 outputs - connections'!Q89 -> 3 | N13: 1 | O13: ='Ch2 outputs - connections'!N112 -> 6 | Q13: 1 | R13: ='Ch2 outputs - cust sat'!R70 -> 9 | S13: 1 | T13: ='Ch2 outputs - cust sat'!P31 -> 3 | V13: 1
A14: EPN | C14: 0 | D14: 0 | F14: ='Ch2 outputs - environment'!O65 -> 8 | G14: ='Ch2 outputs - environment'!O105 -> 5 | H14: ='Ch2 outputs - environment'!O144 -> 10 | J14: 1 | K14: ='Ch2 outputs - connections'!AE48 -> 4 | L14: 1 | M14: ='Ch2 outputs - connections'!Q90 -> 2 | N14: 1 | O14: ='Ch2 outputs - connections'!N113 -> 3 | Q14: 1 | R14: ='Ch2 outputs - cust sat'!R71 -> 3 | S14: 1 | T14: ='Ch2 outputs - cust sat'!P32 -> 1 | V14: 0.5
A15: SPD | C15: 1 | D15: 1 | F15: ='Ch2 outputs - environment'!O66 -> 1 | G15: ='Ch2 outputs - environment'!O106 -> 9 | H15: ='Ch2 outputs - environment'!O145 -> 2 | J15: 1 | K15: ='Ch2 outputs - connections'!AE49 -> 6 | L15: 1 | M15: ='Ch2 outputs - connections'!Q91 -> 10 | N15: 1 | O15: ='Ch2 outputs - connections'!N114 -> 2 | Q15: 1 | R15: ='Ch2 outputs - cust sat'!R72 -> 7 | S15: 1 | T15: ='Ch2 outputs - cust sat'!P33 -> 5 | V15: 0.5 | X15: SPEN | Y15: ='Ch2 outputs - DSO '!Q18 -> 6 | Z15: 0.5
A16: SPMW | C16: 1 | D16: 0 | F16: ='Ch2 outputs - environment'!O67 -> 4 | G16: ='Ch2 outputs - environment'!O107 -> 11 | H16: ='Ch2 outputs - environment'!O146 -> 5 | J16: 1 | K16: ='Ch2 outputs - connections'!AE50 -> 10 | L16: 1 | M16: ='Ch2 outputs - connections'!Q92 -> 9 | N16: 1 | O16: ='Ch2 outputs - connections'!N115 -> 4 | Q16: 1 | R16: ='Ch2 outputs - cust sat'!R73 -> 6 | S16: 1 | T16: ='Ch2 outputs - cust sat'!P34 -> 7 | V16: 0.5
A17: SSEH | C17: 1 | D17: 0 | F17: ='Ch2 outputs - environment'!O68 -> 13 | G17: ='Ch2 outputs - environment'!O108 -> 1 | H17: ='Ch2 outputs - environment'!O147 -> 14 | J17: 1 | K17: ='Ch2 outputs - connections'!AE51 -> 1 | L17: 1 | M17: ='Ch2 outputs - connections'!Q93 -> 8 | N17: 1 | O17: ='Ch2 outputs - connections'!N116 -> 7 | Q17: 1 | R17: ='Ch2 outputs - cust sat'!R74 -> 2 | S17: 1 | T17: ='Ch2 outputs - cust sat'!P35 -> 6 | V17: 0.5 | X17: SSEN | Y17: ='Ch2 outputs - DSO '!Q19 -> 3 | Z17: 1
A18: SSES | C18: 1 | D18: 0 | F18: ='Ch2 outputs - environment'!O69 -> 10 | G18: ='Ch2 outputs - environment'!O109 -> 14 | H18: ='Ch2 outputs - environment'!O148 -> 12 | J18: 0.5 | K18: ='Ch2 outputs - connections'!AE52 -> 12 | L18: 0.5 | M18: ='Ch2 outputs - connections'!Q94 -> 14 | N18: 1 | O18: ='Ch2 outputs - connections'!N117 -> 14 | Q18: 1 | R18: ='Ch2 outputs - cust sat'!R75 -> 4 | S18: 0 | T18: ='Ch2 outputs - cust sat'!P36 -> 14 | V18: 0.5
A20: Industry | C20: 0.5 | D20: 0 | J20: 1 | L20: 1 | N20: 1 | Q20: 1 | S20: 0.5 | V20: 0.5 | Z20: 0.5

Sheet Ch2 - Incentive payments
A1: Chapter 2 - Incentive Payments
B3: Incentive payments | C3: DNO - Cumulative Performance (2023/24 - 2024/25)
D4: Interruptions Incentive Scheme (IIS) | E4: Time to Connect Incentive (TTC) | F4: Customer Satisfaction Survey (CSS) | G4: Complaints Metric (CM) | H4: Distribution System Operation (DSO) | I4: Major Connections Incentive (MCI) | J4: Customer Vulnerability Incentive (CVI) | K4: Total incentive payments
C5: SP ENW | D5: =SUM(D33,N33) -> 1.296731763 | E5: =SUM(E33,O33) -> 1.875514409 | F5: 3.009706844 | G5: 0 | H5: 2.327598 | I5: 0 | J5: 3.128397222 | K5: =SUM(D5:J5) -> 11.63794824
C6: NPgN | D6: =SUM(D34,N34) -> -4.841684941 | E6: =SUM(E34,O34) -> -0.2469604416 | F6: =SUM(F34,P34) -> 0.2398025872 | G6: =SUM(G34,Q34) -> -1.490835907 | H6: =SUM(H34,R34) -> 1.38156 | I6: =SUM(I34,S34) -> 0 | J6: =SUM(J34,T34) -> 1.49348737 | K6: =SUM(D6:J6) -> -3.464631332
C7: NPgY | D7: -13.87954356 | E7: 0.129702 | F7: =SUM(F35,P35) -> 0.1902730387 | G7: -2.106478206 | H7: 1.90592 | I7: 0 | J7: 0.1202956989 | K7: -13.63983103
C8: WMID | D8: -2.755587897 | E8: 1.439355214 | F8: -1.011925856 | G8: 0 | H8: 6.306 | I8: 0 | J8: 1.325618675 | K8: 5.303460136
C9: EMID | D9: -2.707378388 | E9: 1.5943229 | F9: 0.3629528184 | G9: 0 | H9: 6.454 | I9: 0 | J9: 1.813167565 | K9: 7.517064896
C10: SWALES | D10: -1.240442127 | E10: 1.055563149 | F10: 0.5291730534 | G10: 0 | H10: 3.225 | I10: 0 | J10: 0.3212209459 | K10: 3.890515021
C11: SWEST | D11: -7.318577262 | E11: 0.5577505293 | F11: -1.757202153 | G11: -0.9007561564 | H11: 4.897 | I11: 0 | J11: 1.589583333 | K11: -2.932201708
C12: LPN | D12: 2.870308669 | E12: 1.377283619 | F12: 4.66592926 | G12: 0 | H12: 5.448 | I12: 0 | J12: 2.378542307 | K12: 16.74006386
C13: SPN | D13: -2.759295905 | E13: 0.8862422201 | F13: 4.258406195 | G13: 0 | H13: 5.638 | I13: 0 | J13: 2.74288 | K13: 10.76623251
C14: EPN | D14: -6.427715721 | E14: 2.203737367 | F14: 7.681221447 | G14: 0 | H14: 8.802 | I14: 0 | J14: 3.912 | K14: 16.17124309
C15: SPD | D15: 5.688258568 | E15: 1.04191499 | F15: 1.314520204 | G15: 0 | H15: 2.010152 | I15: 0 | J15: 1.661 | K15: 11.71584576
C16: SPMW | D16: -0.8358530597 | E16: 0.6646590204 | F16: 2.034641177 | G16: 0 | H16: 2.237416 | I16: 0 | J16: 1.849 | K16: 5.949863138
C17: SSEH | D17: -3.800186384 | E17: 1.8639912 | F17: 1.661617743 | G17: 0 | H17: 2.582923992 | I17: 0 | J17: 1.187482353 | K17: 3.495828903
C18: SSES | D18: -14.18242931 | E18: 0.3134601589 | F18: -7.577117661 | G18: 0 | H18: 4.87392 | I18: -0.73656 | J18: 1.551702128 | K18: -15.75702468
C19: Total | D19: =SUM(D5:D18) -> -50.89339555 | E19: 14.75653634 | F19: 15.6019987 | G19: -4.49807027 | H19: 58.08948999 | I19: -0.73656 | J19: 25.0743776 | K19: =SUM(D19:J19) -> 57.3943768
C21: DNO Group - Cumulative Performance (2023/24 - 2024/25)
D22: Interruptions Incentive Scheme (IIS) | E22: Time to Connect Incentive (TTC) | F22: Customer Satisfaction Survey (CSS) | G22: Complaints Metric (CM) | H22: Distribution System Operation (DSO) | I22: Major Connections Incentive (MCI) | J22: Customer Vulnerability Incentive (CVI) | K22: Total incentive payments
C23: SP ENW | D23: =D5 -> 1.296731763 | E23: 1.875514409 | F23: 3.009706844 | G23: 0 | H23: 2.327598 | I23: 0 | J23: 3.128397222 | K23: =SUM(D23:J23) -> 11.63794824
C24: NPg | D24: =SUM(D6:D7) -> -18.7212285 | E24: -0.1172584416 | F24: 0.4300756259 | G24: -3.597314113 | H24: 3.28748 | I24: 0 | J24: 1.613783069 | K24: =SUM(D24:J24) -> -17.10446236
C25: NGED | D25: =SUM(D8:D11) -> -14.02198567 | E25: 4.646991792 | F25: -1.877002137 | G25: -0.9007561564 | H25: 20.882 | I25: 0 | J25: 5.049590519 | K25: 13.77883834
C26: UKPN | D26: =SUM(D12:D14) -> -6.316702957 | E26: 4.467263207 | F26: 16.6055569 | G26: 0 | H26: 19.888 | I26: 0 | J26: 9.033422307 | K26: 43.67753946
C27: SPEN | D27: =SUM(D15:D16) -> 4.852405509 | E27: 1.706574011 | F27: 3.349161381 | G27: 0 | H27: 4.247568 | I27: 0 | J27: 3.51 | K27: 17.6657089
C28: SSEN | D28: =SUM(D17:D18) -> -17.98261569 | E28: 2.177451359 | F28: -5.915499918 | G28: 0 | H28: 7.456843992 | I28: -0.73656 | J28: 2.739184481 | K28: -12.26119578
C29: Total | D29: =SUM(D23:D28) -> -50.89339555 | E29: 14.75653634 | F29: 15.6019987 | G29: -4.49807027 | H29: 58.08948999 | I29: -0.73656 | J29: 25.0743776 | K29: =SUM(D29:J29) -> 57.3943768
C31: 2023/24 Performance | M31: 2024/25 Performance | W31: 2025/26 Performance | AG31: 2026/27 Performance | AQ31: 2027/28 Performance
D32: Interruptions Incentive Scheme (IIS) | E32: Time to Connect Incentive (TTC) | F32: Customer Satisfaction Survey (CSS) | G32: Complaints Metric (CM) | H32: Distribution System Operation (DSO) | I32: Major Connections Incentive (MCI) | J32: Customer Vulnerability Incentive (CVI) | K32: Total incentive payments | N32: Interruptions Incentive Scheme (IIS) | O32: Time to Connect Incentive (TTC) | P32: Customer Satisfaction Survey (CSS) | Q32: Complaints Metric (CM) | R32: Distribution System Operation (DSO) | S32: Major Connections Incentive (MCI) | T32: Customer Vulnerability Incentive (CVI) | U32: Total incentive payments | X32: Interruptions Incentive Scheme (IIS) | Y32: Time to Connect Incentive (TTC) | Z32: Customer Satisfaction Survey (CSS) | AA32: Complaints Metric (CM) | AB32: Distribution System Operation (DSO) | AC32: Major Connections Incentive (MCI) | AD32: Customer Vulnerability Incentive (CVI) | AE32: Total incentive payments | AH32: Interruptions Incentive Scheme (IIS) | AI32: Time to Connect Incentive (TTC) | AJ32: Customer Satisfaction Survey (CSS) | AK32: Complaints Metric (CM) | AL32: Distribution System Operation (DSO) | AM32: Major Connections Incentive (MCI) | AN32: Customer Vulnerability Incentive (CVI) | AO32: Total incentive payments | AR32: Interruptions Incentive Scheme (IIS) | AS32: Time to Connect Incentive (TTC) | AT32: Customer Satisfaction Survey (CSS) | AU32: Complaints Metric (CM) | AV32: Distribution System Operation (DSO) | AW32: Major Connections Incentive (MCI) | AX32: Customer Vulnerability Incentive (CVI) | AY32: Total incentive payments
C33: SP ENW | D33: ='Ch2 outputs - reliability'!E53 -> 0.8678962848 | E33: ='Ch2 outputs - connections'!M39 -> 0.8698922754 | F33: ='Ch2 outputs - cust sat'!H41 -> 1.151072084 | G33: ='Ch2 outputs - cust sat'!E81 -> 0 | H33: =[2]Scores!$C15 -> 0.185918 | I33: ='Ch2 outputs - connections'!F104 -> 0 | J33: 0 | K33: =SUM(D33:J33) -> 3.074778644 | M33: SP ENW | N33: ='Ch2 outputs - reliability'!E74 -> 0.4288354781 | O33: ='Ch2 outputs - connections'!AB39 -> 1.005622134 | P33: ='Ch2 outputs - cust sat'!M41 -> 1.85863476 | Q33: ='Ch2 outputs - cust sat'!F81 -> 0 | R33: =[3]Scores!$C15 -> 2.14168 | S33: ='Ch2 outputs - connections'!L104 -> 0 | T33: ='Ch2 outputs - cust sat'!J137 -> 3.128397222 | U33: =SUM(N33:T33) -> 8.563169594 | W33: SP ENW | AG33: SP ENW | AQ33: SP ENW
C34: NPgN | D34: ='Ch2 outputs - reliability'!E54 -> -2.530509178 | E34: ='Ch2 outputs - connections'!M40 -> -0.2019536416 | F34: ='Ch2 outputs - cust sat'!H42 -> -0.01948790493 | G34: ='Ch2 outputs - cust sat'!E82 -> -0.9891030354 | H34: =[2]Scores!$C16 -> 0.30102 | I34: ='Ch2 outputs - connections'!F105 -> 0 | J34: 0 | K34: =SUM(D34:J34) -> -3.44003376 | M34: NPgN | N34: ='Ch2 outputs - reliability'!E75 -> -2.311175762 | O34: ='Ch2 outputs - connections'!AB40 -> -0.0450068 | P34: ='Ch2 outputs - cust sat'!M42 -> 0.2592904922 | Q34: ='Ch2 outputs - cust sat'!F82 -> -0.501732872 | R34: =[3]Scores!$C16 -> 1.08054 | S34: ='Ch2 outputs - connections'!L105 -> 0 | T34: ='Ch2 outputs - cust sat'!J138 -> 1.49348737 | U34: =SUM(N34:T34) -> -0.02459757204 | W34: NPgN | AG34: NPgN | AQ34: NPgN
C35: NPgY | D35: ='Ch2 outputs - reliability'!E55 -> -7.231255828 | E35: ='Ch2 outputs - connections'!M41 -> 0 | F35: ='Ch2 outputs - cust sat'!H43 -> -0.0668290303 | G35: ='Ch2 outputs - cust sat'!E83 -> -1.715920186 | H35: =[2]Scores!$C17 -> 0.41528 | I35: ='Ch2 outputs - connections'!F106 -> 0 | J35: 0 | K35: -8.598725044 | M35: NPgY | N35: ='Ch2 outputs - reliability'!E76 -> -6.648287729 | O35: ='Ch2 outputs - connections'!AB41 -> 0.129702 | P35: ='Ch2 outputs - cust sat'!M43 -> 0.257102069 | Q35: ='Ch2 outputs - cust sat'!F83 -> -0.39055802 | R35: =[3]Scores!$C17 -> 1.49064 | S35: ='Ch2 outputs - connections'!L106 -> 0 | T35: ='Ch2 outputs - cust sat'!J139 -> 0.1202956989 | U35: -5.041105981 | W35: NPgY | AG35: NPgY | AQ35: NPgY
C36: WMID | D36: ='Ch2 outputs - reliability'!E56 -> -0.7770968989 | E36: ='Ch2 outputs - connections'!M42 -> 0.8768654 | F36: ='Ch2 outputs - cust sat'!H44 -> -0.4098521442 | G36: ='Ch2 outputs - cust sat'!E84 -> 0 | H36: =[2]Scores!$C18 -> 1.802 | I36: ='Ch2 outputs - connections'!F107 -> 0 | J36: 0 | K36: 1.491916357 | M36: WMID | N36: ='Ch2 outputs - reliability'!E77 -> -1.978490998 | O36: ='Ch2 outputs - connections'!AB42 -> 0.5624898138 | P36: ='Ch2 outputs - cust sat'!M44 -> -0.6020737114 | Q36: ='Ch2 outputs - cust sat'!F84 -> 0 | R36: =[3]Scores!$C18 -> 4.504 | S36: ='Ch2 outputs - connections'!L107 -> 0 | T36: ='Ch2 outputs - cust sat'!J140 -> 1.325618675 | U36: 3.811543779 | W36: WMID | AG36: WMID | AQ36: WMID
C37: EMID | D37: ='Ch2 outputs - reliability'!E57 -> -2.417412267 | E37: ='Ch2 outputs - connections'!M43 -> 0.8187954 | F37: ='Ch2 outputs - cust sat'!H45 -> 0.5059194067 | G37: ='Ch2 outputs - cust sat'!E85 -> 0 | H37: =[2]Scores!$C19 -> 1.844 | I37: ='Ch2 outputs - connections'!F108 -> 0 | J37: 0 | K37: 0.7513025396 | M37: EMID | N37: ='Ch2 outputs - reliability'!E78 -> -0.2899661207 | O37: ='Ch2 outputs - connections'!AB43 -> 0.7755274998 | P37: ='Ch2 outputs - cust sat'!M45 -> -0.1429665883 | Q37: ='Ch2 outputs - cust sat'!F85 -> 0 | R37: =[3]Scores!$C19 -> 4.61 | S37: ='Ch2 outputs - connections'!L108 -> 0 | T37: ='Ch2 outputs - cust sat'!J141 -> 1.813167565 | U37: 6.765762356 | W37: EMID | AG37: EMID | AQ37: EMID
C38: SWALES | D38: ='Ch2 outputs - reliability'!E58 -> -0.6139593874 | E38: ='Ch2 outputs - connections'!M44 -> 0.3415528 | F38: ='Ch2 outputs - cust sat'!H46 -> 0.4475708421 | G38: ='Ch2 outputs - cust sat'!E86 -> 0 | H38: =[2]Scores!$C20 -> 0.921 | I38: ='Ch2 outputs - connections'!F109 -> 0 | J38: 0 | K38: 1.096164255 | M38: SWALES | N38: ='Ch2 outputs - reliability'!E79 -> -0.62648274 | O38: ='Ch2 outputs - connections'!AB44 -> 0.7140103493 | P38: ='Ch2 outputs - cust sat'!M46 -> 0.08160221127 | Q38: ='Ch2 outputs - cust sat'!F86 -> 0 | R38: =[3]Scores!$C20 -> 2.304 | S38: ='Ch2 outputs - connections'!L109 -> 0 | T38: ='Ch2 outputs - cust sat'!J142 -> 0.3212209459 | U38: 2.794350766 | W38: SWALES | AG38: SWALES | AQ38: SWALES
C39: SWEST | D39: ='Ch2 outputs - reliability'!E59 -> -2.941523976 | E39: ='Ch2 outputs - connections'!M45 -> 0.249809 | F39: ='Ch2 outputs - cust sat'!H47 -> -0.6195886957 | G39: ='Ch2 outputs - cust sat'!E87 -> 0 | H39: =[2]Scores!$C21 -> 1.399 | I39: ='Ch2 outputs - connections'!F110 -> 0 | J39: 0 | K39: -1.912303671 | M39: SWEST | N39: ='Ch2 outputs - reliability'!E80 -> -4.377053286 | O39: ='Ch2 outputs - connections'!AB45 -> 0.3079415293 | P39: ='Ch2 outputs - cust sat'!M47 -> -1.137613457 | Q39: ='Ch2 outputs - cust sat'!F87 -> -0.9007561564 | R39: =[3]Scores!$C21 -> 3.498 | S39: ='Ch2 outputs - connections'!L110 -> 0 | T39: ='Ch2 outputs - cust sat'!J143 -> 1.589583333 | U39: -1.019898037 | W39: SWEST | AG39: SWEST | AQ39: SWEST
C40: LPN | D40: ='Ch2 outputs - reliability'!E60 -> 1.186783615 | E40: ='Ch2 outputs - connections'!M46 -> 0.5217815859 | F40: ='Ch2 outputs - cust sat'!H48 -> 2.415549204 | G40: ='Ch2 outputs - cust sat'!E88 -> 0 | H40: =[2]Scores!$C22 -> 2.422 | I40: ='Ch2 outputs - connections'!F111 -> 0 | J40: 0 | K40: 6.546114405 | M40: LPN | N40: ='Ch2 outputs - reliability'!E81 -> 1.683525053 | O40: ='Ch2 outputs - connections'!AB46 -> 0.8555020336 | P40: ='Ch2 outputs - cust sat'!M48 -> 2.250380056 | Q40: ='Ch2 outputs - cust sat'!F88 -> 0 | R40: =[3]Scores!$C22 -> 3.026 | S40: ='Ch2 outputs - connections'!L111 -> 0 | T40: ='Ch2 outputs - cust sat'!J144 -> 2.378542307 | U40: 10.19394945 | W40: LPN | AG40: LPN | AQ40: LPN
C41: SPN | D41: ='Ch2 outputs - reliability'!E61 -> -3.050188421 | E41: ='Ch2 outputs - connections'!M47 -> 0.2616178604 | F41: ='Ch2 outputs - cust sat'!H49 -> 1.94339207 | G41: ='Ch2 outputs - cust sat'!E89 -> 0 | H41: =[2]Scores!$C23 -> 2.506 | I41: ='Ch2 outputs - connections'!F112 -> 0 | J41: 0 | K41: 1.66082151 | M41: SPN | N41: ='Ch2 outputs - reliability'!E82 -> 0.2908925159 | O41: ='Ch2 outputs - connections'!AB47 -> 0.6246243597 | P41: ='Ch2 outputs - cust sat'!M49 -> 2.315014124 | Q41: ='Ch2 outputs - cust sat'!F89 -> 0 | R41: =[3]Scores!$C23 -> 3.132 | S41: ='Ch2 outputs - connections'!L112 -> 0 | T41: ='Ch2 outputs - cust sat'!J145 -> 2.74288 | U41: 9.105411 | W41: SPN | AG41: SPN | AQ41: SPN
C42: EPN | D42: ='Ch2 outputs - reliability'!E62 -> -4.024409218 | E42: ='Ch2 outputs - connections'!M48 -> 0.8149063291 | F42: ='Ch2 outputs - cust sat'!H50 -> 3.731920827 | G42: ='Ch2 outputs - cust sat'!E90 -> 0 | H42: =[2]Scores!$C24 -> 3.912 | I42: ='Ch2 outputs - connections'!F113 -> 0 | J42: 0 | K42: 4.434417938 | M42: EPN | N42: ='Ch2 outputs - reliability'!E83 -> -2.403306503 | O42: ='Ch2 outputs - connections'!AB48 -> 1.388831038 | P42: ='Ch2 outputs - cust sat'!M50 -> 3.949300619 | Q42: ='Ch2 outputs - cust sat'!F90 -> 0 | R42: =[3]Scores!$C24 -> 4.89 | S42: ='Ch2 outputs - connections'!L113 -> 0 | T42: ='Ch2 outputs - cust sat'!J146 -> 3.912 | U42: 11.73682515 | W42: EPN | AG42: EPN | AQ42: EPN
C43: SPD | D43: ='Ch2 outputs - reliability'!E63 -> 2.959954217 | E43: ='Ch2 outputs - connections'!M49 -> 0.3197767858 | F43: ='Ch2 outputs - cust sat'!H51 -> 0.5521777346 | G43: ='Ch2 outputs - cust sat'!E91 -> 0 | H43: =[2]Scores!$C25 -> 0.282672 | I43: ='Ch2 outputs - connections'!F114 -> 0 | J43: 0 | K43: 4.114580737 | M43: SPD | N43: ='Ch2 outputs - reliability'!E84 -> 2.728304352 | O43: ='Ch2 outputs - connections'!AB49 -> 0.7221382045 | P43: ='Ch2 outputs - cust sat'!M51 -> 0.7623424694 | Q43: ='Ch2 outputs - cust sat'!F91 -> 0 | R43: =[3]Scores!$C25 -> 1.72748 | S43: ='Ch2 outputs - connections'!L114 -> 0 | T43: ='Ch2 outputs - cust sat'!J147 -> 1.661 | U43: 7.601265026 | W43: SPD | AG43: SPD | AQ43: SPD
C44: SPMW | D44: ='Ch2 outputs - reliability'!E64 -> -0.2317707964 | E44: ='Ch2 outputs - connections'!M50 -> 0.2218554 | F44: ='Ch2 outputs - cust sat'!H52 -> 1.072848594 | G44: ='Ch2 outputs - cust sat'!E92 -> 0 | H44: =[2]Scores!$C26 -> 0.314496 | I44: ='Ch2 outputs - connections'!F115 -> 0 | J44: 0 | K44: 1.377429198 | M44: SPMW | N44: ='Ch2 outputs - reliability'!E85 -> -0.6040822633 | O44: ='Ch2 outputs - connections'!AB50 -> 0.4428036204 | P44: ='Ch2 outputs - cust sat'!M52 -> 0.9617925826 | Q44: ='Ch2 outputs - cust sat'!F92 -> 0 | R44: =[3]Scores!$C26 -> 1.92292 | S44: ='Ch2 outputs - connections'!L115 -> 0 | T44: ='Ch2 outputs - cust sat'!J148 -> 1.849 | U44: 4.57243394 | W44: SPMW | AG44: SPMW | AQ44: SPMW
C45: SSEH | D45: ='Ch2 outputs - reliability'!E65 -> -1.566205668 | E45: ='Ch2 outputs - connections'!M51 -> 0.9319956 | F45: ='Ch2 outputs - cust sat'!H53 -> 0.869789 | G45: ='Ch2 outputs - cust sat'!E93 -> 0 | H45: =[2]Scores!$C27 -> 0.75256 | I45: ='Ch2 outputs - connections'!F116 -> 0 | J45: 0 | K45: 0.9881389323 | M45: SSEH | N45: ='Ch2 outputs - reliability'!E86 -> -2.233980717 | O45: ='Ch2 outputs - connections'!AB51 -> 0.9319956 | P45: ='Ch2 outputs - cust sat'!M53 -> 0.7918287426 | Q45: ='Ch2 outputs - cust sat'!F93 -> 0 | R45: =[3]Scores!$C27 -> 1.830363992 | S45: ='Ch2 outputs - connections'!L116 -> 0 | T45: ='Ch2 outputs - cust sat'!J149 -> 1.187482353 | U45: 2.507689971 | W45: SSEH | AG45: SSEH | AQ45: SSEH
C46: SSES | D46: ='Ch2 outputs - reliability'!E66 -> -9.371362488 | E46: ='Ch2 outputs - connections'!M52 -> 3.569888565e-05 | F46: ='Ch2 outputs - cust sat'!H54 -> -3.741 | G46: ='Ch2 outputs - cust sat'!E94 -> 0 | H46: =[2]Scores!$C28 -> 1.41865 | I46: ='Ch2 outputs - connections'!F117 -> -0.73656 | J46: 0 | K46: -12.43023679 | M46: SSES | N46: ='Ch2 outputs - reliability'!E87 -> -4.811066821 | O46: ='Ch2 outputs - connections'!AB52 -> 0.31342446 | P46: ='Ch2 outputs - cust sat'!M54 -> -3.836117661 | Q46: ='Ch2 outputs - cust sat'!F94 -> 0 | R46: =[3]Scores!$C28 -> 3.45527 | S46: ='Ch2 outputs - connections'!L117 -> 0 | T46: ='Ch2 outputs - cust sat'!J150 -> 1.551702128 | U46: -3.326787895 | W46: SSES | AG46: SSES | AQ46: SSES
C47: Total | D47: =SUM(D33:D46) -> -29.74106001 | E47: 6.026930494 | F47: 7.833481988 | G47: -2.705023221 | H47: 18.476596 | I47: -0.73656 | J47: 0 | K47: =SUM(D47:J47) -> -0.8456347487 | M47: Total | N47: =SUM(N33:N46) -> -21.15233554 | O47: 8.729605842 | P47: 7.768516708 | Q47: -1.793047048 | R47: 39.61289399 | S47: 0 | T47: 25.0743776 | U47: =SUM(N47:T47) -> 58.24001155 | W47: Total | AG47: Total | AQ47: Total
C49: 2023/24 Performance | M49: 2024/25 Performance | W49: 2025/26 Performance | AG49: 2026/27 Performance | AQ49: 2027/28 Performance
D50: Interruptions Incentive Scheme (IIS) | E50: Time to Connect Incentive (TTC) | F50: Customer Satisfaction Survey (CSS) | G50: Complaints Metric (CM) | H50: Distribution System Operation (DSO) | I50: Major Connections Incentive (MCI) | J50: Customer Vulnerability Incentive (CVI) | K50: Total incentive payments | N50: Interruptions Incentive Scheme (IIS) | O50: Time to Connect Incentive (TTC) | P50: Customer Satisfaction Survey (CSS) | Q50: Complaints Metric (CM) | R50: Distribution System Operation (DSO) | S50: Major Connections Incentive (MCI) | T50: Customer Vulnerability Incentive (CVI) | U50: Total incentive payments | X50: Interruptions Incentive Scheme (IIS) | Y50: Time to Connect Incentive (TTC) | Z50: Customer Satisfaction Survey (CSS) | AA50: Complaints Metric (CM) | AB50: Distribution System Operation (DSO) | AC50: Major Connections Incentive (MCI) | AD50: Customer Vulnerability Incentive (CVI) | AE50: Total incentive payments | AH50: Interruptions Incentive Scheme (IIS) | AI50: Time to Connect Incentive (TTC) | AJ50: Customer Satisfaction Survey (CSS) | AK50: Complaints Metric (CM) | AL50: Distribution System Operation (DSO) | AM50: Major Connections Incentive (MCI) | AN50: Customer Vulnerability Incentive (CVI) | AO50: Total incentive payments | AR50: Interruptions Incentive Scheme (IIS) | AS50: Time to Connect Incentive (TTC) | AT50: Customer Satisfaction Survey (CSS) | AU50: Complaints Metric (CM) | AV50: Distribution System Operation (DSO) | AW50: Major Connections Incentive (MCI) | AX50: Customer Vulnerability Incentive (CVI) | AY50: Total incentive payments
C51: SP ENW | D51: =D33 -> 0.8678962848 | E51: 0.8698922754 | F51: 1.151072084 | G51: 0 | H51: 0.185918 | I51: 0 | J51: 0 | K51: =SUM(D51:J51) -> 3.074778644 | M51: SP ENW | N51: =N33 -> 0.4288354781 | O51: 1.005622134 | P51: 1.85863476 | Q51: 0 | R51: 2.14168 | S51: 0 | T51: 3.128397222 | U51: =SUM(N51:T51) -> 8.563169594 | W51: SP ENW | AG51: SP ENW | AQ51: SP ENW
C52: NPg | D52: =SUM(D34:D35) -> -9.761765006 | E52: -0.2019536416 | F52: -0.08631693523 | G52: -2.705023221 | H52: 0.7163 | I52: 0 | J52: 0 | K52: =SUM(D52:J52) -> -12.0387588 | M52: NPg | N52: =SUM(N34:N35) -> -8.959463491 | O52: 0.0846952 | P52: 0.5163925611 | Q52: -0.892290892 | R52: 2.57118 | S52: 0 | T52: 1.613783069 | U52: =SUM(N52:T52) -> -5.065703553 | W52: NPg | AG52: NPg | AQ52: NPg
C53: NGED | D53: =SUM(D36:D39) -> -6.749992529 | E53: 2.2870226 | F53: -0.0759505911 | G53: 0 | H53: 5.966 | I53: 0 | J53: 0 | K53: 1.42707948 | M53: NGED | N53: =SUM(N36:N39) -> -7.271993145 | O53: 2.359969192 | P53: -1.801051546 | Q53: -0.9007561564 | R53: 14.916 | S53: 0 | T53: 5.049590519 | U53: 12.35175886 | W53: NGED | AG53: NGED | AQ53: NGED
C54: UKPN | D54: =SUM(D40:D42) -> -5.887814023 | E54: 1.598305775 | F54: 8.090862102 | G54: 0 | H54: 8.84 | I54: 0 | J54: 0 | K54: 12.64135385 | M54: UKPN | N54: =SUM(N40:N42) -> -0.4288889333 | O54: 2.868957431 | P54: 8.514694799 | Q54: 0 | R54: 11.048 | S54: 0 | T54: 9.033422307 | U54: 31.0361856 | W54: UKPN | AG54: UKPN | AQ54: UKPN
C55: SPEN | D55: =SUM(D43:D44) -> 2.72818342 | E55: 0.5416321858 | F55: 1.625026329 | G55: 0 | H55: 0.597168 | I55: 0 | J55: 0 | K55: 5.492009935 | M55: SPEN | N55: =SUM(N43:N44) -> 2.124222088 | O55: 1.164941825 | P55: 1.724135052 | Q55: 0 | R55: 3.6504 | S55: 0 | T55: 3.51 | U55: 12.17369897 | W55: SPEN | AG55: SPEN | AQ55: SPEN
C56: SSEN | D56: =SUM(D45:D46) -> -10.93756816 | E56: 0.9320312989 | F56: -2.871211 | G56: 0 | H56: 2.17121 | I56: -0.73656 | J56: 0 | K56: -11.44209786 | M56: SSEN | N56: =SUM(N45:N46) -> -7.045047538 | O56: 1.24542006 | P56: -3.044288918 | Q56: 0 | R56: 5.285633992 | S56: 0 | T56: 2.739184481 | U56: -0.8190979237 | W56: SSEN | AG56: SSEN | AQ56: SSEN
C57: Total | D57: =SUM(D51:D56) -> -29.74106001 | E57: 6.026930494 | F57: 7.833481988 | G57: -2.705023221 | H57: 18.476596 | I57: -0.73656 | J57: 0 | K57: =SUM(D57:J57) -> -0.8456347487 | M57: Total | N57: =SUM(N51:N56) -> -21.15233554 | O57: 8.729605842 | P57: 7.768516708 | Q57: -1.793047048 | R57: 39.61289399 | S57: 0 | T57: 25.0743776 | U57: =SUM(N57:T57) -> 58.24001155 | W57: Total | AG57: Total | AQ57: Total

Sheet Ch2 outputs - reliability
A1: Chapter 2 - Reliability and Availability
B2: Performance against the outputs that DNOs are incentivised to deliver under RIIO-ED2.
B4: Reliability and availability: providing long-term reliability, minimising the number and duration of interruptions and ensuring adaptation to climate change.
B5: Incentive measure | F5: Incentive type
B6: Interruption incentive scheme (IIS): DNOs can receive a financial reward or incur a financial penalty depending on their performance against a target for both the number and length of their network supply interruptions. | F6: Financial: cap of 150 RORE basis points, collar of 250 RORE basis points per annum. Supported by monitoring of Secondary Deliverables. Reputational.
B7: Guaranteed Standards of Performance (GSoP): direct payment to customers of fixed amounts if DNO fails to deliver specified minimum levels of performance. | F7: Financial: payment to customers for failure to meet standards. Reputational.
B8: Worst-served customers (WSC): DNOs have access to funding to improve the reliability for a subset of customers whose supply has been repeatedly interrupted. | F8: Financial: £94 million over ED2 (use-it-or-lose-it). Reputational.
B9: Network resilience: proactive network investment for reducing the impact of disruptive events, such as floods or severe storms. | F9: Reputational.
B12: Interruption Incentive Scheme (IIS) | E12: CI performance | J12: 2024/25 RAG status | M12: CI target (Planned and unplanned)
E13: 2023/24 | F13: 2024/25 | G13: 2025/26 | H13: 2026/27 | I13: 2027/28 | M13: 2023/24 | N13: 2024/25 | O13: 2025/26 | P13: 2026/27 | Q13: 2027/28
D14: SP ENW | E14: 26.21178856 | F14: 26.06998752 | J14: =IF(F14<=N14,"Green",IF(F14<=N14*1.05,"Amber","Red")) -> Green | L14: SP ENW | M14: 29.89889101 | N14: 29.74000639
D15: NPgN | E15: 48.605854 | F15: 51.03136813 | J15: =IF(F15<=N15,"Green",IF(F15<=N15*1.05,"Amber","Red")) -> Red | L15: NPgN | M15: 47.67438057 | N15: 46.69440285
D16: NPgY | E16: 55.21068875 | F16: 54.66277777 | J16: =IF(F16<=N16,"Green",IF(F16<=N16*1.05,"Amber","Red")) -> Red | L16: NPgY | M16: 47.64127568 | N16: 45.85458162
D17: WMID | E17: 44.75004032 | F17: 46.31214787 | J17: Green | L17: WMID | M17: 48.87067078 | N17: 47.87753515
D18: EMID | E18: 44.20450609 | F18: 34.310029 | J18: Green | L18: EMID | M18: 39.25320965 | N18: 38.50325001
D19: SWALES | E19: 46.34092689 | F19: 42.10081856 | J19: =IF(F19<=N19,"Green",IF(F19<=N19*1.05,"Amber","Red")) -> Green | L19: SWALES | M19: 42.42604159 | N19: 42.27014218
D20: SWEST | E20: 57.51617665 | F20: 59.00691785 | J20: Red | L20: SWEST | M20: 51.6340418 | N20: 51.44666181
D21: LPN | E21: 12.2049154 | F21: 11.19944474 | J21: Green | L21: LPN | M21: 13.47372348 | N21: 13.39045885
D22: SPN | E22: 49.51884968 | F22: 42.19033976 | J22: Green | L22: SPN | M22: 42.80348148 | N22: 42.53778692
D23: EPN | E23: 46.20067087 | F23: 44.61872046 | J23: Red | L23: EPN | M23: 42.20760302 | N23: 41.83303395
D24: SPD | E24: 32.8777648 | F24: 31.29245531 | J24: Green | L24: SPD | M24: 42.80276233 | N24: 41.76242899
D25: SPMW | E25: 31.56879254 | F25: 28.55313734 | J25: =IF(F25<=N25,"Green",IF(F25<=N25*1.05,"Amber","Red")) -> Green | L25: SPMW | M25: 33.09786235 | N25: 33.00252902
D26: SSEH | E26: 56.63591208 | F26: 59.09986147 | J26: Green | L26: SSEH | M26: 61.64333333 | N26: 61.88618953
D27: SSES | E27: 51.26890549 | F27: 41.84514709 | J27: Green | L27: SSES | M27: 46.93806868 | N27: 46.05774859
D28: Total | E28: 42.47514238 | F28: 39.71433834
E30: CML performance | J30: 2024/25 RAG status | M30: CML target (Planned and unplanned)
E31: 2023/24 | F31: 2024/25 | G31: 2025/26 | H31: 2026/27 | I31: 2027/28 | M31: 2023/24 | N31: 2024/25 | O31: 2025/26 | P31: 2026/27 | Q31: 2027/28
D32: SP ENW | E32: 26.79553851 | F32: 27.08858695 | J32: =IF(F32<=N32,"Green",IF(F32<=N32*1.05,"Amber","Red")) -> Amber | L32: SP ENW | M32: 27.54300109 | N32: 26.87013069
D33: NPgN | E33: 49.47771807 | F33: 46.75049097 | J33: =IF(F33<=N33,"Green",IF(F33<=N33*1.05,"Amber","Red")) -> Red | L33: NPgN | M33: 41.9647326 | N33: 41.06420255
D34: NPgY | E34: 53.49353621 | F34: 51.19993129 | J34: Red | L34: NPgY | M34: 39.69150915 | N34: 39.08576459
D35: WMID | E35: 32.91409742 | F35: 34.17734846 | J35: Red | L35: WMID | M35: 29.81028289 | N35: 29.53724967
D36: EMID | E36: 26.14136564 | F36: 24.61095354 | J36: =IF(F36<=N36,"Green",IF(F36<=N36*1.05,"Amber","Red")) -> Red | L36: EMID | M36: 22.76351196 | N36: 22.70856311
D37: SWALES | E37: 26.09863355 | F37: 27.51297598 | J37: Red | L37: SWALES | M37: 24.52391076 | N37: 24.59192
D38: SWEST | E38: 46.85594589 | F38: 50.4298282 | J38: Red | L38: SWEST | M38: 39.03115449 | N38: 38.8304432
D39: LPN | E39: 11.37453616 | F39: 10.4641224 | J39: Green | L39: LPN | M39: 13.66340558 | N39: 13.55885851
D40: SPN | E40: 36.49309386 | F40: 30.36940139 | J40: Green | L40: SPN | M40: 31.94515998 | N40: 31.1529117
D41: EPN | E41: 35.60058826 | F41: 32.50525981 | J41: Red | L41: EPN | M41: 31.1930503 | N41: 30.089298
D42: SPD | E42: 26.22563791 | F42: 25.75777099 | J42: Green | L42: SPD | M42: 30.81083648 | N42: 29.56483648
D43: SPMW | E43: 33.4273483 | F43: 34.53597024 | J43: Red | L43: SPMW | M43: 32.14306347 | N43: 31.0413968
D44: SSEH | E44: 65.56217073 | F44: 68.91427146 | J44: Red | L44: SSEH | M44: 53.34666667 | N44: 52.87379583
D45: SSES | E45: 57.57564148 | F45: 51.17952435 | J45: Red | L45: SSES | M45: 43.25052077 | N45: 41.65209029
D46: Total | E46: 36.66780055 | F46: 35.11207357
B48: Rewards and penalties under the IIS
J49: Breakdown of performance for CI and CML/planned and unplanned
J50: PLANNED | P50: UNPLANNED
D51: 2023/24 | E51: IIS performance total reward | I51: 2023/24 | J51: CI | M51: CML | P51: CI | S51: CML
E52: Total reward (£m)** | F52: Regulation 7 Severe Weather Conditions Adjustment | G52: Normal weather conditions adjustment | J52: Performance | K52: Target | L52: Reward/Penalty (£m) | M52: Performance | N52: Target | O52: Reward/Penalty (£m) | P52: Performance | Q52: Target | R52: Reward/Penalty (£m) | S52: Performance | T52: Target | U52: Reward/Penalty (£m)
D53: SP ENW | E53: 0.8678962848 | F53: 0 | G53: 0 | I53: SP ENW | J53: 1.672419801 | K53: 1.188891014 | L53: -0.06950919716 | M53: 3.264321642 | N53: 2.643001088 | O53: -0.280843104 | P53: 24.53936876 | Q53: 28.71 | R53: 0.5995449239 | S53: 23.53121687 | T53: 24.9 | U53: 0.6187036621
D54: NPgN | E54: -2.530509178 | F54: 0 | G54: -0.1417373003 | I54: NPgN | J54: 1.557216834 | K54: 1.354380566 | L54: -0.0197450495 | M54: 3.246009703 | N54: 2.584732602 | O54: -0.2022782717 | P54: 47.04863717 | Q54: 46.32 | R54: -0.07090003935 | S54: 46.23170837 | T54: 39.38 | U54: -2.095848517
D55: NPgY | E55: -7.231255828 | F55: -0.0002248905994 | G55: -0.105811027 | I55: NPgY | J55: 1.489227671 | K55: 0.9312756837 | L55: -0.07795498029 | M55: 3.261302657 | N55: 1.741509149 | O55: -0.6681203579 | P55: 53.72146108 | Q55: 46.71 | R55: -0.979641342 | S55: 50.23223355 | T55: 37.95 | U55: -5.39950323
D56: WMID | E56: -0.7770968989 | F56: 0 | G56: 0.0806990243 | I56: WMID | J56: 2.241895773 | K56: 2.130670776 | L56: -0.01685058697 | M56: 4.66180534 | N56: 4.440282893 | O56: -0.1057769666 | P56: 42.50814455 | Q56: 46.74 | R56: 0.6411261009 | S56: 28.25229208 | T56: 25.37 | U56: -1.37629447
D57: EMID | E57: -2.417412267 | F57: 0 | G57: 0.1057141991 | I57: EMID | J57: 0.7076634676 | K57: 0.6532096479 | L57: -0.0088215188 | M57: 1.380584133 | N57: 1.263511956 | O57: -0.05964826682 | P57: 43.49684262 | Q57: 38.6 | R57: -0.7932885051 | S57: 24.7607815 | T57: 21.5 | U57: -1.661368176
D58: SWALES | E58: -0.6139593874 | F58: 0 | G58: 0.002202053786 | I58: SWALES | J58: 3.258202873 | K58: 3.206041588 | L58: -0.003625209274 | M58: 4.756689716 | N58: 4.873910756 | O58: 0.02561281475 | P58: 43.08272402 | Q58: 39.22 | R58: -0.2684593194 | S58: 21.34194383 | T58: 19.65 | U58: -0.3696897273
D59: SWEST | E59: -2.941523976 | F59: 0 | G59: 0.0889957695 | I59: SWEST | J59: 3.884265266 | K59: 3.284041796 | L59: -0.05972223534 | M59: 8.73362877 | N59: 7.521154493 | O59: -0.3788982272 | P59: 53.63191138 | Q59: 48.35 | R59: -0.5255501824 | S59: 38.12231712 | T59: 31.51 | U59: -2.0663491
D60: LPN | E60: 1.186783615 | F60: 0 | G60: -0.03147424311 | I60: LPN | J60: 0.001138303927 | K60: 0.02372347754 | L60: 0.003088349235 | M60: 0.002569048481 | N60: 0.05340557921 | O60: 0.02300353016 | P60: 12.2037771 | Q60: 13.45 | R60: 0.1794560977 | S60: 11.37196711 | T60: 13.61 | U60: 1.012709881
D61: SPN | E61: -3.050188421 | F61: 0 | G61: -0.0987663773 | I61: SPN | J61: 0.8090188948 | K61: 0.7234814752 | L61: -0.01201800744 | M61: 1.94660857 | N61: 1.545159977 | O61: -0.1772395537 | P61: 48.70983078 | Q61: 42.08 | R61: -0.9314912252 | S61: 34.54648529 | T61: 30.4 | U61: -1.830673257
D62: EPN | E62: -4.024409218 | F62: 0 | G62: -0.06148666 | I62: EPN | J62: 1.137198566 | K62: 1.217603023 | L62: 0.01784978946 | M62: 2.890495893 | N62: 2.883050299 | O62: -0.005197024897 | P62: 45.0634723 | Q62: 40.99 | R62: -0.9043108507 | S62: 32.71009237 | T62: 28.31 | U62: -3.071264472
D63: SPD | E63: 2.959954217 | F63: 0 | G63: 0 | I63: SPD | J63: 0.4942971426 | K63: 0.992762327 | L63: 0.060542704 | M63: 1.197622819 | N63: 2.660836481 | O63: 0.559928604 | P63: 32.38346765 | Q63: 41.81 | R63: 1.14532368 | S63: 25.02801509 | T63: 28.15 | U63: 1.194159229
D64: SPMW | E64: -0.2317707964 | F64: 0 | G64: 0 | I64: SPMW | J64: 1.56365351 | K64: 1.687862354 | L64: 0.01142108774 | M64: 4.457602044 | N64: 4.673063467 | O64: 0.06248732105 | P64: 30.00513903 | Q64: 31.41 | R64: 0.1292472095 | S64: 28.96974626 | T64: 27.47 | U64: -0.4349264146
D65: SSEH | E65: -1.566205668 | F65: 0 | G65: 0 | I65: SSEH | J65: 4.894290811 | K65: 3.613333333 | L65: -0.06006536329 | M65: 12.47681149 | N65: 7.906666667 | O65: -0.6736770523 | P65: 51.74162127 | Q65: 58.03 | R65: 0.2945162177 | S65: 53.08535924 | T65: 45.44 | U65: -1.12697947
D66: SSES | E66: -9.371362488 | F66: 0 | G66: -0.183462 | I66: SSES | J66: 1.969947535 | K66: 1.388068681 | L66: -0.1081580105 | M66: 5.278863307 | N66: 3.10052077 | O66: -1.274772138 | P66: 49.29895795 | Q66: 45.55 | R66: -0.6967850737 | S66: 52.29677817 | T66: 40.15 | U66: -7.108185266
D67: Total | E67: =SUM(E53:E66) -> -29.74106001 | F67: =SUM(F53:F66) -> -0.0002248905994 | G67: =SUM(G53:G66) -> -0.345126561
D68: NB: The total reward includes an adjustment for Regulation 7 Severe weather and Normal weather (Regulation 5,6 and 8)
J71: PLANNED | P71: UNPLANNED
D72: 2024/25 | I72: 2024/25 | J72: CI | M72: CML | P72: CI | S72: CML
E73: Total reward (£m)** | F73: Regulation 7 Severe Weather Conditions Adjustment | G73: Normal weather conditions adjustment | J73: Performance | K73: Target | L73: Reward/Penalty (£m) | M73: Performance | N73: Target | O73: Reward/Penalty (£m) | P73: Performance | Q73: Target | R73: Reward/Penalty (£m) | S73: Performance | T73: Target | U73: Reward/Penalty (£m)
D74: SP ENW | E74: 0.4288354781 | F74: 0 | G74: 0 | I74: SP ENW | J74: 1.808035512 | K74: 1.180006393 | L74: -0.09028169794 | M74: 4.030508028 | N74: 2.470130687 | O74: -0.7053061616 | P74: 24.261952 | Q74: 28.56 | R74: 0.6178615917 | S74: 23.05807892 | T74: 24.4 | U74: 0.6065617459
D75: NPgN | E75: -2.311175762 | F75: -0.02895613156 | G75: -0.1208495204 | I75: NPgN | J75: 1.974476312 | K75: 1.304402849 | L75: -0.0652014983 | M75: 4.249124908 | N75: 2.474202552 | O75: -0.5429256746 | P75: 49.05689182 | Q75: 45.39 | R75: -0.3568069082 | S75: 42.50136606 | T75: 38.59 | U75: -1.196436029
D76: NPgY | E76: -6.648287729 | F76: -0.002305959372 | G76: -0.08968275454 | I76: NPgY | J76: 1.655670608 | K76: 1.014581616 | L76: -0.08957295392 | M76: 3.656133496 | N76: 1.895764595 | O76: -0.7738916161 | P76: 53.00710716 | Q76: 44.84 | R76: -1.141108212 | S76: 47.5437978 | T76: 37.19 | U76: -4.551726233
D77: WMID | E77: -1.978490998 | F77: 0 | G77: 0 | I77: WMID | J77: 2.477221137 | K77: 2.077535149 | L77: -0.06055242711 | M77: 4.399111781 | N77: 4.297249671 | O77: -0.04863915741 | P77: 43.83492673 | Q77: 45.8 | R77: 0.2977086 | S77: 29.77823668 | T77: 25.24 | U77: -2.167008014
D78: EMID | E78: -0.2899661207 | F78: 0 | G78: 0 | I78: EMID | J78: 0.790017024 | K78: 0.6732500091 | L78: -0.01891625641 | M78: 1.371197544 | N78: 1.318563113 | O78: -0.02681724258 | P78: 33.52001198 | Q78: 37.83 | R78: 0.6982180596 | S78: 23.239756 | T78: 21.39 | U78: -0.9424506813
D79: SWALES | E79: -0.62648274 | F79: 0 | G79: 0 | I79: SWALES | J79: 4.054934659 | K79: 3.240142181 | L79: -0.0566280772 | M79: 4.903850911 | N79: 5.041920004 | O79: 0.03016809672 | P79: 38.0458839 | Q79: 39.03 | R79: 0.06839606871 | S79: 22.60912507 | T79: 19.55 | U79: -0.6684188282
D80: SWEST | E80: -4.377053286 | F80: 0 | G80: 0 | I80: SWEST | J80: 3.938262825 | K80: 3.336661813 | L80: -0.05985930075 | M80: 8.581724951 | N80: 7.470443202 | O80: -0.3472755466 | P80: 55.06865502 | Q80: 48.11 | R80: -0.6923861746 | S80: 41.84810324 | T80: 31.36 | U80: -3.277532264
D81: LPN | E81: 1.683525053 | F81: 0 | G81: -0.03234906934 | I81: LPN | J81: 0.009089049967 | K81: 0.01045884586 | L81: 0.0001972506079 | M81: 0.01301985751 | N81: 0.01885851369 | O81: 0.002641991921 | P81: 11.19035569 | Q81: 13.38 | R81: 0.3153087804 | S81: 10.45110254 | T81: 13.54 | U81: 1.3977261
D82: SPN | E82: 0.2908925159 | F82: 0 | G82: -0.1038436147 | I82: SPN | J82: 1.029166064 | K82: 0.6677869232 | L82: -0.05077376932 | M82: 2.438083486 | N82: 1.362911705 | O82: -0.4746883413 | P82: 41.1611737 | Q82: 41.87 | R82: 0.09959009532 | S82: 27.9313179 | T82: 29.79 | U82: 0.820608146
D83: EPN | E83: -2.403306503 | F83: 0 | G83: -0.09854275884 | I83: EPN | J83: 1.370380577 | K83: 1.043033952 | L83: -0.07267095071 | M83: 3.219319723 | N83: 2.339298004 | O83: -0.6142551595 | P83: 43.24833988 | Q83: 40.79 | R83: -0.5457514542 | S83: 29.28594009 | T83: 27.75 | U83: -1.072086179
D84: SPD | E84: 2.728304352 | F84: 0 | G84: 0 | I84: SPD | J84: 0.9397593586 | K84: 0.7924289937 | L84: -0.01790063933 | M84: 2.329860342 | N84: 1.974836481 | O84: -0.1357966269 | P84: 30.35269595 | Q84: 40.97 | R84: 1.290002442 | S84: 23.42791065 | T84: 27.59 | U84: 1.591999176
D85: SPMW | E85: -0.6040822633 | F85: 0 | G85: 0 | I85: SPMW | J85: 1.797500571 | K85: 1.75252902 | L85: -0.004137382649 | M85: 5.309035795 | N85: 4.6713968 | O85: -0.1849153085 | P85: 26.75563677 | Q85: 31.25 | R85: 0.4134814174 | S85: 29.22693445 | T85: 26.37 | U85: -0.8285109897
D86: SSEH | E86: -2.233980717 | F86: 0 | G86: 0 | I86: SSEH | J86: 6.670176956 | K86: 4.146189525 | L86: -0.1182109513 | M86: 16.40280134 | N86: 9.253795829 | O86: -1.053813455 | P86: 52.42968451 | Q86: 57.74 | R86: 0.2487086258 | S86: 52.51147012 | T86: 43.62 | U86: -1.310664936
D87: SSES | E87: -4.811066821 | F87: 0 | G87: -0.01865648232 | I87: SSES | J87: 2.958942412 | K87: 1.417748586 | L87: -0.2864478257 | M87: 7.807879212 | N87: 3.102090287 | O87: -2.753785327 | P87: 38.88620468 | Q87: 44.64 | R87: 1.069406152 | S87: 43.37164514 | T87: 38.55 | U87: -2.821583338
D88: Total | E88: =SUM(E74:E87) -> -21.15233554 | F88: =SUM(F74:F87) -> -0.03126209093 | G88: =SUM(G74:G87) -> -0.4639242001
J90: PLANNED | P90: UNPLANNED
D91: 2025/26 | I91: 2025/26 | J91: CI | M91: CML | P91: CI | S91: CML
E92: Total reward (£m)** | F92: Regulation 7 Severe Weather Conditions Adjustment | G92: Normal weather conditions adjustment | J92: Performance | K92: Target | L92: Reward/Penalty (£m) | M92: Performance | N92: Target | O92: Reward/Penalty (£m) | P92: Performance | Q92: Target | R92: Reward/Penalty (£m) | S92: Performance | T92: Target | U92: Reward/Penalty (£m)
D93: SP ENW | I93: SP ENW
D94: NPgN | I94: NPgN
D95: NPgY | I95: NPgY
D96: WMID | I96: WMID
D97: EMID | I97: EMID
D98: SWALES | I98: SWALES
D99: SWEST | I99: SWEST
D100: LPN | I100: LPN
D101: SPN | I101: SPN
D102: EPN | I102: EPN
D103: SPD | I103: SPD
D104: SPMW | I104: SPMW
D105: SSEH | I105: SSEH
D106: SSES | I106: SSES
D107: Total | E107: =SUM(E93:E106) -> 0 | F107: =SUM(F93:F106) -> 0 | G107: =SUM(G93:G106) -> 0
J109: PLANNED | P109: UNPLANNED
D110: 2026/27 | I110: 2026/27 | J110: CI | M110: CML | P110: CI | S110: CML
E111: Total reward (£m)** | F111: Regulation 7 Severe Weather Conditions Adjustment | G111: Normal weather conditions adjustment | J111: Performance | K111: Target | L111: Reward/Penalty (£m) | M111: Performance | N111: Target | O111: Reward/Penalty (£m) | P111: Performance | Q111: Target | R111: Reward/Penalty (£m) | S111: Performance | T111: Target | U111: Reward/Penalty (£m)
D112: SP ENW | I112: SP ENW
D113: NPgN | I113: NPgN
D114: NPgY | I114: NPgY
D115: WMID | I115: WMID
D116: EMID | I116: EMID
D117: SWALES | I117: SWALES
D118: SWEST | I118: SWEST
D119: LPN | I119: LPN
D120: SPN | I120: SPN
D121: EPN | I121: EPN
D122: SPD | I122: SPD
D123: SPMW | I123: SPMW
D124: SSEH | I124: SSEH
D125: SSES | I125: SSES
D126: Total | E126: =SUM(E112:E125) -> 0 | F126: =SUM(F112:F125) -> 0 | G126: =SUM(G112:G125) -> 0
J128: PLANNED | P128: UNPLANNED
D129: 2027/28 | I129: 2027/28 | J129: CI | M129: CML | P129: CI | S129: CML
E130: Total reward (£m)** | F130: Regulation 7 Severe Weather Conditions Adjustment | G130: Normal weather conditions adjustment | J130: Performance | K130: Target | L130: Reward/Penalty (£m) | M130: Performance | N130: Target | O130: Reward/Penalty (£m) | P130: Performance | Q130: Target | R130: Reward/Penalty (£m) | S130: Performance | T130: Target | U130: Reward/Penalty (£m)
D131: SP ENW | I131: SP ENW
D132: NPgN | I132: NPgN
D133: NPgY | I133: NPgY
D134: WMID | I134: WMID
D135: EMID | I135: EMID
D136: SWALES | I136: SWALES
D137: SWEST | I137: SWEST
D138: LPN | I138: LPN
D139: SPN | I139: SPN
D140: EPN | I140: EPN
D141: SPD | I141: SPD
D142: SPMW | I142: SPMW
D143: SSEH | I143: SSEH
D144: SSES | I144: SSES
D145: Total | E145: =SUM(E131:E144) -> 0 | F145: =SUM(F131:F144) -> 0 | G145: =SUM(G131:G144) -> 0
B150: Guaranteed Standards of Performance (GSoP)
E151: Guaranteed Standards of Performance - payments owed and percentage of mandatory payments made, 2023/24
E152: Regulation 5 (Supply Restoration: Normal Conditions)* | G152: Regulation 6 (Supply Restoration: Normal Conditions - 5,000 or more customers' premises interrupted) | I152: Regulation 7(1) - Supply Restoration: Category 1 Severe Weather Conditions* | K152: Regulation 7(2) - Supply Restoration: Category 2 Severe Weather Conditions* | M152: Regulation 7(3) - Supply Restoration: Category 3 Severe Weather Conditions* | O152: Regulation 8 (Supply Restoration: Rota Disconnection) | Q152: Regulation 10 (Supply Restoration: Multiple interruptions) | S152: Regulation 11 (Responding to Operation of Distributor's Fuse) | U152: Regulation 12 (Notice of Supply Interruption ) | W152: Regulation 13 (Investigation of Voltage complaints) | X152: Regulation 17 (Making and Keeping Appointments) | Z152: Regulation 19 (Payments owed under the Guaranteed Standards)
E153: Number of valid payments owed | F153: Mandatory payments vs valid payments owed | G153: Number of valid payments owed | H153: Mandatory payments vs valid payments owed | I153: Number of valid payments owed | J153: Mandatory payments vs valid payments owed | K153: Number of valid payments owed | L153: Mandatory payments vs valid payments owed | M153: Number of valid payments owed | N153: Mandatory payments vs valid payments owed | O153: Number of valid payments owed | P153: Mandatory payments vs valid payments owed | Q153: Number of valid payments owed | R153: Mandatory payments vs valid payments owed | S153: Number of valid payments owed | T153: Mandatory payments vs valid payments owed | U153: Number of valid payments owed | V153: Mandatory payments vs valid payments owed | W153: Total number of mandatory payments made | X153: Failures to offer or keep timed appt. | Y153: Mandatory payments vs valid payments owed | Z153: Total payments due | AA153: Mandatory payments vs valid payments owed
D154: SP ENW | E154: 3316 | F154: 1 | G154: 0 | H154: N/A | I154: 153 | J154: 1 | K154: 1134 | L154: 1 | M154: 0 | N154: N/A | O154: 0 | P154: N/A | Q154: 15 | R154: 1 | S154: 38 | T154: 1 | U154: 273 | V154: 1 | W154: 46 | X154: 1000 | Y154: 1 | Z154: 1863 | AA154: 1
D155: NPGN | E155: 4565 | F155: 1 | G155: 0 | H155: N/A | I155: 32 | J155: 1 | K155: 0 | L155: N/A | M155: 0 | N155: N/A | O155: 0 | P155: N/A | Q155: 52 | R155: 1 | S155: 10 | T155: 1 | U155: 10 | V155: 1 | W155: 0 | X155: 32 | Y155: 1 | Z155: 292 | AA155: 1
D156: NPGY | E156: 5019 | F156: 1 | G156: 0 | H156: N/A | I156: 99 | J156: 1 | K156: 1 | L156: 1 | M156: 0 | N156: N/A | O156: 0 | P156: N/A | Q156: 42 | R156: 1 | S156: 8 | T156: 1 | U156: 19 | V156: 1 | W156: 1 | X156: 96 | Y156: 1 | Z156: 202 | AA156: 1
D157: WMID | E157: 1121 | F157: 0.8965209634 | G157: 0 | H157: N/A | I157: 3 | J157: 0 | K157: 0 | L157: N/A | M157: 0 | N157: N/A | O157: 0 | P157: N/A | Q157: 1 | R157: 1 | S157: 2 | T157: 1 | U157: 9 | V157: 1 | W157: 0 | X157: 0 | Y157: N/A | Z157: 17 | AA157: 1
D158: EMID | E158: 1860 | F158: 0.9043010753 | G158: 0 | H158: N/A | I158: 26 | J158: 0.07692307692 | K158: 0 | L158: N/A | M158: 0 | N158: N/A | O158: 0 | P158: N/A | Q158: 0 | R158: N/A | S158: 3 | T158: 1 | U158: 8 | V158: 1 | W158: 0 | X158: 7 | Y158: 1 | Z158: 51 | AA158: 1
D159: SWALES | E159: 24 | F159: 0.9166666667 | G159: 0 | H159: N/A | I159: 0 | J159: N/A | K159: 0 | L159: N/A | M159: 0 | N159: N/A | O159: 0 | P159: N/A | Q159: 0 | R159: N/A | S159: 0 | T159: N/A | U159: 1 | V159: 1 | W159: 0 | X159: 0 | Y159: N/A | Z159: 4 | AA159: 1
D160: SWEST | E160: 1294 | F160: 0.9690880989 | G160: 0 | H160: N/A | I160: 106 | J160: 0.8679245283 | K160: 0 | L160: N/A | M160: 0 | N160: N/A | O160: 0 | P160: N/A | Q160: 3 | R160: 1 | S160: 4 | T160: 1 | U160: 15 | V160: 1 | W160: 0 | X160: 6 | Y160: 1 | Z160: 146 | AA160: 1
D161: LPN | E161: 1055 | F161: 1 | G161: 0 | H161: N/A | I161: 0 | J161: N/A | K161: 0 | L161: N/A | M161: 0 | N161: N/A | O161: 0 | P161: N/A | Q161: 5 | R161: 1 | S161: 44 | T161: 1 | U161: 1 | V161: 1 | W161: 0 | X161: 82 | Y161: 1 | Z161: 3 | AA161: 1
D162: SPN | E162: 7027 | F162: 1 | G162: 0 | H162: N/A | I162: 42 | J162: 1 | K162: 0 | L162: N/A | M162: 0 | N162: N/A | O162: 0 | P162: N/A | Q162: 64 | R162: 1 | S162: 43 | T162: 1 | U162: 247 | V162: 1 | W162: 0 | X162: 445 | Y162: 1 | Z162: 15 | AA162: 1
D163: EPN | E163: 8411 | F163: 1 | G163: 0 | H163: N/A | I163: 15 | J163: 1 | K163: 0 | L163: N/A | M163: 0 | N163: N/A | O163: 0 | P163: N/A | Q163: 141 | R163: 1 | S163: 68 | T163: 1 | U163: 268 | V163: 1 | W163: 0 | X163: 637 | Y163: 1 | Z163: 37 | AA163: 1
D164: SPD | E164: 448 | F164: 1 | G164: 0 | H164: N/A | I164: 0 | J164: N/A | K164: 89 | L164: 1 | M164: 0 | N164: N/A | O164: 0 | P164: N/A | Q164: 2 | R164: 1 | S164: 2 | T164: 1 | U164: 18 | V164: 1 | W164: 0 | X164: 0 | Y164: N/A | Z164: 0 | AA164: N/A
D165: SPMW | E165: 648 | F165: 1 | G165: 0 | H165: N/A | I165: 9 | J165: 1 | K165: 0 | L165: N/A | M165: 0 | N165: N/A | O165: 0 | P165: N/A | Q165: 2 | R165: 1 | S165: 3 | T165: 1 | U165: 69 | V165: 1 | W165: 1 | X165: 0 | Y165: N/A | Z165: 0 | AA165: N/A
D166: SSEH | E166: 2268 | F166: 1 | G166: 0 | H166: N/A | I166: 0 | J166: N/A | K166: 2267 | L166: 1 | M166: 0 | N166: N/A | O166: 0 | P166: N/A | Q166: 7 | R166: 1 | S166: 3 | T166: 1 | U166: 105 | V166: 1 | W166: 0 | X166: 4 | Y166: 1 | Z166: 94 | AA166: 1
D167: SSES | E167: 15902 | F167: 1 | G167: 0 | H167: N/A | I167: 1109 | J167: 1 | K167: 0 | L167: N/A | M167: 0 | N167: N/A | O167: 0 | P167: N/A | Q167: 51 | R167: 1 | S167: 49 | T167: 1 | U167: 380 | V167: 1 | W167: 0 | X167: 75 | Y167: 1 | Z167: 229 | AA167: 1
E169: Guaranteed Standards of Performance - payments owed and percentage of mandatory payments made, 2024/25
E170: Regulation 5 (Supply Restoration: Normal Conditions)* | G170: Regulation 6 (Supply Restoration: Normal Conditions - 5,000 or more customers' premises interrupted) | I170: Regulation 7(1) - Supply Restoration: Category 1 Severe Weather Conditions* | K170: Regulation 7(2) - Supply Restoration: Category 2 Severe Weather Conditions* | M170: Regulation 7(3) - Supply Restoration: Category 3 Severe Weather Conditions* | O170: Regulation 8 (Supply Restoration: Rota Disconnection) | Q170: Regulation 10 (Supply Restoration: Multiple interruptions) | S170: Regulation 11 (Responding to Operation of Distributor's Fuse) | U170: Regulation 12 (Notice of Supply Interruption ) | W170: Regulation 13 (Investigation of Voltage complaints) | X170: Regulation 17 (Making and Keeping Appointments) | Z170: Regulation 19 (Payments owed under the Guaranteed Standards)
E171: Number of valid payments owed | F171: Mandatory payments vs valid payments owed | G171: Number of valid payments owed | H171: Mandatory payments vs valid payments owed | I171: Number of valid payments owed | J171: Mandatory payments vs valid payments owed | K171: Number of valid payments owed | L171: Mandatory payments vs valid payments owed | M171: Number of valid payments owed | N171: Mandatory payments vs valid payments owed | O171: Number of valid payments owed | P171: Mandatory payments vs valid payments owed | Q171: Number of valid payments owed | R171: Mandatory payments vs valid payments owed | S171: Number of valid payments owed | T171: Mandatory payments vs valid payments owed | U171: Number of valid payments owed | V171: Mandatory payments vs valid payments owed | W171: Total number of mandatory payments made | X171: Failures to offer or keep timed appt. | Y171: Mandatory payments vs valid payments owed | Z171: Total payments due | AA171: Mandatory payments vs valid payments owed
D172: SP ENW | E172: 3714 | F172: 1 | G172: 0 | H172: N/A | I172: 16 | J172: 1 | K172: 5489 | L172: 1 | M172: 0 | N172: N/A | O172: 0 | P172: N/A | Q172: 12 | R172: 1 | S172: 51 | T172: 1 | U172: 475 | V172: 1 | W172: 28 | X172: 1310 | Y172: 1 | Z172: 1426 | AA172: 1
D173: NPGN | E173: 2132 | F173: 1 | G173: 0 | H173: N/A | I173: 220 | J173: 1 | K173: 3448 | L173: 1 | M173: 0 | N173: N/A | O173: 0 | P173: N/A | Q173: 21 | R173: 1 | S173: 20 | T173: 1 | U173: 38 | V173: 1 | W173: 0 | X173: 85 | Y173: 1 | Z173: 65 | AA173: 1
D174: NPGY | E174: 2665 | F174: 1 | G174: 0 | H174: N/A | I174: 376 | J174: 1 | K174: 0 | L174: N/A | M174: 0 | N174: N/A | O174: 0 | P174: N/A | Q174: 55 | R174: 1 | S174: 6 | T174: 1 | U174: 41 | V174: 1 | W174: 0 | X174: 143 | Y174: 1 | Z174: 61 | AA174: 1
D175: WMID | E175: 3148 | F175: 1 | G175: 0 | H175: N/A | I175: 0 | J175: N/A | K175: 7161 | L175: 1 | M175: 0 | N175: N/A | O175: 0 | P175: N/A | Q175: 4 | R175: 1 | S175: 16 | T175: 1 | U175: 7 | V175: 1 | W175: 0 | X175: 0 | Y175: N/A | Z175: 1302 | AA175: 1
D176: EMID | E176: 2993 | F176: 1 | G176: 0 | H176: N/A | I176: 246 | J176: 1 | K176: 0 | L176: N/A | M176: 0 | N176: N/A | O176: 0 | P176: N/A | Q176: 3 | R176: 1 | S176: 5 | T176: 1 | U176: 2 | V176: 1 | W176: 0 | X176: 9 | Y176: 1 | Z176: 359 | AA176: 1
D177: SWALES | E177: 649 | F177: 1 | G177: 0 | H177: N/A | I177: 0 | J177: N/A | K177: 114961 | L177: 1 | M177: 0 | N177: N/A | O177: 0 | P177: N/A | Q177: 3 | R177: 1 | S177: 4 | T177: 1 | U177: 9 | V177: 1 | W177: 0 | X177: 3 | Y177: 1 | Z177: 272 | AA177: 1
D178: SWEST | E178: 4812 | F178: 1 | G178: 0 | H178: N/A | I178: 176 | J178: 1.034090909 | K178: 24013 | L178: 1 | M178: 0 | N178: N/A | O178: 0 | P178: N/A | Q178: 4 | R178: 1 | S178: 13 | T178: 1 | U178: 16 | V178: 1 | W178: 2 | X178: 7 | Y178: 1 | Z178: 17 | AA178: 1
D179: LPN | E179: 818 | F179: 1 | G179: 0 | H179: N/A | I179: 0 | J179: N/A | K179: 0 | L179: N/A | M179: 0 | N179: N/A | O179: 0 | P179: N/A | Q179: 1 | R179: 1 | S179: 26 | T179: 1 | U179: 0 | V179: N/A | W179: 0 | X179: 78 | Y179: 1 | Z179: 4 | AA179: 1
D180: SPN | E180: 4463 | F180: 1 | G180: 0 | H180: N/A | I180: 35 | J180: 1 | K180: 0 | L180: N/A | M180: 0 | N180: N/A | O180: 0 | P180: N/A | Q180: 23 | R180: 1 | S180: 43 | T180: 1 | U180: 251 | V180: 1 | W180: 0 | X180: 259 | Y180: 1 | Z180: 17 | AA180: 1
D181: EPN | E181: 6508 | F181: 1 | G181: 0 | H181: N/A | I181: 49 | J181: 1 | K181: 0 | L181: N/A | M181: 0 | N181: N/A | O181: 0 | P181: N/A | Q181: 21 | R181: 1 | S181: 68 | T181: 1 | U181: 301 | V181: 1 | W181: 0 | X181: 629 | Y181: 1 | Z181: 55 | AA181: 1
D182: SPD | E182: 527 | F182: 1 | G182: 0 | H182: N/A | I182: 0 | J182: N/A | K182: 57967 | L182: 1 | M182: 0 | N182: N/A | O182: 0 | P182: N/A | Q182: 0 | R182: N/A | S182: 0 | T182: N/A | U182: 24 | V182: 1 | W182: 0 | X182: 0 | Y182: N/A | Z182: 0 | AA182: N/A
D183: SPMW | E183: 2345 | F183: 1 | G183: 0 | H183: N/A | I183: 0 | J183: N/A | K183: 32656 | L183: 1 | M183: 0 | N183: N/A | O183: 0 | P183: N/A | Q183: 3 | R183: 1 | S183: 6 | T183: 1 | U183: 147 | V183: 1 | W183: 0 | X183: 0 | Y183: N/A | Z183: 0 | AA183: N/A
D184: SSEH | E184: 3474 | F184: 1 | G184: 0 | H184: N/A | I184: 153 | J184: 1 | K184: 22898 | L184: 1 | M184: 0 | N184: N/A | O184: 0 | P184: N/A | Q184: 2 | R184: 1 | S184: 1 | T184: 1 | U184: 204 | V184: 1 | W184: 0 | X184: 5 | Y184: 1 | Z184: 272 | AA184: 1
D185: SSES | E185: 12853 | F185: 1 | G185: 0 | H185: N/A | I185: 1325 | J185: 1 | K185: 90 | L185: 1 | M185: 0 | N185: N/A | O185: 0 | P185: N/A | Q185: 62 | R185: 1 | S185: 31 | T185: 1 | U185: 531 | V185: 1 | W185: 1 | X185: 169 | Y185: 1 | Z185: 149 | AA185: 1
E187: Guaranteed Standards of Performance - payments owed and percentage of mandatory payments made, 2025/26
E189: Regulation 5 (Supply Restoration: Normal Conditions)* | G189: Regulation 6 (Supply Restoration: Normal Conditions - 5,000 or more customers' premises interrupted) | I189: Regulation 7(1) - Supply Restoration: Category 1 Severe Weather Conditions* | K189: Regulation 7(2) - Supply Restoration: Category 2 Severe Weather Conditions* | M189: Regulation 7(3) - Supply Restoration: Category 3 Severe Weather Conditions* | O189: Regulation 8 (Supply Restoration: Rota Disconnection) | Q189: Regulation 10 (Supply Restoration: Multiple interruptions) | S189: Regulation 11 (Responding to Operation of Distributor's Fuse) | U189: Regulation 12 (Notice of Supply Interruption ) | W189: Regulation 13 (Investigation of Voltage complaints) | X189: Regulation 17 (Making and Keeping Appointments) | Z189: Regulation 19 (Payments owed under the Guaranteed Standards)
E190: Number of valid payments owed | F190: Mandatory payments vs valid payments owed | G190: Number of valid payments owed | H190: Mandatory payments vs valid payments owed | I190: Number of valid payments owed | J190: Mandatory payments vs valid payments owed | K190: Number of valid payments owed | L190: Mandatory payments vs valid payments owed | M190: Number of valid payments owed | N190: Mandatory payments vs valid payments owed | O190: Number of valid payments owed | P190: Mandatory payments vs valid payments owed | Q190: Number of valid payments owed | R190: Mandatory payments vs valid payments owed | S190: Number of valid payments owed | T190: Mandatory payments vs valid payments owed | U190: Number of valid payments owed | V190: Mandatory payments vs valid payments owed | W190: Total number of mandatory payments made | X190: Failures to offer or keep timed appt. | Y190: Mandatory payments vs valid payments owed | Z190: Total payments due | AA190: Mandatory payments vs valid payments owed
D191: SP ENW
D192: NPGN
D193: NPGY
D194: WMID
D195: EMID
D196: SWALES
D197: SWEST
D198: LPN
D199: SPN
D200: EPN
D201: SPD
D202: SPMW
D203: SSEH
D204: SSES
E206: Guaranteed Standards of Performance - payments owed and percentage of mandatory payments made, 2026/27
E208: Regulation 5 (Supply Restoration: Normal Conditions)* | G208: Regulation 6 (Supply Restoration: Normal Conditions - 5,000 or more customers' premises interrupted) | I208: Regulation 7(1) - Supply Restoration: Category 1 Severe Weather Conditions* | K208: Regulation 7(2) - Supply Restoration: Category 2 Severe Weather Conditions* | M208: Regulation 7(3) - Supply Restoration: Category 3 Severe Weather Conditions* | O208: Regulation 8 (Supply Restoration: Rota Disconnection) | Q208: Regulation 10 (Supply Restoration: Multiple interruptions) | S208: Regulation 11 (Responding to Operation of Distributor's Fuse) | U208: Regulation 12 (Notice of Supply Interruption ) | W208: Regulation 13 (Investigation of Voltage complaints) | X208: Regulation 17 (Making and Keeping Appointments) | Z208: Regulation 19 (Payments owed under the Guaranteed Standards)
E209: Number of valid payments owed | F209: Mandatory payments vs valid payments owed | G209: Number of valid payments owed | H209: Mandatory payments vs valid payments owed | I209: Number of valid payments owed | J209: Mandatory payments vs valid payments owed | K209: Number of valid payments owed | L209: Mandatory payments vs valid payments owed | M209: Number of valid payments owed | N209: Mandatory payments vs valid payments owed | O209: Number of valid payments owed | P209: Mandatory payments vs valid payments owed | Q209: Number of valid payments owed | R209: Mandatory payments vs valid payments owed | S209: Number of valid payments owed | T209: Mandatory payments vs valid payments owed | U209: Number of valid payments owed | V209: Mandatory payments vs valid payments owed | W209: Total number of mandatory payments made | X209: Failures to offer or keep timed appt. | Y209: Mandatory payments vs valid payments owed | Z209: Total payments due | AA209: Mandatory payments vs valid payments owed
D210: SP ENW
D211: NPGN
D212: NPGY
D213: WMID
D214: EMID
D215: SWALES
D216: SWEST
D217: LPN
D218: SPN
D219: EPN
... 171 more rows

Sheet Ch2 outputs - DSO
A1: Chapter 2 - Distribution System Operator
B2: Performance against the outputs that DNOs are incentivised to deliver under RIIO-ED2.
B4: Distribution System Operator:
B5: Incentive measure | F5: Incentive type
B6: Distribution System Operator: reward and penatly to incentivise DNOs to more effectively develop and use their network, considering flexible and smart alternatives to network reinforcement. | F6: Financial: Year 1: reward up to 0.32% RoRE, penalty up to -0.16% RoRE.
B10: Distribution System Operator (DSO) | D10: Distribution System Operator
E11: 2023/24 | N11: 2024/25 | W11: 2025/26 | AF11: 2026/27 | AN11: 2027/28
E12: Stakeholder Satisfaction Survey Score | F12: Performance Panel Assessment Score | G12: Overall | H12: Ranking | I12: 2023/24 RAG status | J12: Stakeholder Satisfaction Survey Reward / Penalty (£m) | K12: Performance Panel Assessment Reward / Penalty (£m) | L12: Total Reward / Penalty (£m) | N12: Stakeholder Satisfaction Survey Score | O12: Performance Panel Assessment Score | P12: Overall | Q12: Ranking | R12: 2024/25 RAG status | S12: Stakeholder Satisfaction Survey Reward / Penalty (£m) | T12: Performance Panel Assessment Reward / Penalty (£m) | U12: Total Reward / Penalty (£m) | W12: Stakeholder Satisfaction Survey Score | X12: Performance Panel Assessment Score | Y12: Overall | Z12: Ranking | AA12: RAG | AB12: Stakeholder Satisfaction Survey Reward / Penalty (£m) | AC12: Performance Panel Assessment Reward / Penalty (£m) | AD12: Total Reward / Penalty (£m) | AF12: Stakeholder Satisfaction Survey Score | AG12: Performance Panel Assessment Score | AH12: Overall | AI12: Ranking | AJ12: Stakeholder Satisfaction Survey Reward / Penalty (£m) | AK12: Performance Panel Assessment Reward / Penalty (£m) | AL12: Total Reward / Penalty (£m) | AN12: Stakeholder Satisfaction Survey Score | AO12: Performance Panel Assessment Score | AP12: Overall | AQ12: Ranking | AR12: Stakeholder Satisfaction Survey Reward / Penalty (£m) | AS12: Performance Panel Assessment Reward / Penalty (£m) | AT12: Total Reward / Penalty (£m)
E13: 0.5 | F13: 0.5 | N13: 0.5 | O13: 0.5 | W13: 0.5 | X13: 0.5 | AF13: 0.5 | AG13: 0.5 | AN13: 0.5 | AO13: 0.5
D14: SP ENW | E14: 7.94 | F14: 6.19 | G14: =E14*$E$13+F14*$F$13 -> 7.065 | H14: =RANK(G14,$G$14:$G$19,0) -> 5 | I14: =IF(G14>7.9,"Green",IF(G14<7.5,"Red","Amber")) -> Red | J14: 0.053298 | K14: 0.13262 | L14: 0.185918 | N14: 8.86 | O14: 6.71 | P14: =N14*$E$13+O14*$F$13 -> 7.785 | Q14: =RANK(P14,$P$14:$P$19,0) -> 4 | R14: =IF(P14>7.9,"Green",IF(P14<7.5,"Red","Amber")) -> Amber | S14: 1.52256 | T14: 0.61912 | U14: 2.14168
D15: NPg | E15: 7.77 | F15: 6.58 | G15: =E15*$E$13+F15*$F$13 -> 7.175 | H15: =RANK(G15,$G$14:$G$19,0) -> 4 | I15: Red | J15: 0 | K15: 0.72 | L15: 0.72 | N15: 8.08 | O15: 7.34 | P15: =N15*$E$13+O15*$F$13 -> 7.71 | Q15: =RANK(P15,$P$14:$P$19,0) -> 5 | R15: =IF(P15>7.9,"Green",IF(P15<7.5,"Red","Amber")) -> Amber | S15: 0.5049 | T15: 2.06628 | U15: 2.57118
D16: NGED | E16: 7.77 | F16: 8.24 | G16: 8.005 | H16: 2 | I16: Green | J16: 0 | K16: 5.97 | L16: 5.97 | N16: 9.03 | O16: 8.45 | P16: 8.74 | Q16: 2 | R16: Green | S16: 7.458 | T16: 7.458 | U16: 14.916
D17: UKPN | E17: 9.06 | F17: 8.91 | G17: 8.985 | H17: 1 | I17: Green | J17: 4.42 | K17: 4.42 | L17: 8.84 | N17: 9.59 | O17: 9.36 | P17: 9.475 | Q17: 1 | R17: Green | S17: 5.524 | T17: 5.524 | U17: 11.048
D18: SPEN | E18: 8.13 | F18: 5.08 | G18: 6.605 | H18: 6 | I18: Red | J18: 0.59 | K18: 0 | L18: 0.59 | N18: 9.02 | O18: 6.08 | P18: 7.55 | Q18: 6 | R18: Amber | S18: 3.51 | T18: 0.1404 | U18: 3.6504
D19: SSEN | E19: 7.42 | F19: 7.59 | G19: 7.505 | H19: 3 | I19: Amber | J19: -0.1 | K19: 2.28 | L19: 2.17 | N19: 8.53 | O19: 7.81 | P19: 8.17 | Q19: 3 | R19: Green | S19: 2.047543992 | T19: 3.23809 | U19: 5.285633992

Sheet Ch2 outputs - connections
A1: Chapter 2 - Connections
B2: Performance against the outputs that DNOs are incentivised to deliver under RIIO-ED2.
B4: Connections: connecting customers in a timely and efficient way, including responding to different customers' specific needs, while enabling competition.
B5: Incentive measure | F5: Incentive type
B6: Time to Connect Incentive: reward for reducing average time taken to connect smaller and less complex customer connections. | F6: Financial: reward or penalty of 0.15% RoRE.
B7: Connections Guaranteed Standards of Performance (GSOP): direct payment to customers of fixed amounts if DNO fails to deliver specified minimum levels of performance regarding connections. | F7: Financial: payment to customers for failure to meet standards. Reputational.
B8: Major Connections Incentive: penalty to incentivise DNOs provide a quality service to major connections customers seeking to connect to the network. | F8: Financial: penalty of up to 0.35% RoRE.
B12: Distributed Generation (DG) | D12: Capacity of generation connected to the distribution network by type (MW)
E13: 2024 | F13: 2025 | G13: 2026 | H13: 2027 | I13: 2028
D14: Photovoltaic (G93) | E14: 570.1363373 | F14: 404.835492
D15: Other DG (G93) | E15: 22.707176 | F15: 19.54062
D16: DG (non G93) | E16: 2354.67243 | F16: 2570.14095
B21: Time to connect incentive
D22: Industry average Time to Connect improvements from targets (working days) - comparing 2019-23 and 2023-28 performance
F23: LVSSA | I23: LVSSB
F24: Average Time to Quote | G24: Time to Connect | H24: Overall | I24: Average Time to Quote | J24: Time to Connect | K24: Overall
E25: Average performance over the last four years of ED1 (2019-2023) | F25: =E54 -> 4.07 | G25: =G54 -> 35.67 | H25: =F25+G25 -> 39.74 | I25: =I54 -> 6.84 | J25: =K54 -> 44.3 | K25: =I25+J25 -> 51.14
D26: Annual DNO Average | E26: 2024 | F26: =E53 -> 2.571776841 | G26: =G53 -> 31.00429176 | H26: =SUM(F26:G26) -> 33.57606861 | I26: =I53 -> 5.002679307 | J26: =K53 -> 38.99104513 | K26: =SUM(I26:J26) -> 43.99372444
E27: 2025 | F27: =T53 -> 2.333876461 | G27: =V53 -> 25.80906336 | H27: =SUM(F27:G27) -> 28.14293982 | I27: =X53 -> 4.597933275 | J27: =Z53 -> 33.35157792 | K27: =SUM(I27:J27) -> 37.9495112
E28: 2026
E29: 2027
E30: 2028
E31: Improvement | F31: =F25-F26 -> 1.498223159 | G31: 4.665708236 | H31: 6.163931395 | I31: 1.837320693 | J31: 5.308954871 | K31: 7.146275563
E32: Improvement - % | F32: =F31/F25 -> 0.3681137982 | G32: 0.1308020251 | H32: 0.155106477 | I32: 0.2686141364 | J32: 0.1198409677 | K32: 0.1397394518
E35: 2023/24 | T35: 2024/25 | AI35: 2025/26 | AX35: 2026/27 | BM35: 2027/28
E36: LVSSA | I36: LVSSB | M36: Reward | N36: RAG and ranking | T36: LVSSA | X36: LVSSB | AB36: Reward | AC36: RAG and ranking | AI36: LVSSA | AM36: LVSSB | AQ36: Reward | AR36: RAG and ranking | AX36: LVSSA | BB36: LVSSB | BF36: Reward | BG36: RAG and ranking | BM36: LVSSA | BQ36: LVSSB | BU36: Reward | BV36: RAG and ranking
E37: Average Time to Quote | F37: Ranking | G37: Time to Connect | H37: Ranking | I37: Time to Quote | J37: Ranking | K37: Time to Connect | L37: Ranking | M37: £m | N37: RAG | O37: Average ranking | P37: Overall ranking | Q37: Overall (LVSSA + LVSSB) | T37: Average Time to Quote | U37: Ranking | V37: Time to Connect | W37: Ranking | X37: Time to Quote | Y37: Ranking | Z37: Time to Connect | AA37: Ranking | AB37: £m | AC37: RAG | AD37: Average ranking | AE37: Overall ranking | AF37: Overall (LVSSA + LVSSB) | AI37: Average Time to Quote | AJ37: Ranking | AK37: Time to Connect | AL37: Ranking | AM37: Time to Quote | AN37: Ranking | AO37: Time to Connect | AP37: Ranking | AQ37: £m | AR37: RAG | AS37: Average ranking | AT37: Overall ranking | AU37: Overall (LVSSA + LVSSB) | AX37: Average Time to Quote | AY37: Ranking | AZ37: Time to Connect | BA37: Ranking | BB37: Time to Quote | BC37: Ranking | BD37: Time to Connect | BE37: Ranking | BF37: £m | BG37: RAG | BH37: Average ranking | BI37: Overall ranking | BJ37: Overall (LVSSA + LVSSB) | BM37: Average Time to Quote | BN37: Ranking | BO37: Time to Connect | BP37: Ranking | BQ37: Time to Quote | BR37: Ranking | BS37: Time to Connect | BT37: Ranking | BU37: £m | BV37: RAG | BW37: Average ranking | BX37: Overall ranking | BY37: Overall (LVSSA + LVSSB)
E38: Working days | T38: Working days | AI38: Working days | AX38: Working days | BM38: Working days
D39: SP ENW | E39: 2.221177635 | F39: =RANK(E39,$E$39:$E$52,1) -> 5 | G39: 25.04455959 | H39: =RANK(G39,$G$39:$G$52,1) -> 2 | I39: 4.054556007 | J39: =RANK(I39,$I$39:$I$52,1) -> 5 | K39: 24.91729323 | L39: =RANK(K39,$K$39:$K$52,1) -> 2 | M39: 0.8698922754 | N39: =IF(SUM(IF(E39<=$E$54,1,0),IF(G39<=$G$54,1,0),IF(I39<=$I$54,1,0),IF(K39<=$K$54,1,0))=4,"Green",IF(SUM(IF(E39>$E$55,1,0),IF(G39>$G$55,1,0),IF(I39>$I$55,1,0),IF(K39>$K$55,1,0))>=3,"Red","Amber")) -> Green | O39: =AVERAGE(F39,H39,J39,L39) -> 3.5 | P39: =RANK(O39,$O$39:$O$52,1) -> 2 | Q39: =SUM(E39,G39,I39,K39) -> 56.23758646 | S39: SP ENW | T39: 1.637440758 | U39: =RANK(T39,$T$39:$T$52,1) -> 1 | V39: 19.19612903 | W39: =RANK(V39,$V$39:$V$52,1) -> 2 | X39: 5.055772448 | Y39: =RANK(X39,$X$39:$X$52,1) -> 9 | Z39: 16.66331658 | AA39: =RANK(Z39,$Z$39:$Z$52,1) -> 2 | AB39: 1.005622134 | AC39: =IF(SUM(IF(T39<=$E$54,1,0),IF(V39<=$G$54,1,0),IF(X39<=$I$54,1,0),IF(Z39<=$K$54,1,0))=4,"Green",IF(SUM(IF(T39>$E$55,1,0),IF(V39>$G$55,1,0),IF(X39>$I$55,1,0),IF(Z39>$K$55,1,0))>=3,"Red","Amber")) -> Green | AD39: 3.5 | AE39: =RANK(AD39,$AD$39:$AD$52,1) -> 2 | AF39: 42.55265882 | AH39: SP ENW | AW39: SP ENW | BL39: SP ENW
D40: NPgN | E40: 4.143180106 | F40: =RANK(E40,$E$39:$E$52,1) -> 14 | G40: 31.13533285 | H40: =RANK(G40,$G$39:$G$52,1) -> 8 | I40: 6.004319654 | J40: =RANK(I40,$I$39:$I$52,1) -> 11 | K40: 64.20779221 | L40: =RANK(K40,$K$39:$K$52,1) -> 14 | M40: -0.2019536416 | N40: =IF(SUM(IF(E40<=$E$54,1,0),IF(G40<=$G$54,1,0),IF(I40<=$I$54,1,0),IF(K40<=$K$54,1,0))=4,"Green",IF(SUM(IF(E40>$E$55,1,0),IF(G40>$G$55,1,0),IF(I40>$I$55,1,0),IF(K40>$K$55,1,0))>=3,"Red","Amber")) -> Amber | O40: =AVERAGE(F40,H40,J40,L40) -> 11.75 | P40: =RANK(O40,$O$39:$O$52,1) -> 13 | Q40: =SUM(E40,G40,I40,K40) -> 105.4906248 | S40: NPgN | T40: 3.24 | U40: =RANK(T40,$T$39:$T$52,1) -> 14 | V40: 39.11 | W40: =RANK(V40,$V$39:$V$52,1) -> 14 | X40: 6.44 | Y40: =RANK(X40,$X$39:$X$52,1) -> 13 | Z40: 55.84 | AA40: =RANK(Z40,$Z$39:$Z$52,1) -> 14 | AB40: -0.0450068 | AC40: =IF(SUM(IF(T40<=$E$54,1,0),IF(V40<=$G$54,1,0),IF(X40<=$I$54,1,0),IF(Z40<=$K$54,1,0))=4,"Green",IF(SUM(IF(T40>$E$55,1,0),IF(V40>$G$55,1,0),IF(X40>$I$55,1,0),IF(Z40>$K$55,1,0))>=3,"Red","Amber")) -> Amber | AD40: 13.75 | AE40: =RANK(AD40,$AD$39:$AD$52,1) -> 14 | AF40: 104.63 | AH40: NPgN | AW40: NPgN | BL40: NPgN
D41: NPgY | E41: 3.393021915 | F41: 13 | G41: 29.3240686 | H41: 7 | I41: 5.860732233 | J41: 10 | K41: 51.47838617 | L41: 13 | M41: 0 | N41: Amber | O41: 10.75 | P41: 12 | Q41: 90.05620891 | S41: NPgY | T41: 3.01 | U41: =RANK(T41,$T$39:$T$52,1) -> 12 | V41: 26.59 | W41: 10 | X41: 6.5 | Y41: 14 | Z41: 51.85 | AA41: 13 | AB41: 0.129702 | AC41: Amber | AD41: 12.25 | AE41: 13 | AF41: 87.95 | AH41: NPgY | AW41: NPgY | BL41: NPgY
D42: WMID | E42: 2.13 | F42: 4 | G42: 27.13 | H42: 4 | I42: 3.99 | J42: 4 | K42: 31.48 | L42: 3 | M42: 0.8768654 | N42: Green | O42: 3.75 | P42: 3 | Q42: 64.73 | S42: WMID | T42: 2.550359712 | U42: 10 | V42: 26.55741127 | W42: 9 | X42: 4.309776833 | Y42: 8 | Z42: 36.8791866 | AA42: 9 | AB42: 0.5624898138 | AC42: Green | AD42: 9 | AE42: 9 | AF42: 70.29673442 | AH42: WMID | AW42: WMID | BL42: WMID
D43: EMID | E43: 1.93 | F43: 2 | G43: 26.83 | H43: 3 | I43: 4.32 | J43: 7 | K43: 33.12 | L43: 5 | M43: 0.8187954 | N43: Green | O43: 4.25 | P43: 4 | Q43: 66.2 | S43: EMID | T43: 1.984565686 | U43: 4 | V43: 29.17429341 | W43: 11 | X43: 3.839821573 | Y43: 5 | Z43: 38.91487371 | AA43: 10 | AB43: 0.7755274998 | AC43: Green | AD43: 7.5 | AE43: 8 | AF43: 73.91355438 | AH43: EMID | AW43: EMID | BL43: EMID
D44: SWALES | E44: 1.89 | F44: 1 | G44: 28.58 | H44: 6 | I44: 4.28 | J44: 6 | K44: 35.43 | L44: 6 | M44: 0.3415528 | N44: Green | O44: 4.75 | P44: 5 | Q44: 70.18 | S44: SWALES | T44: 2.00546875 | U44: 5 | V44: 20.83702532 | W44: 3 | X44: 3.962189055 | Y44: 6 | Z44: 24.14096916 | AA44: 4 | AB44: 0.7140103493 | AC44: Green | AD44: 4.5 | AE44: 5 | AF44: 50.94565228 | AH44: SWALES | AW44: SWALES | BL44: SWALES
D45: SWEST | E45: 2.92 | F45: 11 | G45: 39.01 | H45: 12 | I45: 4.48 | J45: 8 | K45: 47.4 | L45: 11 | M45: 0.249809 | N45: Amber | O45: 10.5 | P45: 10 | Q45: 93.81 | S45: SWEST | T45: 3.096174283 | U45: 13 | V45: 33.1663113 | W45: 13 | X45: 3.820643843 | Y45: 4 | Z45: 40.62406816 | AA45: 11 | AB45: 0.3079415293 | AC45: Green | AD45: 10.25 | AE45: 11 | AF45: 80.70719758 | AH45: SWEST | AW45: SWEST | BL45: SWEST
D46: LPN | E46: 2.238557559 | F46: 6 | G46: 36.53950954 | H46: 11 | I46: 2.83557394 | J46: 1 | K46: 39.95611702 | L46: 8 | M46: 0.5217815859 | N46: Amber | O46: 6.5 | P46: 6 | Q46: 81.56975806 | S46: LPN | T46: 1.703363914 | U46: 2 | V46: 24.59310345 | W46: 6 | X46: 2.40270936 | Y46: 1 | Z46: 26.88822653 | AA46: 5 | AB46: 0.8555020336 | AC46: Green | AD46: 3.5 | AE46: 2 | AF46: 55.58740325 | AH46: LPN | AW46: LPN | BL46: LPN
D47: SPN | E47: 2.625550661 | F47: 10 | G47: 39.31242604 | H47: 13 | I47: 4.711836283 | J47: 9 | K47: 44.72521957 | L47: 10 | M47: 0.2616178604 | N47: Amber | O47: 10.5 | P47: 10 | Q47: 91.37503255 | S47: SPN | T47: 2.105016722 | U47: 7 | V47: 25.74447514 | W47: 7 | X47: 4.151745068 | Y47: 7 | Z47: 31.80417149 | AA47: 8 | AB47: 0.6246243597 | AC47: Green | AD47: 7.25 | AE47: 7 | AF47: 63.80540842 | AH47: SPN | AW47: SPN | BL47: SPN
D48: EPN | E48: 2.309289233 | F48: 7 | G48: 39.89918809 | H48: 14 | I48: 3.360492185 | J48: 3 | K48: 36.76304024 | L48: 7 | M48: 0.8149063291 | N48: Amber | O48: 7.75 | P48: 8 | Q48: 82.33200975 | S48: EPN | T48: 1.98024787 | U48: 3 | V48: 22.86136364 | W48: 5 | X48: 2.959666667 | Y48: 2 | Z48: 28.77182236 | AA48: 6 | AB48: 1.388831038 | AC48: Green | AD48: 4 | AE48: 4 | AF48: 56.57310053 | AH48: EPN | AW48: EPN | BL48: EPN
D49: SPD | E49: 2.424098672 | F49: 8 | G49: 27.875 | H49: 5 | I49: 7.73 | J49: 13 | K49: 31.70678337 | L49: 4 | M49: 0.3197767858 | N49: Amber | O49: 7.5 | P49: 7 | Q49: 69.73588204 | S49: SPD | T49: 2.372835005 | U49: 8 | V49: 21.64015905 | W49: 4 | X49: 5.573741007 | Y49: 10 | Z49: 22.81590909 | AA49: 3 | AB49: 0.7221382045 | AC49: Green | AD49: 6.25 | AE49: 6 | AF49: 52.40264415 | AH49: SPD | AW49: SPD | BL49: SPD
D50: SPMW | E50: 2.48 | F50: 9 | G50: 34.92 | H50: 9 | I50: 7.21 | J50: 12 | K50: 40.47 | L50: 9 | M50: 0.2218554 | N50: Amber | O50: 9.75 | P50: 9 | Q50: 85.08 | S50: SPMW | T50: 2.561797753 | U50: 11 | V50: 26.03461538 | W50: 8 | X50: 5.84 | Y50: 11 | Z50: 29.19854722 | AA50: 7 | AB50: 0.4428036204 | AC50: Green | AD50: 9.25 | AE50: 10 | AF50: 63.63496035 | AH50: SPMW | AW50: SPMW | BL50: SPMW
D51: SSEH | E51: 2.04 | F51: 3 | G51: 13.43 | H51: 1 | I51: 3.04 | J51: 2 | K51: 15.5 | L51: 1 | M51: 0.9319956 | N51: Green | O51: 1.75 | P51: 1 | Q51: 34.01 | S51: SSEH | T51: 2.04 | U51: 6 | V51: 14.49 | W51: 1 | X51: 3.19 | Y51: 3 | Z51: 13.87 | AA51: 1 | AB51: 0.9319956 | AC51: Green | AD51: 2.75 | AE51: 1 | AF51: 33.59 | AH51: SSEH | AW51: SSEH | BL51: SSEH
D52: SSES | E52: 3.26 | F52: 12 | G52: 35.03 | H52: 10 | I52: 8.16 | J52: 14 | K52: 48.72 | L52: 12 | M52: 3.569888565e-05 | N52: Amber | O52: 12 | P52: 14 | Q52: 95.17 | S52: SSES | T52: 2.387 | U52: 9 | V52: 31.332 | W52: 12 | X52: 6.325 | Y52: 12 | Z52: 48.661 | AA52: 12 | AB52: 0.31342446 | AC52: Amber | AD52: 11.25 | AE52: 12 | AF52: 88.705 | AH52: SSES | AW52: SSES | BL52: SSES
D53: Industry Average Score/Total Reward | E53: =AVERAGE(E39:E52) -> 2.571776841 | G53: 31.00429176 | I53: 5.002679307 | K53: 38.99104513 | M53: =SUM(M39:M52) -> 6.026930494 | S53: Industry Average Score/Total Reward | T53: =AVERAGE(T39:T52) -> 2.333876461 | V53: =AVERAGE(V39:V52) -> 25.80906336 | X53: =AVERAGE(X39:X52) -> 4.597933275 | Z53: =AVERAGE(Z39:Z52) -> 33.35157792 | AB53: =SUM(AB39:AB52) -> 8.729605842 | AH53: Industry Average Score/Total Reward | AW53: Industry Average Score/Total Reward | BL53: Industry Average Score/Total Reward
D54: Target | E54: 4.07 | G54: 35.67 | I54: 6.84 | K54: 44.3 | S54: Target | T54: 4.07 | V54: 35.67 | X54: 6.84 | Z54: 44.3 | AH54: Target | AW54: Target | BL54: Target
D55: 105% of target | E55: =E54*1.05 -> 4.2735 | G55: =G54*1.05 -> 37.4535 | I55: =I54*1.05 -> 7.182 | K55: =K54*1.05 -> 46.515 | S55: 105% of target | T55: =T54*1.05 -> 4.2735 | V55: =V54*1.05 -> 37.4535 | X55: =X54*1.05 -> 7.182 | Z55: =Z54*1.05 -> 46.515 | AH55: 105% of target | AW55: 105% of target | BL55: 105% of target
D57: Change in Time to Connect performance from 2022/23 (positive = improvement, negative = decline)
E58: 2023/24 | L58: 2024/25 | S58: 2025/26 | Z58: 2026/27 | AG58: 2027/28
E59: LVSSA | H59: LVSSB | L59: LVSSA | O59: LVSSB | S59: LVSSA | V59: LVSSB | Z59: LVSSA | AC59: LVSSB | AG59: LVSSA | AJ59: LVSSB
E60: Average Time to Quote | F60: Time to Connect | G60: Overall | H60: Average Time to Quote | I60: Time to Connect | J60: Overall | L60: Average Time to Quote | M60: Time to Connect | N60: Overall | O60: Average Time to Quote | P60: Time to Connect | Q60: Overall | S60: Average Time to Quote | T60: Time to Connect | U60: Overall | V60: Average Time to Quote | W60: Time to Connect | X60: Overall | Z60: Average Time to Quote | AA60: Time to Connect | AB60: Overall | AC60: Average Time to Quote | AD60: Time to Connect | AE60: Overall | AG60: Average Time to Quote | AH60: Time to Connect | AI60: Overall | AJ60: Average Time to Quote | AK60: Time to Connect | AL60: Overall
D61: SP ENW | E61: 0.3088223652 | F61: -1.374559585 | G61: -1.06573722 | H61: 1.435443993 | I61: -2.987293233 | J61: -1.55184924 | L61: 0.8925592417 | M61: 4.473870968 | N61: 5.366430209 | O61: 0.4342275516 | P61: 5.266683417 | Q61: 5.700910969
D62: NPgN | E62: 4.216819894 | F62: 13.78466715 | G62: 18.00148705 | H62: 7.065680346 | I62: 6.852207792 | J62: 13.91788814 | L62: 5.12 | M62: 5.81 | N62: 10.93 | O62: 6.63 | P62: 15.22 | Q62: 21.85
D63: NPgY | E63: 3.486978085 | F63: 6.405931402 | G63: 9.892909487 | H63: 6.769267767 | I63: -2.328386167 | J63: 4.4408816 | L63: 3.87 | M63: 9.14 | N63: 13.01 | O63: 6.13 | P63: -2.7 | Q63: 3.43
D64: WMID | E64: -0.32 | F64: 3.21 | G64: 2.89 | H64: -0.44 | I64: 4.47 | J64: 4.03 | L64: -0.7403597122 | M64: 3.782588727 | N64: 3.042229014 | O64: -0.7597768332 | P64: -0.9291866029 | Q64: -1.688963436
D65: EMID | E65: -0.11 | F65: 3.32 | G65: 3.21 | H65: -0.11 | I65: 3.29 | J65: 3.18 | L65: -0.1645656856 | M65: 0.9757065949 | N65: 0.8111409093 | O65: 0.3701784266 | P65: -2.504873714 | Q65: -2.134695287
D66: SWALES | E66: 0.14 | F66: 5.3 | G66: 5.44 | H66: 0.2 | I66: 12.81 | J66: 13.01 | L66: 0.02453125 | M66: 13.04297468 | N66: 13.06750593 | O66: 0.5178109453 | P66: 24.09903084 | Q66: 24.61684178
D67: SWEST | E67: 0.5 | F67: 6.68 | G67: 7.18 | H67: 0.16 | I67: 5.65 | J67: 5.81 | L67: 0.3238257173 | M67: 12.5236887 | N67: 12.84751442 | O67: 0.8193561574 | P67: 12.42593184 | Q67: 13.245288
D68: LPN | E68: -0.1641473956 | F68: -0.8699443194 | G68: -1.034091715 | H68: -0.4209995371 | I68: 5.314308755 | J68: 4.893309218 | L68: 0.371046249 | M68: 11.07646177 | N68: 11.44750802 | O68: 0.01186504333 | P68: 18.38219925 | Q68: 18.39406429
D69: SPN | E69: -0.02604327163 | F69: 5.099911627 | G69: 5.073868355 | H69: 0.2934671935 | I69: 2.743530427 | J69: 3.03699762 | L69: 0.4944906668 | M69: 18.66786252 | N69: 19.16235319 | O69: 0.8535584084 | P69: 15.66457851 | Q69: 16.51813691
D70: EPN | E70: 0.7701513265 | F70: -3.764248333 | G70: -2.994097006 | H70: 1.326396929 | I70: 4.01686723 | J70: 5.343264159 | L70: 1.09919269 | M70: 13.27357612 | N70: 14.37276881 | O70: 1.727222447 | P70: 12.00808511 | Q70: 13.73530756
D71: SPD | E71: 2.901689526 | F71: 4.197834646 | G71: 7.099524171 | H71: 6.765624503 | I71: 2.366051276 | J71: 9.131675779 | L71: 2.952953193 | M71: 10.4326756 | N71: 13.38562879 | O71: 8.921883496 | P71: 11.25692555 | Q71: 20.17880905
D72: SPMW | E72: 3.334615385 | F72: -1.646956522 | G72: 1.687658863 | H72: 7.593904924 | I72: -2.461935484 | J72: 5.13196944 | L72: 3.252817632 | M72: 7.238428094 | N72: 10.49124573 | O72: 8.963904924 | P72: 8.809517301 | Q72: 17.77342222
D73: SSEH | E73: 2.718985201 | F73: 7.753835182 | G73: 10.47282038 | H73: 2.652047377 | I73: 6.887234043 | J73: 9.53928142 | L73: 2.718985201 | M73: 6.693835182 | N73: 9.412820383 | O73: 2.502047377 | P73: 8.517234043 | Q73: 11.01928142
D74: SSES | E74: 1.19001865 | F74: 12.3103452 | G74: 13.50036385 | H74: 0.8644368891 | I74: 3.735494168 | J74: 4.599931057 | L74: 2.06301865 | M74: 16.0083452 | N74: 18.07136385 | O74: 2.699436889 | P74: 3.794494168 | Q74: 6.493931057
D75: Industry Average | E75: =AVERAGE(E61:E74) -> 1.353420698 | F75: 4.314772604 | G75: 5.668193301 | H75: 2.43966217 | I75: 3.597005629 | J75: 6.036667799 | L75: =AVERAGE(L61:L74) -> 1.591321078 | M75: 9.510001012 | N75: 11.10132209 | O75: 2.844408202 | P75: 9.236472836 | Q75: 12.08088104
D76: *2023/24 targets in cells E57:K57 | L76: *2024/25 targets in cells T57:Z57 | S76: *2025/26 targets in cells AI57:AO57 | Z76: *2026/27 targets in cells AX57:BD57 | AG76: *2027/28 targets in cells BM57:BS57
B78: Connections Guaranteed Standards of Performance (GSOPs) | D78: Connections Guaranteed Standard of Performance
E79: 2023/24 | L79: 2024/25 | S79: 2025/26 | Z79: 2026/27 | AG79: 2027/28
E80: Total number of cases where the Connection GSOPs apply | F80: Total number of cases where the Connection GSOPs apply and the standard was not met | G80: Total penalties paid against the Connection GSoPs (£) | H80: % of total cases when standard not met | I80: RAG | J80: Ranking | L80: Total number of cases where the Connection GSOPs apply | M80: Total number of cases where the Connection GSOPs apply and the standard was not met | N80: Total penalties paid against the Connection GSoPs (£) | O80: % of total cases when standard not met | P80: RAG | Q80: Ranking | S80: Total number of cases where the Connection GSOPs apply | T80: Total number of cases where the Connection GSOPs apply and the standard was not met | U80: Total penalties paid against the Connection GSoPs (£) | V80: % of total cases when standard not met | W80: RAG | X80: Ranking | Z80: Total number of cases where the Connection GSOPs apply | AA80: Total number of cases where the Connection GSOPs apply and the standard was not met | AB80: Total penalties paid against the Connection GSoPs (£) | AC80: % of total cases when standard not met | AD80: RAG | AE80: Ranking | AG80: Total number of cases where the Connection GSOPs apply | AH80: Total number of cases where the Connection GSOPs apply and the standard was not met | AI80: Total penalties paid against the Connection GSoPs (£) | AJ80: % of total cases when standard not met | AK80: RAG | AL80: Ranking
D81: SP ENW | E81: 21399 | F81: 66 | G81: 24605 | H81: =F81/E81 -> 0.003084256274 | I81: =IF(H81<=2%,"Green",IF(H81:H81>5%,"Red","Amber")) -> Green | J81: =RANK(H81,$H$81:$H$94,1) -> 8 | L81: 19686 | M81: 32 | N81: 3720 | O81: =M81/L81 -> 0.001625520675 | P81: =IF(O81<=2%,"Green",IF(O81:O81>5%,"Red","Amber")) -> Green | Q81: =RANK(O81,$O$81:$O$94,1) -> 6
D82: NPgN | E82: 17237 | F82: 499 | G82: 250865 | H82: =F82/E82 -> 0.02894935314 | I82: =IF(H82<=2%,"Green",IF(H82:H82>5%,"Red","Amber")) -> Amber | J82: =RANK(H82,$H$81:$H$94,1) -> 12 | L82: 27536 | M82: 516 | N82: 128495 | O82: =M82/L82 -> 0.01873910517 | P82: =IF(O82<=2%,"Green",IF(O82:O82>5%,"Red","Amber")) -> Green | Q82: =RANK(O82,$O$81:$O$94,1) -> 13
D83: NPgY | E83: 23566 | F83: 744 | G83: 252025 | H83: 0.03157090724 | I83: =IF(H83<=2%,"Green",IF(H83:H83>5%,"Red","Amber")) -> Amber | J83: 13 | L83: 28953 | M83: 484 | N83: 183345 | O83: 0.01671674783 | P83: =IF(O83<=2%,"Green",IF(O83:O83>5%,"Red","Amber")) -> Green | Q83: 12
D84: WMID | E84: 30627 | F84: 32 | G84: 12280 | H84: 0.001044829725 | I84: Green | J84: 5 | L84: 29002 | M84: 41 | N84: 13445 | O84: 0.001413695607 | P84: =IF(O84<=2%,"Green",IF(O84:O84>5%,"Red","Amber")) -> Green | Q84: 5
D85: EMID | E85: 32874 | F85: 132 | G85: 21680 | H85: 0.004015331265 | I85: Green | J85: 9 | L85: 30269 | M85: 12 | N85: 4200 | O85: 0.000396445208 | P85: Green | Q85: 4
D86: SWALES | E86: 14939 | F86: 3 | G86: 530 | H86: 0.0002008166544 | I86: Green | J86: 3 | L86: 14717 | M86: 24 | N86: 4345 | O86: 0.00163076714 | P86: Green | Q86: 7
D87: SWEST | E87: 32429 | F87: 79 | G87: 41430 | H87: 0.002436091153 | I87: Green | J87: 7 | L87: 29300 | M87: 416 | N87: 182900 | O87: 0.01419795222 | P87: Green | Q87: 11
D88: LPN | E88: 16400 | F88: 0 | G88: 0 | H88: 0 | I88: Green | J88: 1 | L88: 14872 | M88: 3 | N88: 460 | O88: 0.0002017213556 | P88: Green | Q88: 1
D89: SPN | E89: 22645 | F89: 10 | G89: 3495 | H89: 0.0004415985869 | I89: =IF(H89<=2%,"Green",IF(H89:H89>5%,"Red","Amber")) -> Green | J89: 4 | L89: 20809 | M89: 7 | N89: 1910 | O89: 0.0003363929069 | P89: =IF(O89<=2%,"Green",IF(O89:O89>5%,"Red","Amber")) -> Green | Q89: 3
D90: EPN | E90: 39706 | F90: 5 | G90: 5010 | H90: 0.0001259255528 | I90: Green | J90: 2 | L90: 38423 | M90: 8 | N90: 780 | O90: 0.000208208625 | P90: =IF(O90<=2%,"Green",IF(O90:O90>5%,"Red","Amber")) -> Green | Q90: 2
D91: SPD | E91: 12221 | F91: 284 | G91: 316370 | H91: 0.02323868751 | I91: =IF(H91<=2%,"Green",IF(H91:H91>5%,"Red","Amber")) -> Amber | J91: 11 | L91: 11561 | M91: 164 | N91: 98075 | O91: 0.01418562408 | P91: Green | Q91: 10
D92: SPMW | E92: 11201 | F92: 22 | G92: 17845 | H92: 0.001964110347 | I92: Green | J92: 6 | L92: 10826 | M92: 45 | N92: 13215 | O92: 0.004156659893 | P92: Green | Q92: 9
D93: SSEH | E93: 15046 | F93: 66 | G93: 42070 | H93: 0.00438654792 | I93: Green | J93: 10 | L93: 14589 | M93: 31 | N93: 31605 | O93: 0.002124888615 | P93: Green | Q93: 8
D94: SSES | E94: 51110 | F94: 2058 | G94: 1013165 | H94: 0.04026609274 | I94: Amber | J94: 14 | L94: 50580 | M94: 2077 | N94: 826110 | O94: =M94/L94 -> 0.04106366153 | P94: Amber | Q94: 14
D95: Total | E95: =SUM(E81:E94) -> 341400 | F95: =SUM(F81:F94) -> 4000 | G95: =SUM(G81:G94) -> 2001370 | L95: =SUM(L81:L94) -> 341123 | M95: =SUM(M81:M94) -> 3860 | N95: =SUM(N81:N94) -> 1492605 | S95: =SUM(S81:S94) -> 0 | T95: =SUM(T81:T94) -> 0 | U95: =SUM(U81:U94) -> 0 | Z95: =SUM(Z81:Z94) -> 0 | AA95: =SUM(AA81:AA94) -> 0 | AB95: =SUM(AB81:AB94) -> 0 | AG95: =SUM(AG81:AG94) -> 0 | AH95: =SUM(AH81:AH94) -> 0 | AI95: =SUM(AI81:AI94) -> 0
B101: Major Connections Incentive | D101: Major Connections Incentive
E102: 2023/24 | K102: 2024/25 | Q102: 2025/26 | W102: 2026/27 | AC102: 2027/28
E103: Performance | F103: Total penalties paid against the Major Connections Incentive (£m) | G103: RAG | H103: Ranking | K103: Performance | L103: Total penalties paid against the Major Connections Incentive (£m) | M103: RAG | N103: Ranking | Q103: Performance | R103: Total penalties paid against the Major Connections Incentive (£m) | S103: RAG | T103: Ranking | W103: Performance | X103: Total penalties paid against the Major Connections Incentive (£m) | Y103: RAG | Z103: Ranking | AC103: Performance | AD103: Total penalties paid against the Major Connections Incentive (£m) | AE103: RAG | AF103: Ranking
D104: SP ENW | E104: 8.6 | F104: 0 | G104: =IF(E104 >= $E$119, "Green", IF(E104 >= 0.95 * $E$119, "Amber", "Red")) -> Green | H104: =RANK(E104,$E$104:$E$117,0) -> 9 | J104: SP ENW | K104: 8.71 | L104: 0 | M104: =IF(K104 >= $E$119, "Green", IF(K104 >= 0.95 * $E$119, "Amber", "Red")) -> Green | N104: =RANK(K104,$K$104:$K$117,0) -> 8 | P104: SP ENW | V104: SP ENW | AB104: SP ENW
D105: NPgN | E105: 7.91 | F105: 0 | G105: Green | H105: 13 | J105: NPgN | K105: 7.99 | L105: 0 | M105: Green | N105: =RANK(K105,$K$104:$K$117,0) -> 13 | P105: NPgN | V105: NPgN | AB105: NPgN
D106: NPgY | E106: 7.92 | F106: 0 | G106: Green | H106: 12 | J106: NPgY | K106: 8.16 | L106: 0 | M106: Green | N106: 12 | P106: NPgY | V106: NPgY | AB106: NPgY
D107: WMID | E107: 8.669724771 | F107: 0 | G107: Green | H107: 6 | J107: WMID | K107: 8.62 | L107: 0 | M107: Green | N107: 10 | P107: WMID | V107: WMID | AB107: WMID
D108: EMID | E108: 8.818181818 | F108: 0 | G108: Green | H108: 5 | J108: EMID | K108: 8.66 | L108: 0 | M108: Green | N108: 9 | P108: EMID | V108: EMID | AB108: EMID
D109: SWALES | E109: 8.957943925 | F109: 0 | G109: Green | H109: 3 | J109: SWALES | K109: 8.93 | L109: 0 | M109: Green | N109: 5 | P109: SWALES | V109: SWALES | AB109: SWALES
D110: SWEST | E110: 8.614035088 | F110: 0 | G110: Green | H110: 8 | J110: SWEST | K110: 8.55 | L110: 0 | M110: Green | N110: 11 | P110: SWEST | V110: SWEST | AB110: SWEST
D111: LPN | E111: 9.072033898 | F111: 0 | G111: Green | H111: 2 | J111: LPN | K111: 9.46039604 | L111: 0 | M111: Green | N111: 1 | P111: LPN | V111: LPN | AB111: LPN
D112: SPN | E112: 8.851973684 | F112: 0 | G112: Green | H112: 4 | J112: SPN | K112: 8.892193309 | L112: 0 | M112: Green | N112: 6 | P112: SPN | V112: SPN | AB112: SPN
D113: EPN | E113: 8.668888889 | F113: 0 | G113: Green | H113: 7 | J113: EPN | K113: 9.0642 | L113: 0 | M113: Green | N113: 3 | P113: EPN | V113: EPN | AB113: EPN
D114: SPD | E114: 9.19 | F114: 0 | G114: Green | H114: 1 | J114: SPD | K114: 9.27 | L114: 0 | M114: Green | N114: 2 | P114: SPD | V114: SPD | AB114: SPD
D115: SPMW | E115: 8.43 | F115: 0 | G115: Green | H115: 11 | J115: SPMW | K115: 8.96 | L115: 0 | M115: Green | N115: 4 | P115: SPMW | V115: SPMW | AB115: SPMW
D116: SSEH | E116: 8.5 | F116: 0 | G116: Green | H116: 10 | J116: SSEH | K116: 8.89 | L116: 0 | M116: Green | N116: 7 | P116: SSEH | V116: SSEH | AB116: SSEH
D117: SSES | E117: 7.14 | F117: -0.73656 | G117: Amber | H117: 14 | J117: SSES | K117: 7.92 | L117: 0 | M117: Green | N117: 14 | P117: SSES | V117: SSES | AB117: SSES
D118: Industry Average Score/Total Penalty | E118: =AVERAGE(E104:E117) -> 8.524484434 | F118: =SUM(F104:F117) -> -0.73656 | J118: Industry Average Score/Total Penalty | K118: =AVERAGE(K104:K117) -> 8.719770668 | L118: =SUM(L104:L117) -> 0 | P118: Industry Average Score/Total Penalty | V118: Industry Average Score/Total Penalty | AB118: Industry Average Score/Total Penalty
D119: Target | E119: 7.41 | J119: Target | K119: 7.41 | P119: Target | V119: Target | AB119: Target

Sheet Ch2 outputs - environment
A1: Chapter 2 - Environment
B2: Performance against the outputs that DNOs are incentivised to deliver under RIIO-ED2.
B4: Environment: encouraging DNOs to play their role in achieving broader environmental objectives, namely the reduction in carbon emissions, as well as minimising the narrow environmental impact of the company's activities by managing their own carbon footprint, visual amenity and pollution.
B5: Incentive measure | F5: Incentive type
B6: Business Carbon Footprint (BCF) | F6: Reputational: publish annual progress.
B7: Limiting emissions of Sulphur Hexafluoride (SF6) | F7: Reputational: publish annual progress.
B8: Fluid filled cable leakage | F8: Reputational: publish annual progress.
B9: Noise pollution | F9: Reputational: publish annual progress.
B10: Electric Vehicles | F10: Reputational: publish annual progress.
B11: Visual impact allowance for undergrounding overhead lines in Areas of Outstanding Natural Beauty (AONB) and National Parks | F11: Reputational incentive in the context of its performance in the utilisation of a funding pot of £68.3m (split between DNOs).
B14: Distribution losses | D14: Distribution losses (as % of units distributed)
E15: 2023/24 | F15: 2024/25 | G15: 2025/26 | H15: 2026/27 | I15: 2027/28
D16: SP ENW | E16: 0.07534004695 | F16: 0.08114530986
D17: NPGN | E17: 0.06022850223 | F17: 0.05794305525
D18: NPGY | E18: 0.08569379583 | F18: 0.07923573029
D19: WMID | E19: 0.06771891382 | F19: 0.06960866638
D20: EMID | E20: 0.05914797688 | F20: 0.06104622045
D21: SWALES | E21: 0.04885321426 | F21: 0.05113580797
D22: SWEST | E22: 0.04642444409 | F22: 0.04811412928
D23: LPN | E23: 0.06603666422 | F23: 0.0651093824
D24: SPN | E24: 0.0713884922 | F24: 0.07976935314
D25: EPN | E25: 0.07687653428 | F25: 0.08758467554
D26: SPD | E26: 0.08321883934 | F26: 0.09442433548
D27: SPMW | E27: 0.07388223883 | F27: 0.08483665391
D28: SSEH | E28: 0.0729475161 | F28: 0.07245010444
D29: SSES | E29: 0.05073203376 | F29: 0.05093002966
D30: Total | E30: 0.06732172063 | F30: 0.07061942517
B34: Business Carbon Footprint (BCF) | D34: Business Carbon Footprint (excluding losses and contractors) (tCO2e)
E35: RIIO-ED1 | F35: RIIO-ED2 | M35: RIIO-ED1 | N35: RIIO-ED2
E36: 2022/23 | F36: 2023/24 | G36: 2024/25 | H36: 2025/26 | I36: 2026/27 | J36: 2027/28 | L36: Ranking | M36: 2022/23 | N36: 2023/24 | O36: 2024/25 | P36: 2025/26 | Q36: 2026/27 | R36: 2027/28
D37: SP ENW | E37: 13990.24 | F37: 8900.444962 | G37: 9643.360985 | L37: SP ENW | M37: =RANK(E37,$E$37:$E$50,1) -> 12 | N37: =RANK(F37,$F$37:$F$50,1) -> 5 | O37: =RANK(G37,$G$37:$G$50,1) -> 6
D38: NPgN | E38: 5000.421046 | F38: 4803.213102 | G38: 5081.067541 | L38: NPgN | M38: =RANK(E38,$E$37:$E$50,1) -> 1 | N38: 1 | O38: 1
D39: NPgY | E39: 7670.181994 | F39: 7503.62098 | G39: 8225.907899 | L39: NPgY | M39: 2 | N39: 4 | O39: 4
D40: WMID | E40: 12584.65999 | F40: 12591.54107 | G40: 14259.21605 | L40: WMID | M40: 9 | N40: 11 | O40: 12
D41: EMID | E41: 12124.98344 | F41: 12222.29724 | G41: 13155.26405 | L41: EMID | M41: 8 | N41: 10 | O41: 10
D42: SWALES | E42: 9095.783291 | F42: 9581.212095 | G42: 10590.50759 | L42: SWALES | M42: 4 | N42: 7 | O42: 7
D43: SWEST | E43: 10918.2508 | F43: 11525.08291 | G43: 12608.37452 | L43: SWEST | M43: 6 | N43: 9 | O43: 9
D44: LPN | E44: 8620.477331 | F44: 9065.590067 | G44: 8894.007988 | L44: LPN | M44: 3 | N44: 6 | O44: 5
D45: SPN | E45: 12969.24483 | F45: 10698.87029 | G45: 11109.18762 | L45: SPN | M45: 11 | N45: 8 | O45: 8
D46: EPN | E46: 18451.72472 | F46: 19154.61337 | G46: 21054.38004 | L46: EPN | M46: 13 | N46: 13 | O46: 14
D47: SPD | E47: 12019.83292 | F47: 7271.00667 | G47: 5951.751108 | L47: SPD | M47: 7 | N47: 3 | O47: 2
D48: SPMW | E48: 10740.10259 | F48: 6665.589078 | G48: 7533.165546 | L48: SPMW | M48: 5 | N48: 2 | O48: 3
D49: SSEH | E49: 12744.88545 | F49: 16258.22084 | G49: 13600.85416 | L49: SSEH | M49: 10 | N49: 12 | O49: 11
D50: SSES | E50: 31170.40016 | F50: 22146.04841 | G50: 18487.24231 | L50: SSES | M50: 14 | N50: 14 | O50: 13
D51: Total | E51: =SUM(E37:E50) -> 178101.1886 | F51: =SUM(F37:F50) -> 158387.3511 | G51: =SUM(G37:G50) -> 160194.2874
D53: Business Carbon Footprint (excluding losses and contractors) as % network length and customer numbers
E54: RIIO-ED1 | F54: RIIO-ED2 | M54: RIIO-ED1 | N54: RIIO-ED2
E55: 2022/23 | F55: 2023/24 | G55: 2024/25 | H55: 2025/26 | I55: 2026/27 | J55: 2027/28 | L55: Ranking | M55: 2022/23 | N55: 2023/24 | O55: 2024/25 | P55: 2025/26 | Q55: 2026/27 | R55: 2027/28
D56: SP ENW | E56: 0.119426535 | F56: 0.07496723728 | G56: 0.0826999104 | L56: SP ENW | M56: =RANK(E56,$E$56:$E$69,1) -> 10 | N56: =RANK(F56,$F$56:$F$69,1) -> 5 | O56: =RANK(G56,$G$56:$G$69,1) -> 5
D57: NPgN | E57: 0.06046373258 | F57: 0.05745455913 | G57: 0.06066766601 | L57: NPgN | M57: =RANK(E57,$E$56:$E$69,1) -> 1 | N57: 1 | O57: =RANK(G57,$G$56:$G$69,1) -> 2
D58: NPgY | E58: 0.07104604515 | F58: 0.06898311633 | G58: 0.07552965533 | L58: NPgY | M58: 2 | N58: 3 | O58: 3
D59: WMID | E59: 0.09774776907 | F59: 0.09751861079 | G59: 0.1100827376 | L59: WMID | M59: 5 | N59: 7 | O59: 9
D60: EMID | E60: 0.08259424776 | F60: 0.08293633853 | G60: 0.08892551979 | L60: EMID | M60: 3 | N60: 6 | O60: 6
D61: SWALES | E61: 0.12959254 | F61: 0.1361090506 | G61: 0.1500683297 | L61: SWALES | M61: 12 | N61: 12 | O61: 14
D62: SWEST | E62: 0.1094197033 | F62: 0.1152211897 | G62: 0.1256821866 | L62: SWEST | M62: 7 | N62: 10 | O62: 12
D63: LPN | E63: 0.1161636766 | F63: 0.1226782876 | G63: 0.1201012278 | L63: LPN | M63: 9 | N63: 11 | O63: 11
D64: SPN | E64: 0.1238092505 | F64: 0.1018070717 | G64: 0.1054374411 | L64: SPN | M64: 11 | N64: 9 | O64: 7
D65: EPN | E65: 0.09560993338 | F65: 0.09811266964 | G65: 0.1075302146 | L65: EPN | M65: 4 | N65: 8 | O65: 8
D66: SPD* | E66: 0.104428442 | F66: 0.06286325836 | G66: 0.05130031589 | L66: SPD | M66: 6 | N66: 2 | O66: 1
D67: SPMW* | E67: 0.1161171224 | F67: 0.07177479583 | G67: 0.08090073603 | L67: SPMW | M67: 8 | N67: 4 | O67: 4
D68: SSEH | E68: 0.1360975193 | F68: 0.1736944424 | G68: 0.1450220898 | L68: SSEH | M68: 13 | N68: 14 | O68: 13
D69: SSES | E69: 0.2020884743 | F69: 0.1434497991 | G69: 0.1196882431 | L69: SSES | M69: 14 | N69: 13 | O69: 10
D70: Total | E70: =((E51/'Guide & drivers'!O58)*50%)+(E51/'Guide & drivers'!O77)*50% -> 0.1124745829 | F70: =((F51/'Guide & drivers'!P58)*50%)+(F51/'Guide & drivers'!P77)*50% -> 0.09952376013 | G70: =((G51/'Guide & drivers'!Q58)*50%)+(G51/'Guide & drivers'!Q77)*50% -> 0.1005645587
B73: Sulphur hexafluoride emissions (SF6) | D73: SF6 emissions (kg)
E74: RIIO-ED1 | F74: RIIO-ED2 | L74: SF6 bank (kg) | M74: RIIO-ED1 | N74: RIIO-ED2
E75: 2022/23 | F75: 2023/24 | G75: 2024/25 | H75: 2025/26 | I75: 2026/27 | J75: 2027/28 | M75: 2022/23 | N75: 2023/24 | O75: 2024/25 | P75: 2025/26 | Q75: 2026/27 | R75: 2027/28
D76: SP ENW | E76: 38.24 | F76: 28.233 | G76: 62.12 | L76: SP ENW | M76: 16105.22 | N76: 16264.14 | O76: 16353
D77: NPgN | E77: 21.88 | F77: 8.7 | G77: 16.6 | L77: NPgN | M77: 17257.73 | N77: 17239.54 | O77: 16352.23
D78: NPgY | E78: 107.2 | F78: 95 | G78: 125.5 | L78: NPgY | M78: 20526.39 | N78: 20306.12 | O78: 18405.82
D79: WMID | E79: 116.158 | F79: 93.199 | G79: 143.908 | L79: WMID | M79: 29161.345 | N79: 31374.355 | O79: 32155.135
D80: EMID | E80: 78.693 | F80: 58.284 | G80: 86.773 | L80: EMID | M80: 31212.16 | N80: 33435.99 | O80: 34351.05
D81: SWALES | E81: 116.587 | F81: 118.192 | G81: 138.163 | L81: SWALES | M81: 21540.15 | N81: 22008.18 | O81: 22262.11
D82: SWEST | E82: 86.116 | F82: 75.758 | G82: 109.3359 | L82: SWEST | M82: 18898.09 | N82: 20296.56 | O82: 20415.44
D83: LPN | E83: 11.175 | F83: 85.34906714 | G83: 75.65662785 | L83: LPN | M83: 49183 | N83: 49667.25 | O83: 54060.06
D84: SPN | E84: 6.201 | F84: 47.7750299 | G84: 31.85331524 | L84: SPN | M84: 26016 | N84: 26270.36 | O84: 29686.42
D85: EPN | E85: 48.113 | F85: 127.325903 | G85: 104.8420569 | L85: EPN | M85: 51756 | N85: 53502.26 | O85: 52085.67
D86: SPD | E86: 150.645 | F86: 137.06 | G86: 114.922 | L86: SPD | M86: 23097.615 | N86: 23490.42 | O86: 24490
D87: SPMW | E87: 137.375 | F87: 112.28 | G87: 171.02 | L87: SPMW | M87: 22787.207 | N87: 27116.5 | O87: 28365.63
D88: SSEH | E88: 3.85 | F88: 2.36 | G88: 4.77 | L88: SSEH | M88: 5069.988 | N88: 6046.08 | O88: 5859.11
D89: SSES | E89: 202.705 | F89: 150.665 | G89: 186.52 | L89: SSES | M89: 22297.16 | N89: 24010.76 | O89: 24314.34
D90: Total | E90: =SUM(E76:E89) -> 1124.938 | F90: 1140.181 | G90: 1371.9839 | L90: Total | M90: =SUM(M76:M89) -> 354908.055 | N90: =SUM(N76:N89) -> 371028.515 | O90: =SUM(O76:O89) -> 379156.015
D93: SF6 emissions as a percentage of the SF6 bank | L93: SF6 emitted as % of bank - SNAPSHOT
E94: RIIO-ED1 | F94: RIIO-ED2 | M94: RIIO-ED1 | N94: RIIO-ED2
E95: 2022/23 | F95: 2023/24 | G95: 2024/25 | H95: 2025/26 | I95: 2026/27 | J95: 2027/28 | L95: Ranking | M95: 2022/23 | N95: 2023/24 | O95: 2024/25 | P95: 2025/26 | Q95: 2026/27 | R95: 2027/28
D96: SP ENW | E96: =E76/M76 -> 0.002374385448 | F96: =F76/N76 -> 0.00173590488 | G96: 0.003798691372 | L96: SP ENW | M96: =RANK(E96,$E$96:$E$109,1) -> 6 | N96: =RANK(F96,$F$96:$F$109,1) -> 4 | O96: =RANK(G96,$G$96:$G$109,1) -> 7
D97: NPgN | E97: 0.001267837659 | F97: 0.0005046538365 | G97: 0.001015152062 | L97: NPgN | M97: =RANK(E97,$E$96:$E$109,1) -> 5 | N97: 2 | O97: =RANK(G97,$G$96:$G$109,1) -> 2
D98: NPgY | E98: 0.005222545221 | F98: 0.004678392524 | G98: 0.006818495454 | L98: NPgY | M98: 10 | N98: 11 | O98: 13
D99: WMID | E99: 0.003983286779 | F99: 0.002970547124 | G99: 0.004475428264 | L99: WMID | M99: 8 | N99: 8 | O99: 8
D100: EMID | E100: 0.002521228906 | F100: 0.001743151616 | G100: 0.002526065433 | L100: EMID | M100: 7 | N100: 5 | O100: 6
D101: SWALES | E101: 0.005412543552 | F101: 0.005370366836 | G101: 0.00620619519 | L101: SWALES | M101: 11 | N101: 12 | O101: 12
D102: SWEST | E102: 0.004556862625 | F102: 0.003732553694 | G102: 0.005355549525 | L102: SWEST | M102: 9 | N102: 9 | O102: 10
D103: LPN | E103: 0.0002272126548 | F103: 0.001718417411 | G103: 0.001399492118 | L103: LPN | M103: 1 | N103: 3 | O103: 4
D104: SPN | E104: 0.000238353321 | F104: 0.001818590606 | G104: 0.001072992811 | L104: SPN | M104: 2 | N104: 6 | O104: 3
D105: EPN | E105: 0.0009296120257 | F105: 0.002379822889 | G105: 0.002012877187 | L105: EPN | M105: 4 | N105: 7 | O105: 5
D106: SPD | E106: 0.006522101957 | F106: 0.005834719005 | G106: 0.004692609228 | L106: SPD | M106: 13 | N106: 13 | O106: 9
D107: SPMW | E107: 0.006028601926 | F107: 0.00414065237 | G107: 0.006029127504 | L107: SPMW | M107: 12 | N107: 10 | O107: 11
D108: SSEH | E108: 0.0007593706336 | F108: 0.0003903355563 | G108: 0.0008141168198 | L108: SSEH | M108: 3 | N108: 1 | O108: 1
D109: SSES | E109: 0.0090910681 | F109: 0.006274895089 | G109: 0.007671193214 | L109: SSES | M109: 14 | N109: 14 | O109: 14
D110: Total | E110: =E90/M90 -> 0.003169660379 | F110: 0.003073027959 | G110: =G90/O90 -> 0.00361852073
B113: Leakages from fluid filled cables | D113: Top up of fluid filled cables (litres) | L113: Oil in Service in Cables (litres)
E114: RIIO-ED1 | F114: RIIO-ED2 | M114: RIIO-ED1 | N114: RIIO-ED2
E115: 2022/23 | F115: 2023/24 | G115: 2024/25 | H115: 2025/26 | I115: 2026/27 | J115: 2027/28 | M115: 2022/23 | N115: 2023/24 | O115: 2024/25 | P115: 2025/26 | Q115: 2026/27 | R115: 2027/28
D116: SP ENW | E116: 13217 | F116: 17545 | G116: 15610 | L116: SP ENW | M116: 1002587 | N116: 972894.6821 | O116: 967071.2262
D117: NPgN | E117: 9864 | F117: 9183 | G117: 7943 | L117: NPgN | M117: 1177056.608 | N117: 1170566.314 | O117: 1170566.314
D118: NPgY | E118: 10754 | F118: 18375 | G118: 25570 | L118: NPgY | M118: 803691.4906 | N118: 790536.5497 | O118: 780014.0551
D119: WMID | E119: 13032 | F119: 4888 | G119: 31323 | L119: WMID | M119: 670785 | N119: 670785 | O119: 661881
D120: EMID | E120: 5806 | F120: 4076 | G120: 12728 | L120: EMID | M120: 520698 | N120: 521667 | O120: 570477
D121: SWALES | E121: 5460 | F121: 100 | G121: 30 | L121: SWALES | M121: 197103 | N121: 197103 | O121: 197103
D122: SWEST | E122: 35 | F122: 237 | G122: 430 | L122: SWEST | M122: 273595 | N122: 273595 | O122: 273595
D123: LPN | E123: 118162 | F123: 85461 | G123: 77623 | L123: LPN | M123: 2957970.364 | N123: 2929766.916 | O123: 2871018.819
D124: SPN | E124: 50947 | F124: 47871 | G124: 47725 | L124: SPN | M124: 2037178.44 | N124: 2037178.44 | O124: 2037178.44
D125: EPN | E125: 59479 | F125: 64974 | G125: 64795 | L125: EPN | M125: 2127925.746 | N125: 2129519.308 | O125: 2102653.687
D126: SPD | E126: 25 | F126: 70 | G126: 62 | L126: SPD | M126: 93300 | N126: 93300 | O126: 93300
D127: SPMW | E127: 13421 | F127: 2538 | G127: 5592 | L127: SPMW | M127: 668360 | N127: 662200 | O127: 661000.65
D128: SSEH | E128: 84 | F128: 125 | G128: 2174 | L128: SSEH | M128: 28466.542 | N128: 28466.542 | O128: 27824.888
D129: SSES | E129: 12369 | F129: 10758 | G129: 25817.2 | L129: SSES | M129: 620033.7488 | N129: 654349.7578 | O129: 654119.8008
D130: Total | E130: =SUM(E116:E129) -> 312655 | F130: 266201 | G130: 317422.2 | L130: Total | M130: =SUM(M116:M129) -> 13178750.94 | N130: 13131928.51 | O130: 13067803.88
D132: Top up as a % of oil in service | L132: Top up as a % of oil in service - SNAPSHOT
E133: RIIO-ED1 | F133: RIIO-ED2 | M133: RIIO-ED1 | N133: RIIO-ED2
E134: 2022/23 | F134: 2023/24 | G134: 2024/25 | H134: 2025/26 | I134: 2026/27 | J134: 2027/28 | L134: Ranking | M134: 2022/23 | N134: 2023/24 | O134: 2024/25 | P134: 2025/26 | Q134: 2026/27 | R134: 2027/28
D135: SP ENW | E135: =IFERROR(E116/M116,"") -> 0.01318289585 | F135: =IFERROR(F116/N116,"") -> 0.01803381221 | G135: 0.01614152048 | L135: SP ENW | M135: =RANK(E135,$E$135:$E$148,1) -> 6 | N135: =RANK(F135,$F$135:$F$148,1) -> 10 | O135: =RANK(G135,$G$135:$G$148,1) -> 6
D136: NPgN | E136: 0.008380225672 | F136: 0.007844920781 | G136: 0.006785604461 | L136: NPgN | M136: =RANK(E136,$E$135:$E$148,1) -> 4 | N136: 8 | O136: =RANK(G136,$G$135:$G$148,1) -> 4
D137: NPgY | E137: 0.01338075633 | F137: 0.02324370708 | G137: 0.03278146058 | L137: NPgY | M137: 7 | N137: 11 | O137: 11
D138: WMID | E138: 0.01942798363 | F138: 0.007286984652 | G138: 0.04732421689 | L138: WMID | M138: 8 | N138: 6 | O138: 13
D139: EMID | E139: 0.01115041732 | F139: 0.007813413538 | G139: 0.02231115365 | L139: EMID | M139: 5 | N139: 7 | O139: 7
D140: SWALES | E140: 0.02770125264 | F140: 0.0005073489495 | G140: 0.0001522046849 | L140: SWALES | M140: 12 | N140: 1 | O140: 1
D141: SWEST | E141: 0.0001279263144 | F141: 0.0008662439007 | G141: 0.001571666149 | L141: SWEST | M141: 1 | N141: 3 | O141: 3
D142: LPN | E142: 0.03994698575 | F142: 0.02916989729 | G142: 0.02703674371 | L142: LPN | M142: 14 | N142: 13 | O142: 9
D143: SPN | E143: 0.02500860946 | F143: 0.02349867791 | G143: 0.02342701016 | L143: SPN | M143: 11 | N143: 12 | O143: 8
D144: EPN | E144: 0.02795163323 | F144: 0.030511111 | G144: 0.03081582117 | L144: EPN | M144: 13 | N144: 14 | O144: 10
D145: SPD | E145: 0.0002679528403 | F145: 0.0007502679528 | G145: 0.0006645230439 | L145: SPD | M145: 2 | N145: 2 | O145: 2
D146: SPMW | E146: 0.02008049554 | F146: 0.003832678949 | G146: 0.008459900909 | L146: SPMW | M146: 10 | N146: 4 | O146: 5
D147: SSEH | E147: 0.002950832595 | F147: 0.004391119933 | G147: 0.07813149149 | L147: SSEH | M147: 3 | N147: 5 | O147: 14
D148: SSES | E148: 0.01994891411 | F148: 0.01644074881 | G148: 0.03946861105 | L148: SSES | M148: 9 | N148: 9 | O148: 12
D149: Total | E149: 0.02372417549 | F149: 0.02027128002 | G149: 0.02429040127
B153: Undergrounding
D154: Detailed Undergrounding Activity Under ED2 Visual Amenity Allowance
D156: DNO | E156: AONB / national park | F156: 2023/24 | I156: 2024/25 | L156: 2025/26 | O156: 2026/27 | R156: 2027/28
F157: Length of overhead lines (km) removed | G157: Length of underground cables installed in Designated Areas (km) | H157: Expenditure (£m) | I157: Length of overhead lines (km) removed | J157: Length of underground cables installed in Designated Areas (km) | K157: Expenditure (£m) | L157: Length of overhead lines (km) removed | M157: Length of underground cables installed in Designated Areas (km) | N157: Expenditure (£m) | O157: Length of overhead lines (km) removed | P157: Length of underground cables installed in Designated Areas (km) | Q157: Expenditure (£m) | R157: Length of overhead lines (km) removed | S157: Length of underground cables installed in Designated Areas (km) | T157: Expenditure (£m)
D158: SP ENW | E158: Arnside & Silverdale | F158: 0.855 | G158: 1.025 | H158: 0.227593945 | I158: 0 | J158: 0 | K158: -0.02491714211
E159: Forest of Bowland | F159: 0 | G159: 0 | H159: 0 | I159: 0 | J159: 0 | K159: 0.012567
E160: North Pennines | F160: 0 | G160: 0 | H160: -0.07269852924 | I160: 0 | J160: 0 | K160: 0
E161: Solway Coast | F161: 1.022 | G161: 1.381 | H161: 0.243189756 | I161: 0 | J161: 0 | K161: -0.02780803038
E162: The Lake District | F162: 1.459 | G162: 2.086 | H162: 0.565451082 | I162: 0.484 | J162: 0.425 | K162: 0.2995525568
E163: The Peak District | F163: 0 | G163: 0 | H163: 0 | I163: 0 | J163: 0 | K163: 0
E164: The Yorkshire Dales | F164: 0 | G164: 0 | H164: 0 | I164: 0 | J164: 0 | K164: 0
D165: NPGN | E165: Howardian Hills | F165: 0 | G165: 0 | H165: 0.001825590736 | I165: 0.26 | J165: 0.26 | K165: 0.001998727272
E166: Nidderdale | F166: 0 | G166: 0 | H166: 0 | I166: 0 | J166: 0 | K166: 0.004220701355
E167: North Pennines | F167: 0 | G167: 0 | H167: 0 | I167: 0 | J167: 0 | K167: 0
E168: Northumberland Coast | F168: 0 | G168: 0 | H168: 0 | I168: 0 | J168: 0 | K168: 0.0007881918182
E169: Northumberland | F169: 0 | G169: 0 | H169: 0.004396739545 | I169: 0 | J169: 0 | K169: 0.0005098893447
E170: North York Moors | F170: 0.51 | G170: 0.69 | H170: 0.1481674659 | I170: 0 | J170: 0 | K170: 0.02920562209
E171: Yorkshire Dales | F171: 0 | G171: 0 | H171: 0.002832414856 | I171: 0 | J171: 0 | K171: 0.1183459387
D172: NPGY | E172: Peak District | F172: 0 | G172: 0 | H172: 0.007281088556 | I172: 0 | J172: 0 | K172: 0.01585852742
E173: Yorkshire Dales | F173: 2.596 | G173: 4.5 | H173: 1.018940556 | I173: 1.919 | J173: 3.365 | K173: 0.09094414821
E174: Nidderdale | F174: 0 | G174: 0 | H174: 0.05829177155 | I174: 0.783 | J174: 1.941 | K174: 0.08976798496
E175: Lincolnshire Wolds | F175: 2.585 | G175: 5.56 | H175: 0.6331155993 | I175: 3.555 | J175: 6.396 | K175: 0.5313735131
D176: WMID | E176: Cannock Chase | F176: 0 | G176: 0 | H176: 0 | I176: 0 | J176: 0 | K176: 0
E177: Cotswolds (WMID) | F177: 1.07748 | G177: 1.56665 | H177: 0.2592643535 | I177: 0 | J177: 0 | K177: 0
E178: Malvern Hills | F178: 0 | G178: 0 | H178: 0 | I178: 0 | J178: 0 | K178: 0
E179: Peak District NP (WMID) | F179: 0 | G179: 0 | H179: 0 | I179: 0 | J179: 0 | K179: 0
E180: Wye Valley (WMID) | F180: 0.40574 | G180: 0.41022 | H180: 0.03673242273 | I180: 0 | J180: 0 | K180: 0
E181: Shropshire Hills | F181: 0 | G181: 0 | H181: 0 | I181: 0 | J181: 0 | K181: 0
D182: EMID | E182: Lincolnshire Wolds | F182: 0.81643 | G182: 0.77745 | H182: 0.04335851578 | I182: 0.92046 | J182: 0.00514 | K182: 0
E183: Peak District NP (EMID) | F183: 0 | G183: 0 | H183: 0.002403126735 | I183: 0 | J183: 0 | K183: 0
D184: SWales | E184: Brecon Beacons NP | F184: 0 | G184: 0 | H184: 0 | I184: 0 | J184: 0 | K184: 0
E185: Gower | F185: 0 | G185: 0 | H185: 0.3455803395 | I185: 0 | J185: 0 | K185: 0
E186: Pembrokeshire Coast NP | F186: 0 | G186: 0 | H186: 0.0272016445 | I186: 1.37375 | J186: 1.40772 | K186: 0
E187: Wye Valley (SWALES) | F187: 0 | G187: 0 | H187: 0.1917455617 | I187: 0 | J187: 0 | K187: 0
D188: SWest | E188: Blackdown | F188: 0 | G188: 0 | H188: 0 | I188: 0 | J188: 0 | K188: 0
E189: Cornwall | F189: 0 | G189: 0 | H189: 0.02998815786 | I189: 0 | J189: 0 | K189: 0
E190: Dartmoor NP | F190: 0 | G190: 0 | H190: 0 | I190: 0 | J190: 0 | K190: 0
E191: Dorset | F191: 0 | G191: 0 | H191: 0 | I191: 0 | J191: 0 | K191: 0
E192: East Devon | F192: 0 | G192: 0 | H192: 0 | I192: 0 | J192: 0 | K192: 0
E193: Exmoor NP | F193: 0 | G193: 0.21314 | H193: 0.0009163549278 | I193: 0 | J193: 0 | K193: 0
E194: Mendip Hills | F194: 0 | G194: 0 | H194: 0 | I194: 0 | J194: 0 | K194: 0
E195: North Devon | F195: 2.04811 | G195: 3.14303 | H195: 0.4519936879 | I195: 0.43025 | J195: 0.34883 | K195: 0
E196: Quantock Hills | F196: 0 | G196: 0 | H196: 0 | I196: 0 | J196: 0 | K196: 0
E197: Scilly Isles | F197: 0 | G197: 0 | H197: 0 | I197: 0 | J197: 0 | K197: 0
E198: South Devon | F198: 0 | G198: 0 | H198: -0.00559638975 | I198: 0 | J198: 0 | K198: 0
E199: Tamar Valley | F199: 0 | G199: 0 | H199: 0 | I199: 0 | J199: 0 | K199: 0
E200: Cotswolds (SWEST) | F200: 0 | G200: 0 | H200: 0 | I200: 0 | J200: 0 | K200: 0
D201: LPN | E201: n/a | F201: - | G201: - | H201: - | I201: - | J201: - | K201: -
D202: SPN | E202: South Downs National Park | F202: 0.601794 | G202: 0.589654 | H202: 0.2951514458 | I202: 0 | J202: 0 | K202: 0.4471527634
E203: High Weald National Landscape | F203: 0 | G203: 0 | H203: 0.1003492431 | I203: 2.7784 | J203: 3.1509 | K203: 0.3237014198
E204: Surrey Hills National Landscape | F204: 0 | G204: 0 | H204: 0.125272593 | I204: 0 | J204: 0 | K204: 0.002977087412
E205: Kent Downs National Landscape | F205: 0 | G205: 0 | H205: 0.002088968141 | I205: 0 | J205: 0 | K205: 0.094767263
D206: EPN | E206: The Broads National Park | F206: 0 | G206: 1.57848 | H206: 0.2639738355 | I206: 0 | J206: 0 | K206: 0.1767123606
E207: Suffolk Coast and Heaths National Landscape | F207: 0 | G207: 0 | H207: 0.05661186089 | I207: 0 | J207: 0 | K207: 0.02050308036
E208: Norfolk Coast National Landscape | F208: 0 | G208: 0 | H208: 0 | I208: 0 | J208: 0 | K208: 0
E209: Dedham Vale National Landscape | F209: 0 | G209: 0 | H209: 0.06032899262 | I209: 1.32346 | J209: 2.3736 | K209: 0.7643740374
E210: The Chilterns National Landscape | F210: 8.76447 | G210: 14.65212 | H210: 1.070549221 | I210: 0.26549 | J210: 0.01601 | K210: 0.4138502007
D211: SPD | E211: Loch Lomond & Trossachs | F211: 0 | G211: 0 | H211: 0 | I211: 0 | J211: 0 | K211: 0
E212: Nith Estuary | F212: 0 | G212: 0 | H212: 0 | I212: 0 | J212: 0 | K212: 0
E213: Eildon & Leaderfoot | F213: 0 | G213: 0 | H213: 0 | I213: 0 | J213: 0 | K213: 0
E214: Upper Tweedale | F214: 0 | G214: 0 | H214: 0 | I214: 0 | J214: 0 | K214: 0
E215: Fleet Valley | F215: 2.069151026 | G215: 0.1260101886 | H215: 0.3052993289 | I215: 0.0970086878 | J215: 1.849152032 | K215: 0.00106056
E216: East Stewartry Coast | F216: 0 | G216: 0 | H216: 0 | I216: 0 | J216: 0 | K216: 0.01957651065
E217: Northumberland Coast | F217: 0 | G217: 0 | H217: 0.00344363 | I217: 0 | J217: 0 | K217: 0.01189369
D218: SPMW | E218: Snowdonia National Park | F218: 0 | G218: 0 | H218: 0.088564891 | I218: 0.5392332362 | J218: 0.854721336 | K218: 0.0006132635441
... 73 more rows

Sheet Ch2 outputs - cust sat
A1: Chapter 2 - Customer Satisfaction and Vulnerability
C2: Performance against the outputs that DNOs are incentivised to deliver under RIIO-ED2.
B4: Customer Service: maintaining high levels of customer satisfaction and improving service where required. Undertaking effective stakeholder engagement and reflecting stakeholders' views in the day-to-day operation of their business.
B5: Incentive measure | F5: Incentive type
B6: Customer satisfaction survey: a survey under the Broad Measure of Customer Satisfaction (BMCS) of three customer types (connections, interruptions, general enquiries) to drive DNOs to deliver good customer service. | F6: Financial: reward or penalty of +/- 0.4% RoRE
B7: Complaints metric: part of the Broad Measure of Customer Satisfaction measuring DNOs' complaint handling procedures to drive DNOs to deliver good customer service. | F7: Financial: penalty only of up to -0.2% of RoRE.
B8: Consumer Vulnerability: paid out in years 2 and 5 of ED-2, to incentivse the provision of appropiate support services to consumers in vulnerable situations. | F8: Financial: reward or penalty of +/- 0.2% RoRE.
B11: Customer satisfaction survey
D12: Customer satisfaction scores (out of 10)
E13: 2023/24 | F13: 2024/25 | G13: 2025/26 | H13: 2026/27 | I13: 2027/28
D14: Interruptions | E14: =AVERAGE(E23:E36) -> 9.008035714 | F14: =AVERAGE(K23:K36) -> 9.034653778
D15: Connections | E15: =AVERAGE(F23:F36) -> 9.0584 | F15: =AVERAGE(L23:L36) -> 9.092450096
D16: General Enquiries | E16: =AVERAGE(G23:G36) -> 9.343535714 | F16: =AVERAGE(M23:M36) -> 9.363713772
D19: Annual customer satisfaction score by DNO per category (out of 10)
E20: 2023/24 | K20: 2024/25 | Q20: 2025/26 | W20: 2026/27 | AC20: 2027/28
E21: Interruptions | F21: Connections | G21: General Enquiries | H21: Overall | I21: RAG | J21: Ranking | K21: Interruptions | L21: Connections | M21: General Enquiries | N21: Overall | O21: RAG | P21: Ranking | Q21: Interruptions | R21: Connections | S21: General Enquiries | T21: Overall | U21: RAG | V21: Ranking | W21: Interruptions | X21: Connections | Y21: General Enquiries | Z21: Overall | AA21: RAG | AB21: Ranking | AC21: Interruptions | AD21: Connections | AE21: General Enquiries | AF21: Overall | AG21: RAG | AH21: Ranking
E22: 0.3 | F22: 0.5 | G22: 0.2 | K22: 0.3 | L22: 0.5 | M22: 0.2 | Q22: 0.3 | R22: 0.5 | S22: 0.2 | W22: 0.3 | X22: 0.5 | Y22: 0.2 | AC22: 0.3 | AD22: 0.5 | AE22: 0.2
D23: SP ENW | E23: 8.96 | F23: 9.29 | G23: 9.33 | H23: =(E23*E$22)+(F23*F$22)+(G23*G$22) -> 9.199 | I23: =IF(H23<8.9,"Red",IF(H23>=9.12,"Green","Amber")) -> Green | J23: =RANK(H23,H$23:H$36,0) -> 5 | K23: 9.06 | L23: 9.39 | M23: 9.42 | N23: =(K23*K$22)+(L23*L$22)+(M23*M$22) -> 9.297 | O23: =IF(N23<8.9,"Red",IF(N23>=9.12,"Green","Amber")) -> Green | P23: =RANK(N23,N$23:N$36,0) -> 4
D24: NPgN | E24: 8.84 | F24: 8.86 | G24: 9.4 | H24: =(E24*E$22)+(F24*F$22)+(G24*G$22) -> 8.962 | I24: =IF(H24<8.9,"Red",IF(H24>=9.12,"Green","Amber")) -> Amber | J24: =RANK(H24,H$23:H$36,0) -> 11 | K24: 8.96 | L24: 8.97 | M24: 9.43 | N24: =(K24*K$22)+(L24*L$22)+(M24*M$22) -> 9.059 | O24: =IF(N24<8.9,"Red",IF(N24>=9.12,"Green","Amber")) -> Amber | P24: =RANK(N24,N$23:N$36,0) -> 10
D25: NPgY | E25: 8.79 | F25: 9.08 | G25: 9.34 | H25: 9.045 | I25: =IF(H25<8.9,"Red",IF(H25>=9.12,"Green","Amber")) -> Amber | J25: =RANK(H25,H$23:H$36,0) -> 9 | K25: 8.87 | L25: 9.15 | M25: 9.33 | N25: 9.102 | O25: Amber | P25: =RANK(N25,N$23:N$36,0) -> 9
D26: WMID | E26: 8.94 | F26: 8.83 | G26: 9.16 | H26: 8.929 | I26: Amber | J26: 12 | K26: 9.01 | L26: 8.93 | M26: 9.12 | N26: 8.992 | O26: Amber | P26: 12
D27: EMID | E27: 8.96 | F27: 8.92 | G27: 9.32 | H27: 9.012 | I27: Amber | J27: 10 | K27: 8.96 | L27: 8.93 | M27: 9.24 | N27: 9.001 | O27: Amber | P27: 11
D28: SWALES | E28: 9.18 | F28: 8.94 | G28: 9.38 | H28: 9.1 | I28: Amber | J28: 8 | K28: 9.06 | L28: 9.05 | M28: 9.4 | N28: 9.123 | O28: Green | P28: 8
D29: SWEST | E29: 8.95 | F29: 8.79 | G29: 9.02 | H29: 8.884 | I29: Red | J29: 13 | K29: 8.92 | L29: 8.76 | M29: 9.05 | N29: 8.866 | O29: Red | P29: 13
D30: LPN | E30: 9.303 | F30: 9.4105 | G30: 9.796 | H30: 9.45535 | I30: Green | J30: 1 | K30: 9.29 | L30: 9.38 | M30: 9.78 | N30: 9.433 | O30: Green | P30: 2
D31: SPN | E31: 9.2212 | F31: 9.3411 | G31: 9.6652 | H31: 9.36995 | I31: Green | J31: 3 | K31: 9.221897336 | L31: 9.418426104 | M31: 9.613312203 | N31: 9.398444693 | O31: Green | P31: 3
D32: EPN | E32: 9.2606 | F32: 9.4122 | G32: 9.6182 | H32: 9.40792 | I32: Green | J32: 2 | K32: 9.268775967 | L32: 9.435527502 | M32: 9.710194731 | N32: 9.440435487 | O32: Green | P32: 1
D33: SPD | E33: 9.0264 | F33: 9.234 | G33: 9.1961 | H33: 9.16414 | I33: Green | J33: 7 | K33: 9.107467532 | L33: 9.310195228 | M33: 9.435 | N33: 9.274337874 | O33: Green | P33: 5
D34: SPMW | E34: 8.9513 | F34: 9.2198 | G34: 9.424 | H34: 9.18009 | I34: Green | J34: 6 | K34: 8.927012056 | L34: 9.270152505 | M34: 9.463485881 | N34: 9.205877046 | O34: Green | P34: 7
D35: SSEH | E35: 9.15 | F35: 9.29 | G35: 9.25 | H35: 9.24 | I35: Green | J35: 4 | K35: 9.18 | L35: 9.23 | M35: 9.32 | N35: 9.233 | O35: Green | P35: 6
D36: SSES | E36: 8.58 | F36: 8.2 | G36: 8.91 | H36: 8.456 | I36: Red | J36: 14 | K36: 8.65 | L36: 8.07 | M36: 8.78 | N36: 8.386 | O36: Red | P36: 14
D37: Target | E37: 9.01 | F37: 9.01 | G37: 9.01 | K37: 9.01 | L37: 9.01 | M37: 9.01 | Q37: 9.01 | R37: 9.01 | S37: 9.01 | W37: 9.01 | X37: 9.01 | Y37: 9.01 | AC37: 9.01 | AD37: 9.01 | AE37: 9.01
E39: 2023/24 | J39: 2024/25 | O39: 2025/26 | T39: 2026/27 | Y39: 2027/28
E40: Supply Interruptions Reward/Penalty (£m) | F40: Connections Reward/Penalty (£m) | G40: General Enquiries Reward/Penalty (£m) | H40: Total | J40: Supply Interruptions Customer Satisfaction Reward/Penalty (£m) | K40: Connections Customer Satisfaction Reward/Penalty (£m) | L40: General Enquiries Customer Satisfaction Reward/Penalty (£m) | M40: Total | O40: Supply Interruptions Customer Satisfaction Reward/Penalty (£m) | P40: Connections Customer Satisfaction Reward/Penalty (£m) | Q40: General Enquiries Customer Satisfaction Reward/Penalty (£m) | R40: Total | T40: Supply Interruptions Customer Satisfaction Reward/Penalty (£m) | U40: Connections Customer Satisfaction Reward/Penalty (£m) | V40: General Enquiries Customer Satisfaction Reward/Penalty (£m) | W40: Total | Y40: Supply Interruptions Customer Satisfaction Reward/Penalty (£m) | Z40: Connections Customer Satisfaction Reward/Penalty (£m) | AA40: General Enquiries Customer Satisfaction Reward/Penalty (£m) | AB40: Total
D41: SP ENW | E41: -0.1813279158 | F41: 0.89182 | G41: 0.44058 | H41: =SUM(E41:G41) -> 1.151072084 | J41: -0.1871852399 | K41: 1.41642 | L41: 0.6294 | M41: =SUM(J41:L41) -> 1.85863476
D42: NPgN | E42: -0.3000879049 | F42: -0.15592 | G42: 0.43652 | H42: =SUM(E42:G42) -> -0.01948790493 | J42: -0.2239995078 | K42: 0 | L42: 0.48329 | M42: =SUM(J42:L42) -> 0.2592904922
D43: NPgY | E43: -0.5400490303 | F43: 0 | G43: 0.47322 | H43: =SUM(E43:G43) -> -0.0668290303 | J43: -0.355947931 | K43: 0.16134 | L43: 0.45171 | M43: =SUM(J43:L43) -> 0.257102069
D44: WMID | E44: -0.04420214421 | F44: -0.47397 | G44: 0.10832 | H44: -0.4098521442 | J44: -0.6020737114 | K44: 0 | L44: 0 | M44: -0.6020737114
D45: EMID | E45: -0.0484805933 | F45: 0 | G45: 0.5544 | H45: 0.5059194067 | J45: -0.4756065883 | K45: 0 | L45: 0.33264 | M45: -0.1429665883
D46: SWALES | E46: 0.08747084214 | F46: 0 | G46: 0.3601 | H46: 0.4475708421 | J46: -0.3061977887 | K46: 0 | L46: 0.3878 | M46: 0.08160221127
D47: SWEST | E47: -0.04120869573 | F47: -0.57838 | G47: 0 | H47: =SUM(E47:G47) -> -0.6195886957 | J47: -0.4014934574 | K47: -0.73612 | L47: 0 | M47: -1.137613457
D48: LPN | E48: 0.488774204 | F48: 1.321775 | G48: 0.605 | H48: 2.415549204 | J48: 0.4623800558 | K48: 1.183 | L48: 0.605 | M48: 2.250380056
D49: SPN | E49: 0.2764532704 | F49: 1.0409388 | G49: 0.626 | H49: 1.94339207 | J49: 0.2840240281 | K49: 1.404990096 | L49: 0.626 | M49: 2.315014124
D50: EPN | E50: 0.6062508273 | F50: 2.14767 | G50: 0.978 | H50: 3.731920827 | J50: 0.6521734778 | K50: 2.319127142 | L50: 0.978 | M50: 3.949300619
D51: SPD | E51: -0.1693000654 | F51: 0.56943 | G51: 0.1520478 | H51: 0.5521777346 | J51: -0.8170526933 | K51: 0.9500251627 | L51: 0.62937 | M51: 0.7623424694
D52: SPMW | E52: -0.1576318058 | F52: 0.5546884 | G52: 0.675792 | H52: 1.072848594 | J52: -0.6117550427 | K52: 0.8345476253 | L52: 0.739 | M52: 0.9617925826
D53: SSEH | E53: 0.041899 | F53: 0.63393 | G53: 0.19396 | H53: 0.869789 | J53: 0.08323874263 | K53: 0.41019 | L53: 0.2984 | M53: 0.7918287426
D54: SSES | E54: -1.403 | F54: -2.338 | G54: 0 | H54: -3.741 | J54: -1.160677661 | K54: -2.338 | L54: -0.33744 | M54: -3.836117661
D55: Total | E55: =SUM(E41:E54) -> -1.384440012 | F55: =SUM(F41:F54) -> 3.6139822 | G55: =SUM(G41:G54) -> 5.6039398 | H55: =SUM(H41:H54) -> 7.833481988 | J55: =SUM(J41:J54) -> -3.660173317 | K55: =SUM(K41:K54) -> 5.605520026 | L55: =SUM(L41:L54) -> 5.82317 | M55: =SUM(M41:M54) -> 7.768516708
B59: Complaints metric | D59: DNO complaint metric scores
E60: 2023/24 | L60: 2024/25 | S60: 2025/26 | Z60: 2026/27 | AG60: 2027/28
E61: The percentage of total complaints outstanding after one day | F61: The percentage of total complaints outstanding after 31 days | G61: The percentage of total complaints that are repeat complaints | H61: The number of Energy Ombudsman (EO) Findings Against the Licensee as a percentage of the total complaints | I61: Complaints Metric Score | J61: RAG | K61: Ranking | L61: The percentage of total complaints outstanding after one day | M61: The percentage of total complaints outstanding after 31 days | N61: The percentage of total complaints that are repeat complaints | O61: The number of Energy Ombudsman (EO) Findings Against the Licensee as a percentage of the total complaints | P61: Complaints Metric Score | Q61: RAG | R61: Ranking | S61: The percentage of total complaints outstanding after one day | T61: The percentage of total complaints outstanding after 31 days | U61: The percentage of total complaints that are repeat complaints | V61: The number of Energy Ombudsman (EO) Findings Against the Licensee as a percentage of the total complaints | W61: Complaints Metric Score | X61: RAG | Y61: Ranking | Z61: The percentage of total complaints outstanding after one day | AA61: The percentage of total complaints outstanding after 31 days | AB61: The percentage of total complaints that are repeat complaints | AC61: The number of Energy Ombudsman (EO) Findings Against the Licensee as a percentage of the total complaints | AD61: Complaints Metric Score | AE61: RAG | AF61: Ranking | AG61: The percentage of total complaints outstanding after one day | AH61: The percentage of total complaints outstanding after 31 days | AI61: The percentage of total complaints that are repeat complaints | AJ61: The number of Energy Ombudsman (EO) Findings Against the Licensee as a percentage of the total complaints | AK61: Complaints Metric Score | AL61: RAG | AM61: Ranking
D62: SP ENW | E62: 0.2016400336 | F62: 0.02092094197 | G62: 0 | H62: 0 | I62: 2.644028595 | J62: =IF(I62<=$I$76,"Green","Red") -> Green | K62: =RANK(I62,I$62:I$75,1) -> 12 | L62: 0.1587541905 | M62: 0.01265275224 | N62: 0 | O62: 0 | P62: 1.967124473 | Q62: =IF(P62<=$I$76,"Green","Red") -> Green | R62: =RANK(P62,P$62:P$75,1) -> 8
D63: NPgN | E63: 0.2069983137 | F63: 0.1045531197 | G63: 0 | H63: 0 | I63: 5.206576728 | J63: =IF(I63<=$I$76,"Green","Red") -> Red | K63: 13 | L63: 0.2211072664 | M63: 0.06020761246 | N63: 0 | O63: 1 | P63: 4.020761246 | Q63: =IF(P63<=$I$76,"Green","Red") -> Red | R63: 13
D64: NPgY | E64: 0.2349695033 | F64: 0.1158873076 | G64: 0 | H64: 0 | I64: 5.826314261 | J64: Red | K64: 14 | L64: 0.2003807711 | M64: 0.04926225607 | N64: 0 | O64: 3 | P64: 3.48881485 | Q64: Red | R64: 12
D65: WMID | E65: 0.1401496259 | F65: 0.01047381546 | G65: 0 | H65: 0 | I65: 1.715710723 | J65: Green | K65: 8 | L65: 0.1381142098 | M65: 0.02833111996 | N65: 0 | O65: 0 | P65: 2.231075697 | Q65: Green | R65: 10
D66: EMID | E66: 0.1120987654 | F66: 0.01432098765 | G66: 0 | H66: 0 | I66: 1.550617284 | J66: Green | K66: 6 | L66: 0.1182732111 | M66: 0.02069781195 | N66: 0 | O66: 0 | P66: 1.80366647 | Q66: Green | R66: 5
D67: SWALES | E67: 0.1039068994 | F67: 0.005818786367 | G67: 0 | H67: 0 | I67: 1.213632585 | J67: Green | K67: 4 | L67: 0.1379014989 | M67: 0.04239828694 | N67: 0 | O67: 0 | P67: 2.650963597 | Q67: Green | R67: 11
D68: SWEST | E68: 0.1659785301 | F68: 0.02146985962 | G68: 0 | H68: 0 | I68: 2.30388109 | J68: Green | K68: 11 | L68: 0.2535007243 | M68: 0.06277160792 | N68: 0 | O68: 1 | P68: 4.422984066 | Q68: Red | R68: 14
D69: LPN | E69: 0.07633587786 | F69: 0.00572519084 | G69: 0 | H69: 0 | I69: 0.9351145038 | J69: Green | K69: 1 | L69: 0.1054766734 | M69: 0.004056795132 | N69: 0 | O69: 0 | P69: 1.176470588 | Q69: Green | R69: 1
D70: SPN | E70: 0.1102794411 | F70: 0.01946107784 | G70: 0 | H70: 0 | I70: 1.686626747 | J70: Green | K70: 7 | L70: 0.1339739966 | M70: 0.027133974 | N70: 0 | O70: 0 | P70: 2.153759186 | Q70: Green | R70: 9
D71: EPN | E71: 0.09011627907 | F71: 0.009811046512 | G71: 0 | H71: 0 | I71: 1.195494186 | J71: Green | K71: 3 | L71: 0.09547123623 | M71: 0.01264789882 | N71: 0 | O71: 0 | P71: 1.334149327 | Q71: Green | R71: 3
D72: SPD | E72: 0.1404 | F72: 0.024 | G72: 0 | H72: 0 | I72: 2.124 | J72: Green | K72: 10 | L72: 0.1273494438 | M72: 0.02186421174 | N72: 0 | O72: 0 | P72: 1.92942079 | Q72: Green | R72: 7
D73: SPMW | E73: 0.1441 | F73: 0.0117 | G73: 0 | H73: 0 | I73: 1.792 | J73: Green | K73: 9 | L73: 0.1307603687 | M73: 0.01728110599 | N73: 0 | O73: 0 | P73: 1.826036866 | Q73: Green | R73: 6
D74: SSEH | E74: 0.08775510204 | F74: 0.01054421769 | G74: 0 | H74: 0 | I74: 1.193877551 | J74: Green | K74: 2 | L74: 0.09640190088 | M74: 0.009504412763 | N74: 0 | O74: 1 | P74: 1.252545825 | Q74: Green | R74: 2
D75: SSES | E75: 0.1009659513 | F75: 0.01127671664 | G75: 0 | H75: 0 | I75: 1.347961012 | J75: Green | K75: 5 | L75: 0.1079000559 | M75: 0.01406270159 | N75: 0 | O75: 1 | P75: 1.501311659 | Q75: Green | R75: 4
D76: Target | I76: 2.8 | P76: 2.8 | W76: 2.8 | AD76: 2.8 | AK76: 2.8
E79: 2023/24 | F79: 2024/25 | G79: 2025/26 | H79: 2026/27 | I79: 2027/28
E80: Complaint Metric Penalty (£m) | F80: Complaint Metric Penalty (£m) | G80: Complaint Metric Penalty (£m) | H80: Complaint Metric Penalty (£m) | I80: Complaint Metric Penalty (£m)
D81: SP ENW | E81: 0 | F81: 0
D82: NPgN | E82: -0.9891030354 | F82: -0.501732872
D83: NPgY | E83: -1.715920186 | F83: -0.39055802
D84: WMID | E84: 0 | F84: 0
D85: EMID | E85: 0 | F85: 0
D86: SWALES | E86: 0 | F86: 0
D87: SWEST | E87: 0 | F87: -0.9007561564
D88: LPN | E88: 0 | F88: 0
D89: SPN | E89: 0 | F89: 0
D90: EPN | E90: 0 | F90: 0
D91: SPD | E91: 0 | F91: 0
D92: SPMW | E92: 0 | F92: 0
D93: SSEH | E93: 0 | F93: 0
D94: SSES | E94: 0 | F94: 0
D95: Total | E95: =SUM(E81:E94) -> -2.705023221 | F95: =SUM(F81:F94) -> -1.793047048
B100: Consumer Vulnerability Incentive (CVI) | E100: 2024/25 | M100: 2024/25
E101: PSR Reach (%) | F101: Social Value of Fuel Poverty Serviced Delivered (£m) | G101: Social Value of Low Carbon Transition Services Delivered (£m) | H101: Fuel Poverty Customer Satisfaction Survey Score | I101: Low Carbon Customer Satisfaction Survey Score | J101: RAG | M101: PSR Reach Target Y2 (%) | N101: Social Value of Fuel Poverty Serviced Delivered Target Y2 (£m) | O101: Social Value of Low Carbon Transition Services Delivered Target Y2 (£m) | P101: Fuel Poverty Customer Satisfaction Survey Target | Q101: Low Carbon Customer Satisfaction Survey Target
D102: SP ENW | E102: 0.956541433 | F102: 10.22 | G102: -0.13 | H102: 9.481944444 | I102: 9 | J102: =IF((E102>=M102)+(F102>=N102)+(G102>=O102)+(H102>=P102)+(I102>=Q102)=5,"Green",IF((E102>=M102)+(F102>=N102)+(G102>=O102)+(H102>=P102)+(I102>=Q102)>=2,"Amber","Red")) -> Green | L102: SP ENW | M102: 0.6 | N102: 7.62 | O102: -0.4 | P102: 9 | Q102: 9
D103: NPgN | E103: 0.7784146595 | F103: 14.404626 | G103: 2.209279 | H103: 9.548272808 | I103: 9.290322581 | J103: =IF((E103>=M103)+(F103>=N103)+(G103>=O103)+(H103>=P103)+(I103>=Q103)=5,"Green",IF((E103>=M103)+(F103>=N103)+(G103>=O103)+(H103>=P103)+(I103>=Q103)>=2,"Amber","Red")) -> Green | L103: NPgN | M103: 0.7 | N103: 3.701908415 | O103: 1.395397851 | P103: 9 | Q103: 9
D104: NPgY | E104: 0.7467725108 | F104: 12.649192 | G104: 1.190426 | H104: 9.168010753 | I104: 8.790540541 | J104: Amber | L104: NPgY | M104: 0.7 | N104: 5.318091585 | O104: 2.004602149 | P104: 9 | Q104: 9
D105: WMID | E105: 0.7466962729 | F105: 9.180222491 | G105: 0.20521 | H105: 8.973880597 | I105: 9.266666667 | J105: =IF((E105>=M105)+(F105>=N105)+(G105>=O105)+(H105>=P105)+(I105>=Q105)=5,"Green",IF((E105>=M105)+(F105>=N105)+(G105>=O105)+(H105>=P105)+(I105>=Q105)>=2,"Amber","Red")) -> Amber | L105: WMID | M105: 0.66 | N105: 4.387876541 | O105: 0.1824350103 | P105: 9 | Q105: 9
D106: EMID | E106: 0.7640471845 | F106: 8.542836 | G106: 0.514127475 | H106: 8.909688013 | I106: 8.869565217 | J106: Amber | L106: EMID | M106: 0.66 | N106: 4.685238839 | O106: 0.1947984607 | P106: 9 | Q106: 9
D107: SWALES | E107: 0.7997867866 | F107: 4.842993914 | G107: -0.0341812878 | H107: 9.079343365 | I107: 8.95412844 | J107: Amber | L107: SWALES | M107: 0.66 | N107: 2.009631482 | O107: 0.08355457056 | P107: 9 | Q107: 9
D108: SWEST | E108: 0.7492482066 | F108: 4.988051861 | G108: 0.4782931551 | H108: 9.145833333 | I108: 9.125 | J108: Green | L108: SWEST | M108: 0.66 | N108: 2.867253139 | O108: 0.1192119584 | P108: 9 | Q108: 9
D109: LPN | E109: 0.8947828407 | F109: 4.27732767 | G109: 1.77364753 | H109: 9.2 | I109: 8.76 | J109: =IF((E109>=M109)+(F109>=N109)+(G109>=O109)+(H109>=P109)+(I109>=Q109)=5,"Green",IF((E109>=M109)+(F109>=N109)+(G109>=O109)+(H109>=P109)+(I109>=Q109)>=2,"Amber","Red")) -> Amber | L109: LPN | M109: 0.689 | N109: 2.12294189 | O109: 0.9293199439 | P109: 9 | Q109: 9
D110: SPN | E110: 0.9428418277 | F110: 15.26560739 | G110: 4.17809964 | H110: 9.38 | I110: 9.2 | J110: Green | L110: SPN | M110: 0.689 | N110: 2.072714949 | O110: 0.9073330499 | P110: 9 | Q110: 9
D111: EPN | E111: 0.9496884796 | F111: 6.12494654 | G111: 2.92767151 | H111: 8.89 | I111: 8.93 | J111: Amber | L111: EPN | M111: 0.689 | N111: 3.274343161 | O111: 1.433347006 | P111: 9 | Q111: 9
D112: SPD | E112: 1.003910622 | F112: 7.14 | G112: 0.09 | H112: 9.500783034 | I112: 8.448275862 | J112: Amber | L112: SPD | M112: 0.74 | N112: 3.243242069 | O112: 1.11522008 | P112: 9 | Q112: 9
D113: SPMW | E113: 0.9729139213 | F113: 3.04 | G113: 0.033 | H113: 9.579391892 | I113: 8 | J113: Amber | L113: SPMW | M113: 0.74 | N113: 2.456757931 | O113: 0.8447799203 | P113: 9 | Q113: 9
D114: SSEH | E114: 0.7363102207 | F114: 1.09424444 | G114: 0.0839111 | H114: 8.894117647 | I114: 10 | J114: =IF((E114>=M114)+(F114>=N114)+(G114>=O114)+(H114>=P114)+(I114>=Q114)=5,"Green",IF((E114>=M114)+(F114>=N114)+(G114>=O114)+(H114>=P114)+(I114>=Q114)>=2,"Amber","Red")) -> Amber | L114: SSEH | M114: 0.596 | N114: 0.01814106997 | O114: 0.01007837221 | P114: 9 | Q114: 9
D115: SSES | E115: 0.6351049391 | F115: 2.75643175 | G115: 0.37691288 | H115: 8.659574468 | I115: 9 | J115: Amber | L115: SSES | M115: 0.596 | N115: 0.07185893003 | O115: 0.03992162779 | P115: 9 | Q115: 9
E118: 2027/28 | M118: 2027/28
E119: PSR Reach Performance | F119: Overall Fuel Poverty Services NPV | G119: Overall Low Carbon Transitions NPV | H119: Fuel Poverty Customer Satisfaction Survey Score | I119: Low Carbon Customer Satisfaction Survey Score | J119: RAG | M119: PSR Reach Target Y5 (%) | N119: Fuel Poverty Services NPV Target Y5 (£m) | O119: Low Carbon Transitions NPV Target Y5 (£m) | P119: Fuel Poverty Customer Satisfaction Survey Target | Q119: Low Carbon Customer Satisfaction Survey Target
D120: SP ENW | L120: SP ENW | M120: 0.6 | N120: 26.02 | O120: -0.49 | P120: 9 | Q120: 9
D121: NPgN | L121: NPgN | M121: 0.78 | N121: 4.416023786 | O121: 2.741546365 | P121: 9 | Q121: 9
D122: NPgY | L122: NPgY | M122: 0.78 | N122: 6.343976214 | O122: 3.938453635 | P122: 9 | Q122: 9
D123: WMID | L123: WMID | M123: 0.75 | N123: 11.41162444 | O123: 0.62279538 | P123: 9 | Q123: 9
D124: EMID | L124: EMID | M124: 0.75 | N124: 12.18497958 | O124: 0.6650016417 | P124: 9 | Q124: 9
D125: SWALES | L125: SWALES | M125: 0.75 | N125: 5.226482448 | O125: 0.2852380167 | P125: 9 | Q125: 9
D126: SWEST | L126: SWEST | M126: 0.75 | N126: 7.456913539 | O126: 0.4069649616 | P126: 9 | Q126: 9
D127: LPN | L127: LPN | M127: 0.752 | N127: 8.886799586 | O127: 5.476451168 | P127: 9 | Q127: 9
D128: SPN | L128: SPN | M128: 0.752 | N128: 8.67654571 | O128: 5.346883141 | P128: 9 | Q128: 9
D129: EPN | L129: EPN | M129: 0.752 | N129: 13.7066547 | O129: 8.446665691 | P129: 9 | Q129: 9
D130: SPD | L130: SPD | M130: 0.8 | N130: 4.853483306 | O130: 6.571832613 | P130: 9 | Q130: 9
D131: SPMW | L131: SPMW | M131: 0.8 | N131: 3.676516694 | O131: 4.978167387 | P131: 9 | Q131: 9
D132: SSEH | L132: SSEH | M132: 0.695 | N132: 0.09070534987 | O132: 0.1027993965 | P132: 9 | Q132: 9
D133: SSES | L133: SSES | M133: 0.695 | N133: 0.3592946501 | O133: 0.4072006035 | P133: 9 | Q133: 9
B135: Rewards and Penalties under the CVI | E135: 2024/25
E136: PSR Reach Reward/Penalty (£m) | F136: Fuel Poverty Services Delivered Reward/Penalty (£m) | G136: Low Carbon Transitions Delivered Reward/Penalty (£m) | H136: Fuel Poverty Customer Satisfaction Reward/Penalty (£m) | I136: Low Carbon Customer Satisfaction Reward/Penalty (£m) | J136: Total (£m)
D137: SP ENW | E137: 1.396 | F137: 0.698 | G137: 0.698 | H137: 0.3363972222 | I137: 0 | J137: =SUM(E137:I137) -> 3.128397222
D138: NPgN | E138: 0.1964873701 | F138: 0.519 | G138: 0.519 | H138: 0.259 | I138: 0 | J138: =SUM(E138:I138) -> 1.49348737
D139: NPgY | E139: 0 | F139: 0.716 | G139: -0.716 | H139: 0.1202956989 | I139: 0 | J139: 0.1202956989
D140: WMID | E140: 0 | F140: 0.901 | G140: 0.20788559 | H140: -0.02353358209 | I140: 0.2402666667 | J140: 1.325618675
D141: EMID | E141: 0.1726960867 | F141: 0.922 | G141: 0.922 | H141: -0.08326765189 | I141: -0.1202608696 | J141: 1.813167565
D142: SWALES | E142: 0.3057904435 | F142: 0.461 | G142: -0.461 | H142: 0.03657729138 | I142: -0.02114678899 | J142: 0.3212209459
D143: SWEST | E143: 0 | F143: 0.7 | G143: 0.7 | H143: 0.1020833333 | I143: 0.0875 | J143: 1.589583333
D144: LPN | E144: 1.168542307 | F144: 0.605 | G144: 0.605 | H144: 0 | I144: 0 | J144: 2.378542307
D145: SPN | E145: 1.253 | F145: 0.626 | G145: 0.626 | H145: 0.23788 | I145: 0 | J145: 2.74288
D146: EPN | E146: 1.956 | F146: 0.978 | G146: 0.978 | H146: 0 | I146: 0 | J146: 3.912
D147: SPD | E147: 1.329 | F147: 0.665 | G147: -0.665 | H147: 0.332 | I147: 0 | J147: 1.661
D148: SPMW | E148: 1.479 | F148: 0.739 | G148: -0.739 | H148: 0.37 | I148: 0 | J148: 1.849
D149: SSEH | E149: 0 | F149: 0.496 | G149: 0.496 | H149: -0.05251764706 | I149: 0.248 | J149: 1.187482353
D150: SSES | E150: 0 | F150: 0.935 | G150: 0.935 | H150: -0.3182978723 | I150: 0 | J150: 1.551702128
D151: Total | E151: =SUM(E137:E150) -> 9.256516208 | F151: =SUM(F137:F150) -> 9.961 | G151: 4.10588559 | H151: 1.316616792 | I151: 0.4343590081 | J151: 25.0743776
E153: 2027/28
E154: PSR Reach Reward/Penalty (£m) | F154: Fuel Poverty Services Delivered Reward/Penalty (£m) | G154: Low Carbon Transitions Delivered Reward/Penalty (£m) | H154: Fuel Poverty Customer Satisfaction Reward/Penalty (£m) | I154: Low Carbon Customer Satisfaction Reward/Penalty (£m) | J154: Total (£m)
D155: SP ENW
D156: NPgN
D157: NPgY
D158: WMID
D159: EMID
D160: SWALES
D161: SWEST
D162: LPN
D163: SPN
D164: EPN
D165: SPD
D166: SPMW
D167: SSEH
D168: SSES
D169: Total

Sheet Ch2 - NARM
A1: Chapter 2 - Network Asset Risk Matrix
B2: Performance against the outputs that DNOs are incentivised to deliver under RIIO-ED2.
B4: Reliability and availability: providing long-term reliability, minimising the number and duration of interruptions and ensuring adaptation to climate change.
B5: Incentive measure | F5: Incentive type
B6: Health, criticality and monetised risk: DNOs are held to account for delivering a baseline reduction in network risk through specified asset management activities. Performance is assessed using the Network Asset Risk Metric (NARM), with a financial penalty applied for unjustified under-delivery against the target. | F6: Financial: penalty of 2.5% for under-delivery and no reward for over-delivery, with a deadband of ±5% around the NARM output.
D8: Year 1 to Year 2 cumulative delivery
B9: Network Asset Risk Metric
D10: Position at Beginning of RIIO-ED2 | E10: End of RIIO-ED2 (Without Investment) | F10: End of RIIO-ED2 (With Investment) | G10: Impact of investment | H10: Deterioration | I10: Year 1 to Year 2 cumulative delivery | J10: % Delivered
C11: SP ENW | D11: 1817763698 | E11: 2288732089 | F11: 1872086823 | G11: 416645265.3 | H11: 470968390.2 | I11: 108523605.1 | J11: =I11/G11 -> 0.2604700308
C12: NPgN | D12: 1623234235 | E12: 2050738268 | F12: 1659646642 | G12: 391091626.5 | H12: 427504032.9 | I12: 58040613.26 | J12: =I12/G12 -> 0.1484066887
C13: NPgY | D13: 1579537278 | E13: 2028303768 | F13: 1634656356 | G13: 393647412.5 | H13: 448766490 | I13: 111820248.8 | J13: 0.2840619429
C14: WMID | D14: 2026352594 | E14: 2634199932 | F14: 2114412373 | G14: 519787559.6 | H14: 607847338.4 | I14: 176556890.2 | J14: 0.3396712502
C15: EMID | D15: 1568245866 | E15: 2107468916 | F15: 1702814578 | G15: 404654338 | H15: 539223049.9 | I15: 163028144.6 | J15: 0.4028824835
C16: SWALES | D16: 1070930071 | E16: 1417939800 | F16: 1055228217 | G16: 362711582.5 | H16: 347009729.2 | I16: 153628176.7 | J16: 0.423554648
C17: SWEST | D17: 1895348484 | E17: 2509953840 | F17: 1882782629 | G17: 627171210.8 | H17: 614605355.9 | I17: 194006699 | J17: 0.3093361041
C18: LPN | D18: 1410294326 | E18: 1722828000 | F18: 1525770608 | G18: 197057391.9 | H18: 312533674.1 | I18: 72570146.45 | J18: 0.3682690903
C19: SPN | D19: 2208492050 | E19: 2739750652 | F19: 2265421479 | G19: 474329172.8 | H19: 531258601.6 | I19: 128562813.1 | J19: 0.2710413369
C20: EPN | D20: 3662763683 | E20: 4730366205 | F20: 3829874366 | G20: 900491839.4 | H20: 1067602522 | I20: 245453453.5 | J20: =I20/G20 -> 0.2725770992
C21: SPD | D21: 1770742904 | E21: 2240621593 | F21: 1881088120 | G21: 359533473.1 | H21: 469878689.1 | I21: 93977175.78 | J21: 0.2613864433
C22: SPMW | D22: 2023048527 | E22: 2581557722 | F22: 2127042169 | G22: 454515553.7 | H22: 558509195.2 | I22: 131624424.8 | J22: 0.2895927846
C23: SSEH | D23: 1921301013 | E23: 2647565980 | F23: 2456062849 | G23: 191503130.7 | H23: 726264966.3 | I23: 98168274.15 | J23: 0.512619683
C24: SSES | D24: 2831693082 | E24: 3599326353 | F24: 2914012924 | G24: 685313428.7 | H24: 767633270.7 | I24: 167560968.4 | J24: 0.2445026778
C25: Total | D25: =SUM(D11:D24) -> 2.740974781e+10 | E25: =SUM(E11:E24) -> 3.529935312e+10 | F25: =SUM(F11:F24) -> 2.892090013e+10 | G25: =SUM(F25-E25) * -1 -> 6378452986 | H25: =+E25-D25 -> 7889605306 | I25: =SUM(I11:I24) -> 1903521634 | J25: =I25/G25 -> 0.2984299858

Sheet Ch3 - innovation
A1: Chapter 3 - Innovation
B2: Overview of the DNOs’ expenditure in relation to the various innovation schemes in RIIO-ED2.
B4: Network Innovation Allowance (NIA) | D4: Network Innovation Allowance projects and expenditure
E5: 2023/24 | I5: 2024/25 | M5: 2025/26 | Q5: 2026/27 | U5: 2027/28
E6: Number of projects* | F6: Total ED2 NIA allowance (£m) | G6: NIA expenditure (£m) | H6: % of allowance spent | I6: Number of projects | J6: Total ED2 NIA allowance (£m) | K6: NIA expenditure (£m) | L6: % of allowance spent | M6: Number of projects | N6: Total ED2 NIA allowance (£m) | O6: NIA expenditure (£m) | P6: % of allowance spent | Q6: Number of projects | R6: Total ED2 NIA allowance (£m) | S6: NIA expenditure (£m) | T6: % of allowance spent | U6: Number of projects | V6: Total ED2 NIA allowance (£m) | W6: NIA expenditure (£m) | X6: % of allowance spent
D7: SP ENW | E7: 0 | F7: 8.4 | G7: 0 | H7: =IFERROR((G7*0.9)/F7,"N/A") -> 0 | I7: 3 | J7: 8.4 | K7: 0.13911785 | L7: =IFERROR((K7*0.9)/J7,"N/A") -> 0.01490548393
D8: NPg | E8: 7 | F8: 7.5 | G8: 1.946376265 | H8: 0.2335651518 | I8: 12 | J8: 7.5 | K8: 1.485331777 | L8: 0.1782398132
D9: NGED | E9: 1 | F9: 18 | G9: 0.2095855447 | H9: 0.01047927724 | I9: 6 | J9: 18 | K9: 0.7116103275 | L9: 0.03558051638
D10: UKPN | E10: 14 | F10: 15 | G10: 2.24936032 | H10: 0.1349616192 | I10: 7 | J10: 15 | K10: 3.451338425 | L10: 0.2070803055
D11: SPEN | E11: 4 | F11: 11.1 | G11: 0.1644899244 | H11: =IFERROR((G11*0.9)/F11,"N/A") -> 0.0133370209 | I11: 16 | J11: 11.1 | K11: 1.935792553 | L11: 0.1569561529
D12: SSEN | E12: 7 | F12: 8.4 | G12: 1.367702779 | H12: 0.1465395835 | I12: 12 | J12: 8.4 | K12: 4.539045767 | L12: 0.4863263321
D13: Total | E13: =SUM(E7:E12) -> 33 | F13: =SUM(F7:F12) -> 68.4 | G13: =SUM(G7:G12) -> 5.937514834 | H13: 0.07812519518 | I13: =SUM(I7:I12) -> 56 | J13: =F13 -> 68.4 | K13: =SUM(K7:K12) -> 12.2622367 | L13: 0.1613452197
E14: *Number of projects refers to project started in year
B16: Carry-over Network Innovation Allowance (CNIA) | D16: Carry-over Network Innovation Allowance (CNIA) and expenditure
E17: 2023/24
E18: CNIA Allowance (£m) | F18: CNIA Expenditure (£m)
D19: SP ENW | E19: 0.5327675982 | F19: 0.591963998
D20: NPg | E20: 0.9434704955 | F20: 1.048426286
D21: NGED | E21: 1.747751349 | F21: 1.941945944
D22: UKPN | E22: 0.8741368708 | F22: 1.147808698
D23: SPEN | E23: 1.7567484 | F23: 1.951942667
D24: SSEN | E24: 0.8214885226 | F24: 0.9127650251
D25: Total | E25: =SUM(E19:E24) -> 6.676363236 | F25: =SUM(F19:F24) -> 7.594852617
D26: * CNIA Expenditure is carry-over NIA expenditure from the final year of ED1 and will only be used in 2023/24 by the DNOs.
B28: Strategic Innovation Funding (SIF) | D28: Strategic Innovation Fund - Beta Projects
D29: 2023/24
D30: Project Title | E30: Lead company | F30: Description | G30: SIF funding awarded (£m) | H30: Total project costs (£m) | I30: Project end date
D31: N/A | E31: N/A | F31: N/A | G31: N/A | H31: N/A | I31: N/A
D32: N/A | E32: N/A | F32: N/A | G32: N/A | H32: N/A | I32: N/A
D35: 2024/25
D36: Project Title | E36: Lead company | F36: Description | G36: SIF funding awarded (£m) | H36: Total project costs (£m) | I36: Project end date
D37: Planning Regional Infrastructure in a Digital Environment (PRIDE) (Alpha phase) | E37: WMID | F37: Planning Regional Infrastructure in a Digital Environment (PRIDE) combines novel governance structures with a cutting-edge digital tool that lets local authorities, energy networks and regional stakeholders collaborate to deliver local and regional decarbonisation ambitions. The digital tool supports local authorities and networks to quickly and cost-effectively share detailed information to inform planning and investment activities. The governance structures then bring together local and regional stakeholders -- informed by data in the digital tool -- to work together to make more informed strategic decisions, accelerating net zero delivery. | G37: 3.7 | H37: 4.1 | I37: 2027
D38: Phased Switch System | E38: EMID | F38: The Phase Switch System allows for dynamic phase reconfiguration of a Low Voltage (LV) feeder cable to reduce phase imbalance. Reducing phase imbalance; * reduces the load in the most heavily loaded phase, decreasing the chance of incorrect fuse operations * improves the utilisation of the cable's capacity, deferring reinforcement * reduces losses on the LV feeder and associated CO2 emissions * reduces the likelihood of customer voltage issues preventing participation in flexibility serivices or other markets This project further develops and tests an existing protype to market readiness while providing a support tool for planning and optimisation of deployment. | G38: 3.1 | H38: 3.5 | I38: 2027
D39: Multi Resilience | E39: NPgN | F39: Resilience is increasingly important as customers rely more on electricity for heat and transportation, with greatest value in rural locations that have a heightened risk of outage. Proliferation of Low Carbon Technologies across LV and HV systems present opportunities, if coordinated appropriately, for delivery of resilience services that maintain customer supply during unplanned grid outages. Previous projects have demonstrated separate approaches via LV-connected and HV-connected resilient DERs. Coordination of such solutions can enhance the value case of resilience. The project will compare and contrast technologies and optimise hybrid applications of the two approaches to deliver cost-effective resilience to customers. | G39: 6.2 | H39: 8.3 | I39: 2028
D40: Heatropolis | E40: LPN | F40: The operation of low carbon heat networks is poised to transform how we heat homes and buildings as we embrace less reliance on fossil-fuels for heating. Today there is a disconnect between DNO planning and heat network design. Left unmanaged, this affects the planning and operation of both the heat and electricity networks and is ultimately costly for consumers. Addressing this challenge, Heatropolis is trialling a groundbreaking technical and commercial framework: unlocking better outcomes between heat and electricity networks. Intelligent heat network design and operation will accelerate decarbonisation delivering significant flexibility and load reduction to drive DNO reinforcement cost savings. | G40: 9.7 | H40: 11.8 | I40: 2028
D41: SHIELD | E41: EPN | F41: SHIELD is a bold new initiative aimed at making the Net Zero transition accessible to low-income residents of social housing and other tenures who cannot afford Low Carbon Technologies (LCTs). SHIELD utilises innovative solutions, including distributed data centres for heating, PV and battery storage to intelligently balance supply and demand. This innovative approach to decarbonisation seeks to address the debilitating issues faced by those who live in fuel poverty, helping to reduce both the upfront and running costs of consumers' heating and energy. SHIELD provides a path to decarbonisation for all, which would otherwise be out of reach. | G41: 5.4 | H41: 9.9 | I41: 2028
D42: CReDo+: Climate Resilience Demonstrator (extension to new climate risks) | E42: EPN | F42: CReDo+ will develop the Climate Resilience Demonstrator into the Climate Resilience Decision Optimiser digital twin and data sharing platform, enhancing resilience investment planning and reporting. The project will scale the CReDo technology across the electricity and gas sectors to understand infrastructure interdependencies and cascading risk from extreme weather including flooding, extreme heat, and strong winds. Tools will be developed to encode tacit subject matter expert knowledge into new asset risk models, with a risk modelling framework to cascade asset failures through individual networks, between networks, and across sectors including water and telecoms. This will build whole system climate resilience. | G42: 9.8 | H42: 10.9 | I42: 2027
D43: D-Suite | E43: SPMW | F43: D-Suite is a partially rated LV Power Electronic hardware demonstrator that will use a LV design tool, developed in Beta, to optimally place and size the partially rated PED hardware. The hardware will be capable of 1. Mitigating phase voltage and current imbalance. 2. Managing feeder voltage profiles. 3. Balancing feeder and transformer loading. The 59-month project aims to create a cost competitive solution to traditional reinforcement, that can be rolled out at scale after the Beta Phase trial. The Project will leverage £8.06m of SIF funding to release £795m of total benefit for customers GB-wide. | G43: 8.06 | H43: 9 | I43: 2029
D44: Artificial Forecasting | E44: NPgN | F44: As DNOs develop their distribution system operator functions, the current annual process used to forecast load at extra-high-voltage/high-voltage needs to become increasingly granular, at the monthly, weekly, daily and hourly level, to support flexibility dispatch and defer or avoid reinforcement. Moreover, the increasing prevalence of low-voltage monitoring data enables new use cases to support network planning and the extension of flexibility markets at ED3\. The Artificial Forecasting project addresses these unmet needs by building innovative AI solutions to expand load forecasting capability at primary (EHV-HV) and secondary (HV-LV) substations, optimising flexibility procurement and enabling DSO functions across the sector. | G44: 3.3 | H44: 3.7 | I44: 2027
D47: 2025/26
D48: Project Title | E48: Lead company | F48: Description | G48: SIF funding awarded (£m) | H48: Total project costs (£m) | I48: Project end date
D53: 2026/27
D54: Project Title | E54: Lead company | F54: Description | G54: SIF funding awarded (£m) | H54: Total project costs (£m) | I54: Project end date
D59: 2027/28
D60: Project Title | E60: Lead company | F60: Description | G60: SIF funding awarded (£m) | H60: Total project costs (£m) | I60: Project end date

Sheet Ch4 expenditure drivers
A1: Chapter 4 - Expenditure Drivers
B3: Distribution of allowances and expenditure per cost category | D3: 2024-25 | E3: Allowances | F3: % of total allowance | G3: Actuals | H3: % of total actual
D4: Total Load Related Capex | E4: 677.5226699 | F4: 0.1541709869 | G4: 494.2102465 | H4: 0.1122785401
D5: Total Non-Load Related Capex | E5: 1361.610921 | F5: 0.3098359788 | G5: 1264.79568 | H5: 0.2873461517
D6: Total Non-Op Capex | E6: 277.5661419 | F6: 0.06316046376 | G6: 261.3974916 | H6: 0.0593863218
D7: Total HVPs | E7: 0.003782741751 | F7: 8.607668127e-07 | G7: 0.2970146194 | H7: 6.747809881e-05
D8: Total Network Operating Costs | E8: 821.1952102 | F8: 0.1868638227 | G8: 912.8815556 | H8: 0.2073955549
D9: Total Closely Associated Costs | E9: 865.1371397 | F9: 0.1968628543 | G9: 930.434608 | H9: 0.2113833943
D10: Total Business Support Costs | E10: 432.2829762 | F10: 0.09836644004 | G10: 466.7974118 | H10: 0.1060506784
D11: Total Other Costs Within Price Control | E11: 152.2431672 | F11: 0.03464309075 | G11: 110.5566042 | H11: 0.025117112
D12: Total Other | E12: -192.9435188 | F12: -0.04390449801 | G12: -39.7258617 | H12: -0.009025231238
D13: Total | E13: 4394.618491 | G13: 4401.644751
D16: Cumulative to date | E16: Allowances | F16: % of total allowance | G16: Actuals | H16: % of total actual
D17: Total Load Related Capex | E17: 1344.94061 | F17: 0.1558796392 | G17: 872.685026 | H17: 0.1069724586
D18: Total Non-Load Related Capex | E18: 2616.347868 | F18: 0.303236707 | G18: 2247.265131 | H18: 0.2754664846
D19: Total Non-Op Capex | E19: 545.4474724 | F19: 0.06321777673 | G19: 435.0180283 | H19: 0.0533238759
D20: Total HVPs | E20: 0.03576018576 | F20: 4.144632717e-06 | G20: 3.013261623 | H20: 0.0003693612182
D21: Total Network Operating Costs | E21: 1655.820596 | F21: 0.1919108659 | G21: 1808.544736 | H21: 0.2216887779
D22: Total Closely Associated Costs | E22: 1736.915654 | F22: 0.2013098448 | G22: 1765.32788 | H22: 0.2163913187
D23: Total Business Support Costs | E23: 868.4134407 | F23: 0.100649778 | G23: 910.4572393 | H23: 0.1116025215
D24: Total Other Costs Within Price Control | E24: 283.9368409 | F24: 0.03290849572 | G24: 194.9408478 | H24: 0.02389556501
D25: Total Other | E25: -423.7871422 | F25: -0.04911725197 | G25: -79.21748118 | H25: -0.009710363389
D26: Total | E26: 8628.0711 | G26: 8158.034669
D29: Total RIIO-ED2 | E29: Allowances | F29: % of total allowance | G29: Forecast | H29: % of total forecast
D30: Total Load Related Capex | E30: 3748.219087 | F30: 0.1647882705 | G30: 3579.86304 | H30: 0.1550498371
D31: Total Non-Load Related Capex | E31: 7169.811945 | F31: 0.3152166091 | G31: 6569.566949 | H31: 0.2845388982
D32: Total Non-Op Capex | E32: 1176.426589 | F32: 0.05172091025 | G32: 1106.086875 | H32: 0.04790646678
D33: Total HVPs | E33: 20.01620212 | F33: 0.0008800006758 | G33: 22.99370355 | H33: 0.0009958956391
D34: Total Network Operating Costs | E34: 3934.202625 | F34: 0.1729649286 | G34: 4302.306116 | H34: 0.1863400513
D35: Total Closely Associated Costs | E35: 4328.248684 | F35: 0.1902889342 | G35: 4374.483295 | H35: 0.1894661652
D36: Total Business Support Costs | E36: 2173.267144 | F36: 0.09554642507 | G36: 2369.20288 | H36: 0.102614127
D37: Total Other Costs Within Price Control | E37: 940.2532345 | F37: 0.04133768619 | G37: 918.8170774 | H37: 0.0397954996
D38: Total Other | E38: -744.7787563 | F38: -0.03274376453 | G38: -154.8529826 | H38: -0.006706940868
D39: Total | E39: 22745.66675 | G39: 23088.46695
D42: Allowance and expenditure on each category of cost by DNO during 24/25
E43: Total Load Related Capex | H43: Total Non-Load Related Capex | K43: Total Non Op Capex | N43: Total High Value Projects | Q43: Total Network Operating Costs | T43: Total Closely Associated Indirects | W43: Total Business Support Costs | Z43: Total Other Costs Within Price Control | AC43: Total Other
E44: Allowance | F44: Actual | G44: % difference | H44: Allowance | I44: Actual | J44: % difference | K44: Allowance | L44: Actual | M44: % difference | N44: Allowance | O44: Actual | P44: % difference | Q44: Allowance | R44: Actual | S44: % difference | T44: Allowance | U44: Actual | V44: % difference | W44: Allowance | X44: Actual | Y44: % difference | Z44: Allowance | AA44: Actual | AB44: % difference | AC44: Allowance | AD44: Actual | AE44: % difference
D45: SP ENW | E45: 39.25168271 | F45: 45.7329267 | G45: 0.1651201566 | H45: 106.9910604 | I45: 102.3905171 | J45: -0.0429993248 | K45: 16.88205433 | L45: 14.54490027 | M45: -0.1384401453 | N45: 0.003782741751 | O45: 0.1117468332 | P45: 28.54122713 | Q45: 57.12637404 | R45: 62.32134629 | S45: 0.09093824574 | T45: 67.97620721 | U45: 63.69836197 | V45: -0.06293150821 | W45: 40.12357899 | X45: 47.96550114 | Y45: 0.1954442337 | Z45: 26.871 | AA45: 15.02013963 | AB45: -0.4410278877 | AC45: -13.4677679 | AD45: -9.988159022 | AE45: -0.2583656702
D46: NPgN | E46: 28.06084615 | F46: 13.98438597 | G46: -0.5016406172 | H46: 75.54400737 | I46: 50.31467018 | J46: -0.333968743 | K46: 12.56131446 | L46: 17.74505082 | M46: 0.4126746746 | N46: 0 | O46: 0 | Q46: 42.23758004 | R46: 56.51704272 | S46: 0.3380748299 | T46: 47.23160773 | U46: 40.57010763 | V46: -0.1410390294 | W46: 25.23176701 | X46: 27.4789804 | Y46: 0.08906286228 | Z46: 2.474321477 | AA46: 2.583557146 | AB46: 0.04414772696 | AC46: -12.95294525 | AD46: -4.105923649 | AE46: -0.683012352
D47: NPgY | E47: 48.61433079 | F47: 20.27734413 | G47: -0.5828936901 | H47: 94.90975784 | I47: 69.62912528 | J47: -0.2663649464 | K47: 13.65864065 | L47: 14.84116655 | M47: 0.08657712957 | N47: 0 | O47: 0 | Q47: 65.03223272 | R47: 89.51743055 | S47: 0.376508645 | T47: 58.76673583 | U47: 43.92974044 | V47: -0.2524726818 | W47: 30.87919536 | X47: 26.85045044 | Y47: -0.1304679374 | Z47: 2.340529919 | AA47: 2.583557146 | AB47: 0.1038342748 | AC47: -14.28307635 | AD47: -2.277868052 | AE47: -0.8405197874
D48: WMID | E48: 45.97121167 | F48: 27.50265087 | G48: -0.4017418757 | H48: 103.6589434 | I48: 91.36615027 | J48: -0.1185888334 | K48: 22.38130638 | L48: 17.16441766 | M48: -0.2330913411 | N48: 0 | O48: 0 | Q48: 58.2199743 | R48: 55.34748855 | S48: -0.04933849227 | T48: 60.71649551 | U48: 73.85682222 | V48: 0.2164210334 | W48: 33.3636474 | X48: 34.43929138 | Y48: 0.03223999962 | Z48: 8.529623477 | AA48: 7.147339229 | AB48: -0.1620568893 | AC48: -15.08684734 | AD48: -3.220170582 | AE48: -0.7865577539
D49: EMID | E49: 66.76160653 | F49: 37.78769872 | G49: -0.433990572 | H49: 99.57350483 | I49: 94.06929752 | J49: -0.05527783032 | K49: 25.5150781 | L49: 18.83548166 | M49: -0.2617901624 | N49: 0 | O49: 0 | Q49: 63.20467953 | R49: 59.6183553 | S49: -0.05674143525 | T49: 67.05194202 | U49: 73.24984347 | V49: 0.09243433175 | W49: 35.48183761 | X49: 33.98740505 | Y49: -0.04211824026 | Z49: 7.996258855 | AA49: 5.257027521 | AB49: -0.3425641144 | AC49: -17.66041848 | AD49: -3.287804734 | AE49: -0.813832003
D50: SWALES | E50: 25.4560876 | F50: 23.65212238 | G50: -0.07086576856 | H50: 63.24581348 | I50: 59.268603 | J50: -0.06288496057 | K50: 16.62107526 | L50: 12.44317768 | M50: -0.2513614501 | N50: 0 | O50: 0 | Q50: 34.62549464 | R50: 33.52409484 | S50: -0.03180892603 | T50: 36.74095205 | U50: 42.04956255 | V50: 0.1444875594 | W50: 16.4543643 | X50: 21.58235741 | Y50: 0.3116494207 | Z50: 4.785698217 | AA50: 3.146257624 | AB50: -0.3425708263 | AC50: -9.771207182 | AD50: -4.331626259 | AE50: -0.5566948711
D51: SWEST | E51: 30.51203302 | F51: 31.54988192 | G51: 0.03401441325 | H51: 97.45064429 | I51: 87.0871128 | J51: -0.1063464646 | K51: 25.39696778 | L51: 20.50087154 | M51: -0.1927827086 | N51: 0 | O51: 0 | Q51: 52.52934196 | R51: 56.01461289 | S51: 0.06634903088 | T51: 48.21722235 | U51: 61.97341466 | V51: 0.2852962415 | W51: 25.4470119 | X51: 33.40145835 | Y51: 0.3125886247 | Z51: 6.142931214 | AA51: 3.798704921 | AB51: -0.3816136321 | AC51: -14.6967389 | AD51: -6.165319386 | AE51: -0.580497454
D52: LPN | E52: 62.26738094 | F52: 35.98321298 | G52: -0.4221177695 | H52: 56.49632556 | I52: 56.18694173 | J52: -0.005476176196 | K52: 19.84347732 | L52: 19.5309907 | M52: -0.01574757361 | N52: 0 | O52: 0.181124673 | Q52: 54.33078876 | R52: 56.47906622 | S52: 0.03954070073 | T52: 59.6290493 | U52: 60.76021108 | V52: 0.01896997842 | W52: 25.40084389 | X52: 24.13447373 | Y52: -0.04985543662 | Z52: 6.358915142 | AA52: 4.758565798 | AB52: -0.251670184 | AC52: -11.23866587 | AD52: -0.7290818844 | AE52: -0.9351273636
D53: SPN | E53: 40.02581412 | F53: 24.05779284 | G53: -0.3989430728 | H53: 83.32600546 | I53: 71.88868677 | J53: -0.1372598942 | K53: 20.78678772 | L53: 19.25082761 | M53: -0.07389117199 | N53: 0 | O53: 0 | Q53: 58.15684943 | R53: 69.75946114 | S53: 0.1995055067 | T53: 62.70179016 | U53: 64.42283603 | V53: 0.02744811379 | W53: 25.96544096 | X53: 24.02719822 | Y53: -0.07464701779 | Z53: 7.218784122 | AA53: 4.69067855 | AB53: -0.3502121034 | AC53: -12.10338667 | AD53: -0.8854917341 | AE53: -0.9268393419
D54: EPN | E54: 92.31057459 | F54: 49.2967404 | G54: -0.465968654 | H54: 122.6880978 | I54: 121.6810316 | J54: -0.00820834398 | K54: 32.1430941 | L54: 32.11536306 | M54: -0.0008627371089 | N54: 0 | O54: 0.004143113138 | Q54: 95.44459109 | R54: 116.7535539 | S54: 0.2232600352 | T54: 95.39641364 | U54: 110.3559851 | V54: 0.1568148199 | W54: 39.27615769 | X54: 38.60145213 | Y54: -0.01717850227 | Z54: 10.91431927 | AA54: 7.412189433 | AB54: -0.3208747839 | AC54: -19.24780718 | AD54: -1.624637777 | AE54: -0.9155936174
D55: SPD | E55: 45.5350748 | F55: 48.44438781 | G55: 0.06389169287 | H55: 105.5110027 | I55: 107.758023 | J55: 0.02129654939 | K55: 17.87219844 | L55: 15.79055373 | M55: -0.1164739031 | N55: 0 | O55: 0 | Q55: 55.66184362 | R55: 61.03712061 | S55: 0.09657022899 | T55: 59.14238251 | U55: 54.10093875 | V55: -0.08524248679 | W55: 29.88231511 | X55: 35.65689629 | Y55: 0.193244103 | Z55: 22.14704466 | AA55: 9.028080006 | AB55: -0.5923573485 | AC55: -12.36576246 | AD55: -0.892514206 | AE55: -0.9278237627
D56: SPMW | E56: 46.59493392 | F56: 40.10530837 | G56: -0.1392774922 | H56: 128.7974618 | I56: 114.4672036 | J56: -0.1112619607 | K56: 14.43919189 | L56: 16.03688672 | M56: 0.1106498785 | N56: 0 | O56: 0 | Q56: 55.45146641 | R56: 62.49966537 | S56: 0.1271057272 | T56: 52.5342541 | U56: 61.26202901 | V56: 0.1661349354 | W56: 25.99127591 | X56: 33.9576228 | Y56: 0.3065008015 | Z56: 24.99282885 | AA56: 8.41375175 | AB56: -0.6633533643 | AC56: -12.18889521 | AD56: -0.9929882603 | AE56: -0.9185333664
D57: SSEH | E57: 21.14144658 | F57: 24.7492731 | G57: 0.1706518284 | H57: 79.25867986 | I57: 82.99363171 | J57: 0.04712356876 | K57: 13.22588255 | L57: 16.72841249 | M57: 0.2648239105 | N57: 0 | O57: 0 | Q57: 39.23810479 | R57: 38.97181133 | S57: -0.006786603466 | T57: 55.37755587 | U57: 64.40844043 | V57: 0.1630784244 | W57: 27.52814513 | X57: 35.60960471 | Y57: 0.2935707996 | Z57: 18.78361311 | AA57: 27.83161206 | AB57: 0.4816964073 | AC57: -9.06 | AD57: -0.413250752 | AE57: -0.9543873342
D58: SSES | E58: 85.01964653 | F58: 71.08652032 | G58: -0.1638812531 | H58: 144.1596166 | I58: 155.6946857 | J58: 0.08001595319 | K58: 26.23907291 | L58: 25.86939112 | M58: -0.01408898056 | N58: 0 | O58: 0 | Q58: 89.9358889 | R58: 94.52050591 | S58: 0.05097650189 | T58: 93.65453141 | U58: 115.7963148 | V58: 0.2364197761 | W58: 51.25739498 | X58: 49.10471978 | Y58: -0.04199735859 | Z58: 2.687298875 | AA58: 8.885143373 | AB58: 2.306347297 | AC58: -18.82 | AD58: -0.8110254072 | AE58: -0.9569061952
D59: Total | E59: 677.5226699 | F59: 494.2102465 | G59: -0.2705627893 | H59: 1361.610921 | I59: 1264.79568 | J59: -0.07110345513 | K59: 277.5661419 | L59: 261.3974916 | M59: -0.05825152217 | N59: 0.003782741751 | O59: 0.2970146194 | P59: 77.51834435 | Q59: 821.1952102 | R59: 912.8815556 | S59: 0.1116498784 | T59: 865.1371397 | U59: 930.434608 | V59: 0.07547643645 | W59: 432.2829762 | X59: 466.7974118 | Y59: 0.07984222716 | Z59: 152.2431672 | AA59: 110.5566042 | AB59: -0.273815658 | AC59: -192.9435188 | AD59: -39.7258617 | AE59: -0.7941062651
B62: Distribution of overall allowances and expenditure RIGs Annex B Business Plan Data Templates Scores & allowances 2014-20141120-1_7 Post CMA Combining results for Reg Finance-20141120-1 RJ Post CMA DPCR5 Close out report DPCR4 Allowances | D62: Allowances
E63: DR4 | J63: DR5 | O63: ED1 | W63: ED2
E64: 2005/06 | F64: 2006/07 | G64: 2007/08 | H64: 2008/09 | I64: 2009/10 | J64: 2010/11 | K64: 2011/12 | L64: 2012/13 | M64: 2013/14 | N64: 2014/15 | O64: 2015/16 | P64: 2016/17 | Q64: 2017/18 | R64: 2018/19 | S64: 2019/20 | T64: 2020/21 | U64: 2021/22 | V64: 2022/23 | W64: 2023/24 | X64: 2024/25 | Y64: 2025/26 | Z64: 2026/27 | AA64: 2027/28
D65: SP ENW | E65: 282.6720882 | F65: 278.032143 | G65: 274.7178965 | H65: 271.5693623 | I65: 268.4208281 | J65: 317.9848465 | K65: 337.4430394 | L65: 333.8568622 | M65: 290.5211715 | N65: 297.5411147 | O65: 285.4 | P65: 272.8 | Q65: 275.2 | R65: 278 | S65: 278.3 | T65: 284.4 | U65: 297.9 | V65: 280.4 | W65: 342.0030374 | X65: 341.7579725 | Y65: 414.703617 | Z65: 444.1306135 | AA65: 468.6676959
D66: NPgN | E66: 179.9967301 | F66: 181.985278 | G66: 180.9910041 | H66: 179.9967301 | I66: 179.1681685 | J66: 206.7922318 | K66: 205.8142275 | L66: 215.8167807 | M66: 222.9765234 | N66: 218.412638 | O66: 220.3 | P66: 216.4 | Q66: 202 | R66: 199 | S66: 198 | T66: 183.6 | U66: 173.6 | V66: 171 | W66: 209.48996 | X66: 220.388499 | Y66: 237.6257863 | Z66: 255.7274904 | AA66: 245.2988751
D67: NPgY | E67: 240.5480146 | F67: 237.730905 | G67: 234.7480831 | H67: 233.4223845 | I67: 232.2623982 | J67: 277.2335343 | K67: 279.8856667 | L67: 275.624825 | M67: 280.6217533 | N67: 290.7740722 | O67: 290.6 | P67: 274 | Q67: 269.4 | R67: 271.9 | S67: 258.4 | T67: 245.9 | U67: 235.6 | V67: 241.6 | W67: 290.1347463 | X67: 299.9183468 | Y67: 302.3431893 | Z67: 337.7457701 | AA67: 315.8376131
D68: WMID | E68: 304.9769675 | F68: 300.0055977 | G68: 296.0285018 | H68: 293.0456799 | I68: 291.7199813 | J68: 304.5030371 | K68: 313.8536492 | L68: 331.0854941 | M68: 336.1297188 | N68: 340.0980018 | O68: 313.1 | P68: 314.2 | Q68: 304.2 | R68: 309.7 | S68: 318.4 | T68: 316.4 | U68: 317.1 | V68: 322.2 | W68: 315.5507537 | X68: 317.7543549 | Y68: 307.997151 | Z68: 289.6090863 | AA68: 311.9801518
D69: EMID | E69: 307.3963675 | F69: 310.8763264 | G69: 310.8763264 | H69: 308.0592168 | I69: 306.5678058 | J69: 303.6142583 | K69: 316.9987247 | L69: 347.2239849 | M69: 341.1778355 | N69: 339.0963391 | O69: 342.8 | P69: 335.7 | Q69: 298.8 | R69: 304.7 | S69: 300.4 | T69: 308.8 | U69: 327.5 | V69: 330.9 | W69: 345.9481176 | X69: 347.924489 | Y69: 337.756494 | Z69: 333.7235519 | AA69: 318.3865608
D70: SWALES | E70: 144.2691523 | F70: 146.5891249 | G70: 147.4176865 | H70: 146.5891249 | I70: 145.7605633 | J70: 149.580372 | K70: 154.8737262 | L70: 160.1217663 | M70: 159.1307574 | N70: 162.1664804 | O70: 176.6 | P70: 178.2 | Q70: 168.7 | R70: 179.6 | S70: 164 | T70: 149.1 | U70: 146.3 | V70: 149.1 | W70: 189.8102214 | X70: 188.1582784 | Y70: 202.1312135 | Z70: 187.4439229 | AA70: 181.1825253
D71: SWEST | E71: 193.9497081 | F71: 197.0982423 | G71: 198.0925163 | H71: 197.0982423 | I71: 196.1039683 | J71: 205.4862233 | K71: 223.4674796 | L71: 229.0115073 | M71: 232.7042616 | N71: 234.8995667 | O71: 258.1 | P71: 258.9 | Q71: 254.1 | R71: 257.7 | S71: 252.6 | T71: 252.1 | U71: 255 | V71: 266.9 | W71: 269.24294 | X71: 270.9994136 | Y71: 288.1649553 | Z71: 271.0129161 | AA71: 261.7068249
D72: LPN | E72: 263.9134527 | F72: 267.7248363 | G72: 270.0448089 | H72: 268.7191102 | I72: 267.3934116 | J72: 291.9770109 | K72: 293.7184637 | L72: 286.5197111 | M72: 263.9987731 | N72: 263.5294163 | O72: 297.2 | P72: 291.6 | Q72: 276.3 | R72: 265.2 | S72: 269.7 | T72: 256.3 | U72: 244.5 | V72: 232.5 | W72: 257.6117173 | X72: 273.088115 | Y72: 251.0534351 | Z72: 234.0610864 | AA72: 218.321405
D73: SPN | E73: 274.5190417 | F73: 267.2276993 | G73: 260.2677815 | H73: 255.959261 | I73: 248.336494 | J73: 289.4364322 | K73: 295.2493284 | L73: 283.6808337 | M73: 281.2497877 | N73: 295.4099797 | O73: 268 | P73: 293.6 | Q73: 275.9 | R73: 261.5 | S73: 250.2 | T73: 242.1 | U73: 246.5 | V73: 240.3 | W73: 261.7074921 | X73: 286.0780853 | Y73: 268.2327583 | Z73: 264.4864979 | AA73: 263.5135943
D74: EPN | E74: 404.6695037 | F74: 405.1666407 | G74: 403.3438051 | H74: 401.5209695 | I74: 399.8638462 | J74: 429.997994 | K74: 412.005856 | L74: 402.493379 | M74: 401.7219533 | N74: 417.4136982 | O74: 401.5 | P74: 414.7 | Q74: 394.3 | R74: 392.6 | S74: 387.6 | T74: 369.1 | U74: 375.6 | V74: 358.4 | W74: 448.5279675 | X74: 468.925441 | Y74: 389.8108367 | Z74: 393.9097437 | AA74: 384.6948011
D75: SPD | E75: 258.6852288 | F75: 265.636861 | G75: 264.4768747 | H75: 263.151176 | I75: 261.9911897 | J75: 218.8143813 | K75: 232.081583 | L75: 250.218951 | M75: 263.1861764 | N75: 257.3447913 | O75: 246.6 | P75: 245.1 | Q75: 250.8 | R75: 238.3 | S75: 230 | T75: 218.8 | U75: 224.5 | V75: 227.2 | W75: 295.7223681 | X75: 323.3860994 | Y75: 336.8515263 | Z75: 346.0955394 | AA75: 357.7239278
D76: SPMW | E76: 232.8755338 | F76: 230.7005595 | G76: 228.4189079 | H76: 225.5013352 | I76: 224.5070613 | J76: 288.2730607 | K76: 281.5749457 | L76: 307.740027 | M76: 297.7406677 | N76: 301.3769292 | O76: 284.1 | P76: 295.3 | Q76: 270.7 | R76: 249.3 | S76: 248.2 | T76: 252.2 | U76: 247.4 | V76: 233.5 | W76: 295.7902287 | X76: 336.6125176 | Y76: 334.9745327 | Z76: 330.6535604 | AA76: 337.8689348
D77: SSEH | E77: 156.6395776 | F77: 157.662644 | G77: 160.0053037 | H77: 161.7153461 | I77: 160.8867845 | J77: 162.7255354 | K77: 158.0964015 | L77: 153.4980961 | M77: 152.3277125 | N77: 158.7935547 | O77: 193.9 | P77: 201.4 | Q77: 199.6 | R77: 204 | S77: 209.9 | T77: 194.8 | U77: 203.9 | V77: 198.8 | W77: 290.21735 | X77: 245.4934279 | Y77: 509.2012529 | Z77: 355.8961759 | AA77: 398.277542
D78: SSES | E78: 349.0233041 | F78: 356.1489342 | G78: 358.8003315 | H78: 357.3089205 | I78: 355.8175096 | J78: 383.0401235 | K78: 387.027962 | L78: 391.6684164 | M78: 386.2104132 | N78: 374.3125436 | O78: 369.7 | P78: 377.9 | Q78: 365.6 | R78: 369.1 | S78: 330.1 | T78: 338.2 | U78: 341.2 | V78: 332.6 | W78: 421.6957089 | X78: 474.1334502 | Y78: 530.1480311 | Z78: 530.852513 | AA78: 767.7919552
D79: Total | E79: 3594.134671 | F79: 3602.585792 | G79: 3588.229828 | H79: 3563.656859 | I79: 3538.80001 | J79: 3829.459041 | K79: 3892.091054 | L79: 3968.560635 | M79: 3909.697505 | N79: 3951.169126 | O79: 3947.9 | P79: 3969.8 | Q79: 3805.6 | R79: 3780.6 | S79: 3695.8 | T79: 3611.8 | U79: 3636.6 | V79: 3585.4 | W79: 4233.452609 | X79: 4394.618491 | Y79: 4710.994779 | Z79: 4575.348468 | AA79: 4831.252407
D81: Actuals/Forecasts
E82: DR4 | J82: DR5 | O82: ED1 | W82: ED2
E83: 2005/06 | F83: 2006/07 | G83: 2007/08 | H83: 2008/09 | I83: 2009/10 | J83: 2013/11 | K83: 2011/12 | L83: 2012/13 | M83: 2013/14 | N83: 2014/15 | O83: 2015/16 | P83: 2016/17 | Q83: 2017/18 | R83: 2018/19 | S83: 2019/20 | T83: 2020/21 | U83: 2021/22 | V83: 2022/23 | W83: 2023/24 | X83: 2024/25 | Y83: 2025/26 | Z83: 2026/27 | AA83: 2027/28
D84: SP ENW | E84: 251.081477 | F84: 237.9480115 | G84: 260.1002246 | H84: 271.6397254 | I84: 256.3109424 | J84: 260.7739531 | K84: 286.2215652 | L84: 284.5336146 | M84: 293.9341402 | N84: 310.5591858 | O84: 277.1436774 | P84: 234.9060188 | Q84: 272.457096 | R84: 279.7434673 | S84: 255.7025415 | T84: 242.5479044 | U84: 249.7880253 | V84: 261.222006 | W84: 280.5929373 | X84: 341.7972809 | Y84: 444.4675474 | Z84: 467.2711839 | AA84: 484.1725943
D85: NPgN | E85: 159.213635 | F85: 164.3238547 | G85: 177.7698183 | H85: 175.0948634 | I85: 167.5254111 | J85: 148.4202638 | K85: 149.997301 | L85: 209.0215559 | M85: 239.0994101 | N85: 250.3680783 | O85: 213.8031801 | P85: 209.379865 | Q85: 189.1138656 | R85: 194.1683214 | S85: 218.0072781 | T85: 213.3955134 | U85: 194.1217537 | V85: 152.5840032 | W85: 164.5034381 | X85: 205.0878712 | Y85: 253.7655914 | Z85: 265.0354559 | AA85: 273.5320756
D86: NPgY | E86: 220.1965614 | F86: 194.8729292 | G86: 211.1537095 | H86: 224.5915502 | I86: 240.8569018 | J86: 205.953535 | K86: 216.9386039 | L86: 275.1989585 | M86: 281.1199477 | N86: 325.6130846 | O86: 282.9417905 | P86: 244.0123862 | Q86: 236.5085913 | R86: 248.808951 | S86: 272.6065384 | T86: 265.7226769 | U86: 265.0741306 | V86: 254.2352604 | W86: 248.0928216 | X86: 265.3509465 | Y86: 319.0652311 | Z86: 365.8425439 | AA86: 354.2342882
D87: WMID | E87: 227.5006118 | F87: 290.6767693 | G87: 306.5726704 | H87: 343.9798955 | I87: 318.145139 | J87: 280.2796436 | K87: 341.4182974 | L87: 322.0864057 | M87: 384.0363252 | N87: 381.4419487 | O87: 353.5896797 | P87: 356.099265 | Q87: 300.9996172 | R87: 272.0928177 | S87: 272.1634501 | T87: 316.3160101 | U87: 330.3915576 | V87: 303.326833 | W87: 276.4366765 | X87: 303.6039896 | Y87: 343.6172191 | Z87: 356.6347441 | AA87: 292.5331036
D88: EMID | E88: 216.1277426 | F88: 265.3070472 | G88: 293.6419636 | H88: 328.1501341 | I88: 291.5119076 | J88: 262.1185627 | K88: 314.1803969 | L88: 360.7326118 | M88: 389.4877879 | N88: 423.8822152 | O88: 349.1236497 | P88: 352.319243 | Q88: 306.2201671 | R88: 276.3666291 | S88: 295.7088107 | T88: 305.7077496 | U88: 300.4495233 | V88: 317.6937424 | W88: 297.1201512 | X88: 319.5173045 | Y88: 342.6757077 | Z88: 342.2224438 | AA88: 315.9805459
D89: SWALES | E89: 118.8411001 | F89: 123.7166063 | G89: 129.4409243 | H89: 123.5244186 | I89: 127.8386838 | J89: 140.1222638 | K89: 138.4661508 | L89: 159.5906159 | M89: 155.7264589 | N89: 161.3346119 | O89: 161.0108872 | P89: 167.3737296 | Q89: 147.1572573 | R89: 153.5778374 | S89: 145.1869417 | T89: 167.7695721 | U89: 157.6866563 | V89: 159.5755067 | W89: 156.6870936 | X89: 191.3345492 | Y89: 197.4882444 | Z89: 207.8027935 | AA89: 173.4264943
D90: SWEST | E90: 173.1019523 | F90: 181.0632926 | G90: 180.5622017 | H90: 183.718885 | I90: 197.3556632 | J90: 197.6641454 | K90: 199.4580446 | L90: 210.2837857 | M90: 230.702624 | N90: 216.2338963 | O90: 253.0147111 | P90: 289.7987159 | Q90: 249.9648223 | R90: 230.5848132 | S90: 245.6040918 | T90: 236.1841369 | U90: 225.3603616 | V90: 246.7612269 | W90: 252.9368393 | X90: 288.1607377 | Y90: 322.6766214 | Z90: 328.356829 | AA90: 284.7618932
D91: LPN | E91: 204.204618 | F91: 228.4609676 | G91: 242.7045218 | H91: 258.3941945 | I91: 252.7836259 | J91: 244.1506712 | K91: 216.8713483 | L91: 244.3121228 | M91: 261.1394585 | N91: 250.9630161 | O91: 214.3409526 | P91: 230.9058222 | Q91: 251.5865252 | R91: 237.3427451 | S91: 237.5502206 | T91: 234.062425 | U91: 238.8282866 | V91: 201.4796948 | W91: 223.4528582 | X91: 257.285505 | Y91: 237.0931887 | Z91: 239.2447835 | AA91: 216.2051273
D92: SPN | E92: 227.8968664 | F92: 184.3200523 | G92: 226.204563 | H92: 285.784235 | I92: 330.9588141 | J92: 293.3383589 | K92: 262.7958054 | L92: 254.8028936 | M92: 270.3019159 | N92: 222.1327642 | O92: 196.1220858 | P92: 228.7976135 | Q92: 229.1987465 | R92: 236.3337788 | S92: 229.7373501 | T92: 220.9252278 | U92: 225.5639978 | V92: 260.6854035 | W92: 249.7752465 | X92: 277.2119894 | Y92: 271.0818126 | Z92: 258.9476931 | AA92: 215.5450111
D93: EPN | E93: 297.4223337 | F93: 326.7555938 | G93: 404.8836037 | H93: 461.8509648 | I93: 508.2391853 | J93: 436.1130273 | K93: 380.9981111 | L93: 371.4150302 | M93: 426.921028 | N93: 415.7888121 | O93: 318.4915896 | P93: 345.3929772 | Q93: 369.7757732 | R93: 354.0311673 | S93: 367.7892823 | T93: 361.252158 | U93: 362.8168636 | V93: 341.7760278 | W93: 397.7709406 | X93: 474.5958209 | Y93: 435.8783782 | Z93: 428.2644436 | AA93: 399.9329491
D94: SPD | E94: 198.335147 | F94: 223.8196498 | G94: 225.0190661 | H94: 222.2226371 | I94: 196.7747331 | J94: 204.7551572 | K94: 229.182868 | L94: 215.2982925 | M94: 245.8505432 | N94: 251.8616687 | O94: 218.8064692 | P94: 235.9333951 | Q94: 240.2132181 | R94: 264.9253618 | S94: 254.7772778 | T94: 249.6444784 | U94: 229.6417321 | V94: 215.5599916 | W94: 264.3758244 | X94: 330.923486 | Y94: 372.452903 | Z94: 377.6581316 | AA94: 375.1453827
D95: SPMW | E95: 222.4454072 | F95: 211.711176 | G95: 232.2797791 | H95: 245.5223017 | I95: 212.9443009 | J95: 224.7729684 | K95: 255.7471676 | L95: 271.4963358 | M95: 301.5840636 | N95: 335.6015996 | O95: 272.2701871 | P95: 284.8664626 | Q95: 289.3889498 | R95: 302.0383428 | S95: 275.5925667 | T95: 249.7091392 | U95: 251.4991761 | V95: 247.7048605 | W95: 273.7182603 | X95: 335.7494794 | Y95: 368.6006554 | Z95: 370.3217349 | AA95: 365.6678526
D96: SSEH | E96: 109.9998174 | F96: 115.9038023 | G96: 124.9934757 | H96: 143.9605199 | I96: 153.0872699 | J96: 118.6188892 | K96: 148.0764853 | L96: 145.0882019 | M96: 138.3559042 | N96: 148.2744553 | O96: 171.5844329 | P96: 193.0909171 | Q96: 182.9123604 | R96: 197.3885566 | S96: 204.4590617 | T96: 226.6451239 | U96: 259.8885761 | V96: 251.9164949 | W96: 271.9572639 | X96: 290.8795351 | Y96: 531.8124386 | Z96: 358.3026893 | AA96: 387.6742688
D97: SSES | E97: 239.8158463 | F97: 269.4684836 | G97: 311.2586025 | H97: 342.8862682 | I97: 349.2266278 | J97: 270.2711187 | K97: 302.1195587 | L97: 333.9875996 | M97: 370.3318509 | N97: 348.3601287 | O97: 318.4058285 | P97: 342.109287 | Q97: 384.8573428 | R97: 360.0825717 | S97: 392.340648 | T97: 380.7455631 | U97: 345.3173375 | V97: 339.2636796 | W97: 398.9695668 | X97: 520.1462556 | Y97: 585.0306656 | Z97: 642.3412586 | AA97: 757.6677641
D98: Total | E98: 2866.183116 | F98: 3018.348236 | G98: 3326.585124 | H98: 3611.320593 | I98: 3603.559206 | J98: 3287.352558 | K98: 3442.471704 | L98: 3657.848024 | M98: 3988.591458 | N98: 4042.415465 | O98: 3600.649121 | P98: 3714.985698 | Q98: 3650.354333 | R98: 3607.485361 | S98: 3667.22606 | T98: 3670.627679 | U98: 3636.427978 | V98: 3553.784731 | W98: 3756.389918 | X98: 4401.644751 | Y98: 5025.706205 | Z98: 5008.246729 | AA98: 4896.479351
D101: Allowances vs Expenditure
E102: Cumulative to date | I102: Overall ED2 Forecast
E103: Allowance | F103: Actual | G103: Difference | I103: Allowance | J103: Actual (and forecast) | K103: Difference
H104: % | L104: %
D105: SP ENW | E105: 683.7610099 | F105: 622.3902181 | G105: -61.37079176 | H105: -0.08975474014 | I105: 2011.262936 | J105: 2018.301544 | K105: 7.038607386 | L105: 0.00349959583
D106: NPgN | E106: 429.878459 | F106: 369.5913093 | G106: -60.28714971 | H106: -0.1402423137 | I106: 1168.530611 | J106: 1161.924432 | K106: -6.606178571 | L106: -0.005653406517
D107: NPgY | E107: 590.0530931 | F107: 513.4437681 | G107: -76.60932493 | H107: -0.1298346299 | I107: 1545.979665 | J107: 1552.585831 | K107: 6.606165773 | L107: 0.004273125915
D108: WMID | E108: 633.3051086 | F108: 580.0406661 | G108: -53.26444251 | H108: -0.08410549952 | I108: 1542.891498 | J108: 1572.825733 | K108: 29.93423518 | L108: 0.01940138709
D109: EMID | E109: 693.8726066 | F109: 616.6374558 | G109: -77.23515086 | H109: -0.1113102753 | I109: 1683.739213 | J109: 1617.516153 | K109: -66.22306005 | L109: -0.03933094836
D110: SWALES | E110: 377.9684998 | F110: 348.0216428 | G110: -29.94685701 | H110: -0.07923109207 | I110: 948.7261615 | J110: 926.739175 | K110: -21.98698651 | L110: -0.02317527164
D111: SWEST | E111: 540.2423536 | F111: 541.097577 | G111: 0.8552233756 | H111: 0.00158303652 | I111: 1361.12705 | J111: 1476.892921 | K111: 115.7658708 | L111: 0.08505148054
D112: LPN | E112: 530.6998324 | F112: 480.7383633 | G112: -49.96146911 | H112: -0.09414261332 | I112: 1234.135759 | J112: 1173.281463 | K112: -60.85429616 | L112: -0.04930923987
D113: SPN | E113: 547.7855774 | F113: 526.9872359 | G113: -20.79834152 | H113: -0.03796803416 | I113: 1344.018428 | J113: 1272.561753 | K113: -71.45667517 | L113: -0.05316644005
D114: EPN | E114: 917.4534085 | F114: 872.3667615 | G114: -45.08664701 | H114: -0.04914325522 | I114: 2085.86879 | J114: 2136.442532 | K114: 50.57374248 | L114: 0.02424588868
D115: SPD | E115: 619.1084675 | F115: 595.2993104 | G115: -23.80915708 | H115: -0.03845716595 | I115: 1659.779461 | J115: 1720.555728 | K115: 60.77626664 | L115: 0.03661707357
D116: SPMW | E116: 632.4027463 | F116: 609.4677397 | G116: -22.93500665 | H116: -0.03626645644 | I116: 1635.899774 | J116: 1714.057983 | K116: 78.15820847 | L116: 0.047776893
D117: SSEH | E117: 535.7107779 | F117: 562.836799 | G117: 27.12602108 | H117: 0.05063557091 | I117: 1799.085749 | J117: 1840.626196 | K117: 41.54044701 | L117: 0.02308975381
D118: SSES | E118: 895.8291591 | F118: 919.1158224 | G118: 23.28666335 | H118: 0.02599453602 | I118: 2724.621658 | J118: 2904.155511 | K118: 179.5338523 | L118: 0.06589313115
D119: Total | E119: 8628.0711 | F119: 8158.034669 | G119: -470.0364303 | H119: -0.05447757962 | I119: 22745.66675 | J119: 23088.46695 | K119: 342.8001995 | L119: 0.01507101125
E122: Cumulative to date | I122: Overall ED2 Forecast
E123: Allowance | F123: Actual | G123: Difference | I123: Allowance | J123: Actual | K123: Difference
H124: % | K124: No | L124: %
D125: SP ENW | E125: 683.7610099 | F125: 622.3902181 | G125: -61.37079176 | H125: -0.08975474014 | I125: 2011.262936 | J125: 2018.301544 | K125: 7.038607386 | L125: 0.00349959583
D126: NPg | E126: 1019.931552 | F126: 883.0350774 | G126: -136.8964746 | H126: -0.1342212371 | I126: 2714.510276 | J126: 2714.510264 | K126: -1.279846219e-05 | L126: -4.714832839e-09
D127: NGED | E127: 2245.388569 | F127: 2085.797342 | G127: -159.591227 | H127: -0.07107510443 | I127: 5536.483922 | J127: 5593.973982 | K127: 57.49005941 | L127: 0.01038385738
D128: UKPN | E128: 1995.938818 | F128: 1880.092361 | G128: -115.8464576 | H128: -0.05804108652 | I128: 4664.022977 | J128: 4582.285748 | K128: -81.73722885 | L128: -0.0175250485
D129: SPEN | E129: 1251.511214 | F129: 1204.76705 | G129: -46.74416373 | H129: -0.0373501757 | I129: 3295.679235 | J129: 3434.61371 | K129: 138.9344751 | L129: 0.04215655262
D130: SSEN | E130: 1431.539937 | F130: 1481.952621 | G130: 50.41268442 | H130: 0.03521570242 | I130: 4523.707407 | J130: 4744.781706 | K130: 221.0742993 | L130: 0.04887015879
D131: Total | E131: 8628.0711 | F131: 8158.034669 | G131: -470.0364303 | H131: -0.05447757962 | I131: 22745.66675 | J131: 23088.46695 | K131: 342.8001995 | L131: 0.01507101125
B134: Breakdown by category | D134: Total Load Related Capex | W134: 2023/24 | AB134: 2024/25 | AG134: 2025/26 | AL134: 2026/27 | AQ134: 2027/28
E135: DNO Forecast (£m) - DNO Business Plan Data Templates | K135: DNO Allowance (£m) | Q135: DNO Actual (£m) | W135: Allowance | X135: Actual | Y135: Difference | AB135: Allowance | AC135: Actual | AD135: Difference | AG135: Allowance | AH135: Forecast | AI135: Difference | AL135: Allowance | AM135: Forecast | AN135: Difference | AQ135: Allowance | AR135: Forecast | AS135: Difference
E136: 2023/24 | F136: 2024/25 | G136: 2025/26 | H136: 2026/27 | I136: 2027/28 | K136: 2023/24 | L136: 2024/25 | M136: 2025/26 | N136: 2026/27 | O136: 2027/28 | Q136: 2023/24 | R136: 2024/25 | S136: 2025/26 | T136: 2026/27 | U136: 2027/28 | W136: £ | X136: £ | Y136: £ | Z136: % | AB136: £ | AC136: £ | AD136: £ | AE136: % | AG136: £ | AH136: £ | AI136: £ | AJ136: % | AL136: £ | AM136: £ | AN136: £ | AO136: % | AQ136: £ | AR136: £ | AS136: £ | AT136: %
D137: SP ENW | E137: 19.78752755 | F137: 34.85728297 | G137: 41.05215903 | H137: 31.48930443 | I137: 37.1790441 | K137: 30.68040899 | L137: 39.25168271 | M137: 82.05995885 | N137: 108.1882538 | O137: 117.749253 | Q137: 23.52884158 | R137: 45.7329267 | S137: 68.67076961 | T137: 116.1988637 | U137: 120.2743031 | W137: 30.68040899 | X137: 23.52884158 | Y137: -7.151567406 | Z137: -0.2330988289 | AB137: 39.25168271 | AC137: 45.7329267 | AD137: 6.481243997 | AE137: 0.1651201566 | AG137: 82.05995885 | AH137: 68.67076961 | AI137: -13.38918923 | AJ137: -0.1631634895 | AL137: 108.1882538 | AM137: 116.1988637 | AN137: 8.010609925 | AO137: 0.07404325002 | AQ137: 117.749253 | AR137: 120.2743031 | AS137: 2.525050063 | AT137: 0.02144429793
D138: NPgN | E138: 18.94635632 | F138: 26.72049402 | G138: 32.54106566 | H138: 51.98448819 | I138: 47.77042558 | K138: 28.2097355 | L138: 28.06084615 | M138: 29.30693284 | N138: 32.89957381 | O138: 28.86885902 | Q138: 14.19885409 | R138: 13.98438597 | S138: 34.24683196 | T138: 45.56720615 | U138: 40.85279642 | W138: 28.2097355 | X138: 14.19885409 | Y138: -14.01088141 | Z138: -0.4966683011 | AB138: 28.06084615 | AC138: 13.98438597 | AD138: -14.07646018 | AE138: -0.5016406172 | AG138: 29.30693284 | AH138: 34.24683196 | AI138: 4.939899117 | AJ138: 0.1685573562 | AL138: 32.89957381 | AM138: 45.56720615 | AN138: 12.66763234 | AO138: 0.3850394056 | AQ138: 28.86885902 | AR138: 40.85279642 | AS138: 11.9839374 | AT138: 0.4151164199
D139: NPgY | E139: 32.0331918 | F139: 43.28355814 | G139: 45.82367666 | H139: 78.23460857 | I139: 71.17532503 | K139: 49.08696428 | L139: 48.61433079 | M139: 35.74596339 | N139: 54.70369245 | O139: 43.68169113 | Q139: 23.64002471 | R139: 20.27734413 | S139: 42.67958998 | T139: 77.83256591 | U139: 62.98338408 | W139: 49.08696428 | X139: 23.64002471 | Y139: -25.44693958 | Z139: -0.5184052416 | AB139: 48.61433079 | AC139: 20.27734413 | AD139: -28.33698667 | AE139: -0.5828936901 | AG139: 35.74596339 | AH139: 42.67958998 | AI139: 6.933626592 | AJ139: 0.1939694985 | AL139: 54.70369245 | AM139: 77.83256591 | AN139: 23.12887346 | AO139: 0.4228027839 | AQ139: 43.68169113 | AR139: 62.98338408 | AS139: 19.30169295 | AT139: 0.4418714672
D140: WMID | E140: 58.7837 | F140: 47.098 | G140: 50.1606 | H140: 47.8892 | I140: 49.0846 | K140: 55.61881198 | L140: 45.97121167 | M140: 32.84064033 | N140: 35.00865643 | O140: 39.03392553 | Q140: 18.73760363 | R140: 27.50265087 | S140: 36.92705399 | T140: 62.30030962 | U140: 52.68971992 | W140: 55.61881198 | X140: 18.73760363 | Y140: -36.88120835 | Z140: -0.6631067266 | AB140: 45.97121167 | AC140: 27.50265087 | AD140: -18.4685608 | AE140: -0.4017418757 | AG140: 32.84064033 | AH140: 36.92705399 | AI140: 4.086413661 | AJ140: 0.1244316073 | AL140: 35.00865643 | AM140: 62.30030962 | AN140: 27.29165319 | AO140: 0.7795687118 | AQ140: 39.03392553 | AR140: 52.68971992 | AS140: 13.6557944 | AT140: 0.3498442499
D141: EMID | E141: 67.1816 | F141: 65.3047 | G141: 71.5381 | H141: 70.3335 | I141: 55.6792 | K141: 68.94334095 | L141: 66.76160653 | M141: 52.17222806 | N141: 56.1060642 | O141: 47.49309418 | Q141: 38.21031841 | R141: 37.78769872 | S141: 49.82673047 | T141: 72.45093774 | U141: 69.45452608 | W141: 68.94334095 | X141: 38.21031841 | Y141: -30.73302254 | Z141: -0.4457721676 | AB141: 66.76160653 | AC141: 37.78769872 | AD141: -28.9739078 | AE141: -0.433990572 | AG141: 52.17222806 | AH141: 49.82673047 | AI141: -2.345497594 | AJ141: -0.04495682246 | AL141: 56.1060642 | AM141: 72.45093774 | AN141: 16.34487355 | AO141: 0.2913209789 | AQ141: 47.49309418 | AR141: 69.45452608 | AS141: 21.9614319 | AT141: 0.4624131631
D142: SWALES | E142: 31.3667 | F142: 28.8825 | G142: 35.7797 | H142: 37.2472 | I142: 36.5777 | K142: 28.46049989 | L142: 25.4560876 | M142: 34.06569203 | N142: 37.07837971 | O142: 31.0101412 | Q142: 11.63051408 | R142: 23.65212238 | S142: 33.19214177 | T142: 60.86156318 | U142: 32.68447434 | W142: 28.46049989 | X142: 11.63051408 | Y142: -16.82998581 | Z142: -0.5913454041 | AB142: 25.4560876 | AC142: 23.65212238 | AD142: -1.803965212 | AE142: -0.07086576856 | AG142: 34.06569203 | AH142: 33.19214177 | AI142: -0.8735502669 | AJ142: -0.02564310938 | AL142: 37.07837971 | AM142: 60.86156318 | AN142: 23.78318347 | AO142: 0.641429956 | AQ142: 31.0101412 | AR142: 32.68447434 | AS142: 1.674333139 | AT142: 0.05399308335
D143: SWEST | E143: 40.5192 | F143: 35.5648 | G143: 54.9545 | H143: 47.8027 | I143: 45.1238 | K143: 34.25441483 | L143: 30.51203302 | M143: 38.61799436 | N143: 31.60464301 | O143: 29.95681994 | Q143: 20.94590438 | R143: 31.54988192 | S143: 38.15758908 | T143: 39.87484421 | U143: 31.46669934 | W143: 34.25441483 | X143: 20.94590438 | Y143: -13.30851045 | Z143: -0.388519568 | AB143: 30.51203302 | AC143: 31.54988192 | AD143: 1.0378489 | AE143: 0.03401441325 | AG143: 38.61799436 | AH143: 38.15758908 | AI143: -0.4604052827 | AJ143: -0.01192204024 | AL143: 31.60464301 | AM143: 39.87484421 | AN143: 8.2702012 | AO143: 0.2616767795 | AQ143: 29.95681994 | AR143: 31.46669934 | AS143: 1.509879393 | AT143: 0.05040185827
D144: LPN | E144: 54.4458872 | F144: 59.0107234 | G144: 48.01209625 | H144: 40.11590307 | I144: 44.11120215 | K144: 58.10120314 | L144: 62.26738094 | M144: 39.11229795 | N144: 29.81074666 | O144: 27.66685944 | Q144: 26.29129489 | R144: 35.98321298 | S144: 39.25342802 | T144: 41.03304806 | U144: 36.03036803 | W144: 58.10120314 | X144: 26.29129489 | Y144: -31.80990825 | Z144: -0.5474913863 | AB144: 62.26738094 | AC144: 35.98321298 | AD144: -26.28416796 | AE144: -0.4221177695 | AG144: 39.11229795 | AH144: 39.25342802 | AI144: 0.1411300605 | AJ144: 0.00360832955 | AL144: 29.81074666 | AM144: 41.03304806 | AN144: 11.2223014 | AO144: 0.3764515369 | AQ144: 27.66685944 | AR144: 36.03036803 | AS144: 8.363508587 | AT144: 0.3022933848
D145: SPN | E145: 22.02399754 | F145: 38.92503963 | G145: 31.1821788 | H145: 27.6367965 | I145: 30.2050405 | K145: 25.90993632 | L145: 40.02581412 | M145: 28.59443234 | N145: 23.82862047 | O145: 24.39213207 | Q145: 24.61578553 | R145: 24.05779284 | S145: 19.69604755 | T145: 23.03131702 | U145: 14.7583651 | W145: 25.90993632 | X145: 24.61578553 | Y145: -1.294150789 | Z145: -0.04994804978 | AB145: 40.02581412 | AC145: 24.05779284 | AD145: -15.96802127 | AE145: -0.3989430728 | AG145: 28.59443234 | AH145: 19.69604755 | AI145: -8.89838479 | AJ145: -0.3111929163 | AL145: 23.82862047 | AM145: 23.03131702 | AN145: -0.7973034482 | AO145: -0.03345990798 | AQ145: 24.39213207 | AR145: 14.7583651 | AS145: -9.633766972 | AT145: -0.3949538705
D146: EPN | E146: 39.45232592 | F146: 44.71841935 | G146: 46.22626654 | H146: 41.17299214 | I146: 59.68917863 | K146: 86.36245667 | L146: 92.31057459 | M146: 35.60894591 | N146: 31.32240918 | O146: 42.14639866 | Q146: 48.71828643 | R146: 49.2967404 | S146: 51.07743984 | T146: 49.26797503 | U146: 40.42325462 | W146: 86.36245667 | X146: 48.71828643 | Y146: -37.64417024 | Z146: -0.4358858199 | AB146: 92.31057459 | AC146: 49.2967404 | AD146: -43.01383419 | AE146: -0.465968654 | AG146: 35.60894591 | AH146: 51.07743984 | AI146: 15.46849393 | AJ146: 0.4343990963 | AL146: 31.32240918 | AM146: 49.26797503 | AN146: 17.94556585 | AO146: 0.5729305733 | AQ146: 42.14639866 | AR146: 40.42325462 | AS146: -1.723144042 | AT146: -0.04088472793
D147: SPD | E147: 37.7498625 | F147: 48.02358751 | G147: 54.36367913 | H147: 57.64542285 | I147: 63.59903781 | K147: 47.75290781 | L147: 45.5350748 | M147: 75.08375284 | N147: 74.63200182 | O147: 76.76287219 | Q147: 35.56922895 | R147: 48.44438781 | S147: 75.00427348 | T147: 79.93401858 | U147: 89.76663418 | W147: 47.75290781 | X147: 35.56922895 | Y147: -12.18367886 | Z147: -0.2551400411 | AB147: 45.5350748 | AC147: 48.44438781 | AD147: 2.909313014 | AE147: 0.06389169287 | AG147: 75.08375284 | AH147: 75.00427348 | AI147: -0.07947936534 | AJ147: -0.001058542792 | AL147: 74.63200182 | AM147: 79.93401858 | AN147: 5.302016758 | AO147: 0.07104213513 | AQ147: 76.76287219 | AR147: 89.76663418 | AS147: 13.00376199 | AT147: 0.1694017123
D148: SPMW | E148: 29.61995606 | F148: 36.38795757 | G148: 36.27734499 | H148: 38.94462682 | I148: 41.87461653 | K148: 39.24785429 | L148: 46.59493392 | M148: 47.67804993 | N148: 47.92402509 | O148: 48.50578608 | Q148: 28.72307954 | R148: 40.10530837 | S148: 47.30109879 | T148: 50.45903493 | U148: 54.21655028 | W148: 39.24785429 | X148: 28.72307954 | Y148: -10.52477475 | Z148: -0.2681617871 | AB148: 46.59493392 | AC148: 40.10530837 | AD148: -6.489625545 | AE148: -0.1392774922 | AG148: 47.67804993 | AH148: 47.30109879 | AI148: -0.3769511429 | AJ148: -0.007906177863 | AL148: 47.92402509 | AM148: 50.45903493 | AN148: 2.535009847 | AO148: 0.05289643018 | AQ148: 48.50578608 | AR148: 54.21655028 | AS148: 5.7107642 | AT148: 0.1177336698
D149: SSEH | E149: 38.54007684 | F149: 18.08019622 | G149: 21.26951671 | H149: 19.26822257 | I149: 16.50297838 | K149: 28.96656745 | L149: 21.14144658 | M149: 36.73177546 | N149: 53.58783703 | O149: 97.66137845 | Q149: 22.94841109 | R149: 24.7492731 | S149: 15.20612285 | T149: 76.17179655 | U149: 92.76896324 | W149: 28.96656745 | X149: 22.94841109 | Y149: -6.018156356 | Z149: -0.2077621509 | AB149: 21.14144658 | AC149: 24.7492731 | AD149: 3.607826513 | AE149: 0.1706518284 | AG149: 36.73177546 | AH149: 15.20612285 | AI149: -21.52565261 | AJ149: -0.5860226559 | AL149: 53.58783703 | AM149: 76.17179655 | AN149: 22.58395952 | AO149: 0.4214381615 | AQ149: 97.66137845 | AR149: 92.76896324 | AS149: -4.89241521 | AT149: -0.05009570096
D150: SSES | E150: 103.26609 | F150: 94.0749492 | G150: 116.4508704 | H150: 47.88107953 | I150: 28.84279818 | K150: 85.82283838 | L150: 85.01964653 | M150: 120.3580817 | N150: 112.3748582 | O150: 331.3027576 | Q150: 40.71663212 | R150: 71.08652032 | S150: 106.8900857 | T150: 184.6910751 | U150: 331.0042165 | W150: 85.82283838 | X150: 40.71663212 | Y150: -45.10620627 | Z150: -0.5255734617 | AB150: 85.01964653 | AC150: 71.08652032 | AD150: -13.93312621 | AE150: -0.1638812531 | AG150: 120.3580817 | AH150: 106.8900857 | AI150: -13.46799599 | AJ150: -0.1118993905 | AL150: 112.3748582 | AM150: 184.6910751 | AN150: 72.31621691 | AO150: 0.6435266578 | AQ150: 331.3027576 | AR150: 331.0042165 | AS150: -0.298541074 | AT150: -0.0009011125538
D151: Total | E151: 593.7164717 | F151: 620.932208 | G151: 685.6317542 | H151: 637.6460447 | I151: 627.4149469 | K151: 667.4179405 | L151: 677.5226699 | M151: 687.976746 | N151: 729.0697618 | O151: 986.2319685 | Q151: 378.4747794 | R151: 494.2102465 | S151: 658.1292031 | T151: 979.6745558 | U151: 1069.374255 | W151: 667.4179405 | X151: 378.4747794 | Y151: -288.943161 | Z151: -0.4329268716 | AB151: 677.5226699 | AC151: 494.2102465 | AD151: -183.3124234 | AE151: -0.2705627893 | AG151: 687.976746 | AH151: 658.1292031 | AI151: -29.84754292 | AJ151: -0.04338452294 | AL151: 729.0697618 | AM151: 979.6745558 | AN151: 250.604794 | AO151: 0.3437322559 | AQ151: 986.2319685 | AR151: 1069.374255 | AS151: 83.14228672 | AT151: 0.08430297271
D153: Total Non-Load Related Capex | W153: 2023/24 | AB153: 2024/25 | AG153: 2025/26 | AL153: 2026/27 | AQ153: 2027/28
E154: DNO Forecast (£m) - DNO Business Plan Data Templates | K154: DNO Allowance (£m) | Q154: DNO Actual (£m) | W154: Allowance | X154: Actual | Y154: Difference | AB154: Allowance | AC154: Actual | AD154: Difference | AG154: Allowance | AH154: Forecast | AI154: Difference | AL154: Allowance | AM154: Forecast | AN154: Difference | AQ154: Allowance | AR154: Forecast | AS154: Difference
E155: 2023/24 | F155: 2024/25 | G155: 2025/26 | H155: 2026/27 | I155: 2027/28 | K155: 2023/24 | L155: 2024/25 | M155: 2025/26 | N155: 2026/27 | O155: 2027/28 | Q155: 2023/24 | R155: 2024/25 | S155: 2025/26 | T155: 2026/27 | U155: 2027/28 | W155: £ | X155: £ | Y155: £ | Z155: % | AB155: £ | AC155: £ | AD155: £ | AE155: % | AG155: £ | AH155: £ | AI155: £ | AJ155: % | AL155: £ | AM155: £ | AN155: £ | AO155: % | AQ155: £ | AR155: £ | AS155: £ | AT155: %
D156: SP ENW | E156: 110.7569388 | F156: 114.0433282 | G156: 114.8159607 | H156: 110.7780059 | I156: 107.7338446 | K156: 107.3627988 | L156: 106.9910604 | M156: 118.2543842 | N156: 117.6328216 | O156: 116.1270406 | Q156: 82.69610209 | R156: 102.3905171 | S156: 125.6504575 | T156: 114.9867578 | U156: 111.2202865 | W156: 107.3627988 | X156: 82.69610209 | Y156: -24.66669671 | Z156: -0.2297508726 | AB156: 106.9910604 | AC156: 102.3905171 | AD156: -4.600543358 | AE156: -0.0429993248 | AG156: 118.2543842 | AH156: 125.6504575 | AI156: 7.396073301 | AJ156: 0.0625437556 | AL156: 117.6328216 | AM156: 114.9867578 | AN156: -2.646063749 | AO156: -0.02249426405 | AQ156: 116.1270406 | AR156: 111.2202865 | AS156: -4.906754109 | AT156: -0.04225332949
D157: NPgN | E157: 83.91473744 | F157: 89.51879226 | G157: 86.04606273 | H157: 83.56146916 | I157: 86.8760544 | K157: 71.19783605 | L157: 75.54400737 | M157: 79.43489492 | N157: 80.31577844 | O157: 82.77006253 | Q157: 36.23322823 | R157: 50.31467018 | S157: 80.1180983 | T157: 71.0167337 | U157: 93.99244427 | W157: 71.19783605 | X157: 36.23322823 | Y157: -34.96460782 | Z157: -0.491090878 | AB157: 75.54400737 | AC157: 50.31467018 | AD157: -25.22933718 | AE157: -0.333968743 | AG157: 79.43489492 | AH157: 80.1180983 | AI157: 0.6832033857 | AJ157: 0.008600796746 | AL157: 80.31577844 | AM157: 71.0167337 | AN157: -9.299044746 | AO157: -0.1157810448 | AQ157: 82.77006253 | AR157: 93.99244427 | AS157: 11.22238174 | AT157: 0.135585034
D158: NPgY | E158: 120.27604 | F158: 118.9193553 | G158: 107.1180579 | H158: 110.9387764 | I158: 105.2955154 | K158: 89.06393887 | L158: 94.90975784 | M158: 93.91350976 | N158: 99.00808711 | O158: 95.59295055 | Q158: 68.47886944 | R158: 69.62912528 | S158: 95.06740452 | T158: 111.0726363 | U158: 126.7799405 | W158: 89.06393887 | X158: 68.47886944 | Y158: -20.58506943 | Z158: -0.2311268701 | AB158: 94.90975784 | AC158: 69.62912528 | AD158: -25.28063256 | AE158: -0.2663649464 | AG158: 93.91350976 | AH158: 95.06740452 | AI158: 1.153894764 | AJ158: 0.01228678139 | AL158: 99.00808711 | AM158: 111.0726363 | AN158: 12.06454915 | AO158: 0.1218541788 | AQ158: 95.59295055 | AR158: 126.7799405 | AS158: 31.18698995 | AT158: 0.3262478015
D159: WMID | E159: 101.531 | F159: 117.4893 | G159: 126.8398 | H159: 103.8157 | I159: 126.8257 | K159: 89.7363957 | L159: 103.6589434 | M159: 111.231537 | N159: 92.43107667 | O159: 110.8481642 | Q159: 81.22642399 | R159: 91.36615027 | S159: 123.3675228 | T159: 114.1509606 | U159: 74.70270795 | W159: 89.7363957 | X159: 81.22642399 | Y159: -8.509971714 | Z159: -0.09483300111 | AB159: 103.6589434 | AC159: 91.36615027 | AD159: -12.29279318 | AE159: -0.1185888334 | AG159: 111.231537 | AH159: 123.3675228 | AI159: 12.13598582 | AJ159: 0.1091056201 | AL159: 92.43107667 | AM159: 114.1509606 | AN159: 21.71988393 | AO159: 0.2349846471 | AQ159: 110.8481642 | AR159: 74.70270795 | AS159: -36.14545628 | AT159: -0.3260807839
D160: EMID | E160: 110.0597 | F160: 110.1571 | G160: 120.1193 | H160: 115.8491 | I160: 110.6308 | K160: 98.69404457 | L160: 99.57350483 | M160: 108.5434813 | N160: 103.5430818 | O160: 96.57181353 | Q160: 79.36436106 | R160: 94.06929752 | S160: 108.2312096 | T160: 91.08829443 | U160: 72.03806123 | W160: 98.69404457 | X160: 79.36436106 | Y160: -19.32968351 | Z160: -0.195854609 | AB160: 99.57350483 | AC160: 94.06929752 | AD160: -5.504207305 | AE160: -0.05527783032 | AG160: 108.5434813 | AH160: 108.2312096 | AI160: -0.312271717 | AJ160: -0.002876927414 | AL160: 103.5430818 | AM160: 91.08829443 | AN160: -12.45478734 | AO160: -0.1202860406 | AQ160: 96.57181353 | AR160: 72.03806123 | AS160: -24.53375229 | AT160: -0.2540467182
D161: SWALES | E161: 66.096 | F161: 65.663 | G161: 75.7928 | H161: 62.4383 | I161: 61.747 | K161: 64.37454912 | L161: 63.24581348 | M161: 72.08346078 | N161: 58.89479234 | O161: 57.65550155 | Q161: 50.77803283 | R161: 59.268603 | S161: 57.16522811 | T161: 56.58805261 | U161: 52.6654161 | W161: 64.37454912 | X161: 50.77803283 | Y161: -13.5965163 | Z161: -0.2112094994 | AB161: 63.24581348 | AC161: 59.268603 | AD161: -3.977210487 | AE161: -0.06288496057 | AG161: 72.08346078 | AH161: 57.16522811 | AI161: -14.91823267 | AJ161: -0.2069577752 | AL161: 58.89479234 | AM161: 56.58805261 | AN161: -2.306739737 | AO161: -0.03916712574 | AQ161: 57.65550155 | AR161: 52.6654161 | AS161: -4.990085449 | AT161: -0.08655003104
D162: SWEST | E162: 113.2764 | F162: 114.4053 | G162: 128.0176 | H162: 125.3091 | I162: 120.9361 | K162: 96.98882938 | L162: 97.45064429 | M162: 107.4754056 | N162: 105.778837 | O162: 99.05302487 | Q162: 79.6166602 | R162: 87.0871128 | S162: 108.7089705 | T162: 111.3693574 | U162: 92.53667528 | W162: 96.98882938 | X162: 79.6166602 | Y162: -17.37216918 | Z162: -0.1791151547 | AB162: 97.45064429 | AC162: 87.0871128 | AD162: -10.36353149 | AE162: -0.1063464646 | AG162: 107.4754056 | AH162: 108.7089705 | AI162: 1.233564981 | AJ162: 0.011477649 | AL162: 105.778837 | AM162: 111.3693574 | AN162: 5.590520373 | AO162: 0.0528510289 | AQ162: 99.05302487 | AR162: 92.53667528 | AS162: -6.51634959 | AT162: -0.06578647748
D163: LPN | E163: 57.75765355 | F163: 59.98333344 | G163: 75.77501637 | H163: 64.55162168 | I163: 53.34074287 | K163: 54.42559531 | L163: 56.49632556 | M163: 70.57780721 | N163: 61.16236788 | O163: 50.75008347 | Q163: 44.27528463 | R163: 56.18694173 | S163: 48.77605369 | T163: 53.01874305 | U163: 42.50695194 | W163: 54.42559531 | X163: 44.27528463 | Y163: -10.15031069 | Z163: -0.1864988454 | AB163: 56.49632556 | AC163: 56.18694173 | AD163: -0.3093838332 | AE163: -0.005476176196 | AG163: 70.57780721 | AH163: 48.77605369 | AI163: -21.80175352 | AJ163: -0.3089038095 | AL163: 61.16236788 | AM163: 53.01874305 | AN163: -8.143624832 | AO163: -0.1331476382 | AQ163: 50.75008347 | AR163: 42.50695194 | AS163: -8.243131533 | AT163: -0.16242597
D164: SPN | E164: 88.99512072 | F164: 92.62277877 | G164: 91.06549401 | H164: 84.73191049 | I164: 85.68999093 | K164: 79.31142625 | L164: 83.32600546 | M164: 84.48405774 | N164: 81.07516257 | O164: 82.32357923 | Q164: 55.14235201 | R164: 71.88868677 | S164: 79.69470796 | T164: 68.99005277 | U164: 44.78359667 | W164: 79.31142625 | X164: 55.14235201 | Y164: -24.16907424 | Z164: -0.3047363461 | AB164: 83.32600546 | AC164: 71.88868677 | AD164: -11.43731869 | AE164: -0.1372598942 | AG164: 84.48405774 | AH164: 79.69470796 | AI164: -4.789349783 | AJ164: -0.056689391 | AL164: 81.07516257 | AM164: 68.99005277 | AN164: -12.0851098 | AO164: -0.1490605682 | AQ164: 82.32357923 | AR164: 44.78359667 | AS164: -37.53998255 | AT164: -0.4560052285
D165: EPN | E165: 140.4825522 | F165: 142.4227843 | G165: 130.8627912 | H165: 121.6794454 | I165: 106.0806432 | K165: 118.2937645 | L165: 122.6880978 | M165: 118.0089996 | N165: 116.5497279 | O165: 100.2910836 | Q165: 81.96110228 | R165: 121.6810316 | S165: 107.7360976 | T165: 93.61431796 | U165: 82.87917098 | W165: 118.2937645 | X165: 81.96110228 | Y165: -36.33266225 | Z165: -0.3071392849 | AB165: 122.6880978 | AC165: 121.6810316 | AD165: -1.007066109 | AE165: -0.00820834398 | AG165: 118.0089996 | AH165: 107.7360976 | AI165: -10.27290198 | AJ165: -0.08705185215 | AL165: 116.5497279 | AM165: 93.61431796 | AN165: -22.93540996 | AO165: -0.1967864736 | AQ165: 100.2910836 | AR165: 82.87917098 | AS165: -17.41191265 | AT165: -0.1736137653
D166: SPD | E166: 109.7960451 | F166: 117.4564528 | G166: 104.8766355 | H166: 102.2888173 | I166: 99.03736365 | K166: 91.48812787 | L166: 105.5110027 | M166: 106.7464741 | N166: 114.8752513 | O166: 113.7455223 | Q166: 81.23486039 | R166: 107.758023 | S166: 114.0999245 | T166: 103.4577533 | U166: 94.4462299 | W166: 91.48812787 | X166: 81.23486039 | Y166: -10.25326748 | Z166: -0.1120721094 | AB166: 105.5110027 | AC166: 107.758023 | AD166: 2.24702028 | AE166: 0.02129654939 | AG166: 106.7464741 | AH166: 114.0999245 | AI166: 7.35345039 | AJ166: 0.06888705645 | AL166: 114.8752513 | AM166: 103.4577533 | AN166: -11.41749799 | AO166: -0.0993904071 | AQ166: 113.7455223 | AR166: 94.4462299 | AS166: -19.29929243 | AT166: -0.1696707882
D167: SPMW | E167: 125.9428276 | F167: 146.7965248 | G167: 143.8449141 | H167: 121.661259 | I167: 106.2217671 | K167: 111.660873 | L167: 128.7974618 | M167: 142.3965415 | N167: 126.5931182 | O167: 115.3492645 | Q167: 89.09767055 | R167: 114.4672036 | S167: 139.5008277 | T167: 126.2275302 | U167: 119.8761281 | W167: 111.660873 | X167: 89.09767055 | Y167: -22.56320247 | Z167: -0.2020690136 | AB167: 128.7974618 | AC167: 114.4672036 | AD167: -14.33025813 | AE167: -0.1112619607 | AG167: 142.3965415 | AH167: 139.5008277 | AI167: -2.895713782 | AJ167: -0.02033556259 | AL167: 126.5931182 | AM167: 126.2275302 | AN167: -0.3655879814 | AO167: -0.002887897752 | AQ167: 115.3492645 | AR167: 119.8761281 | AS167: 4.52686357 | AT167: 0.03924484121
D168: SSEH | E168: 74.47884984 | F168: 77.29497397 | G168: 74.0938063 | H168: 92.37003175 | I168: 68.41016147 | K168: 71.34916421 | L168: 79.25867986 | M168: 320.0567408 | N168: 138.6160581 | O168: 133.8610188 | Q168: 52.67580553 | R168: 82.99363171 | S168: 327.029575 | T168: 107.8388768 | U168: 124.2093442 | W168: 71.34916421 | X168: 52.67580553 | Y168: -18.67335869 | Z168: -0.2617179738 | AB168: 79.25867986 | AC168: 82.99363171 | AD168: 3.73495185 | AE168: 0.04712356876 | AG168: 320.0567408 | AH168: 327.029575 | AI168: 6.972834235 | AJ168: 0.02178624396 | AL168: 138.6160581 | AM168: 107.8388768 | AN168: -30.77718133 | AO168: -0.2220318608 | AQ168: 133.8610188 | AR168: 124.2093442 | AS168: -9.651674547 | AT168: -0.07210220447
D169: SSES | E169: 140.5222372 | F169: 170.4610046 | G169: 172.3176002 | H169: 181.1751351 | I169: 167.3439625 | K169: 110.7896029 | L169: 144.1596166 | M169: 147.5764711 | N169: 161.9926167 | O169: 159.2724243 | Q169: 99.6886979 | R169: 155.6946857 | S169: 156.3591011 | T169: 162.5560143 | U169: 132.1836041 | W169: 110.7896029 | X169: 99.6886979 | Y169: -11.10090504 | Z169: -0.1001980758 | AB169: 144.1596166 | AC169: 155.6946857 | AD169: 11.53506913 | AE169: 0.08001595319 | AG169: 147.5764711 | AH169: 156.3591011 | AI169: 8.782629928 | AJ169: 0.05951239964 | AL169: 161.9926167 | AM169: 162.5560143 | AN169: 0.563397544 | AO169: 0.003477921126 | AQ169: 159.2724243 | AR169: 132.1836041 | AS169: -27.08882025 | AT169: -0.1700785328
D170: Total | E170: 1443.886102 | F170: 1537.234028 | G170: 1551.585839 | H170: 1481.148672 | I170: 1406.169646 | K170: 1254.736947 | L170: 1361.610921 | M170: 1680.783766 | N170: 1458.468778 | O170: 1414.211534 | Q170: 982.4694511 | R170: 1264.79568 | S170: 1671.505179 | T170: 1385.976081 | U170: 1264.820558 | W170: 1254.736947 | X170: 982.4694511 | Y170: -272.2674955 | Z170: -0.2169916939 | AB170: 1361.610921 | AC170: 1264.79568 | AD170: -96.81524106 | AE170: -0.07110345513 | AG170: 1680.783766 | AH170: 1671.505179 | AI170: -9.278586647 | AJ170: -0.005520392829 | AL170: 1458.468778 | AM170: 1385.976081 | AN170: -72.49269647 | AO170: -0.0497046612 | AQ170: 1414.211534 | AR170: 1264.820558 | AS170: -149.3909764 | AT170: -0.105635524
D172: Total Non Op Capex | W172: 2023/24 | AB172: 2024/25 | AG172: 2025/26 | AL172: 2026/27 | AQ172: 2027/28
E173: DNO Forecast (£m) - DNO Business Plan Data Templates | K173: DNO Allowance (£m) | Q173: DNO Actual (£m) | W173: Allowance | X173: Actual | Y173: Difference | AB173: Allowance | AC173: Actual | AD173: Difference | AG173: Allowance | AH173: Forecast | AI173: Difference | AL173: Allowance | AM173: Forecast | AN173: Difference | AQ173: Allowance | AR173: Forecast | AS173: Difference
E174: 2023/24 | F174: 2024/25 | G174: 2025/26 | H174: 2026/27 | I174: 2027/28 | K174: 2023/24 | L174: 2024/25 | M174: 2025/26 | N174: 2026/27 | O174: 2027/28 | Q174: 2023/24 | R174: 2024/25 | S174: 2025/26 | T174: 2026/27 | U174: 2027/28 | W174: £ | X174: £ | Y174: £ | Z174: % | AB174: £ | AC174: £ | AD174: £ | AE174: % | AG174: £ | AH174: £ | AI174: £ | AJ174: % | AL174: £ | AM174: £ | AN174: £ | AO174: % | AQ174: £ | AR174: £ | AS174: £ | AT174: %
D175: SP ENW | E175: 28.3720349 | F175: 19.70360269 | G175: 22.94751267 | H175: 12.18039615 | I175: 9.33395012 | K175: 22.79698948 | L175: 16.88205433 | M175: 19.45873534 | N175: 12.10320856 | O175: 9.29919715 | Q175: 12.62155561 | R175: 14.54490027 | S175: 26.32772264 | T175: 14.52219985 | U175: 9.845302042 | W175: 22.79698948 | X175: 12.62155561 | Y175: -10.17543387 | Z175: -0.4463498955 | AB175: 16.88205433 | AC175: 14.54490027 | AD175: -2.337154055 | AE175: -0.1384401453 | AG175: 19.45873534 | AH175: 26.32772264 | AI175: 6.8689873 | AJ175: 0.3530027609 | AL175: 12.10320856 | AM175: 14.52219985 | AN175: 2.418991292 | AO175: 0.1998636378 | AQ175: 9.29919715 | AR175: 9.845302042 | AS175: 0.5461048922 | AT175: 0.05872602585
D176: NPgN | E176: 14.66490127 | F176: 15.11240127 | G176: 15.11240127 | H176: 15.11240127 | I176: 15.11240127 | K176: 12.3495862 | L176: 12.56131446 | M176: 13.50495964 | N176: 13.96438526 | O176: 13.71751046 | Q176: 5.755249815 | R176: 17.74505082 | S176: 13.36040143 | T176: 10.70914817 | U176: 11.64591104 | W176: 12.3495862 | X176: 5.755249815 | Y176: -6.59433639 | Z176: -0.5339722547 | AB176: 12.56131446 | AC176: 17.74505082 | AD176: 5.183736358 | AE176: 0.4126746746 | AG176: 13.50495964 | AH176: 13.36040143 | AI176: -0.1445582096 | AJ176: -0.01070408305 | AL176: 13.96438526 | AM176: 10.70914817 | AN176: -3.255237092 | AO176: -0.2331099459 | AQ176: 13.71751046 | AR176: 11.64591104 | AS176: -2.071599416 | AT176: -0.1510186139
D177: NPgY | E177: 14.58341354 | F177: 15.03091354 | G177: 15.03091354 | H177: 15.03091354 | I177: 15.03091354 | K177: 13.40319877 | L177: 13.65864065 | M177: 14.70924096 | N177: 15.72454609 | O177: 15.60582438 | Q177: 6.835033055 | R177: 14.84116655 | S177: 15.92900222 | T177: 13.89057703 | U177: 12.29415824 | W177: 13.40319877 | X177: 6.835033055 | Y177: -6.568165715 | Z177: -0.4900446399 | AB177: 13.65864065 | AC177: 14.84116655 | AD177: 1.182525901 | AE177: 0.08657712957 | AG177: 14.70924096 | AH177: 15.92900222 | AI177: 1.219761253 | AJ177: 0.08292482639 | AL177: 15.72454609 | AM177: 13.89057703 | AN177: -1.833969066 | AO177: -0.1166309701 | AQ177: 15.60582438 | AR177: 12.29415824 | AS177: -3.311666133 | AT177: -0.2122070615
D178: WMID | E178: 27.8346 | F178: 27.6544 | G178: 21.7551 | H178: 19.4246 | I178: 18.5687 | K178: 21.51071434 | L178: 22.38130638 | M178: 18.88538737 | N178: 16.69721304 | O178: 15.92472526 | Q178: 13.78311968 | R178: 17.16441766 | S178: 20.73281442 | T178: 25.35253954 | U178: 20.41597842 | W178: 21.51071434 | X178: 13.78311968 | Y178: -7.727594663 | Z178: -0.3592439813 | AB178: 22.38130638 | AC178: 17.16441766 | AD178: -5.216888719 | AE178: -0.2330913411 | AG178: 18.88538737 | AH178: 20.73281442 | AI178: 1.847427045 | AJ178: 0.09782309513 | AL178: 16.69721304 | AM178: 25.35253954 | AN178: 8.655326499 | AO178: 0.5183695315 | AQ178: 15.92472526 | AR178: 20.41597842 | AS178: 4.491253166 | AT178: 0.2820301822
D179: EMID | E179: 28.8075 | F179: 30.026 | G179: 25.6108 | H179: 20.7935 | I179: 19.3155 | K179: 22.83590303 | L179: 25.5150781 | M179: 22.95007065 | N179: 18.99733871 | O179: 17.79818728 | Q179: 15.3075964 | R179: 18.83548166 | S179: 21.99907735 | T179: 24.28973546 | U179: 19.3133782 | W179: 22.83590303 | X179: 15.3075964 | Y179: -7.52830663 | Z179: -0.3296697583 | AB179: 25.5150781 | AC179: 18.83548166 | AD179: -6.679596439 | AE179: -0.2617901624 | AG179: 22.95007065 | AH179: 21.99907735 | AI179: -0.9509933014 | AJ179: -0.04143748906 | AL179: 18.99733871 | AM179: 24.28973546 | AN179: 5.292396745 | AO179: 0.2785862181 | AQ179: 17.79818728 | AR179: 19.3133782 | AS179: 1.515190917 | AT179: 0.08513175486
D180: SWALES | E180: 23.0771 | F180: 22.0808 | G180: 18.7384 | H180: 12.4785 | I180: 11.3953 | K180: 16.17130836 | L180: 16.62107526 | M180: 14.93335289 | N180: 10.1248702 | O180: 9.15104622 | Q180: 5.59104995 | R180: 12.44317768 | S180: 16.75575275 | T180: 11.88741312 | U180: 9.490225142 | W180: 16.17130836 | X180: 5.59104995 | Y180: -10.58025841 | Z180: -0.6542611257 | AB180: 16.62107526 | AC180: 12.44317768 | AD180: -4.177897579 | AE180: -0.2513614501 | AG180: 14.93335289 | AH180: 16.75575275 | AI180: 1.822399861 | AJ180: 0.1220355451 | AL180: 10.1248702 | AM180: 11.88741312 | AN180: 1.762542922 | AO180: 0.174080545 | AQ180: 9.15104622 | AR180: 9.490225142 | AS180: 0.3391789221 | AT180: 0.03706449666
D181: SWEST | E181: 29.0793 | F181: 33.57 | G181: 31.3278 | H181: 19.0583 | I181: 15.5094 | K181: 19.92281135 | L181: 25.39696778 | M181: 25.75515252 | N181: 14.64262438 | O181: 11.67376274 | Q181: 11.22891247 | R181: 20.50087154 | S181: 36.95079034 | T181: 36.20568046 | U181: 22.54684597 | W181: 19.92281135 | X181: 11.22891247 | Y181: -8.693898881 | Z181: -0.4363791198 | AB181: 25.39696778 | AC181: 20.50087154 | AD181: -4.896096238 | AE181: -0.1927827086 | AG181: 25.75515252 | AH181: 36.95079034 | AI181: 11.19563782 | AJ181: 0.4346950695 | AL181: 14.64262438 | AM181: 36.20568046 | AN181: 21.56305608 | AO181: 1.472622361 | AQ181: 11.67376274 | AR181: 22.54684597 | AS181: 10.87308322 | AT181: 0.9314120447
D182: LPN | E182: 20.4537282 | F182: 23.66846235 | G182: 12.25551448 | H182: 10.75172166 | I182: 8.450974886 | K182: 19.29546974 | L182: 19.84347732 | M182: 13.02781705 | N182: 11.85886483 | O182: 10.11806207 | Q182: 18.13235384 | R182: 19.5309907 | S182: 9.99953021 | T182: 8.124618296 | U182: 7.707971204 | W182: 19.29546974 | X182: 18.13235384 | Y182: -1.163115897 | Z182: -0.06027922163 | AB182: 19.84347732 | AC182: 19.5309907 | AD182: -0.3124866197 | AE182: -0.01574757361 | AG182: 13.02781705 | AH182: 9.99953021 | AI182: -3.028286843 | AJ182: -0.2324477562 | AL182: 11.85886483 | AM182: 8.124618296 | AN182: -3.734246533 | AO182: -0.3148907241 | AQ182: 10.11806207 | AR182: 7.707971204 | AS182: -2.410090862 | AT182: -0.2381968846
D183: SPN | E183: 22.54136822 | F183: 23.86953818 | G183: 14.34273266 | H183: 12.69221478 | I183: 10.65646536 | K183: 21.07151304 | L183: 20.78678772 | M183: 14.5319124 | N183: 13.29700121 | O183: 11.72447507 | Q183: 16.08769826 | R183: 19.25082761 | S183: 9.99953021 | T183: 7.707971204 | U183: 7.707971204 | W183: 21.07151304 | X183: 16.08769826 | Y183: -4.983814777 | Z183: -0.2365190753 | AB183: 20.78678772 | AC183: 19.25082761 | AD183: -1.535960106 | AE183: -0.07389117199 | AG183: 14.5319124 | AH183: 9.99953021 | AI183: -4.532382192 | AJ183: -0.3118916538 | AL183: 13.29700121 | AM183: 7.707971204 | AN183: -5.58903001 | AO183: -0.4203225916 | AQ183: 11.72447507 | AR183: 7.707971204 | AS183: -4.016503868 | AT183: -0.3425743023
D184: EPN | E184: 34.38738825 | F184: 37.55491928 | G184: 22.61442202 | H184: 20.41609905 | I184: 17.72903367 | K184: 32.93963613 | L184: 32.1430941 | M184: 22.50185576 | N184: 20.50260131 | O184: 18.303728 | Q184: 27.03413245 | R184: 32.11536306 | S184: 15.71354747 | T184: 12.76725732 | U184: 12.11252618 | W184: 32.93963613 | X184: 27.03413245 | Y184: -5.905503677 | Z184: -0.1792826021 | AB184: 32.1430941 | AC184: 32.11536306 | AD184: -0.02773104008 | AE184: -0.0008627371089 | AG184: 22.50185576 | AH184: 15.71354747 | AI184: -6.788308285 | AJ184: -0.3016777086 | AL184: 20.50260131 | AM184: 12.76725732 | AN184: -7.735343986 | AO184: -0.377285978 | AQ184: 18.303728 | AR184: 12.11252618 | AS184: -6.191201819 | AT184: -0.3382481329
D185: SPD | E185: 20.08606964 | F185: 21.34484995 | G185: 14.10805636 | H185: 16.8727997 | I185: 13.70420048 | K185: 17.21714168 | L185: 17.87219844 | M185: 12.25646025 | N185: 13.0613981 | O185: 11.68688698 | Q185: 8.395689622 | R185: 15.79055373 | S185: 13.71728226 | T185: 16.89670152 | U185: 14.64472751 | W185: 17.21714168 | X185: 8.395689622 | Y185: -8.821452062 | Z185: -0.5123644926 | AB185: 17.87219844 | AC185: 15.79055373 | AD185: -2.08164471 | AE185: -0.1164739031 | AG185: 12.25646025 | AH185: 13.71728226 | AI185: 1.460822008 | AJ185: 0.1191879203 | AL185: 13.0613981 | AM185: 16.89670152 | AN185: 3.835303417 | AO185: 0.2936365148 | AQ185: 11.68688698 | AR185: 14.64472751 | AS185: 2.957840537 | AT185: 0.2530905401
D186: SPMW | E186: 20.01808973 | F186: 17.43325942 | G186: 14.05131636 | H186: 12.22296302 | I186: 14.46157934 | K186: 15.55708594 | L186: 14.43919189 | M186: 11.04695086 | N186: 10.05703144 | O186: 10.77809241 | Q186: 8.980829883 | R186: 16.03688672 | S186: 10.89192367 | T186: 12.73988197 | U186: 11.68223747 | W186: 15.55708594 | X186: 8.980829883 | Y186: -6.576256053 | Z186: -0.42271773 | AB186: 14.43919189 | AC186: 16.03688672 | AD186: 1.597694828 | AE186: 0.1106498785 | AG186: 11.04695086 | AH186: 10.89192367 | AI186: -0.155027189 | AJ186: -0.01403348226 | AL186: 10.05703144 | AM186: 12.73988197 | AN186: 2.682850531 | AO186: 0.2667636615 | AQ186: 10.77809241 | AR186: 11.68223747 | AS186: 0.9041450593 | AT186: 0.08388729886
D187: SSEH | E187: 14.10468994 | F187: 17.26865107 | G187: 17.27292378 | H187: 17.36229903 | I187: 14.72580069 | K187: 11.61727171 | L187: 13.22588255 | M187: 12.51144779 | N187: 12.31154485 | O187: 9.878075383 | Q187: 9.96698971 | R187: 16.72841249 | S187: 15.39151756 | T187: 12.13296869 | U187: 12.12691317 | W187: 11.61727171 | X187: 9.96698971 | Y187: -1.650281999 | Z187: -0.1420541794 | AB187: 13.22588255 | AC187: 16.72841249 | AD187: 3.502529938 | AE187: 0.2648239105 | AG187: 12.51144779 | AH187: 15.39151756 | AI187: 2.880069771 | AJ187: 0.230194764 | AL187: 12.31154485 | AM187: 12.13296869 | AN187: -0.1785761559 | AO187: -0.0145047724 | AQ187: 9.878075383 | AR187: 12.12691317 | AS187: 2.248837792 | AT187: 0.227659509
D188: SSES | E188: 24.48391455 | F188: 31.25955666 | G188: 29.55320598 | H188: 29.24233143 | I188: 25.50083452 | K188: 21.19270077 | L188: 26.23907291 | M188: 23.91259319 | N188: 22.65346781 | O188: 19.33751056 | Q188: 13.9003259 | R188: 25.86939112 | S188: 22.75673754 | T188: 18.42810861 | U188: 23.35426977 | W188: 21.19270077 | X188: 13.9003259 | Y188: -7.29237487 | Z188: -0.3440984208 | AB188: 26.23907291 | AC188: 25.86939112 | AD188: -0.3696817882 | AE188: -0.01408898056 | AG188: 23.91259319 | AH188: 22.75673754 | AI188: -1.155855652 | AJ188: -0.04833669201 | AL188: 22.65346781 | AM188: 18.42810861 | AN188: -4.2253592 | AO188: -0.1865215178 | AQ188: 19.33751056 | AR188: 23.35426977 | AS188: 4.016759201 | AT188: 0.2077185265
D189: Total | E189: 322.4940982 | F189: 335.5773544 | G189: 274.7210991 | H189: 233.6390396 | I189: 209.4950539 | K189: 267.8813305 | L189: 277.5661419 | M189: 239.9859367 | N189: 205.9960958 | O189: 184.997084 | Q189: 173.6205366 | R189: 261.3974916 | S189: 250.5256301 | T189: 225.6548012 | U189: 194.8884156 | W189: 267.8813305 | X189: 173.6205366 | Y189: -94.2607939 | Z189: -0.3518751893 | AB189: 277.5661419 | AC189: 261.3974916 | AD189: -16.16865027 | AE189: -0.05825152217 | AG189: 239.9859367 | AH189: 250.5256301 | AI189: 10.53969338 | AJ189: 0.04391796256 | AL189: 205.9960958 | AM189: 225.6548012 | AN189: 19.65870544 | AO189: 0.09543241762 | AQ189: 184.997084 | AR189: 194.8884156 | AS189: 9.891331612 | AT189: 0.05346750014
D191: Total High Value Projects | W191: 2023/24 | AB191: 2024/25 | AG191: 2025/26 | AL191: 2026/27 | AQ191: 2027/28
E192: DNO Forecast (£m) - DNO Business Plan Data Templates | K192: DNO Allowance (£m) | Q192: DNO Actual (£m) | W192: Allowance | X192: Actual | Y192: Difference | AB192: Allowance | AC192: Actual | AD192: Difference | AG192: Allowance | AH192: Forecast | AI192: Difference | AL192: Allowance | AM192: Forecast | AN192: Difference | AQ192: Allowance | AR192: Forecast | AS192: Difference
E193: 2023/24 | F193: 2024/25 | G193: 2025/26 | H193: 2026/27 | I193: 2027/28 | K193: 2023/24 | L193: 2024/25 | M193: 2025/26 | N193: 2026/27 | O193: 2027/28 | Q193: 2023/24 | R193: 2024/25 | S193: 2025/26 | T193: 2026/27 | U193: 2027/28 | W193: £ | X193: £ | Y193: £ | Z193: % | AB193: £ | AC193: £ | AD193: £ | AE193: % | AG193: £ | AH193: £ | AI193: £ | AJ193: % | AL193: £ | AM193: £ | AN193: £ | AO193: % | AQ193: £ | AR193: £ | AS193: £ | AT193: %
D194: SP ENW | E194: 0 | F194: 0 | G194: 0 | H194: 0 | I194: 0 | K194: 0.03197744401 | L194: 0.003782741751 | M194: 3.548211763 | N194: 3.760045301 | O194: 12.67218487 | Q194: 0.6308716243 | R194: 0.1117468332 | S194: 3.548211763 | T194: 3.760045301 | U194: 12.67218487 | W194: 0.03197744401 | X194: 0.6308716243 | Y194: 0.5988941803 | Z194: 18.72864448 | AB194: 0.003782741751 | AC194: 0.1117468332 | AD194: 0.1079640915 | AE194: 28.54122713 | AG194: 3.548211763 | AH194: 3.548211763 | AI194: 0 | AL194: 3.760045301 | AM194: 3.760045301 | AN194: 0 | AQ194: 12.67218487 | AR194: 12.67218487 | AS194: 0
D195: NPgN | E195: 0 | F195: 0 | G195: 0 | H195: 0 | I195: 0 | K195: 0 | L195: 0 | M195: 0 | N195: 0 | O195: 0 | Q195: 0 | R195: 0 | S195: 0 | T195: 0 | U195: 0 | W195: 0 | X195: 0 | Y195: 0 | AB195: 0 | AC195: 0 | AD195: 0 | AG195: 0 | AH195: 0 | AI195: 0 | AL195: 0 | AM195: 0 | AN195: 0 | AQ195: 0 | AR195: 0 | AS195: 0
D196: NPgY | E196: 0 | F196: 0 | G196: 0 | H196: 0 | I196: 0 | K196: 0 | L196: 0 | M196: 0 | N196: 0 | O196: 0 | Q196: 0 | R196: 0 | S196: 0 | T196: 0 | U196: 0 | W196: 0 | X196: 0 | Y196: 0 | AB196: 0 | AC196: 0 | AD196: 0 | AG196: 0 | AH196: 0 | AI196: 0 | AL196: 0 | AM196: 0 | AN196: 0 | AQ196: 0 | AR196: 0 | AS196: 0
D197: WMID | E197: 0 | F197: 0 | G197: 0 | H197: 0 | I197: 0 | K197: 0 | L197: 0 | M197: 0 | N197: 0 | O197: 0 | Q197: 0 | R197: 0 | S197: 0 | T197: 0 | U197: 0 | W197: 0 | X197: 0 | Y197: 0 | AB197: 0 | AC197: 0 | AD197: 0 | AG197: 0 | AH197: 0 | AI197: 0 | AL197: 0 | AM197: 0 | AN197: 0 | AQ197: 0 | AR197: 0 | AS197: 0
D198: EMID | E198: 0 | F198: 0 | G198: 0 | H198: 0 | I198: 0 | K198: 0 | L198: 0 | M198: 0 | N198: 0 | O198: 0 | Q198: 0 | R198: 0 | S198: 0 | T198: 0 | U198: 0 | W198: 0 | X198: 0 | Y198: 0 | AB198: 0 | AC198: 0 | AD198: 0 | AG198: 0 | AH198: 0 | AI198: 0 | AL198: 0 | AM198: 0 | AN198: 0 | AQ198: 0 | AR198: 0 | AS198: 0
D199: SWALES | E199: 0 | F199: 0 | G199: 10.0056 | H199: 10.0056 | I199: 10.3089 | K199: 0 | L199: 0 | M199: 0 | N199: 0 | O199: 0 | Q199: 0 | R199: 0 | S199: 0 | T199: 0 | U199: 0 | W199: 0 | X199: 0 | Y199: 0 | AB199: 0 | AC199: 0 | AD199: 0 | AG199: 0 | AH199: 0 | AI199: 0 | AL199: 0 | AM199: 0 | AN199: 0 | AQ199: 0 | AR199: 0 | AS199: 0
D200: SWEST | E200: 0 | F200: 0 | G200: 0 | H200: 0 | I200: 0 | K200: 0 | L200: 0 | M200: 0 | N200: 0 | O200: 0 | Q200: 0 | R200: 0 | S200: 0 | T200: 0 | U200: 0 | W200: 0 | X200: 0 | Y200: 0 | AB200: 0 | AC200: 0 | AD200: 0 | AG200: 0 | AH200: 0 | AI200: 0 | AL200: 0 | AM200: 0 | AN200: 0 | AQ200: 0 | AR200: 0 | AS200: 0
D201: LPN | E201: 0 | F201: 0 | G201: 0 | H201: 0 | I201: 0 | K201: 0 | L201: 0 | M201: 0 | N201: 0 | O201: 0 | Q201: 0.2330963289 | R201: 0.181124673 | S201: 0 | T201: 0 | U201: 0 | W201: 0 | X201: 0.2330963289 | Y201: 0.2330963289 | AB201: 0 | AC201: 0.181124673 | AD201: 0.181124673 | AG201: 0 | AH201: 0 | AI201: 0 | AL201: 0 | AM201: 0 | AN201: 0 | AQ201: 0 | AR201: 0 | AS201: 0
D202: SPN | E202: 0 | F202: 0 | G202: 0 | H202: 0 | I202: 0 | K202: 0 | L202: 0 | M202: 0 | N202: 0 | O202: 0 | Q202: 0 | R202: 0 | S202: 0 | T202: 0 | U202: 0 | W202: 0 | X202: 0 | Y202: 0 | AB202: 0 | AC202: 0 | AD202: 0 | AG202: 0 | AH202: 0 | AI202: 0 | AL202: 0 | AM202: 0 | AN202: 0 | AQ202: 0 | AR202: 0 | AS202: 0
D203: EPN | E203: 0 | F203: 0 | G203: 0 | H203: 0 | I203: 0 | K203: 0 | L203: 0 | M203: 0 | N203: 0 | O203: 0 | Q203: 1.852279051 | R203: 0.004143113138 | S203: 0 | T203: 0 | U203: 0 | W203: 0 | X203: 1.852279051 | Y203: 1.852279051 | AB203: 0 | AC203: 0.004143113138 | AD203: 0.004143113138 | AG203: 0 | AH203: 0 | AI203: 0 | AL203: 0 | AM203: 0 | AN203: 0 | AQ203: 0 | AR203: 0 | AS203: 0
D204: SPD | E204: 0 | F204: 0 | G204: 0 | H204: 0 | I204: 0 | K204: 0 | L204: 0 | M204: 0 | N204: 0 | O204: 0 | Q204: 0 | R204: 0 | S204: 0 | T204: 0 | U204: 0 | W204: 0 | X204: 0 | Y204: 0 | AB204: 0 | AC204: 0 | AD204: 0 | AG204: 0 | AH204: 0 | AI204: 0 | AL204: 0 | AM204: 0 | AN204: 0 | AQ204: 0 | AR204: 0 | AS204: 0
D205: SPMW | E205: 0 | F205: 0 | G205: 0 | H205: 0 | I205: 0 | K205: 0 | L205: 0 | M205: 0 | N205: 0 | O205: 0 | Q205: 0 | R205: 0 | S205: 0 | T205: 0 | U205: 0 | W205: 0 | X205: 0 | Y205: 0 | AB205: 0 | AC205: 0 | AD205: 0 | AG205: 0 | AH205: 0 | AI205: 0 | AL205: 0 | AM205: 0 | AN205: 0 | AQ205: 0 | AR205: 0 | AS205: 0
D206: SSEH | E206: 0 | F206: 7.96825 | G206: 23.90475 | H206: 0 | I206: 0 | K206: 0 | L206: 0 | M206: 0 | N206: 0 | O206: 0 | Q206: 0 | R206: 0 | S206: 0 | T206: 0 | U206: 0 | W206: 0 | X206: 0 | Y206: 0 | AB206: 0 | AC206: 0 | AD206: 0 | AG206: 0 | AH206: 0 | AI206: 0 | AL206: 0 | AM206: 0 | AN206: 0 | AQ206: 0 | AR206: 0 | AS206: 0
D207: SSES | E207: 0 | F207: 0 | G207: 7.429736882 | H207: 28.63139472 | I207: 18.1771434 | K207: 0 | L207: 0 | M207: 0 | N207: 0 | O207: 0 | Q207: 0 | R207: 0 | S207: 0 | T207: 0 | U207: 0 | W207: 0 | X207: 0 | Y207: 0 | AB207: 0 | AC207: 0 | AD207: 0 | AG207: 0 | AH207: 0 | AI207: 0 | AL207: 0 | AM207: 0 | AN207: 0 | AQ207: 0 | AR207: 0 | AS207: 0
D208: Total | E208: 0 | F208: 7.96825 | G208: 41.34008688 | H208: 38.63699472 | I208: 28.4860434 | K208: 0.03197744401 | L208: 0.003782741751 | M208: 3.548211763 | N208: 3.760045301 | O208: 12.67218487 | Q208: 2.716247004 | R208: 0.2970146194 | S208: 3.548211763 | T208: 3.760045301 | U208: 12.67218487 | W208: 0.03197744401 | X208: 2.716247004 | Y208: 2.68426956 | Z208: 83.94259275 | AB208: 0.003782741751 | AC208: 0.2970146194 | AD208: 0.2932318777 | AE208: 77.51834435 | AG208: 3.548211763 | AH208: 3.548211763 | AI208: 0 | AL208: 3.760045301 | AM208: 3.760045301 | AN208: 0 | AQ208: 12.67218487 | AR208: 12.67218487 | AS208: 0
D210: Total Network Operating Costs | W210: 2023/24 | AB210: 2024/25 | AG210: 2025/26 | AL210: 2026/27 | AQ210: 2027/28
E211: DNO Forecast (£m) - DNO Business Plan Data Templates | K211: DNO Allowance (£m) | Q211: DNO Actual (£m) | W211: Allowance | X211: Actual | Y211: Difference | AB211: Allowance | AC211: Actual | AD211: Difference | AG211: Allowance | AH211: Forecast | AI211: Difference | AL211: Allowance | AM211: Forecast | AN211: Difference | AQ211: Allowance | AR211: Forecast | AS211: Difference
E212: 2023/24 | F212: 2024/25 | G212: 2025/26 | H212: 2026/27 | I212: 2027/28 | K212: 2023/24 | L212: 2024/25 | M212: 2025/26 | N212: 2026/27 | O212: 2027/28 | Q212: 2023/24 | R212: 2024/25 | S212: 2025/26 | T212: 2026/27 | U212: 2027/28 | W212: £ | X212: £ | Y212: £ | Z212: % | AB212: £ | AC212: £ | AD212: £ | AE212: % | AG212: £ | AH212: £ | AI212: £ | AJ212: % | AL212: £ | AM212: £ | AN212: £ | AO212: % | AQ212: £ | AR212: £ | AS212: £ | AT212: %
D213: SP ENW | E213: 63.47627178 | F213: 63.60156427 | G213: 59.03447437 | H213: 59.08666776 | I213: 59.1840844 | K213: 57.38462125 | L213: 57.12637404 | M213: 54.23985089 | N213: 54.47695433 | O213: 56.75359866 | Q213: 59.32037048 | R213: 62.32134629 | S213: 60.20759803 | T213: 58.23931487 | U213: 60.2308665 | W213: 57.38462125 | X213: 59.32037048 | Y213: 1.935749225 | Z213: 0.0337328919 | AB213: 57.12637404 | AC213: 62.32134629 | AD213: 5.194972241 | AE213: 0.09093824574 | AG213: 54.23985089 | AH213: 60.20759803 | AI213: 5.967747134 | AJ213: 0.110025139 | AL213: 54.47695433 | AM213: 58.23931487 | AN213: 3.762360542 | AO213: 0.06906334226 | AQ213: 56.75359866 | AR213: 60.2308665 | AS213: 3.477267835 | AT213: 0.06126955677
D214: NPgN | E214: 49.471641 | F214: 48.38317709 | G214: 48.58194823 | H214: 48.90296558 | I214: 47.8402949 | K214: 39.46635229 | L214: 42.23758004 | M214: 39.28905305 | N214: 40.28601682 | O214: 39.2883205 | Q214: 51.85925836 | R214: 56.51704272 | S214: 46.48149987 | T214: 47.21067719 | U214: 45.91247935 | W214: 39.46635229 | X214: 51.85925836 | Y214: 12.39290607 | Z214: 0.3140119458 | AB214: 42.23758004 | AC214: 56.51704272 | AD214: 14.27946269 | AE214: 0.3380748299 | AG214: 39.28905305 | AH214: 46.48149987 | AI214: 7.192446815 | AJ214: 0.1830649063 | AL214: 40.28601682 | AM214: 47.21067719 | AN214: 6.924660375 | AO214: 0.1718874419 | AQ214: 39.2883205 | AR214: 45.91247935 | AS214: 6.624158847 | AT214: 0.1686037673
D215: NPgY | E215: 74.2943543 | F215: 73.28097872 | G215: 73.59715405 | H215: 72.73348107 | I215: 72.49233163 | K215: 65.25168367 | L215: 65.03223272 | M215: 65.32552817 | N215: 69.17551549 | O215: 68.3203322 | Q215: 82.41402144 | R215: 89.51743055 | S215: 73.89322495 | T215: 70.6926192 | U215: 68.32633218 | W215: 65.25168367 | X215: 82.41402144 | Y215: 17.16233776 | Z215: 0.2630175468 | AB215: 65.03223272 | AC215: 89.51743055 | AD215: 24.48519783 | AE215: 0.376508645 | AG215: 65.32552817 | AH215: 73.89322495 | AI215: 8.567696778 | AJ215: 0.1311538845 | AL215: 69.17551549 | AM215: 70.6926192 | AN215: 1.517103704 | AO215: 0.02193122368 | AQ215: 68.3203322 | AR215: 68.32633218 | AS215: 0.005999977573 | AT215: 8.782125876e-05
D216: WMID | E216: 66.9977 | F216: 66.7847 | G216: 64.0153 | H216: 63.3936 | I216: 62.9609 | K216: 59.37370571 | L216: 58.2199743 | M216: 55.1283505 | N216: 53.96599759 | O216: 52.72550145 | Q216: 61.55129752 | R216: 55.34748855 | S216: 54.88469371 | T216: 56.0614385 | U216: 55.53279387 | W216: 59.37370571 | X216: 61.55129752 | Y216: 2.177591807 | Z216: 0.03667602992 | AB216: 58.2199743 | AC216: 55.34748855 | AD216: -2.872485752 | AE216: -0.04933849227 | AG216: 55.1283505 | AH216: 54.88469371 | AI216: -0.2436567901 | AJ216: -0.004419809189 | AL216: 53.96599759 | AM216: 56.0614385 | AN216: 2.095440913 | AO216: 0.03882891091 | AQ216: 52.72550145 | AR216: 55.53279387 | AS216: 2.807292419 | AT216: 0.0532435414
D217: EMID | E217: 71.1747 | F217: 70.6102 | G217: 66.6804 | H217: 66.8437 | I217: 66.5648 | K217: 63.74944163 | L217: 63.20467953 | M217: 58.57383324 | N217: 57.94022332 | O217: 56.58757106 | Q217: 64.38211107 | R217: 59.6183553 | S217: 56.72161871 | T217: 55.13379635 | U217: 54.71668924 | W217: 63.74944163 | X217: 64.38211107 | Y217: 0.632669432 | Z217: 0.009924313309 | AB217: 63.20467953 | AC217: 59.6183553 | AD217: -3.586324231 | AE217: -0.05674143525 | AG217: 58.57383324 | AH217: 56.72161871 | AI217: -1.852214538 | AJ217: -0.03162187679 | AL217: 57.94022332 | AM217: 55.13379635 | AN217: -2.806426971 | AO217: -0.04843659224 | AQ217: 56.58757106 | AR217: 54.71668924 | AS217: -1.870881821 | AT217: -0.03306170924
D218: SWALES | E218: 36.9737 | F218: 36.7778 | G218: 35.9632 | H218: 34.6291 | I218: 34.5544 | K218: 33.30638258 | L218: 34.62549464 | M218: 31.67462266 | N218: 29.99076497 | O218: 29.89922274 | Q218: 32.15760188 | R218: 33.52409484 | S218: 28.09768759 | T218: 31.12588646 | U218: 30.9281593 | W218: 33.30638258 | X218: 32.15760188 | Y218: -1.148780698 | Z218: -0.03449130794 | AB218: 34.62549464 | AC218: 33.52409484 | AD218: -1.101399798 | AE218: -0.03180892603 | AG218: 31.67462266 | AH218: 28.09768759 | AI218: -3.576935069 | AJ218: -0.1129274722 | AL218: 29.99076497 | AM218: 31.12588646 | AN218: 1.135121493 | AO218: 0.03784903435 | AQ218: 29.89922274 | AR218: 30.9281593 | AS218: 1.028936559 | AT218: 0.03441348854
D219: SWEST | E219: 60.1316 | F219: 59.1821 | G219: 57.3218 | H219: 56.9119 | I219: 55.7578 | K219: 51.92995734 | L219: 52.52934196 | M219: 48.22378112 | N219: 47.62954721 | O219: 45.85639638 | Q219: 55.96901621 | R219: 56.01461289 | S219: 45.37636237 | T219: 52.33248304 | U219: 51.99422427 | W219: 51.92995734 | X219: 55.96901621 | Y219: 4.039058869 | Z219: 0.07777897528 | AB219: 52.52934196 | AC219: 56.01461289 | AD219: 3.485270932 | AE219: 0.06634903088 | AG219: 48.22378112 | AH219: 45.37636237 | AI219: -2.847418748 | AJ219: -0.05904594543 | AL219: 47.62954721 | AM219: 52.33248304 | AN219: 4.702935838 | AO219: 0.09873988131 | AQ219: 45.85639638 | AR219: 51.99422427 | AS219: 6.137827885 | AT219: 0.1338488928
D220: LPN | E220: 51.3016529 | F220: 51.36193665 | G220: 51.18923922 | H220: 50.65053747 | I220: 50.63393963 | K220: 53.59853718 | L220: 54.33078876 | M220: 52.37805343 | N220: 50.67488052 | O220: 49.73633943 | Q220: 53.64496672 | R220: 56.47906622 | S220: 52.26500357 | T220: 52.49569626 | U220: 52.23028383 | W220: 53.59853718 | X220: 53.64496672 | Y220: 0.04642953971 | Z220: 0.0008662463969 | AB220: 54.33078876 | AC220: 56.47906622 | AD220: 2.148277459 | AE220: 0.03954070073 | AG220: 52.37805343 | AH220: 52.26500357 | AI220: -0.1130498591 | AJ220: -0.002158344034 | AL220: 50.67488052 | AM220: 52.49569626 | AN220: 1.82081574 | AO220: 0.03593132774 | AQ220: 49.73633943 | AR220: 52.23028383 | AS220: 2.4939444 | AT220: 0.05014330424
... 1015 more rows

Sheet Ch4 expenditure drivers 2
A1: Chapter 4 - Expenditure Drivers 2 | G1: Difference | J1: Areas of underspend | P1: Areas of overspend
A2: Cumulative to date | B2: Allowance | C2: % of total allowance | D2: Actual | E2: % of total actual | G2: £ | H2: % | K2: £ | L2: % | Q2: £ | R2: %
A3: Total Load Related Capex | B3: ='Ch4 expenditure drivers'!E17 -> 1344.94061 | C3: ='Ch4 expenditure drivers'!F17 -> 0.1558796392 | D3: ='Ch4 expenditure drivers'!G17 -> 872.685026 | E3: =D3/$D$12 -> 0.1069724586 | G3: =D3-B3 -> -472.2555845 | H3: =IFERROR(G3/B3,"N/A") -> -0.3511348983 | J3: =A3 -> Total Load Related Capex | K3: =G3 -> -472.2555845 | L3: -0.3511348983 | P3: =A6 -> Total HVPs | Q3: =G6 -> 2.977501438 | R3: 83.26303049
A4: Total Non-Load Related Capex | B4: ='Ch4 expenditure drivers'!E18 -> 2616.347868 | C4: ='Ch4 expenditure drivers'!F18 -> 0.303236707 | D4: ='Ch4 expenditure drivers'!G18 -> 2247.265131 | E4: 0.2754664846 | G4: =D4-B4 -> -369.0827366 | H4: =IFERROR(G4/B4,"N/A") -> -0.1410679142 | J4: =A4 -> Total Non-Load Related Capex | K4: -369.0827366 | L4: -0.1410679142 | P4: =A7 -> Total Network Operating Costs | Q4: 152.7241406 | R4: 0.09223471491
A5: Total Non-Op Capex | B5: ='Ch4 expenditure drivers'!E19 -> 545.4474724 | C5: ='Ch4 expenditure drivers'!F19 -> 0.06321777673 | D5: ='Ch4 expenditure drivers'!G19 -> 435.0180283 | E5: 0.0533238759 | G5: -110.4294442 | H5: -0.2024566063 | J5: =A5 -> Total Non-Op Capex | K5: -110.4294442 | L5: -0.2024566063 | P5: =A8 -> Total Closely Associated Costs | Q5: 28.41222627 | R5: 0.01635786183
A6: Total HVPs | B6: ='Ch4 expenditure drivers'!E20 -> 0.03576018576 | C6: ='Ch4 expenditure drivers'!F20 -> 4.144632717e-06 | D6: ='Ch4 expenditure drivers'!G20 -> 3.013261623 | E6: 0.0003693612182 | G6: 2.977501438 | H6: 83.26303049 | J6: =A10 -> Total Other Costs Within Price Control | K6: =G10 -> -88.9959931 | L6: =H10 -> -0.3134358783 | P6: =A9 -> Total Business Support Costs | Q6: 42.04379862 | R6: 0.04841449551
A7: Total Network Operating Costs | B7: ='Ch4 expenditure drivers'!E21 -> 1655.820596 | C7: ='Ch4 expenditure drivers'!F21 -> 0.1919108659 | D7: ='Ch4 expenditure drivers'!G21 -> 1808.544736 | E7: 0.2216887779 | G7: 152.7241406 | H7: 0.09223471491 | J7: Total | K7: =SUM(K3:K6) -> -1040.763758 | L7: =K7/SUM(B3,B4,B9,B5,B8) -> -0.1463377727 | P7: =A11 -> Total Other | Q7: =G11 -> 344.569661 | R7: =H11 -> -0.813072476
A8: Total Closely Associated Costs | B8: ='Ch4 expenditure drivers'!E22 -> 1736.915654 | C8: ='Ch4 expenditure drivers'!F22 -> 0.2013098448 | D8: ='Ch4 expenditure drivers'!G22 -> 1765.32788 | E8: 0.2163913187 | G8: 28.41222627 | H8: 0.01635786183 | P8: Total | Q8: =SUM(Q3:Q7) -> 570.7273279 | R8: =Q8/SUM(B7) -> 0.3446794474
A9: Total Business Support Costs | B9: ='Ch4 expenditure drivers'!E23 -> 868.4134407 | C9: ='Ch4 expenditure drivers'!F23 -> 0.100649778 | D9: ='Ch4 expenditure drivers'!G23 -> 910.4572393 | E9: 0.1116025215 | G9: 42.04379862 | H9: 0.04841449551
A10: Total Other Costs Within Price Control | B10: ='Ch4 expenditure drivers'!E24 -> 283.9368409 | C10: ='Ch4 expenditure drivers'!F24 -> 0.03290849572 | D10: ='Ch4 expenditure drivers'!G24 -> 194.9408478 | E10: 0.02389556501 | G10: -88.9959931 | H10: -0.3134358783
A11: Total Other | B11: ='Ch4 expenditure drivers'!E25 -> -423.7871422 | C11: ='Ch4 expenditure drivers'!F25 -> -0.04911725197 | D11: ='Ch4 expenditure drivers'!G25 -> -79.21748118 | E11: =D11/$D$12 -> -0.009710363389 | G11: =D11-B11 -> 344.569661 | H11: =IFERROR(G11/B11,"N/A") -> -0.813072476
A12: Total | B12: ='Ch4 expenditure drivers'!E26 -> 8628.0711 | C12: =B12/$B$12 -> 1 | D12: ='Ch4 expenditure drivers'!G26 -> 8158.034669 | E12: 1 | G12: =D12-B12 -> -470.0364303 | H12: =IFERROR(G12/B12,"N/A") -> -0.05447757962
K13: Large cost categories: | R13: Large cost categories:
K14: underspend to date (£1,041m) | R14: overspend to date (£569m)

Sheet Calculations
A1: ='One-pager'!A2 -> SP ENW
A5: Cover, guide and Drivers
A6: Column1 | B6: Column2 | C6: 2015 | D6: 2016 | E6: 2017 | F6: 2018 | G6: 2019 | H6: 2020 | I6: 2021 | J6: 2022 | K6: 2023 | L6: 2024 | M6: 2025
A7: Customer numbers | C7: =INDEX(Dataset!$A:$V,MATCH(Calculations!C$6&Calculations!$P7,Dataset!$V:$V,0),MATCH(Calculations!$A$1,Dataset!$A$1:$V$1,0)) -> 2375305 | D7: =INDEX(Dataset!$A:$V,MATCH(Calculations!D$6&Calculations!$P7,Dataset!$V:$V,0),MATCH(Calculations!$A$1,Dataset!$A$1:$V$1,0)) -> 2381080 | E7: =INDEX(Dataset!$A:$V,MATCH(Calculations!E$6&Calculations!$P7,Dataset!$V:$V,0),MATCH(Calculations!$A$1,Dataset!$A$1:$V$1,0)) -> 2383214 | F7: =INDEX(Dataset!$A:$V,MATCH(Calculations!F$6&Calculations!$P7,Dataset!$V:$V,0),MATCH(Calculations!$A$1,Dataset!$A$1:$V$1,0)) -> 2383887 | G7: =INDEX(Dataset!$A:$V,MATCH(Calculations!G$6&Calculations!$P7,Dataset!$V:$V,0),MATCH(Calculations!$A$1,Dataset!$A$1:$V$1,0)) -> 2393226 | H7: =INDEX(Dataset!$A:$V,MATCH(Calculations!H$6&Calculations!$P7,Dataset!$V:$V,0),MATCH(Calculations!$A$1,Dataset!$A$1:$V$1,0)) -> 2399715 | I7: =INDEX(Dataset!$A:$V,MATCH(Calculations!I$6&Calculations!$P7,Dataset!$V:$V,0),MATCH(Calculations!$A$1,Dataset!$A$1:$V$1,0)) -> 2405770 | J7: =INDEX(Dataset!$A:$V,MATCH(Calculations!J$6&Calculations!$P7,Dataset!$V:$V,0),MATCH(Calculations!$A$1,Dataset!$A$1:$V$1,0)) -> 2412196 | K7: =INDEX(Dataset!$A:$V,MATCH(Calculations!K$6&Calculations!$P7,Dataset!$V:$V,0),MATCH(Calculations!$A$1,Dataset!$A$1:$V$1,0)) -> 2424364 | L7: =INDEX(Dataset!$A:$V,MATCH(Calculations!L$6&Calculations!$P7,Dataset!$V:$V,0),MATCH(Calculations!$A$1,Dataset!$A$1:$V$1,0)) -> 2430849 | M7: =INDEX(Dataset!$A:$V,MATCH(Calculations!M$6&Calculations!$P7,Dataset!$V:$V,0),MATCH(Calculations!$A$1,Dataset!$A$1:$V$1,0)) -> 2430262 | P7: Cover guide and driversDriversCustomer numbers
A8: Network length | C8: =INDEX(Dataset!$A:$V,MATCH(Calculations!C$6&Calculations!$P8,Dataset!$V:$V,0),MATCH(Calculations!$A$1,Dataset!$A$1:$V$1,0)) -> 57722.14882 | D8: =INDEX(Dataset!$A:$V,MATCH(Calculations!D$6&Calculations!$P8,Dataset!$V:$V,0),MATCH(Calculations!$A$1,Dataset!$A$1:$V$1,0)) -> 57946.36778 | E8: =INDEX(Dataset!$A:$V,MATCH(Calculations!E$6&Calculations!$P8,Dataset!$V:$V,0),MATCH(Calculations!$A$1,Dataset!$A$1:$V$1,0)) -> 57090.45584 | F8: =INDEX(Dataset!$A:$V,MATCH(Calculations!F$6&Calculations!$P8,Dataset!$V:$V,0),MATCH(Calculations!$A$1,Dataset!$A$1:$V$1,0)) -> 57324.15031 | G8: =INDEX(Dataset!$A:$V,MATCH(Calculations!G$6&Calculations!$P8,Dataset!$V:$V,0),MATCH(Calculations!$A$1,Dataset!$A$1:$V$1,0)) -> 57348.87727 | H8: =INDEX(Dataset!$A:$V,MATCH(Calculations!H$6&Calculations!$P8,Dataset!$V:$V,0),MATCH(Calculations!$A$1,Dataset!$A$1:$V$1,0)) -> 57432.08682 | I8: =INDEX(Dataset!$A:$V,MATCH(Calculations!I$6&Calculations!$P8,Dataset!$V:$V,0),MATCH(Calculations!$A$1,Dataset!$A$1:$V$1,0)) -> 57415.28103 | J8: =INDEX(Dataset!$A:$V,MATCH(Calculations!J$6&Calculations!$P8,Dataset!$V:$V,0),MATCH(Calculations!$A$1,Dataset!$A$1:$V$1,0)) -> 57694.51428 | K8: =INDEX(Dataset!$A:$V,MATCH(Calculations!K$6&Calculations!$P8,Dataset!$V:$V,0),MATCH(Calculations!$A$1,Dataset!$A$1:$V$1,0)) -> 60022.72532 | L8: =INDEX(Dataset!$A:$V,MATCH(Calculations!L$6&Calculations!$P8,Dataset!$V:$V,0),MATCH(Calculations!$A$1,Dataset!$A$1:$V$1,0)) -> 60848.16603 | M8: =INDEX(Dataset!$A:$V,MATCH(Calculations!M$6&Calculations!$P8,Dataset!$V:$V,0),MATCH(Calculations!$A$1,Dataset!$A$1:$V$1,0)) -> 59736.44439 | P8: Cover guide and driversDriversNetwork length
A9: Total units distributed (GWh) | C9: =INDEX(Dataset!$A:$V,MATCH(Calculations!C$6&Calculations!$P9,Dataset!$V:$V,0),MATCH(Calculations!$A$1,Dataset!$A$1:$V$1,0)) -> 22393 | D9: =INDEX(Dataset!$A:$V,MATCH(Calculations!D$6&Calculations!$P9,Dataset!$V:$V,0),MATCH(Calculations!$A$1,Dataset!$A$1:$V$1,0)) -> 22223.98232 | E9: =INDEX(Dataset!$A:$V,MATCH(Calculations!E$6&Calculations!$P9,Dataset!$V:$V,0),MATCH(Calculations!$A$1,Dataset!$A$1:$V$1,0)) -> 22059.6 | F9: =INDEX(Dataset!$A:$V,MATCH(Calculations!F$6&Calculations!$P9,Dataset!$V:$V,0),MATCH(Calculations!$A$1,Dataset!$A$1:$V$1,0)) -> 21855.5 | G9: =INDEX(Dataset!$A:$V,MATCH(Calculations!G$6&Calculations!$P9,Dataset!$V:$V,0),MATCH(Calculations!$A$1,Dataset!$A$1:$V$1,0)) -> 21712.4 | H9: =INDEX(Dataset!$A:$V,MATCH(Calculations!H$6&Calculations!$P9,Dataset!$V:$V,0),MATCH(Calculations!$A$1,Dataset!$A$1:$V$1,0)) -> 21372.05355 | I9: =INDEX(Dataset!$A:$V,MATCH(Calculations!I$6&Calculations!$P9,Dataset!$V:$V,0),MATCH(Calculations!$A$1,Dataset!$A$1:$V$1,0)) -> 20115 | J9: =INDEX(Dataset!$A:$V,MATCH(Calculations!J$6&Calculations!$P9,Dataset!$V:$V,0),MATCH(Calculations!$A$1,Dataset!$A$1:$V$1,0)) -> 20962.45289 | K9: =INDEX(Dataset!$A:$V,MATCH(Calculations!K$6&Calculations!$P9,Dataset!$V:$V,0),MATCH(Calculations!$A$1,Dataset!$A$1:$V$1,0)) -> 19661.1 | L9: =INDEX(Dataset!$A:$V,MATCH(Calculations!L$6&Calculations!$P9,Dataset!$V:$V,0),MATCH(Calculations!$A$1,Dataset!$A$1:$V$1,0)) -> 19532.4 | M9: =INDEX(Dataset!$A:$V,MATCH(Calculations!M$6&Calculations!$P9,Dataset!$V:$V,0),MATCH(Calculations!$A$1,Dataset!$A$1:$V$1,0)) -> 19547.1 | P9: Cover guide and driversDriversTotal units distributed
A10: Network-wide peak load (MVA) | C10: =INDEX(Dataset!$A:$V,MATCH(Calculations!C$6&Calculations!$P10,Dataset!$V:$V,0),MATCH(Calculations!$A$1,Dataset!$A$1:$V$1,0)) -> 4267 | D10: =INDEX(Dataset!$A:$V,MATCH(Calculations!D$6&Calculations!$P10,Dataset!$V:$V,0),MATCH(Calculations!$A$1,Dataset!$A$1:$V$1,0)) -> 4233 | E10: =INDEX(Dataset!$A:$V,MATCH(Calculations!E$6&Calculations!$P10,Dataset!$V:$V,0),MATCH(Calculations!$A$1,Dataset!$A$1:$V$1,0)) -> 4262 | F10: =INDEX(Dataset!$A:$V,MATCH(Calculations!F$6&Calculations!$P10,Dataset!$V:$V,0),MATCH(Calculations!$A$1,Dataset!$A$1:$V$1,0)) -> 4305 | G10: =INDEX(Dataset!$A:$V,MATCH(Calculations!G$6&Calculations!$P10,Dataset!$V:$V,0),MATCH(Calculations!$A$1,Dataset!$A$1:$V$1,0)) -> 4160 | H10: =INDEX(Dataset!$A:$V,MATCH(Calculations!H$6&Calculations!$P10,Dataset!$V:$V,0),MATCH(Calculations!$A$1,Dataset!$A$1:$V$1,0)) -> 4140 | I10: =INDEX(Dataset!$A:$V,MATCH(Calculations!I$6&Calculations!$P10,Dataset!$V:$V,0),MATCH(Calculations!$A$1,Dataset!$A$1:$V$1,0)) -> 4049 | J10: =INDEX(Dataset!$A:$V,MATCH(Calculations!J$6&Calculations!$P10,Dataset!$V:$V,0),MATCH(Calculations!$A$1,Dataset!$A$1:$V$1,0)) -> 4223 | K10: =INDEX(Dataset!$A:$V,MATCH(Calculations!K$6&Calculations!$P10,Dataset!$V:$V,0),MATCH(Calculations!$A$1,Dataset!$A$1:$V$1,0)) -> 4107 | L10: =INDEX(Dataset!$A:$V,MATCH(Calculations!L$6&Calculations!$P10,Dataset!$V:$V,0),MATCH(Calculations!$A$1,Dataset!$A$1:$V$1,0)) -> 3960 | M10: =INDEX(Dataset!$A:$V,MATCH(Calculations!M$6&Calculations!$P10,Dataset!$V:$V,0),MATCH(Calculations!$A$1,Dataset!$A$1:$V$1,0)) -> 4019 | P10: Cover guide and driversDriversNetwork-wide Peak load
A12: Ch2 Incentive Payments
D13: 2023/24 | E13: 2024/25 | F13: 2025/26 | G13: 2026/27 | H13: 2027/28
A14: Total incentive payments | D14: =INDEX(Dataset!$A:$V,MATCH(Calculations!D$13&Calculations!$P$14,Dataset!$V:$V,0),MATCH(Calculations!$A$1,Dataset!$A$1:$V$1,0)) -> 3.074778644 | E14: =INDEX(Dataset!$A:$V,MATCH(Calculations!E$13&Calculations!$P$14,Dataset!$V:$V,0),MATCH(Calculations!$A$1,Dataset!$A$1:$V$1,0)) -> 8.563169594 | F14: =INDEX(Dataset!$A:$V,MATCH(Calculations!F$13&Calculations!$P$14,Dataset!$V:$V,0),MATCH(Calculations!$A$1,Dataset!$A$1:$V$1,0)) ->  | G14: =INDEX(Dataset!$A:$V,MATCH(Calculations!G$13&Calculations!$P$14,Dataset!$V:$V,0),MATCH(Calculations!$A$1,Dataset!$A$1:$V$1,0)) ->  | H14: =INDEX(Dataset!$A:$V,MATCH(Calculations!H$13&Calculations!$P$14,Dataset!$V:$V,0),MATCH(Calculations!$A$1,Dataset!$A$1:$V$1,0)) ->  | P14: Incentive paymentsIncentive paymentsTotal Incentive payments
A16: Ch1 outputs - reliability
D17: 2023/24 | E17: 2024/25 | F17: 2025/26 | G17: 2026/27 | H17: 2027/28
A18: IIS
A19: CI performance | C19: =IFERROR(INDEX(Dataset!$A:$V,MATCH(Calculations!#REF!&Calculations!$P19,Dataset!$V:$V,0),MATCH(Calculations!$A$1,Dataset!$A$1:$V$1,0)),"") ->  | D19: =IFERROR(INDEX(Dataset!$A:$V,MATCH(Calculations!D$17&Calculations!$P19,Dataset!$V:$V,0),MATCH(Calculations!$A$1,Dataset!$A$1:$V$1,0)),"") -> 26.21178856 | E19: =IFERROR(INDEX(Dataset!$A:$V,MATCH(Calculations!E$17&Calculations!$P19,Dataset!$V:$V,0),MATCH(Calculations!$A$1,Dataset!$A$1:$V$1,0)),"") -> 26.06998752 | F19: =IFERROR(INDEX(Dataset!$A:$V,MATCH(Calculations!F$17&Calculations!$P19,Dataset!$V:$V,0),MATCH(Calculations!$A$1,Dataset!$A$1:$V$1,0)),"") -> 0 | G19: =IFERROR(INDEX(Dataset!$A:$V,MATCH(Calculations!G$17&Calculations!$P19,Dataset!$V:$V,0),MATCH(Calculations!$A$1,Dataset!$A$1:$V$1,0)),"") -> 0 | H19: =IFERROR(INDEX(Dataset!$A:$V,MATCH(Calculations!H$17&Calculations!$P19,Dataset!$V:$V,0),MATCH(Calculations!$A$1,Dataset!$A$1:$V$1,0)),"") -> 0 | I19: =IFERROR(INDEX(Dataset!$A:$V,MATCH(Calculations!I$17&Calculations!$P19,Dataset!$V:$V,0),MATCH(Calculations!$A$1,Dataset!$A$1:$V$1,0)),"") ->  | J19: =IFERROR(INDEX(Dataset!$A:$V,MATCH(Calculations!J$17&Calculations!$P19,Dataset!$V:$V,0),MATCH(Calculations!$A$1,Dataset!$A$1:$V$1,0)),"") ->  | K19: =IFERROR(INDEX(Dataset!$A:$V,MATCH(Calculations!K$17&Calculations!$P19,Dataset!$V:$V,0),MATCH(Calculations!$A$1,Dataset!$A$1:$V$1,0)),"") ->  | L19: =IFERROR(INDEX(Dataset!$A:$V,MATCH(Calculations!L$17&Calculations!$P19,Dataset!$V:$V,0),MATCH(Calculations!$A$1,Dataset!$A$1:$V$1,0)),"") ->  | P19: Outputs - reliabilityInterruption Incentive Scheme (IIS)CI performance
A20: CI RAG | B20: *current year rating only | C20: =IFERROR(INDEX(Dataset!$A:$V,MATCH(Calculations!#REF!&Calculations!$P20,Dataset!$V:$V,0),MATCH(Calculations!$A$1,Dataset!$A$1:$V$1,0)),"") ->  | D20: =IFERROR(INDEX(Dataset!$A:$V,MATCH(Calculations!D$17&Calculations!$P20,Dataset!$V:$V,0),MATCH(Calculations!$A$1,Dataset!$A$1:$V$1,0)),"") -> Green | E20: =IFERROR(INDEX(Dataset!$A:$V,MATCH(Calculations!E$17&Calculations!$P20,Dataset!$V:$V,0),MATCH(Calculations!$A$1,Dataset!$A$1:$V$1,0)),"") ->  | F20: =IFERROR(INDEX(Dataset!$A:$V,MATCH(Calculations!F$17&Calculations!$P20,Dataset!$V:$V,0),MATCH(Calculations!$A$1,Dataset!$A$1:$V$1,0)),"") ->  | G20: =IFERROR(INDEX(Dataset!$A:$V,MATCH(Calculations!G$17&Calculations!$P20,Dataset!$V:$V,0),MATCH(Calculations!$A$1,Dataset!$A$1:$V$1,0)),"") ->  | H20: =IFERROR(INDEX(Dataset!$A:$V,MATCH(Calculations!H$17&Calculations!$P20,Dataset!$V:$V,0),MATCH(Calculations!$A$1,Dataset!$A$1:$V$1,0)),"") ->  | I20: =IFERROR(INDEX(Dataset!$A:$V,MATCH(Calculations!I$17&Calculations!$P20,Dataset!$V:$V,0),MATCH(Calculations!$A$1,Dataset!$A$1:$V$1,0)),"") ->  | J20: =IFERROR(INDEX(Dataset!$A:$V,MATCH(Calculations!J$17&Calculations!$P20,Dataset!$V:$V,0),MATCH(Calculations!$A$1,Dataset!$A$1:$V$1,0)),"") ->  | K20: =IFERROR(INDEX(Dataset!$A:$V,MATCH(Calculations!K$17&Calculations!$P20,Dataset!$V:$V,0),MATCH(Calculations!$A$1,Dataset!$A$1:$V$1,0)),"") ->  | L20: =IFERROR(INDEX(Dataset!$A:$V,MATCH(Calculations!L$17&Calculations!$P20,Dataset!$V:$V,0),MATCH(Calculations!$A$1,Dataset!$A$1:$V$1,0)),"") ->  | P20: Outputs - reliabilityInterruption Incentive Scheme (IIS)CI RAG rating
A21: CML performance | C21: =IFERROR(INDEX(Dataset!$A:$V,MATCH(Calculations!#REF!&Calculations!$P21,Dataset!$V:$V,0),MATCH(Calculations!$A$1,Dataset!$A$1:$V$1,0)),"") ->  | D21: =IFERROR(INDEX(Dataset!$A:$V,MATCH(Calculations!D$17&Calculations!$P21,Dataset!$V:$V,0),MATCH(Calculations!$A$1,Dataset!$A$1:$V$1,0)),"") -> 26.79553851 | E21: =IFERROR(INDEX(Dataset!$A:$V,MATCH(Calculations!E$17&Calculations!$P21,Dataset!$V:$V,0),MATCH(Calculations!$A$1,Dataset!$A$1:$V$1,0)),"") -> 27.08858695 | F21: =IFERROR(INDEX(Dataset!$A:$V,MATCH(Calculations!F$17&Calculations!$P21,Dataset!$V:$V,0),MATCH(Calculations!$A$1,Dataset!$A$1:$V$1,0)),"") -> 0 | G21: =IFERROR(INDEX(Dataset!$A:$V,MATCH(Calculations!G$17&Calculations!$P21,Dataset!$V:$V,0),MATCH(Calculations!$A$1,Dataset!$A$1:$V$1,0)),"") -> 0 | H21: =IFERROR(INDEX(Dataset!$A:$V,MATCH(Calculations!H$17&Calculations!$P21,Dataset!$V:$V,0),MATCH(Calculations!$A$1,Dataset!$A$1:$V$1,0)),"") -> 0 | I21: =IFERROR(INDEX(Dataset!$A:$V,MATCH(Calculations!I$17&Calculations!$P21,Dataset!$V:$V,0),MATCH(Calculations!$A$1,Dataset!$A$1:$V$1,0)),"") ->  | J21: =IFERROR(INDEX(Dataset!$A:$V,MATCH(Calculations!J$17&Calculations!$P21,Dataset!$V:$V,0),MATCH(Calculations!$A$1,Dataset!$A$1:$V$1,0)),"") ->  | K21: =IFERROR(INDEX(Dataset!$A:$V,MATCH(Calculations!K$17&Calculations!$P21,Dataset!$V:$V,0),MATCH(Calculations!$A$1,Dataset!$A$1:$V$1,0)),"") ->  | L21: =IFERROR(INDEX(Dataset!$A:$V,MATCH(Calculations!L$17&Calculations!$P21,Dataset!$V:$V,0),MATCH(Calculations!$A$1,Dataset!$A$1:$V$1,0)),"") ->  | P21: Outputs - reliabilityInterruption Incentive Scheme (IIS)CML performance
A22: CML RAG | B22: *current year rating only | C22: =IFERROR(INDEX(Dataset!$A:$V,MATCH(Calculations!#REF!&Calculations!$P22,Dataset!$V:$V,0),MATCH(Calculations!$A$1,Dataset!$A$1:$V$1,0)),"") ->  | D22: =IFERROR(INDEX(Dataset!$A:$V,MATCH(Calculations!D$17&Calculations!$P22,Dataset!$V:$V,0),MATCH(Calculations!$A$1,Dataset!$A$1:$V$1,0)),"") -> Amber | E22: =IFERROR(INDEX(Dataset!$A:$V,MATCH(Calculations!E$17&Calculations!$P22,Dataset!$V:$V,0),MATCH(Calculations!$A$1,Dataset!$A$1:$V$1,0)),"") ->  | F22: =IFERROR(INDEX(Dataset!$A:$V,MATCH(Calculations!F$17&Calculations!$P22,Dataset!$V:$V,0),MATCH(Calculations!$A$1,Dataset!$A$1:$V$1,0)),"") ->  | G22: =IFERROR(INDEX(Dataset!$A:$V,MATCH(Calculations!G$17&Calculations!$P22,Dataset!$V:$V,0),MATCH(Calculations!$A$1,Dataset!$A$1:$V$1,0)),"") ->  | H22: =IFERROR(INDEX(Dataset!$A:$V,MATCH(Calculations!H$17&Calculations!$P22,Dataset!$V:$V,0),MATCH(Calculations!$A$1,Dataset!$A$1:$V$1,0)),"") ->  | I22: =IFERROR(INDEX(Dataset!$A:$V,MATCH(Calculations!I$17&Calculations!$P22,Dataset!$V:$V,0),MATCH(Calculations!$A$1,Dataset!$A$1:$V$1,0)),"") ->  | J22: =IFERROR(INDEX(Dataset!$A:$V,MATCH(Calculations!J$17&Calculations!$P22,Dataset!$V:$V,0),MATCH(Calculations!$A$1,Dataset!$A$1:$V$1,0)),"") ->  | K22: =IFERROR(INDEX(Dataset!$A:$V,MATCH(Calculations!K$17&Calculations!$P22,Dataset!$V:$V,0),MATCH(Calculations!$A$1,Dataset!$A$1:$V$1,0)),"") ->  | L22: =IFERROR(INDEX(Dataset!$A:$V,MATCH(Calculations!L$17&Calculations!$P22,Dataset!$V:$V,0),MATCH(Calculations!$A$1,Dataset!$A$1:$V$1,0)),"") ->  | P22: Outputs - reliabilityInterruption Incentive Scheme (IIS)CMLRAG rating
A23: IIS total reward | C23: =IFERROR(INDEX(Dataset!$A:$V,MATCH(Calculations!#REF!&Calculations!$P23,Dataset!$V:$V,0),MATCH(Calculations!$A$1,Dataset!$A$1:$V$1,0)),"") ->  | D23: =IFERROR(INDEX(Dataset!$A:$V,MATCH(Calculations!D$17&Calculations!$P23,Dataset!$V:$V,0),MATCH(Calculations!$A$1,Dataset!$A$1:$V$1,0)),"") -> 0.8678962848 | E23: =IFERROR(INDEX(Dataset!$A:$V,MATCH(Calculations!E$17&Calculations!$P23,Dataset!$V:$V,0),MATCH(Calculations!$A$1,Dataset!$A$1:$V$1,0)),"") -> 0.4288354781 | F23: =IFERROR(INDEX(Dataset!$A:$V,MATCH(Calculations!F$17&Calculations!$P23,Dataset!$V:$V,0),MATCH(Calculations!$A$1,Dataset!$A$1:$V$1,0)),"") -> 0 | G23: =IFERROR(INDEX(Dataset!$A:$V,MATCH(Calculations!G$17&Calculations!$P23,Dataset!$V:$V,0),MATCH(Calculations!$A$1,Dataset!$A$1:$V$1,0)),"") -> 0 | H23: =IFERROR(INDEX(Dataset!$A:$V,MATCH(Calculations!H$17&Calculations!$P23,Dataset!$V:$V,0),MATCH(Calculations!$A$1,Dataset!$A$1:$V$1,0)),"") -> 0 | I23: =IFERROR(INDEX(Dataset!$A:$V,MATCH(Calculations!I$17&Calculations!$P23,Dataset!$V:$V,0),MATCH(Calculations!$A$1,Dataset!$A$1:$V$1,0)),"") ->  | J23: =IFERROR(INDEX(Dataset!$A:$V,MATCH(Calculations!J$17&Calculations!$P23,Dataset!$V:$V,0),MATCH(Calculations!$A$1,Dataset!$A$1:$V$1,0)),"") ->  | K23: =IFERROR(INDEX(Dataset!$A:$V,MATCH(Calculations!K$17&Calculations!$P23,Dataset!$V:$V,0),MATCH(Calculations!$A$1,Dataset!$A$1:$V$1,0)),"") ->  | L23: =IFERROR(INDEX(Dataset!$A:$V,MATCH(Calculations!L$17&Calculations!$P23,Dataset!$V:$V,0),MATCH(Calculations!$A$1,Dataset!$A$1:$V$1,0)),"") ->  | P23: Outputs - reliabilityInterruption Incentive Scheme (IIS)IIS total reward
A24: Regulation 7 Severe Weather Conditions Adjustment | C24: =IFERROR(INDEX(Dataset!$A:$V,MATCH(Calculations!#REF!&Calculations!$P24,Dataset!$V:$V,0),MATCH(Calculations!$A$1,Dataset!$A$1:$V$1,0)),"") ->  | D24: =IFERROR(INDEX(Dataset!$A:$V,MATCH(Calculations!D$17&Calculations!$P24,Dataset!$V:$V,0),MATCH(Calculations!$A$1,Dataset!$A$1:$V$1,0)),"") -> 0 | E24: =IFERROR(INDEX(Dataset!$A:$V,MATCH(Calculations!E$17&Calculations!$P24,Dataset!$V:$V,0),MATCH(Calculations!$A$1,Dataset!$A$1:$V$1,0)),"") -> 0 | F24: =IFERROR(INDEX(Dataset!$A:$V,MATCH(Calculations!F$17&Calculations!$P24,Dataset!$V:$V,0),MATCH(Calculations!$A$1,Dataset!$A$1:$V$1,0)),"") -> 0 | G24: =IFERROR(INDEX(Dataset!$A:$V,MATCH(Calculations!G$17&Calculations!$P24,Dataset!$V:$V,0),MATCH(Calculations!$A$1,Dataset!$A$1:$V$1,0)),"") -> 0 | H24: =IFERROR(INDEX(Dataset!$A:$V,MATCH(Calculations!H$17&Calculations!$P24,Dataset!$V:$V,0),MATCH(Calculations!$A$1,Dataset!$A$1:$V$1,0)),"") -> 0 | I24: =IFERROR(INDEX(Dataset!$A:$V,MATCH(Calculations!I$17&Calculations!$P24,Dataset!$V:$V,0),MATCH(Calculations!$A$1,Dataset!$A$1:$V$1,0)),"") ->  | J24: =IFERROR(INDEX(Dataset!$A:$V,MATCH(Calculations!J$17&Calculations!$P24,Dataset!$V:$V,0),MATCH(Calculations!$A$1,Dataset!$A$1:$V$1,0)),"") ->  | K24: =IFERROR(INDEX(Dataset!$A:$V,MATCH(Calculations!K$17&Calculations!$P24,Dataset!$V:$V,0),MATCH(Calculations!$A$1,Dataset!$A$1:$V$1,0)),"") ->  | L24: =IFERROR(INDEX(Dataset!$A:$V,MATCH(Calculations!L$17&Calculations!$P24,Dataset!$V:$V,0),MATCH(Calculations!$A$1,Dataset!$A$1:$V$1,0)),"") ->  | P24: Outputs - reliabilityInterruption Incentive Scheme (IIS)Regulation 7 Severe Weather Conditions Adjustment
A25: Normal weather conditions adjustment | C25: =IFERROR(INDEX(Dataset!$A:$V,MATCH(Calculations!#REF!&Calculations!$P25,Dataset!$V:$V,0),MATCH(Calculations!$A$1,Dataset!$A$1:$V$1,0)),"") ->  | D25: =IFERROR(INDEX(Dataset!$A:$V,MATCH(Calculations!D$17&Calculations!$P25,Dataset!$V:$V,0),MATCH(Calculations!$A$1,Dataset!$A$1:$V$1,0)),"") -> 0 | E25: =IFERROR(INDEX(Dataset!$A:$V,MATCH(Calculations!E$17&Calculations!$P25,Dataset!$V:$V,0),MATCH(Calculations!$A$1,Dataset!$A$1:$V$1,0)),"") -> 0 | F25: =IFERROR(INDEX(Dataset!$A:$V,MATCH(Calculations!F$17&Calculations!$P25,Dataset!$V:$V,0),MATCH(Calculations!$A$1,Dataset!$A$1:$V$1,0)),"") -> 0 | G25: =IFERROR(INDEX(Dataset!$A:$V,MATCH(Calculations!G$17&Calculations!$P25,Dataset!$V:$V,0),MATCH(Calculations!$A$1,Dataset!$A$1:$V$1,0)),"") -> 0 | H25: =IFERROR(INDEX(Dataset!$A:$V,MATCH(Calculations!H$17&Calculations!$P25,Dataset!$V:$V,0),MATCH(Calculations!$A$1,Dataset!$A$1:$V$1,0)),"") -> 0 | I25: =IFERROR(INDEX(Dataset!$A:$V,MATCH(Calculations!I$17&Calculations!$P25,Dataset!$V:$V,0),MATCH(Calculations!$A$1,Dataset!$A$1:$V$1,0)),"") ->  | J25: =IFERROR(INDEX(Dataset!$A:$V,MATCH(Calculations!J$17&Calculations!$P25,Dataset!$V:$V,0),MATCH(Calculations!$A$1,Dataset!$A$1:$V$1,0)),"") ->  | K25: =IFERROR(INDEX(Dataset!$A:$V,MATCH(Calculations!K$17&Calculations!$P25,Dataset!$V:$V,0),MATCH(Calculations!$A$1,Dataset!$A$1:$V$1,0)),"") ->  | L25: =IFERROR(INDEX(Dataset!$A:$V,MATCH(Calculations!L$17&Calculations!$P25,Dataset!$V:$V,0),MATCH(Calculations!$A$1,Dataset!$A$1:$V$1,0)),"") ->  | P25: Outputs - reliabilityInterruption Incentive Scheme (IIS)Normal weather conditions adjustment
A27: GSoP
B28: Total Payments Owed | C28: =IFERROR(INDEX(Dataset!$A:$V,MATCH(Calculations!#REF!&Calculations!$P28,Dataset!$V:$V,0),MATCH(Calculations!$A$1,Dataset!$A$1:$V$1,0)),"") ->  | D28: =IFERROR(INDEX(Dataset!$A:$V,MATCH(Calculations!D$17&Calculations!$P28,Dataset!$V:$V,0),MATCH(Calculations!$A$1,Dataset!$A$1:$V$1,0)),"") -> 9061 | E28: =IFERROR(INDEX(Dataset!$A:$V,MATCH(Calculations!E$17&Calculations!$P28,Dataset!$V:$V,0),MATCH(Calculations!$A$1,Dataset!$A$1:$V$1,0)),"") -> 12493 | F28: =IFERROR(INDEX(Dataset!$A:$V,MATCH(Calculations!F$17&Calculations!$P28,Dataset!$V:$V,0),MATCH(Calculations!$A$1,Dataset!$A$1:$V$1,0)),"") -> 0 | G28: =IFERROR(INDEX(Dataset!$A:$V,MATCH(Calculations!G$17&Calculations!$P28,Dataset!$V:$V,0),MATCH(Calculations!$A$1,Dataset!$A$1:$V$1,0)),"") -> 0 | H28: =IFERROR(INDEX(Dataset!$A:$V,MATCH(Calculations!H$17&Calculations!$P28,Dataset!$V:$V,0),MATCH(Calculations!$A$1,Dataset!$A$1:$V$1,0)),"") -> 0 | I28: =IFERROR(INDEX(Dataset!$A:$V,MATCH(Calculations!I$17&Calculations!$P28,Dataset!$V:$V,0),MATCH(Calculations!$A$1,Dataset!$A$1:$V$1,0)),"") ->  | J28: =IFERROR(INDEX(Dataset!$A:$V,MATCH(Calculations!J$17&Calculations!$P28,Dataset!$V:$V,0),MATCH(Calculations!$A$1,Dataset!$A$1:$V$1,0)),"") ->  | K28: =IFERROR(INDEX(Dataset!$A:$V,MATCH(Calculations!K$17&Calculations!$P28,Dataset!$V:$V,0),MATCH(Calculations!$A$1,Dataset!$A$1:$V$1,0)),"") ->  | L28: =IFERROR(INDEX(Dataset!$A:$V,MATCH(Calculations!L$17&Calculations!$P28,Dataset!$V:$V,0),MATCH(Calculations!$A$1,Dataset!$A$1:$V$1,0)),"") ->  | P28: Outputs - reliabilityGuaranteed Standards of Performance (GSoP)Total Payments owed
B29: Total Paymets Made + Exemptions | C29: =IFERROR(INDEX(Dataset!$A:$V,MATCH(Calculations!#REF!&Calculations!$P29,Dataset!$V:$V,0),MATCH(Calculations!$A$1,Dataset!$A$1:$V$1,0)),"") ->  | D29: =IFERROR(INDEX(Dataset!$A:$V,MATCH(Calculations!D$17&Calculations!$P29,Dataset!$V:$V,0),MATCH(Calculations!$A$1,Dataset!$A$1:$V$1,0)),"") -> 7792 | E29: =IFERROR(INDEX(Dataset!$A:$V,MATCH(Calculations!E$17&Calculations!$P29,Dataset!$V:$V,0),MATCH(Calculations!$A$1,Dataset!$A$1:$V$1,0)),"") -> 12493 | F29: =IFERROR(INDEX(Dataset!$A:$V,MATCH(Calculations!F$17&Calculations!$P29,Dataset!$V:$V,0),MATCH(Calculations!$A$1,Dataset!$A$1:$V$1,0)),"") -> 0 | G29: =IFERROR(INDEX(Dataset!$A:$V,MATCH(Calculations!G$17&Calculations!$P29,Dataset!$V:$V,0),MATCH(Calculations!$A$1,Dataset!$A$1:$V$1,0)),"") -> 0 | H29: =IFERROR(INDEX(Dataset!$A:$V,MATCH(Calculations!H$17&Calculations!$P29,Dataset!$V:$V,0),MATCH(Calculations!$A$1,Dataset!$A$1:$V$1,0)),"") -> 0 | I29: =IFERROR(INDEX(Dataset!$A:$V,MATCH(Calculations!I$17&Calculations!$P29,Dataset!$V:$V,0),MATCH(Calculations!$A$1,Dataset!$A$1:$V$1,0)),"") ->  | J29: =IFERROR(INDEX(Dataset!$A:$V,MATCH(Calculations!J$17&Calculations!$P29,Dataset!$V:$V,0),MATCH(Calculations!$A$1,Dataset!$A$1:$V$1,0)),"") ->  | K29: =IFERROR(INDEX(Dataset!$A:$V,MATCH(Calculations!K$17&Calculations!$P29,Dataset!$V:$V,0),MATCH(Calculations!$A$1,Dataset!$A$1:$V$1,0)),"") ->  | L29: =IFERROR(INDEX(Dataset!$A:$V,MATCH(Calculations!L$17&Calculations!$P29,Dataset!$V:$V,0),MATCH(Calculations!$A$1,Dataset!$A$1:$V$1,0)),"") ->  | P29: Outputs - reliabilityGuaranteed Standards of Performance (GSoP)Total Payments made
B30: Percentage of payments made | C30: =IFERROR(INDEX(Dataset!$A:$V,MATCH(Calculations!#REF!&Calculations!$P30,Dataset!$V:$V,0),MATCH(Calculations!$A$1,Dataset!$A$1:$V$1,0)),"") ->  | D30: =IFERROR(INDEX(Dataset!$A:$V,MATCH(Calculations!D$17&Calculations!$P30,Dataset!$V:$V,0),MATCH(Calculations!$A$1,Dataset!$A$1:$V$1,0)),"") -> 0.859949233 | E30: =IFERROR(INDEX(Dataset!$A:$V,MATCH(Calculations!E$17&Calculations!$P30,Dataset!$V:$V,0),MATCH(Calculations!$A$1,Dataset!$A$1:$V$1,0)),"") -> 1 | F30: =IFERROR(INDEX(Dataset!$A:$V,MATCH(Calculations!F$17&Calculations!$P30,Dataset!$V:$V,0),MATCH(Calculations!$A$1,Dataset!$A$1:$V$1,0)),"") -> 0 | G30: =IFERROR(INDEX(Dataset!$A:$V,MATCH(Calculations!G$17&Calculations!$P30,Dataset!$V:$V,0),MATCH(Calculations!$A$1,Dataset!$A$1:$V$1,0)),"") -> 0 | H30: =IFERROR(INDEX(Dataset!$A:$V,MATCH(Calculations!H$17&Calculations!$P30,Dataset!$V:$V,0),MATCH(Calculations!$A$1,Dataset!$A$1:$V$1,0)),"") -> 0 | I30: =IFERROR(INDEX(Dataset!$A:$V,MATCH(Calculations!I$17&Calculations!$P30,Dataset!$V:$V,0),MATCH(Calculations!$A$1,Dataset!$A$1:$V$1,0)),"") ->  | J30: =IFERROR(INDEX(Dataset!$A:$V,MATCH(Calculations!J$17&Calculations!$P30,Dataset!$V:$V,0),MATCH(Calculations!$A$1,Dataset!$A$1:$V$1,0)),"") ->  | K30: =IFERROR(INDEX(Dataset!$A:$V,MATCH(Calculations!K$17&Calculations!$P30,Dataset!$V:$V,0),MATCH(Calculations!$A$1,Dataset!$A$1:$V$1,0)),"") ->  | L30: =IFERROR(INDEX(Dataset!$A:$V,MATCH(Calculations!L$17&Calculations!$P30,Dataset!$V:$V,0),MATCH(Calculations!$A$1,Dataset!$A$1:$V$1,0)),"") ->  | P30: Outputs - reliabilityGuaranteed Standards of Performance (GSoP)% of Payments made vs Payments owed
A31: WSC
A32: Expenditure 20/21 prices | C32: =IFERROR(INDEX(Dataset!$A:$V,MATCH(Calculations!#REF!&Calculations!$P32,Dataset!$V:$V,0),MATCH(Calculations!$A$1,Dataset!$A$1:$V$1,0)),"") ->  | D32: =IFERROR(INDEX(Dataset!$A:$V,MATCH(Calculations!D$17&Calculations!$P32,Dataset!$V:$V,0),MATCH(Calculations!$A$1,Dataset!$A$1:$V$1,0)),"") -> 0.2767782967 | E32: =IFERROR(INDEX(Dataset!$A:$V,MATCH(Calculations!E$17&Calculations!$P32,Dataset!$V:$V,0),MATCH(Calculations!$A$1,Dataset!$A$1:$V$1,0)),"") -> 0.6192485489 | F32: =IFERROR(INDEX(Dataset!$A:$V,MATCH(Calculations!F$17&Calculations!$P32,Dataset!$V:$V,0),MATCH(Calculations!$A$1,Dataset!$A$1:$V$1,0)),"") -> 0 | G32: =IFERROR(INDEX(Dataset!$A:$V,MATCH(Calculations!G$17&Calculations!$P32,Dataset!$V:$V,0),MATCH(Calculations!$A$1,Dataset!$A$1:$V$1,0)),"") -> 0 | H32: =IFERROR(INDEX(Dataset!$A:$V,MATCH(Calculations!H$17&Calculations!$P32,Dataset!$V:$V,0),MATCH(Calculations!$A$1,Dataset!$A$1:$V$1,0)),"") -> 0 | I32: =IFERROR(INDEX(Dataset!$A:$V,MATCH(Calculations!I$17&Calculations!$P32,Dataset!$V:$V,0),MATCH(Calculations!$A$1,Dataset!$A$1:$V$1,0)),"") ->  | J32: =IFERROR(INDEX(Dataset!$A:$V,MATCH(Calculations!J$17&Calculations!$P32,Dataset!$V:$V,0),MATCH(Calculations!$A$1,Dataset!$A$1:$V$1,0)),"") ->  | K32: =IFERROR(INDEX(Dataset!$A:$V,MATCH(Calculations!K$17&Calculations!$P32,Dataset!$V:$V,0),MATCH(Calculations!$A$1,Dataset!$A$1:$V$1,0)),"") ->  | L32: =IFERROR(INDEX(Dataset!$A:$V,MATCH(Calculations!L$17&Calculations!$P32,Dataset!$V:$V,0),MATCH(Calculations!$A$1,Dataset!$A$1:$V$1,0)),"") ->  | M32: =IFERROR(INDEX(Dataset!$A:$V,MATCH(Calculations!M$17&Calculations!$P32,Dataset!$V:$V,0),MATCH(Calculations!$A$1,Dataset!$A$1:$V$1,0)),"") ->  | P32: Outputs - reliabilityWorst Served CustomersExpenditure 20/21
A33: Resilience
A34: Total Resilience Baseline | C34: =IFERROR(INDEX(Dataset!$A:$V,MATCH(Calculations!#REF!&Calculations!$P34,Dataset!$V:$V,0),MATCH(Calculations!$A$1,Dataset!$A$1:$V$1,0)),"") ->  | D34: =IFERROR(INDEX(Dataset!$A:$V,MATCH(Calculations!D$17&Calculations!$P34,Dataset!$V:$V,0),MATCH(Calculations!$A$1,Dataset!$A$1:$V$1,0)),"") -> 7.201127941 | E34: =IFERROR(INDEX(Dataset!$A:$V,MATCH(Calculations!E$17&Calculations!$P34,Dataset!$V:$V,0),MATCH(Calculations!$A$1,Dataset!$A$1:$V$1,0)),"") -> 7.070369615 | F34: =IFERROR(INDEX(Dataset!$A:$V,MATCH(Calculations!F$17&Calculations!$P34,Dataset!$V:$V,0),MATCH(Calculations!$A$1,Dataset!$A$1:$V$1,0)),"") -> 12.65697712 | G34: =IFERROR(INDEX(Dataset!$A:$V,MATCH(Calculations!G$17&Calculations!$P34,Dataset!$V:$V,0),MATCH(Calculations!$A$1,Dataset!$A$1:$V$1,0)),"") -> 16.03987524 | H34: =IFERROR(INDEX(Dataset!$A:$V,MATCH(Calculations!H$17&Calculations!$P34,Dataset!$V:$V,0),MATCH(Calculations!$A$1,Dataset!$A$1:$V$1,0)),"") -> 14.15793412 | I34: =IFERROR(INDEX(Dataset!$A:$V,MATCH(Calculations!I$17&Calculations!$P34,Dataset!$V:$V,0),MATCH(Calculations!$A$1,Dataset!$A$1:$V$1,0)),"") ->  | J34: =IFERROR(INDEX(Dataset!$A:$V,MATCH(Calculations!J$17&Calculations!$P34,Dataset!$V:$V,0),MATCH(Calculations!$A$1,Dataset!$A$1:$V$1,0)),"") ->  | K34: =IFERROR(INDEX(Dataset!$A:$V,MATCH(Calculations!K$17&Calculations!$P34,Dataset!$V:$V,0),MATCH(Calculations!$A$1,Dataset!$A$1:$V$1,0)),"") ->  | L34: =IFERROR(INDEX(Dataset!$A:$V,MATCH(Calculations!L$17&Calculations!$P34,Dataset!$V:$V,0),MATCH(Calculations!$A$1,Dataset!$A$1:$V$1,0)),"") ->  | P34: Outputs - reliabilityResilienceTotal Resilience Baseline
A35: Total Resilience Actual | C35: =IFERROR(INDEX(Dataset!$A:$V,MATCH(Calculations!#REF!&Calculations!$P35,Dataset!$V:$V,0),MATCH(Calculations!$A$1,Dataset!$A$1:$V$1,0)),"") ->  | D35: =IFERROR(INDEX(Dataset!$A:$V,MATCH(Calculations!D$17&Calculations!$P35,Dataset!$V:$V,0),MATCH(Calculations!$A$1,Dataset!$A$1:$V$1,0)),"") -> 7.564448077 | E35: =IFERROR(INDEX(Dataset!$A:$V,MATCH(Calculations!E$17&Calculations!$P35,Dataset!$V:$V,0),MATCH(Calculations!$A$1,Dataset!$A$1:$V$1,0)),"") -> 9.66187705 | F35: =IFERROR(INDEX(Dataset!$A:$V,MATCH(Calculations!F$17&Calculations!$P35,Dataset!$V:$V,0),MATCH(Calculations!$A$1,Dataset!$A$1:$V$1,0)),"") -> 0 | G35: =IFERROR(INDEX(Dataset!$A:$V,MATCH(Calculations!G$17&Calculations!$P35,Dataset!$V:$V,0),MATCH(Calculations!$A$1,Dataset!$A$1:$V$1,0)),"") -> 0 | H35: =IFERROR(INDEX(Dataset!$A:$V,MATCH(Calculations!H$17&Calculations!$P35,Dataset!$V:$V,0),MATCH(Calculations!$A$1,Dataset!$A$1:$V$1,0)),"") -> 0 | I35: =IFERROR(INDEX(Dataset!$A:$V,MATCH(Calculations!I$17&Calculations!$P35,Dataset!$V:$V,0),MATCH(Calculations!$A$1,Dataset!$A$1:$V$1,0)),"") ->  | J35: =IFERROR(INDEX(Dataset!$A:$V,MATCH(Calculations!J$17&Calculations!$P35,Dataset!$V:$V,0),MATCH(Calculations!$A$1,Dataset!$A$1:$V$1,0)),"") ->  | K35: =IFERROR(INDEX(Dataset!$A:$V,MATCH(Calculations!K$17&Calculations!$P35,Dataset!$V:$V,0),MATCH(Calculations!$A$1,Dataset!$A$1:$V$1,0)),"") ->  | L35: =IFERROR(INDEX(Dataset!$A:$V,MATCH(Calculations!L$17&Calculations!$P35,Dataset!$V:$V,0),MATCH(Calculations!$A$1,Dataset!$A$1:$V$1,0)),"") ->  | P35: Outputs - reliabilityResilienceTotal Resilience Actual
A37: Ch1 Outputs - Connections
C38: 2023/24 | D38: 2024/25 | E38: 2025/26 | F38: 2026/27 | G38: 2027/28
A39: Reward 23/24 | C39: =IFERROR(INDEX(Dataset!$A:$V,MATCH(Calculations!C$38&Calculations!$P39,Dataset!$V:$V,0),MATCH(Calculations!$A$1,Dataset!$A$1:$V$1,0)),"") -> 0.8698922754 | D39: =IFERROR(INDEX(Dataset!$A:$V,MATCH(Calculations!D$38&Calculations!$P39,Dataset!$V:$V,0),MATCH(Calculations!$A$1,Dataset!$A$1:$V$1,0)),"") -> 1.005622134 | E39: =IFERROR(INDEX(Dataset!$A:$V,MATCH(Calculations!E$38&Calculations!$P39,Dataset!$V:$V,0),MATCH(Calculations!$A$1,Dataset!$A$1:$V$1,0)),"") -> 0 | F39: =IFERROR(INDEX(Dataset!$A:$V,MATCH(Calculations!F$38&Calculations!$P39,Dataset!$V:$V,0),MATCH(Calculations!$A$1,Dataset!$A$1:$V$1,0)),"") -> 0 | G39: =IFERROR(INDEX(Dataset!$A:$V,MATCH(Calculations!G$38&Calculations!$P39,Dataset!$V:$V,0),MATCH(Calculations!$A$1,Dataset!$A$1:$V$1,0)),"") -> 0 | H39: =IFERROR(INDEX(Dataset!$A:$V,MATCH(Calculations!H$38&Calculations!$P39,Dataset!$V:$V,0),MATCH(Calculations!$A$1,Dataset!$A$1:$V$1,0)),"") ->  | I39: =IFERROR(INDEX(Dataset!$A:$V,MATCH(Calculations!I$38&Calculations!$P39,Dataset!$V:$V,0),MATCH(Calculations!$A$1,Dataset!$A$1:$V$1,0)),"") ->  | J39: =IFERROR(INDEX(Dataset!$A:$V,MATCH(Calculations!J$38&Calculations!$P39,Dataset!$V:$V,0),MATCH(Calculations!$A$1,Dataset!$A$1:$V$1,0)),"") ->  | P39: Outputs - connectionsTime to connect incentiveReward 20/21
A40: RAG | C40: =IFERROR(INDEX(Dataset!$A:$V,MATCH(Calculations!C$38&Calculations!$P40,Dataset!$V:$V,0),MATCH(Calculations!$A$1,Dataset!$A$1:$V$1,0)),"") -> Green | D40: =IFERROR(INDEX(Dataset!$A:$V,MATCH(Calculations!D$38&Calculations!$P40,Dataset!$V:$V,0),MATCH(Calculations!$A$1,Dataset!$A$1:$V$1,0)),"") -> Green | E40: =IFERROR(INDEX(Dataset!$A:$V,MATCH(Calculations!E$38&Calculations!$P40,Dataset!$V:$V,0),MATCH(Calculations!$A$1,Dataset!$A$1:$V$1,0)),"") -> 0 | F40: =IFERROR(INDEX(Dataset!$A:$V,MATCH(Calculations!F$38&Calculations!$P40,Dataset!$V:$V,0),MATCH(Calculations!$A$1,Dataset!$A$1:$V$1,0)),"") -> 0 | G40: =IFERROR(INDEX(Dataset!$A:$V,MATCH(Calculations!G$38&Calculations!$P40,Dataset!$V:$V,0),MATCH(Calculations!$A$1,Dataset!$A$1:$V$1,0)),"") -> 0 | H40: =IFERROR(INDEX(Dataset!$A:$V,MATCH(Calculations!H$38&Calculations!$P40,Dataset!$V:$V,0),MATCH(Calculations!$A$1,Dataset!$A$1:$V$1,0)),"") ->  | I40: =IFERROR(INDEX(Dataset!$A:$V,MATCH(Calculations!I$38&Calculations!$P40,Dataset!$V:$V,0),MATCH(Calculations!$A$1,Dataset!$A$1:$V$1,0)),"") ->  | J40: =IFERROR(INDEX(Dataset!$A:$V,MATCH(Calculations!J$38&Calculations!$P40,Dataset!$V:$V,0),MATCH(Calculations!$A$1,Dataset!$A$1:$V$1,0)),"") ->  | P40: Outputs - connectionsTime to connect incentiveRAG
A41: Overall Ranking | C41: =IFERROR(INDEX(Dataset!$A:$V,MATCH(Calculations!C$38&Calculations!$P41,Dataset!$V:$V,0),MATCH(Calculations!$A$1,Dataset!$A$1:$V$1,0)),"") -> 2 | D41: =IFERROR(INDEX(Dataset!$A:$V,MATCH(Calculations!D$38&Calculations!$P41,Dataset!$V:$V,0),MATCH(Calculations!$A$1,Dataset!$A$1:$V$1,0)),"") -> 2 | E41: =IFERROR(INDEX(Dataset!$A:$V,MATCH(Calculations!E$38&Calculations!$P41,Dataset!$V:$V,0),MATCH(Calculations!$A$1,Dataset!$A$1:$V$1,0)),"") -> 0 | F41: =IFERROR(INDEX(Dataset!$A:$V,MATCH(Calculations!F$38&Calculations!$P41,Dataset!$V:$V,0),MATCH(Calculations!$A$1,Dataset!$A$1:$V$1,0)),"") -> 0 | G41: =IFERROR(INDEX(Dataset!$A:$V,MATCH(Calculations!G$38&Calculations!$P41,Dataset!$V:$V,0),MATCH(Calculations!$A$1,Dataset!$A$1:$V$1,0)),"") -> 0 | H41: =IFERROR(INDEX(Dataset!$A:$V,MATCH(Calculations!H$38&Calculations!$P41,Dataset!$V:$V,0),MATCH(Calculations!$A$1,Dataset!$A$1:$V$1,0)),"") ->  | I41: =IFERROR(INDEX(Dataset!$A:$V,MATCH(Calculations!I$38&Calculations!$P41,Dataset!$V:$V,0),MATCH(Calculations!$A$1,Dataset!$A$1:$V$1,0)),"") ->  | J41: =IFERROR(INDEX(Dataset!$A:$V,MATCH(Calculations!J$38&Calculations!$P41,Dataset!$V:$V,0),MATCH(Calculations!$A$1,Dataset!$A$1:$V$1,0)),"") ->  | P41: Outputs - connectionsTime to connect incentiveOverall Ranking
A43: Connections GSoP
A44: Reward 23/24 | C44: =IFERROR(INDEX(Dataset!$A:$V,MATCH(Calculations!C$38&Calculations!$P44,Dataset!$V:$V,0),MATCH(Calculations!$A$1,Dataset!$A$1:$V$1,0)),"") -> 0 | D44: =IFERROR(INDEX(Dataset!$A:$V,MATCH(Calculations!D$38&Calculations!$P44,Dataset!$V:$V,0),MATCH(Calculations!$A$1,Dataset!$A$1:$V$1,0)),"") -> 0 | E44: =IFERROR(INDEX(Dataset!$A:$V,MATCH(Calculations!E$38&Calculations!$P44,Dataset!$V:$V,0),MATCH(Calculations!$A$1,Dataset!$A$1:$V$1,0)),"") -> 0 | F44: =IFERROR(INDEX(Dataset!$A:$V,MATCH(Calculations!F$38&Calculations!$P44,Dataset!$V:$V,0),MATCH(Calculations!$A$1,Dataset!$A$1:$V$1,0)),"") -> 0 | G44: =IFERROR(INDEX(Dataset!$A:$V,MATCH(Calculations!G$38&Calculations!$P44,Dataset!$V:$V,0),MATCH(Calculations!$A$1,Dataset!$A$1:$V$1,0)),"") -> 0 | H44: =IFERROR(INDEX(Dataset!$A:$V,MATCH(Calculations!H$38&Calculations!$P45,Dataset!$V:$V,0),MATCH(Calculations!$A$1,Dataset!$A$1:$V$1,0)),"") -> 0 | I44: =IFERROR(INDEX(Dataset!$A:$V,MATCH(Calculations!I$38&Calculations!$P45,Dataset!$V:$V,0),MATCH(Calculations!$A$1,Dataset!$A$1:$V$1,0)),"") -> 0 | J44: =IFERROR(INDEX(Dataset!$A:$V,MATCH(Calculations!J$38&Calculations!$P45,Dataset!$V:$V,0),MATCH(Calculations!$A$1,Dataset!$A$1:$V$1,0)),"") -> 0 | P44: Outputs - connectionsMajor Connections IncentiveTotal penalties paid against the Major Connections Incentive
A46: Connections GSoP
A47: Total cases | C47: =IFERROR(INDEX(Dataset!$A:$V,MATCH(Calculations!C$38&Calculations!$P47,Dataset!$V:$V,0),MATCH(Calculations!$A$1,Dataset!$A$1:$V$1,0)),"") ->  | D47: =IFERROR(INDEX(Dataset!$A:$V,MATCH(Calculations!D$38&Calculations!$P47,Dataset!$V:$V,0),MATCH(Calculations!$A$1,Dataset!$A$1:$V$1,0)),"") ->  | E47: =IFERROR(INDEX(Dataset!$A:$V,MATCH(Calculations!E$38&Calculations!$P47,Dataset!$V:$V,0),MATCH(Calculations!$A$1,Dataset!$A$1:$V$1,0)),"") ->  | F47: =IFERROR(INDEX(Dataset!$A:$V,MATCH(Calculations!F$38&Calculations!$P47,Dataset!$V:$V,0),MATCH(Calculations!$A$1,Dataset!$A$1:$V$1,0)),"") ->  | G47: =IFERROR(INDEX(Dataset!$A:$V,MATCH(Calculations!G$38&Calculations!$P47,Dataset!$V:$V,0),MATCH(Calculations!$A$1,Dataset!$A$1:$V$1,0)),"") ->  | H47: =IFERROR(INDEX(Dataset!$A:$V,MATCH(Calculations!H$38&Calculations!$P47,Dataset!$V:$V,0),MATCH(Calculations!$A$1,Dataset!$A$1:$V$1,0)),"") ->  | P47: Outputs - connectionsConnections Guaranteed Standards of Performance (GSOPs)Total number of cases where the Connection GSOPs apply
A48: Total cases standards not met | C48: =IFERROR(INDEX(Dataset!$A:$V,MATCH(Calculations!C$38&Calculations!$P48,Dataset!$V:$V,0),MATCH(Calculations!$A$1,Dataset!$A$1:$V$1,0)),"") ->  | D48: =IFERROR(INDEX(Dataset!$A:$V,MATCH(Calculations!D$38&Calculations!$P48,Dataset!$V:$V,0),MATCH(Calculations!$A$1,Dataset!$A$1:$V$1,0)),"") ->  | E48: =IFERROR(INDEX(Dataset!$A:$V,MATCH(Calculations!E$38&Calculations!$P48,Dataset!$V:$V,0),MATCH(Calculations!$A$1,Dataset!$A$1:$V$1,0)),"") ->  | F48: =IFERROR(INDEX(Dataset!$A:$V,MATCH(Calculations!F$38&Calculations!$P48,Dataset!$V:$V,0),MATCH(Calculations!$A$1,Dataset!$A$1:$V$1,0)),"") ->  | G48: =IFERROR(INDEX(Dataset!$A:$V,MATCH(Calculations!G$38&Calculations!$P48,Dataset!$V:$V,0),MATCH(Calculations!$A$1,Dataset!$A$1:$V$1,0)),"") ->  | H48: =IFERROR(INDEX(Dataset!$A:$V,MATCH(Calculations!H$38&Calculations!$P48,Dataset!$V:$V,0),MATCH(Calculations!$A$1,Dataset!$A$1:$V$1,0)),"") ->  | P48: Outputs - connectionsConnections Guaranteed Standards of Performance (GSOPs)Total number of cases where the Connection GSOPs apply and the standard was not met
A49: Penalties paid | C49: =IFERROR(INDEX(Dataset!$A:$V,MATCH(Calculations!C$38&Calculations!$P49,Dataset!$V:$V,0),MATCH(Calculations!$A$1,Dataset!$A$1:$V$1,0)),"") -> 24605 | D49: =IFERROR(INDEX(Dataset!$A:$V,MATCH(Calculations!D$38&Calculations!$P49,Dataset!$V:$V,0),MATCH(Calculations!$A$1,Dataset!$A$1:$V$1,0)),"") -> 3720 | E49: =IFERROR(INDEX(Dataset!$A:$V,MATCH(Calculations!E$38&Calculations!$P49,Dataset!$V:$V,0),MATCH(Calculations!$A$1,Dataset!$A$1:$V$1,0)),"") -> 0 | F49: =IFERROR(INDEX(Dataset!$A:$V,MATCH(Calculations!F$38&Calculations!$P49,Dataset!$V:$V,0),MATCH(Calculations!$A$1,Dataset!$A$1:$V$1,0)),"") -> 0 | G49: =IFERROR(INDEX(Dataset!$A:$V,MATCH(Calculations!G$38&Calculations!$P49,Dataset!$V:$V,0),MATCH(Calculations!$A$1,Dataset!$A$1:$V$1,0)),"") -> 0 | H49: =IFERROR(INDEX(Dataset!$A:$V,MATCH(Calculations!H$38&Calculations!$P49,Dataset!$V:$V,0),MATCH(Calculations!$A$1,Dataset!$A$1:$V$1,0)),"") ->  | P49: Outputs - connectionsConnections Guaranteed Standards of Performance (GSOPs)Total penalties paid against the Connection GSOPs (£) (2020/21 prices)
A50: RAG | C50: =IFERROR(INDEX(Dataset!$A:$V,MATCH(Calculations!C$38&Calculations!$P50,Dataset!$V:$V,0),MATCH(Calculations!$A$1,Dataset!$A$1:$V$1,0)),"") -> Green | D50: =IFERROR(INDEX(Dataset!$A:$V,MATCH(Calculations!D$38&Calculations!$P50,Dataset!$V:$V,0),MATCH(Calculations!$A$1,Dataset!$A$1:$V$1,0)),"") -> Green | E50: =IFERROR(INDEX(Dataset!$A:$V,MATCH(Calculations!E$38&Calculations!$P50,Dataset!$V:$V,0),MATCH(Calculations!$A$1,Dataset!$A$1:$V$1,0)),"") -> 0 | F50: =IFERROR(INDEX(Dataset!$A:$V,MATCH(Calculations!F$38&Calculations!$P50,Dataset!$V:$V,0),MATCH(Calculations!$A$1,Dataset!$A$1:$V$1,0)),"") -> 0 | G50: =IFERROR(INDEX(Dataset!$A:$V,MATCH(Calculations!G$38&Calculations!$P50,Dataset!$V:$V,0),MATCH(Calculations!$A$1,Dataset!$A$1:$V$1,0)),"") -> 0 | H50: =IFERROR(INDEX(Dataset!$A:$V,MATCH(Calculations!H$38&Calculations!$P50,Dataset!$V:$V,0),MATCH(Calculations!$A$1,Dataset!$A$1:$V$1,0)),"") ->  | P50: Outputs - connectionsConnections Guaranteed Standards of Performance (GSOPs)RAG
A51: Ranking | C51: =IFERROR(INDEX(Dataset!$A:$V,MATCH(Calculations!C$38&Calculations!$P51,Dataset!$V:$V,0),MATCH(Calculations!$A$1,Dataset!$A$1:$V$1,0)),"") -> 8 | D51: =IFERROR(INDEX(Dataset!$A:$V,MATCH(Calculations!D$38&Calculations!$P51,Dataset!$V:$V,0),MATCH(Calculations!$A$1,Dataset!$A$1:$V$1,0)),"") -> 6 | E51: =IFERROR(INDEX(Dataset!$A:$V,MATCH(Calculations!E$38&Calculations!$P51,Dataset!$V:$V,0),MATCH(Calculations!$A$1,Dataset!$A$1:$V$1,0)),"") -> 0 | F51: =IFERROR(INDEX(Dataset!$A:$V,MATCH(Calculations!F$38&Calculations!$P51,Dataset!$V:$V,0),MATCH(Calculations!$A$1,Dataset!$A$1:$V$1,0)),"") -> 0 | G51: =IFERROR(INDEX(Dataset!$A:$V,MATCH(Calculations!G$38&Calculations!$P51,Dataset!$V:$V,0),MATCH(Calculations!$A$1,Dataset!$A$1:$V$1,0)),"") -> 0 | H51: =IFERROR(INDEX(Dataset!$A:$V,MATCH(Calculations!H$38&Calculations!$P51,Dataset!$V:$V,0),MATCH(Calculations!$A$1,Dataset!$A$1:$V$1,0)),"") ->  | P51: Outputs - connectionsConnections Guaranteed Standards of Performance (GSOPs)Ranking
A53: Ch1 Outputs - Environment
